Workbook

Sheet Parecer Urbanistico
A1: PROGRAMA ILUMINA PARANÁ
A2: PARECER URBANÍSTICO
A4: Mun. | B4: NOVA FÁTIMA | C4: E.R: | D4: =_xlfn.XLOOKUP(B4,Planilha2!B2:B400,Planilha2!F2:F400) -> 75828418000190 | H4: E.R: | I4: =_xlfn.XLOOKUP(B4,Planilha2!B2:B400,Planilha2!C2:C400) -> Londrina
A5: Prio. | B5: 20 | C5: Projeto: | D5: Substituição de Iluminação Pública para Led | J5: =TODAY() -> 2023-02-06
A10: RESUMO DO PROJETO
A11: Sistema de Iluminação Pública Instalado
B12: Descarte de Luminárias | C12: =SUM(t_instalado[Luminárias]) -> 91 | H12: Mista | K12: =SUMIF(t_instalado[T.1],H12,t_instalado[Q.1])+SUMIF(t_instalado[T.2],H12,t_instalado[Q.2])+SUMIF(t_instalado[T.3],H12,t_instalado[Q.3]) -> 0
B13: Descarte de Relés | C13: =SUM(t_instalado[Relé]) -> 91 | H13: V.Mercúrio | K13: =SUMIF(t_instalado[T.1],H13,t_instalado[Q.1])+SUMIF(t_instalado[T.2],H13,t_instalado[Q.2])+SUMIF(t_instalado[T.3],H13,t_instalado[Q.3]) -> 0 | O13: FAVOR PREENCHER OS VALORES DAS CÉLULAS HACHURADAS
B14: Descarte de Braços | C14: =SUM(t_instalado[Desc. de Braços]) -> 91 | H14: V.Sódio | K14: =SUMIF(t_instalado[T.1],H14,t_instalado[Q.1])+SUMIF(t_instalado[T.2],H14,t_instalado[Q.2])+SUMIF(t_instalado[T.3],H14,t_instalado[Q.3]) -> 91
B15: Fluxo Luminoso Médio Instalado (por luminária) | C15: =ROUND(AVERAGE(t_instalado[lm_médio]),0) -> 7700 | H15: V.Metálico | K15: =SUMIF(t_instalado[T.1],H15,t_instalado[Q.1])+SUMIF(t_instalado[T.2],H15,t_instalado[Q.2])+SUMIF(t_instalado[T.3],H15,t_instalado[Q.3]) -> 0
B16: Consumo Médio Instalado (por luminária) | C16: =ROUND(AVERAGE(t_instalado[W_médio]),0) -> 84 | H16: Outra | K16: =SUMIF(t_instalado[T.1],H16,t_instalado[Q.1])+SUMIF(t_instalado[T.2],H16,t_instalado[Q.2])+SUMIF(t_instalado[T.3],H16,t_instalado[Q.3]) -> 0
B17: Eficiência Média Instalada | C17: =ROUND(C15/C16,0) -> 92 | H17: TOTAL | K17: =SUM(K12:K16) -> 91
B18: Consumo Anual Instalado (Total) | C18: =C12*C16/1000*365*11.866 -> 33106.85196 | D18: kWh/ano
B19: Custo anual Instalado | C19: =C18*E19 -> 9269.918549 | D19: R$ | E19: 0.28 | H19: Extensão Linear | K19: =ROUND(SUM(t_sitio[Ext. Linear]),0)/1000 -> 3.15
A21: Definições de Projeto
B22: Fluxo Luminoso Médio do Projeto (por luminária) | C22: =C23*C24 -> 7700 | G22: Tipo 01 | H22: 50 | K22: =SUMIF(t_projeto[T.1],G22,t_projeto[Q.1])+SUMIF(t_projeto[T.2],G22,t_projeto[Q.2])+SUMIF(t_projeto[T.3],G22,t_projeto[Q.3]) -> 76
B23: Consumo Médio do Projeto (por luminária) | C23: =ROUND(AVERAGE(t_projeto[W_médio]),0) -> 55 | G23: Tipo 02 | H23: 100 | K23: =SUMIF(t_projeto[T.1],G23,t_projeto[Q.1])+SUMIF(t_projeto[T.2],G23,t_projeto[Q.2])+SUMIF(t_projeto[T.3],G23,t_projeto[Q.3]) -> 15
B24: Eficiência Média do Projeto | C24: 140 | G24: Tipo 03 | H24: 150 | K24: =SUMIF(t_projeto[T.1],G24,t_projeto[Q.1])+SUMIF(t_projeto[T.2],G24,t_projeto[Q.2])+SUMIF(t_projeto[T.3],G24,t_projeto[Q.3]) -> 0
B25: Consumo Anual Projetado (Total) | C25: =K27*C23/1000*365*11.866 -> 21677.10545 | D25: kWh/ano | G25: Tipo 04 | H25: 200 | K25: =SUMIF(t_projeto[T.1],G25,t_projeto[Q.1])+SUMIF(t_projeto[T.2],G25,t_projeto[Q.2])+SUMIF(t_projeto[T.3],G25,t_projeto[Q.3]) -> 0
B26: Custo anual Projetado | C26: =C25*E19 -> 6069.589526 | D26: R$ | G26: Tipo 05 | H26: 300 | K26: =SUMIF(t_projeto[T.1],G26,t_projeto[Q.1])+SUMIF(t_projeto[T.2],G26,t_projeto[Q.2])+SUMIF(t_projeto[T.3],G26,t_projeto[Q.3]) -> 0
H27: TOTAL | K27: =SUM(K22:K26) -> 91
A29: Avaliação do Projeto
B30: Melhoria do Fluxo Luminoso Médio (por luminária) | C30: =C22/C15-1 -> 0 | H30: Prazo de Execução | K30: 90
B31: Melhoria do Consumo Médio (por luminária) | C31: =C23/C16 -> 0.6547619048
B32: Economia do Custo Anual | C32: =C19-C26 -> 3200.329023 | D32: R$ | E32: =C26/C19-1 -> -0.3452380952
A34: PARECER TÉCNICO
B37: Ederaldo Antonio Nunes Medeiros | E37: Glauco Pereira Jr.
B38: Engº Civil - Responsável Técnico do Município | E38: Analista de Desenvolvimento Municipal
B39: CREA/PR-28128/D | E39: CAU A1874-0
A41: IDENTIFICAÇÃO DOS TRECHOS
A42: cód | B42: Trecho | C42: Ext. Linear | D42: Postes | E42: Altura | F42: Idade Méd. | G42: Coluna2 | H42: Class.CBT | I42: C1 | J42: C2 | K42: C3
A43: 1 | B43: Rua Pioneiro Francisco de Cardoso Abreu - - Trecho 01 | C43: 210 | D43: 6 | E43: 7 | H43: Local | I43: V5 | J43: Leve | K43: P4
A44: =IF(ISTEXT(B44),A43+1,"") -> 2 | B44: Rua Pioneiro Luidi Nardi - Trecho 06 | C44: 315 | D44: 9 | E44: 7 | H44: Local | I44: V5 | J44: Leve | K44: P4
A45: =IF(ISTEXT(B45),A44+1,"") -> 3 | B45: Rua Ver. Oswaldo Ferreira de Souza - Trecho 03 | C45: 315 | D45: 9 | E45: 7 | H45: Local | I45: V5 | J45: Leve | K45: P4
A46: 4 | B46: Rua Nestor Cendon Garrido - Trecho 15 | C46: 385 | D46: 11 | E46: 7 | H46: Local | I46: V5 | J46: Leve | K46: P4
A47: 5 | B47: Rua Ver. Anibal Pena - Trecho 05 | C47: 210 | D47: 6 | E47: 7 | H47: Local | I47: V5 | J47: Leve | K47: P4
A48: 6 | B48: Rua Guerino Busquim - Trecho 10 | C48: 385 | D48: 11 | E48: 7 | H48: Local | I48: V5 | J48: Leve | K48: P4
A49: 7 | B49: Rua Moisés Lupion - Trecho 07 | C49: 490 | D49: 15 | E49: 7 | H49: Local | I49: V5 | J49: Leve | K49: P4
A50: 8 | B50: Rua Fernando Ribeiro - Trecho 13 | C50: 420 | D50: 14 | E50: 7 | H50: Local | I50: V5 | J50: Leve | K50: P4
A51: 9 | B51: Rua Ver. José Montoja Salgueiro - Trecho 17 | C51: 210 | D51: 6 | E51: 7 | H51: Local | I51: V5 | J51: Leve | K51: P4
A52: 10 | B52: Rua Prof. Alcena de Souza Facco - Trecho 09 | C52: 210 | D52: 4 | E52: 7 | H52: Local | I52: V5 | J52: Leve | K52: P4
A53: =IF(ISTEXT(B53),#REF!+1,"") -> 
A103: =IF(ISTEXT(B103),A102+1,"") -> 
A167: =IF(ISTEXT(B167),A166+1,"") -> 
A231: =IF(ISTEXT(B231),A230+1,"") -> 
A239: IDENTIFICAÇÃO DO SISTEMA INSTALADO
A240: cód. | B240: Trecho | C240: T.1 | D240: Q.1 | E240: P.1(W) | F240: T.2 | G240: Q.2 | H240: P.2(W) | I240: T.3 | J240: Q.3 | K240: P.3(W) | L240: a | M240: Relé | N240: Desc. de Braços | O240: R.1 | P240: R.2 | Q240: R.3 | R240: Consumo_W | S240: W_médio | T240: f.1 | U240: f.2 | V240: f.3 | W240: FLUXO | X240: Luminárias | Y240: lm_médio | Z240: eficiencia_media
A241: 1 | B241: =_xlfn.XLOOKUP(t_instalado[[#This Row],[cód.]],t_sitio[cód],t_sitio[Trecho],"") -> Rua Pioneiro Francisco de Cardoso Abreu - - Trecho 01 | C241: V.Sódio | D241: 6 | E241: 70 | M241: =t_instalado[[#This Row],[Q.1]]+t_instalado[[#This Row],[Q.2]]+t_instalado[[#This Row],[Q.3]] -> 6 | N241: =t_instalado[[#This Row],[Q.1]]+t_instalado[[#This Row],[Q.2]]+t_instalado[[#This Row],[Q.3]] -> 6 | O241: =IF(t_instalado[[#This Row],[Q.1]]<>"",SUMIFS(t_reator[p],t_reator[tipo],t_instalado[[#This Row],[T.1]],t_reator[w],t_instalado[[#This Row],[P.1(W)]]),"") -> 14 | P241: =IF(t_instalado[[#This Row],[Q.2]]<>"",SUMIFS(t_reator[p],t_reator[tipo],t_instalado[[#This Row],[T.2]],t_reator[w],t_instalado[[#This Row],[P.2(W)]]),"") ->  | Q241: =IF(t_instalado[[#This Row],[Q.3]]<>"",SUMIFS(t_reator[p],t_reator[tipo],t_instalado[[#This Row],[T.3]],t_reator[w],t_instalado[[#This Row],[P.3(W)]]),"") ->  | R241: =IF(t_instalado[[#This Row],[Q.1]]<>"",IFERROR(IFERROR(D241*(E241+O241)+G241*(H241+P241)+J241*(K241+Q241),D241*(E241+O241)+G241*(H241+P241)),D241*(E241+O241)),"") -> 504 | S241: =IF(t_instalado[[#This Row],[Consumo_W]]<>"",ROUND(t_instalado[[#This Row],[Consumo_W]]/t_instalado[[#This Row],[Luminárias]],0),"") -> 84 | T241: =IF(t_instalado[[#This Row],[Q.1]]<>"",SUMIFS(t_fluxo_lumin[fluxo],t_fluxo_lumin[tipo],t_instalado[[#This Row],[T.1]])*t_instalado[[#This Row],[P.1(W)]]*t_instalado[[#This Row],[Q.1]],"") -> 46200 | U241: =IF(t_instalado[[#This Row],[Q.2]]<>"",SUMIFS(t_fluxo_lumin[fluxo],t_fluxo_lumin[tipo],t_instalado[[#This Row],[T.2]])*t_instalado[[#This Row],[Q.2]]*t_instalado[[#This Row],[P.2(W)]],"") ->  | V241: =IF(t_instalado[[#This Row],[Q.3]]<>"",SUMIFS(t_fluxo_lumin[fluxo],t_fluxo_lumin[tipo],t_instalado[[#This Row],[T.3]])*t_instalado[[#This Row],[Q.3]]*t_instalado[[#This Row],[P.3(W)]],"") ->  | W241: =IF(t_instalado[[#This Row],[Trecho]]<>"",SUM(t_instalado[[#This Row],[f.1]:[f.3]]),"") -> 46200 | X241: =IF(t_instalado[[#This Row],[Trecho]]<>"",t_instalado[[#This Row],[Q.1]]+t_instalado[[#This Row],[Q.2]]+t_instalado[[#This Row],[Q.3]],"") -> 6 | Y241: =IF(t_instalado[[#This Row],[FLUXO]]<>"",ROUND(t_instalado[[#This Row],[FLUXO]]/t_instalado[[#This Row],[Luminárias]],0),"") -> 7700 | Z241: =IF(t_instalado[[#This Row],[Luminárias]]<>"",ROUND(t_instalado[[#This Row],[lm_médio]]/t_instalado[[#This Row],[W_médio]],2),"") -> 91.67
A242: 2 | B242: =_xlfn.XLOOKUP(t_instalado[[#This Row],[cód.]],t_sitio[cód],t_sitio[Trecho],"") -> Rua Pioneiro Luidi Nardi - Trecho 06 | C242: V.Sódio | D242: 9 | E242: 70 | M242: =t_instalado[[#This Row],[Q.1]]+t_instalado[[#This Row],[Q.2]]+t_instalado[[#This Row],[Q.3]] -> 9 | N242: =t_instalado[[#This Row],[Q.1]]+t_instalado[[#This Row],[Q.2]]+t_instalado[[#This Row],[Q.3]] -> 9 | O242: =IF(t_instalado[[#This Row],[Q.1]]<>"",SUMIFS(t_reator[p],t_reator[tipo],t_instalado[[#This Row],[T.1]],t_reator[w],t_instalado[[#This Row],[P.1(W)]]),"") -> 14 | P242: =IF(t_instalado[[#This Row],[Q.2]]<>"",SUMIFS(t_reator[p],t_reator[tipo],t_instalado[[#This Row],[T.2]],t_reator[w],t_instalado[[#This Row],[P.2(W)]]),"") ->  | Q242: =IF(t_instalado[[#This Row],[Q.3]]<>"",SUMIFS(t_reator[p],t_reator[tipo],t_instalado[[#This Row],[T.3]],t_reator[w],t_instalado[[#This Row],[P.3(W)]]),"") ->  | R242: =IF(t_instalado[[#This Row],[Q.1]]<>"",IFERROR(IFERROR(D242*(E242+O242)+G242*(H242+P242)+J242*(K242+Q242),D242*(E242+O242)+G242*(H242+P242)),D242*(E242+O242)),"") -> 756 | S242: =IF(t_instalado[[#This Row],[Consumo_W]]<>"",ROUND(t_instalado[[#This Row],[Consumo_W]]/t_instalado[[#This Row],[Luminárias]],0),"") -> 84 | T242: =IF(t_instalado[[#This Row],[Q.1]]<>"",SUMIFS(t_fluxo_lumin[fluxo],t_fluxo_lumin[tipo],t_instalado[[#This Row],[T.1]])*t_instalado[[#This Row],[P.1(W)]]*t_instalado[[#This Row],[Q.1]],"") -> 69300 | U242: =IF(t_instalado[[#This Row],[Q.2]]<>"",SUMIFS(t_fluxo_lumin[fluxo],t_fluxo_lumin[tipo],t_instalado[[#This Row],[T.2]])*t_instalado[[#This Row],[Q.2]]*t_instalado[[#This Row],[P.2(W)]],"") ->  | V242: =IF(t_instalado[[#This Row],[Q.3]]<>"",SUMIFS(t_fluxo_lumin[fluxo],t_fluxo_lumin[tipo],t_instalado[[#This Row],[T.3]])*t_instalado[[#This Row],[Q.3]]*t_instalado[[#This Row],[P.3(W)]],"") ->  | W242: =IF(t_instalado[[#This Row],[Trecho]]<>"",SUM(t_instalado[[#This Row],[f.1]:[f.3]]),"") -> 69300 | X242: =IF(t_instalado[[#This Row],[Trecho]]<>"",t_instalado[[#This Row],[Q.1]]+t_instalado[[#This Row],[Q.2]]+t_instalado[[#This Row],[Q.3]],"") -> 9 | Y242: =IF(t_instalado[[#This Row],[FLUXO]]<>"",ROUND(t_instalado[[#This Row],[FLUXO]]/t_instalado[[#This Row],[Luminárias]],0),"") -> 7700 | Z242: =IF(t_instalado[[#This Row],[Luminárias]]<>"",ROUND(t_instalado[[#This Row],[lm_médio]]/t_instalado[[#This Row],[W_médio]],2),"") -> 91.67
A243: 3 | B243: =_xlfn.XLOOKUP(t_instalado[[#This Row],[cód.]],t_sitio[cód],t_sitio[Trecho],"") -> Rua Ver. Oswaldo Ferreira de Souza - Trecho 03 | C243: V.Sódio | D243: 9 | E243: 70 | M243: =t_instalado[[#This Row],[Q.1]]+t_instalado[[#This Row],[Q.2]]+t_instalado[[#This Row],[Q.3]] -> 9 | N243: =t_instalado[[#This Row],[Q.1]]+t_instalado[[#This Row],[Q.2]]+t_instalado[[#This Row],[Q.3]] -> 9 | O243: =IF(t_instalado[[#This Row],[Q.1]]<>"",SUMIFS(t_reator[p],t_reator[tipo],t_instalado[[#This Row],[T.1]],t_reator[w],t_instalado[[#This Row],[P.1(W)]]),"") -> 14 | P243: =IF(t_instalado[[#This Row],[Q.2]]<>"",SUMIFS(t_reator[p],t_reator[tipo],t_instalado[[#This Row],[T.2]],t_reator[w],t_instalado[[#This Row],[P.2(W)]]),"") ->  | Q243: =IF(t_instalado[[#This Row],[Q.3]]<>"",SUMIFS(t_reator[p],t_reator[tipo],t_instalado[[#This Row],[T.3]],t_reator[w],t_instalado[[#This Row],[P.3(W)]]),"") ->  | R243: =IF(t_instalado[[#This Row],[Q.1]]<>"",IFERROR(IFERROR(D243*(E243+O243)+G243*(H243+P243)+J243*(K243+Q243),D243*(E243+O243)+G243*(H243+P243)),D243*(E243+O243)),"") -> 756 | S243: =IF(t_instalado[[#This Row],[Consumo_W]]<>"",ROUND(t_instalado[[#This Row],[Consumo_W]]/t_instalado[[#This Row],[Luminárias]],0),"") -> 84 | T243: =IF(t_instalado[[#This Row],[Q.1]]<>"",SUMIFS(t_fluxo_lumin[fluxo],t_fluxo_lumin[tipo],t_instalado[[#This Row],[T.1]])*t_instalado[[#This Row],[P.1(W)]]*t_instalado[[#This Row],[Q.1]],"") -> 69300 | U243: =IF(t_instalado[[#This Row],[Q.2]]<>"",SUMIFS(t_fluxo_lumin[fluxo],t_fluxo_lumin[tipo],t_instalado[[#This Row],[T.2]])*t_instalado[[#This Row],[Q.2]]*t_instalado[[#This Row],[P.2(W)]],"") ->  | V243: =IF(t_instalado[[#This Row],[Q.3]]<>"",SUMIFS(t_fluxo_lumin[fluxo],t_fluxo_lumin[tipo],t_instalado[[#This Row],[T.3]])*t_instalado[[#This Row],[Q.3]]*t_instalado[[#This Row],[P.3(W)]],"") ->  | W243: =IF(t_instalado[[#This Row],[Trecho]]<>"",SUM(t_instalado[[#This Row],[f.1]:[f.3]]),"") -> 69300 | X243: =IF(t_instalado[[#This Row],[Trecho]]<>"",t_instalado[[#This Row],[Q.1]]+t_instalado[[#This Row],[Q.2]]+t_instalado[[#This Row],[Q.3]],"") -> 9 | Y243: =IF(t_instalado[[#This Row],[FLUXO]]<>"",ROUND(t_instalado[[#This Row],[FLUXO]]/t_instalado[[#This Row],[Luminárias]],0),"") -> 7700 | Z243: =IF(t_instalado[[#This Row],[Luminárias]]<>"",ROUND(t_instalado[[#This Row],[lm_médio]]/t_instalado[[#This Row],[W_médio]],2),"") -> 91.67
A244: 4 | B244: =_xlfn.XLOOKUP(t_instalado[[#This Row],[cód.]],t_sitio[cód],t_sitio[Trecho],"") -> Rua Nestor Cendon Garrido - Trecho 15 | C244: V.Sódio | D244: 11 | E244: 70 | M244: =t_instalado[[#This Row],[Q.1]]+t_instalado[[#This Row],[Q.2]]+t_instalado[[#This Row],[Q.3]] -> 11 | N244: =t_instalado[[#This Row],[Q.1]]+t_instalado[[#This Row],[Q.2]]+t_instalado[[#This Row],[Q.3]] -> 11 | O244: =IF(t_instalado[[#This Row],[Q.1]]<>"",SUMIFS(t_reator[p],t_reator[tipo],t_instalado[[#This Row],[T.1]],t_reator[w],t_instalado[[#This Row],[P.1(W)]]),"") -> 14 | P244: =IF(t_instalado[[#This Row],[Q.2]]<>"",SUMIFS(t_reator[p],t_reator[tipo],t_instalado[[#This Row],[T.2]],t_reator[w],t_instalado[[#This Row],[P.2(W)]]),"") ->  | Q244: =IF(t_instalado[[#This Row],[Q.3]]<>"",SUMIFS(t_reator[p],t_reator[tipo],t_instalado[[#This Row],[T.3]],t_reator[w],t_instalado[[#This Row],[P.3(W)]]),"") ->  | R244: =IF(t_instalado[[#This Row],[Q.1]]<>"",IFERROR(IFERROR(D244*(E244+O244)+G244*(H244+P244)+J244*(K244+Q244),D244*(E244+O244)+G244*(H244+P244)),D244*(E244+O244)),"") -> 924 | S244: =IF(t_instalado[[#This Row],[Consumo_W]]<>"",ROUND(t_instalado[[#This Row],[Consumo_W]]/t_instalado[[#This Row],[Luminárias]],0),"") -> 84 | T244: =IF(t_instalado[[#This Row],[Q.1]]<>"",SUMIFS(t_fluxo_lumin[fluxo],t_fluxo_lumin[tipo],t_instalado[[#This Row],[T.1]])*t_instalado[[#This Row],[P.1(W)]]*t_instalado[[#This Row],[Q.1]],"") -> 84700 | U244: =IF(t_instalado[[#This Row],[Q.2]]<>"",SUMIFS(t_fluxo_lumin[fluxo],t_fluxo_lumin[tipo],t_instalado[[#This Row],[T.2]])*t_instalado[[#This Row],[Q.2]]*t_instalado[[#This Row],[P.2(W)]],"") ->  | V244: =IF(t_instalado[[#This Row],[Q.3]]<>"",SUMIFS(t_fluxo_lumin[fluxo],t_fluxo_lumin[tipo],t_instalado[[#This Row],[T.3]])*t_instalado[[#This Row],[Q.3]]*t_instalado[[#This Row],[P.3(W)]],"") ->  | W244: =IF(t_instalado[[#This Row],[Trecho]]<>"",SUM(t_instalado[[#This Row],[f.1]:[f.3]]),"") -> 84700 | X244: =IF(t_instalado[[#This Row],[Trecho]]<>"",t_instalado[[#This Row],[Q.1]]+t_instalado[[#This Row],[Q.2]]+t_instalado[[#This Row],[Q.3]],"") -> 11 | Y244: =IF(t_instalado[[#This Row],[FLUXO]]<>"",ROUND(t_instalado[[#This Row],[FLUXO]]/t_instalado[[#This Row],[Luminárias]],0),"") -> 7700 | Z244: =IF(t_instalado[[#This Row],[Luminárias]]<>"",ROUND(t_instalado[[#This Row],[lm_médio]]/t_instalado[[#This Row],[W_médio]],2),"") -> 91.67
A245: 5 | B245: =_xlfn.XLOOKUP(t_instalado[[#This Row],[cód.]],t_sitio[cód],t_sitio[Trecho],"") -> Rua Ver. Anibal Pena - Trecho 05 | C245: V.Sódio | D245: 6 | E245: 70 | M245: =t_instalado[[#This Row],[Q.1]]+t_instalado[[#This Row],[Q.2]]+t_instalado[[#This Row],[Q.3]] -> 6 | N245: =t_instalado[[#This Row],[Q.1]]+t_instalado[[#This Row],[Q.2]]+t_instalado[[#This Row],[Q.3]] -> 6 | O245: =IF(t_instalado[[#This Row],[Q.1]]<>"",SUMIFS(t_reator[p],t_reator[tipo],t_instalado[[#This Row],[T.1]],t_reator[w],t_instalado[[#This Row],[P.1(W)]]),"") -> 14 | P245: =IF(t_instalado[[#This Row],[Q.2]]<>"",SUMIFS(t_reator[p],t_reator[tipo],t_instalado[[#This Row],[T.2]],t_reator[w],t_instalado[[#This Row],[P.2(W)]]),"") ->  | Q245: =IF(t_instalado[[#This Row],[Q.3]]<>"",SUMIFS(t_reator[p],t_reator[tipo],t_instalado[[#This Row],[T.3]],t_reator[w],t_instalado[[#This Row],[P.3(W)]]),"") ->  | R245: =IF(t_instalado[[#This Row],[Q.1]]<>"",IFERROR(IFERROR(D245*(E245+O245)+G245*(H245+P245)+J245*(K245+Q245),D245*(E245+O245)+G245*(H245+P245)),D245*(E245+O245)),"") -> 504 | S245: =IF(t_instalado[[#This Row],[Consumo_W]]<>"",ROUND(t_instalado[[#This Row],[Consumo_W]]/t_instalado[[#This Row],[Luminárias]],0),"") -> 84 | T245: =IF(t_instalado[[#This Row],[Q.1]]<>"",SUMIFS(t_fluxo_lumin[fluxo],t_fluxo_lumin[tipo],t_instalado[[#This Row],[T.1]])*t_instalado[[#This Row],[P.1(W)]]*t_instalado[[#This Row],[Q.1]],"") -> 46200 | U245: =IF(t_instalado[[#This Row],[Q.2]]<>"",SUMIFS(t_fluxo_lumin[fluxo],t_fluxo_lumin[tipo],t_instalado[[#This Row],[T.2]])*t_instalado[[#This Row],[Q.2]]*t_instalado[[#This Row],[P.2(W)]],"") ->  | V245: =IF(t_instalado[[#This Row],[Q.3]]<>"",SUMIFS(t_fluxo_lumin[fluxo],t_fluxo_lumin[tipo],t_instalado[[#This Row],[T.3]])*t_instalado[[#This Row],[Q.3]]*t_instalado[[#This Row],[P.3(W)]],"") ->  | W245: =IF(t_instalado[[#This Row],[Trecho]]<>"",SUM(t_instalado[[#This Row],[f.1]:[f.3]]),"") -> 46200 | X245: =IF(t_instalado[[#This Row],[Trecho]]<>"",t_instalado[[#This Row],[Q.1]]+t_instalado[[#This Row],[Q.2]]+t_instalado[[#This Row],[Q.3]],"") -> 6 | Y245: =IF(t_instalado[[#This Row],[FLUXO]]<>"",ROUND(t_instalado[[#This Row],[FLUXO]]/t_instalado[[#This Row],[Luminárias]],0),"") -> 7700 | Z245: =IF(t_instalado[[#This Row],[Luminárias]]<>"",ROUND(t_instalado[[#This Row],[lm_médio]]/t_instalado[[#This Row],[W_médio]],2),"") -> 91.67
A246: 6 | B246: =_xlfn.XLOOKUP(t_instalado[[#This Row],[cód.]],t_sitio[cód],t_sitio[Trecho],"") -> Rua Guerino Busquim - Trecho 10 | C246: V.Sódio | D246: 11 | E246: 70 | M246: =t_instalado[[#This Row],[Q.1]]+t_instalado[[#This Row],[Q.2]]+t_instalado[[#This Row],[Q.3]] -> 11 | N246: =t_instalado[[#This Row],[Q.1]]+t_instalado[[#This Row],[Q.2]]+t_instalado[[#This Row],[Q.3]] -> 11 | O246: =IF(t_instalado[[#This Row],[Q.1]]<>"",SUMIFS(t_reator[p],t_reator[tipo],t_instalado[[#This Row],[T.1]],t_reator[w],t_instalado[[#This Row],[P.1(W)]]),"") -> 14 | P246: =IF(t_instalado[[#This Row],[Q.2]]<>"",SUMIFS(t_reator[p],t_reator[tipo],t_instalado[[#This Row],[T.2]],t_reator[w],t_instalado[[#This Row],[P.2(W)]]),"") ->  | Q246: =IF(t_instalado[[#This Row],[Q.3]]<>"",SUMIFS(t_reator[p],t_reator[tipo],t_instalado[[#This Row],[T.3]],t_reator[w],t_instalado[[#This Row],[P.3(W)]]),"") ->  | R246: =IF(t_instalado[[#This Row],[Q.1]]<>"",IFERROR(IFERROR(D246*(E246+O246)+G246*(H246+P246)+J246*(K246+Q246),D246*(E246+O246)+G246*(H246+P246)),D246*(E246+O246)),"") -> 924 | S246: =IF(t_instalado[[#This Row],[Consumo_W]]<>"",ROUND(t_instalado[[#This Row],[Consumo_W]]/t_instalado[[#This Row],[Luminárias]],0),"") -> 84 | T246: =IF(t_instalado[[#This Row],[Q.1]]<>"",SUMIFS(t_fluxo_lumin[fluxo],t_fluxo_lumin[tipo],t_instalado[[#This Row],[T.1]])*t_instalado[[#This Row],[P.1(W)]]*t_instalado[[#This Row],[Q.1]],"") -> 84700 | U246: =IF(t_instalado[[#This Row],[Q.2]]<>"",SUMIFS(t_fluxo_lumin[fluxo],t_fluxo_lumin[tipo],t_instalado[[#This Row],[T.2]])*t_instalado[[#This Row],[Q.2]]*t_instalado[[#This Row],[P.2(W)]],"") ->  | V246: =IF(t_instalado[[#This Row],[Q.3]]<>"",SUMIFS(t_fluxo_lumin[fluxo],t_fluxo_lumin[tipo],t_instalado[[#This Row],[T.3]])*t_instalado[[#This Row],[Q.3]]*t_instalado[[#This Row],[P.3(W)]],"") ->  | W246: =IF(t_instalado[[#This Row],[Trecho]]<>"",SUM(t_instalado[[#This Row],[f.1]:[f.3]]),"") -> 84700 | X246: =IF(t_instalado[[#This Row],[Trecho]]<>"",t_instalado[[#This Row],[Q.1]]+t_instalado[[#This Row],[Q.2]]+t_instalado[[#This Row],[Q.3]],"") -> 11 | Y246: =IF(t_instalado[[#This Row],[FLUXO]]<>"",ROUND(t_instalado[[#This Row],[FLUXO]]/t_instalado[[#This Row],[Luminárias]],0),"") -> 7700 | Z246: =IF(t_instalado[[#This Row],[Luminárias]]<>"",ROUND(t_instalado[[#This Row],[lm_médio]]/t_instalado[[#This Row],[W_médio]],2),"") -> 91.67
A247: 7 | B247: =_xlfn.XLOOKUP(t_instalado[[#This Row],[cód.]],t_sitio[cód],t_sitio[Trecho],"") -> Rua Moisés Lupion - Trecho 07 | C247: V.Sódio | D247: 15 | E247: 70 | M247: =t_instalado[[#This Row],[Q.1]]+t_instalado[[#This Row],[Q.2]]+t_instalado[[#This Row],[Q.3]] -> 15 | N247: =t_instalado[[#This Row],[Q.1]]+t_instalado[[#This Row],[Q.2]]+t_instalado[[#This Row],[Q.3]] -> 15 | O247: =IF(t_instalado[[#This Row],[Q.1]]<>"",SUMIFS(t_reator[p],t_reator[tipo],t_instalado[[#This Row],[T.1]],t_reator[w],t_instalado[[#This Row],[P.1(W)]]),"") -> 14 | P247: =IF(t_instalado[[#This Row],[Q.2]]<>"",SUMIFS(t_reator[p],t_reator[tipo],t_instalado[[#This Row],[T.2]],t_reator[w],t_instalado[[#This Row],[P.2(W)]]),"") ->  | Q247: =IF(t_instalado[[#This Row],[Q.3]]<>"",SUMIFS(t_reator[p],t_reator[tipo],t_instalado[[#This Row],[T.3]],t_reator[w],t_instalado[[#This Row],[P.3(W)]]),"") ->  | R247: =IF(t_instalado[[#This Row],[Q.1]]<>"",IFERROR(IFERROR(D247*(E247+O247)+G247*(H247+P247)+J247*(K247+Q247),D247*(E247+O247)+G247*(H247+P247)),D247*(E247+O247)),"") -> 1260 | S247: =IF(t_instalado[[#This Row],[Consumo_W]]<>"",ROUND(t_instalado[[#This Row],[Consumo_W]]/t_instalado[[#This Row],[Luminárias]],0),"") -> 84 | T247: =IF(t_instalado[[#This Row],[Q.1]]<>"",SUMIFS(t_fluxo_lumin[fluxo],t_fluxo_lumin[tipo],t_instalado[[#This Row],[T.1]])*t_instalado[[#This Row],[P.1(W)]]*t_instalado[[#This Row],[Q.1]],"") -> 115500 | U247: =IF(t_instalado[[#This Row],[Q.2]]<>"",SUMIFS(t_fluxo_lumin[fluxo],t_fluxo_lumin[tipo],t_instalado[[#This Row],[T.2]])*t_instalado[[#This Row],[Q.2]]*t_instalado[[#This Row],[P.2(W)]],"") ->  | V247: =IF(t_instalado[[#This Row],[Q.3]]<>"",SUMIFS(t_fluxo_lumin[fluxo],t_fluxo_lumin[tipo],t_instalado[[#This Row],[T.3]])*t_instalado[[#This Row],[Q.3]]*t_instalado[[#This Row],[P.3(W)]],"") ->  | W247: =IF(t_instalado[[#This Row],[Trecho]]<>"",SUM(t_instalado[[#This Row],[f.1]:[f.3]]),"") -> 115500 | X247: =IF(t_instalado[[#This Row],[Trecho]]<>"",t_instalado[[#This Row],[Q.1]]+t_instalado[[#This Row],[Q.2]]+t_instalado[[#This Row],[Q.3]],"") -> 15 | Y247: =IF(t_instalado[[#This Row],[FLUXO]]<>"",ROUND(t_instalado[[#This Row],[FLUXO]]/t_instalado[[#This Row],[Luminárias]],0),"") -> 7700 | Z247: =IF(t_instalado[[#This Row],[Luminárias]]<>"",ROUND(t_instalado[[#This Row],[lm_médio]]/t_instalado[[#This Row],[W_médio]],2),"") -> 91.67
A248: 8 | B248: =_xlfn.XLOOKUP(t_instalado[[#This Row],[cód.]],t_sitio[cód],t_sitio[Trecho],"") -> Rua Fernando Ribeiro - Trecho 13 | C248: V.Sódio | D248: 14 | E248: 70 | M248: =t_instalado[[#This Row],[Q.1]]+t_instalado[[#This Row],[Q.2]]+t_instalado[[#This Row],[Q.3]] -> 14 | N248: =t_instalado[[#This Row],[Q.1]]+t_instalado[[#This Row],[Q.2]]+t_instalado[[#This Row],[Q.3]] -> 14 | O248: =IF(t_instalado[[#This Row],[Q.1]]<>"",SUMIFS(t_reator[p],t_reator[tipo],t_instalado[[#This Row],[T.1]],t_reator[w],t_instalado[[#This Row],[P.1(W)]]),"") -> 14 | P248: =IF(t_instalado[[#This Row],[Q.2]]<>"",SUMIFS(t_reator[p],t_reator[tipo],t_instalado[[#This Row],[T.2]],t_reator[w],t_instalado[[#This Row],[P.2(W)]]),"") ->  | Q248: =IF(t_instalado[[#This Row],[Q.3]]<>"",SUMIFS(t_reator[p],t_reator[tipo],t_instalado[[#This Row],[T.3]],t_reator[w],t_instalado[[#This Row],[P.3(W)]]),"") ->  | R248: =IF(t_instalado[[#This Row],[Q.1]]<>"",IFERROR(IFERROR(D248*(E248+O248)+G248*(H248+P248)+J248*(K248+Q248),D248*(E248+O248)+G248*(H248+P248)),D248*(E248+O248)),"") -> 1176 | S248: =IF(t_instalado[[#This Row],[Consumo_W]]<>"",ROUND(t_instalado[[#This Row],[Consumo_W]]/t_instalado[[#This Row],[Luminárias]],0),"") -> 84 | T248: =IF(t_instalado[[#This Row],[Q.1]]<>"",SUMIFS(t_fluxo_lumin[fluxo],t_fluxo_lumin[tipo],t_instalado[[#This Row],[T.1]])*t_instalado[[#This Row],[P.1(W)]]*t_instalado[[#This Row],[Q.1]],"") -> 107800 | U248: =IF(t_instalado[[#This Row],[Q.2]]<>"",SUMIFS(t_fluxo_lumin[fluxo],t_fluxo_lumin[tipo],t_instalado[[#This Row],[T.2]])*t_instalado[[#This Row],[Q.2]]*t_instalado[[#This Row],[P.2(W)]],"") ->  | V248: =IF(t_instalado[[#This Row],[Q.3]]<>"",SUMIFS(t_fluxo_lumin[fluxo],t_fluxo_lumin[tipo],t_instalado[[#This Row],[T.3]])*t_instalado[[#This Row],[Q.3]]*t_instalado[[#This Row],[P.3(W)]],"") ->  | W248: =IF(t_instalado[[#This Row],[Trecho]]<>"",SUM(t_instalado[[#This Row],[f.1]:[f.3]]),"") -> 107800 | X248: =IF(t_instalado[[#This Row],[Trecho]]<>"",t_instalado[[#This Row],[Q.1]]+t_instalado[[#This Row],[Q.2]]+t_instalado[[#This Row],[Q.3]],"") -> 14 | Y248: =IF(t_instalado[[#This Row],[FLUXO]]<>"",ROUND(t_instalado[[#This Row],[FLUXO]]/t_instalado[[#This Row],[Luminárias]],0),"") -> 7700 | Z248: =IF(t_instalado[[#This Row],[Luminárias]]<>"",ROUND(t_instalado[[#This Row],[lm_médio]]/t_instalado[[#This Row],[W_médio]],2),"") -> 91.67
A249: 9 | B249: =_xlfn.XLOOKUP(t_instalado[[#This Row],[cód.]],t_sitio[cód],t_sitio[Trecho],"") -> Rua Ver. José Montoja Salgueiro - Trecho 17 | C249: V.Sódio | D249: 6 | E249: 70 | M249: =t_instalado[[#This Row],[Q.1]]+t_instalado[[#This Row],[Q.2]]+t_instalado[[#This Row],[Q.3]] -> 6 | N249: =t_instalado[[#This Row],[Q.1]]+t_instalado[[#This Row],[Q.2]]+t_instalado[[#This Row],[Q.3]] -> 6 | O249: =IF(t_instalado[[#This Row],[Q.1]]<>"",SUMIFS(t_reator[p],t_reator[tipo],t_instalado[[#This Row],[T.1]],t_reator[w],t_instalado[[#This Row],[P.1(W)]]),"") -> 14 | P249: =IF(t_instalado[[#This Row],[Q.2]]<>"",SUMIFS(t_reator[p],t_reator[tipo],t_instalado[[#This Row],[T.2]],t_reator[w],t_instalado[[#This Row],[P.2(W)]]),"") ->  | Q249: =IF(t_instalado[[#This Row],[Q.3]]<>"",SUMIFS(t_reator[p],t_reator[tipo],t_instalado[[#This Row],[T.3]],t_reator[w],t_instalado[[#This Row],[P.3(W)]]),"") ->  | R249: =IF(t_instalado[[#This Row],[Q.1]]<>"",IFERROR(IFERROR(D249*(E249+O249)+G249*(H249+P249)+J249*(K249+Q249),D249*(E249+O249)+G249*(H249+P249)),D249*(E249+O249)),"") -> 504 | S249: =IF(t_instalado[[#This Row],[Consumo_W]]<>"",ROUND(t_instalado[[#This Row],[Consumo_W]]/t_instalado[[#This Row],[Luminárias]],0),"") -> 84 | T249: =IF(t_instalado[[#This Row],[Q.1]]<>"",SUMIFS(t_fluxo_lumin[fluxo],t_fluxo_lumin[tipo],t_instalado[[#This Row],[T.1]])*t_instalado[[#This Row],[P.1(W)]]*t_instalado[[#This Row],[Q.1]],"") -> 46200 | U249: =IF(t_instalado[[#This Row],[Q.2]]<>"",SUMIFS(t_fluxo_lumin[fluxo],t_fluxo_lumin[tipo],t_instalado[[#This Row],[T.2]])*t_instalado[[#This Row],[Q.2]]*t_instalado[[#This Row],[P.2(W)]],"") ->  | V249: =IF(t_instalado[[#This Row],[Q.3]]<>"",SUMIFS(t_fluxo_lumin[fluxo],t_fluxo_lumin[tipo],t_instalado[[#This Row],[T.3]])*t_instalado[[#This Row],[Q.3]]*t_instalado[[#This Row],[P.3(W)]],"") ->  | W249: =IF(t_instalado[[#This Row],[Trecho]]<>"",SUM(t_instalado[[#This Row],[f.1]:[f.3]]),"") -> 46200 | X249: =IF(t_instalado[[#This Row],[Trecho]]<>"",t_instalado[[#This Row],[Q.1]]+t_instalado[[#This Row],[Q.2]]+t_instalado[[#This Row],[Q.3]],"") -> 6 | Y249: =IF(t_instalado[[#This Row],[FLUXO]]<>"",ROUND(t_instalado[[#This Row],[FLUXO]]/t_instalado[[#This Row],[Luminárias]],0),"") -> 7700 | Z249: =IF(t_instalado[[#This Row],[Luminárias]]<>"",ROUND(t_instalado[[#This Row],[lm_médio]]/t_instalado[[#This Row],[W_médio]],2),"") -> 91.67
A250: 10 | B250: =_xlfn.XLOOKUP(t_instalado[[#This Row],[cód.]],t_sitio[cód],t_sitio[Trecho],"") -> Rua Prof. Alcena de Souza Facco - Trecho 09 | C250: V.Sódio | D250: 4 | E250: 70 | M250: =t_instalado[[#This Row],[Q.1]]+t_instalado[[#This Row],[Q.2]]+t_instalado[[#This Row],[Q.3]] -> 4 | N250: =t_instalado[[#This Row],[Q.1]]+t_instalado[[#This Row],[Q.2]]+t_instalado[[#This Row],[Q.3]] -> 4 | O250: =IF(t_instalado[[#This Row],[Q.1]]<>"",SUMIFS(t_reator[p],t_reator[tipo],t_instalado[[#This Row],[T.1]],t_reator[w],t_instalado[[#This Row],[P.1(W)]]),"") -> 14 | P250: =IF(t_instalado[[#This Row],[Q.2]]<>"",SUMIFS(t_reator[p],t_reator[tipo],t_instalado[[#This Row],[T.2]],t_reator[w],t_instalado[[#This Row],[P.2(W)]]),"") ->  | Q250: =IF(t_instalado[[#This Row],[Q.3]]<>"",SUMIFS(t_reator[p],t_reator[tipo],t_instalado[[#This Row],[T.3]],t_reator[w],t_instalado[[#This Row],[P.3(W)]]),"") ->  | R250: =IF(t_instalado[[#This Row],[Q.1]]<>"",IFERROR(IFERROR(D250*(E250+O250)+G250*(H250+P250)+J250*(K250+Q250),D250*(E250+O250)+G250*(H250+P250)),D250*(E250+O250)),"") -> 336 | S250: =IF(t_instalado[[#This Row],[Consumo_W]]<>"",ROUND(t_instalado[[#This Row],[Consumo_W]]/t_instalado[[#This Row],[Luminárias]],0),"") -> 84 | T250: =IF(t_instalado[[#This Row],[Q.1]]<>"",SUMIFS(t_fluxo_lumin[fluxo],t_fluxo_lumin[tipo],t_instalado[[#This Row],[T.1]])*t_instalado[[#This Row],[P.1(W)]]*t_instalado[[#This Row],[Q.1]],"") -> 30800 | U250: =IF(t_instalado[[#This Row],[Q.2]]<>"",SUMIFS(t_fluxo_lumin[fluxo],t_fluxo_lumin[tipo],t_instalado[[#This Row],[T.2]])*t_instalado[[#This Row],[Q.2]]*t_instalado[[#This Row],[P.2(W)]],"") ->  | V250: =IF(t_instalado[[#This Row],[Q.3]]<>"",SUMIFS(t_fluxo_lumin[fluxo],t_fluxo_lumin[tipo],t_instalado[[#This Row],[T.3]])*t_instalado[[#This Row],[Q.3]]*t_instalado[[#This Row],[P.3(W)]],"") ->  | W250: =IF(t_instalado[[#This Row],[Trecho]]<>"",SUM(t_instalado[[#This Row],[f.1]:[f.3]]),"") -> 30800 | X250: =IF(t_instalado[[#This Row],[Trecho]]<>"",t_instalado[[#This Row],[Q.1]]+t_instalado[[#This Row],[Q.2]]+t_instalado[[#This Row],[Q.3]],"") -> 4 | Y250: =IF(t_instalado[[#This Row],[FLUXO]]<>"",ROUND(t_instalado[[#This Row],[FLUXO]]/t_instalado[[#This Row],[Luminárias]],0),"") -> 7700 | Z250: =IF(t_instalado[[#This Row],[Luminárias]]<>"",ROUND(t_instalado[[#This Row],[lm_médio]]/t_instalado[[#This Row],[W_médio]],2),"") -> 91.67
A251: 17 | B251: =_xlfn.XLOOKUP(t_instalado[[#This Row],[cód.]],t_sitio[cód],t_sitio[Trecho],"") ->  | M251: =t_instalado[[#This Row],[Q.1]]+t_instalado[[#This Row],[Q.2]]+t_instalado[[#This Row],[Q.3]] -> 0 | N251: =t_instalado[[#This Row],[Q.1]]+t_instalado[[#This Row],[Q.2]]+t_instalado[[#This Row],[Q.3]] -> 0 | O251: =IF(t_instalado[[#This Row],[Q.1]]<>"",SUMIFS(t_reator[p],t_reator[tipo],t_instalado[[#This Row],[T.1]],t_reator[w],t_instalado[[#This Row],[P.1(W)]]),"") ->  | P251: =IF(t_instalado[[#This Row],[Q.2]]<>"",SUMIFS(t_reator[p],t_reator[tipo],t_instalado[[#This Row],[T.2]],t_reator[w],t_instalado[[#This Row],[P.2(W)]]),"") ->  | Q251: =IF(t_instalado[[#This Row],[Q.3]]<>"",SUMIFS(t_reator[p],t_reator[tipo],t_instalado[[#This Row],[T.3]],t_reator[w],t_instalado[[#This Row],[P.3(W)]]),"") ->  | R251: =IF(t_instalado[[#This Row],[Q.1]]<>"",IFERROR(IFERROR(D251*(E251+O251)+G251*(H251+P251)+J251*(K251+Q251),D251*(E251+O251)+G251*(H251+P251)),D251*(E251+O251)),"") ->  | S251: =IF(t_instalado[[#This Row],[Consumo_W]]<>"",ROUND(t_instalado[[#This Row],[Consumo_W]]/t_instalado[[#This Row],[Luminárias]],0),"") ->  | T251: =IF(t_instalado[[#This Row],[Q.1]]<>"",SUMIFS(t_fluxo_lumin[fluxo],t_fluxo_lumin[tipo],t_instalado[[#This Row],[T.1]])*t_instalado[[#This Row],[P.1(W)]]*t_instalado[[#This Row],[Q.1]],"") ->  | U251: =IF(t_instalado[[#This Row],[Q.2]]<>"",SUMIFS(t_fluxo_lumin[fluxo],t_fluxo_lumin[tipo],t_instalado[[#This Row],[T.2]])*t_instalado[[#This Row],[Q.2]]*t_instalado[[#This Row],[P.2(W)]],"") ->  | V251: =IF(t_instalado[[#This Row],[Q.3]]<>"",SUMIFS(t_fluxo_lumin[fluxo],t_fluxo_lumin[tipo],t_instalado[[#This Row],[T.3]])*t_instalado[[#This Row],[Q.3]]*t_instalado[[#This Row],[P.3(W)]],"") ->  | W251: =IF(t_instalado[[#This Row],[Trecho]]<>"",SUM(t_instalado[[#This Row],[f.1]:[f.3]]),"") ->  | X251: =IF(t_instalado[[#This Row],[Trecho]]<>"",t_instalado[[#This Row],[Q.1]]+t_instalado[[#This Row],[Q.2]]+t_instalado[[#This Row],[Q.3]],"") ->  | Y251: =IF(t_instalado[[#This Row],[FLUXO]]<>"",ROUND(t_instalado[[#This Row],[FLUXO]]/t_instalado[[#This Row],[Luminárias]],0),"") ->  | Z251: =IF(t_instalado[[#This Row],[Luminárias]]<>"",ROUND(t_instalado[[#This Row],[lm_médio]]/t_instalado[[#This Row],[W_médio]],2),"") -> 
A252: 18 | B252: =_xlfn.XLOOKUP(t_instalado[[#This Row],[cód.]],t_sitio[cód],t_sitio[Trecho],"") ->  | M252: =t_instalado[[#This Row],[Q.1]]+t_instalado[[#This Row],[Q.2]]+t_instalado[[#This Row],[Q.3]] -> 0 | N252: =t_instalado[[#This Row],[Q.1]]+t_instalado[[#This Row],[Q.2]]+t_instalado[[#This Row],[Q.3]] -> 0 | O252: =IF(t_instalado[[#This Row],[Q.1]]<>"",SUMIFS(t_reator[p],t_reator[tipo],t_instalado[[#This Row],[T.1]],t_reator[w],t_instalado[[#This Row],[P.1(W)]]),"") ->  | P252: =IF(t_instalado[[#This Row],[Q.2]]<>"",SUMIFS(t_reator[p],t_reator[tipo],t_instalado[[#This Row],[T.2]],t_reator[w],t_instalado[[#This Row],[P.2(W)]]),"") ->  | Q252: =IF(t_instalado[[#This Row],[Q.3]]<>"",SUMIFS(t_reator[p],t_reator[tipo],t_instalado[[#This Row],[T.3]],t_reator[w],t_instalado[[#This Row],[P.3(W)]]),"") ->  | R252: =IF(t_instalado[[#This Row],[Q.1]]<>"",IFERROR(IFERROR(D252*(E252+O252)+G252*(H252+P252)+J252*(K252+Q252),D252*(E252+O252)+G252*(H252+P252)),D252*(E252+O252)),"") ->  | S252: =IF(t_instalado[[#This Row],[Consumo_W]]<>"",ROUND(t_instalado[[#This Row],[Consumo_W]]/t_instalado[[#This Row],[Luminárias]],0),"") ->  | T252: =IF(t_instalado[[#This Row],[Q.1]]<>"",SUMIFS(t_fluxo_lumin[fluxo],t_fluxo_lumin[tipo],t_instalado[[#This Row],[T.1]])*t_instalado[[#This Row],[P.1(W)]]*t_instalado[[#This Row],[Q.1]],"") ->  | U252: =IF(t_instalado[[#This Row],[Q.2]]<>"",SUMIFS(t_fluxo_lumin[fluxo],t_fluxo_lumin[tipo],t_instalado[[#This Row],[T.2]])*t_instalado[[#This Row],[Q.2]]*t_instalado[[#This Row],[P.2(W)]],"") ->  | V252: =IF(t_instalado[[#This Row],[Q.3]]<>"",SUMIFS(t_fluxo_lumin[fluxo],t_fluxo_lumin[tipo],t_instalado[[#This Row],[T.3]])*t_instalado[[#This Row],[Q.3]]*t_instalado[[#This Row],[P.3(W)]],"") ->  | W252: =IF(t_instalado[[#This Row],[Trecho]]<>"",SUM(t_instalado[[#This Row],[f.1]:[f.3]]),"") ->  | X252: =IF(t_instalado[[#This Row],[Trecho]]<>"",t_instalado[[#This Row],[Q.1]]+t_instalado[[#This Row],[Q.2]]+t_instalado[[#This Row],[Q.3]],"") ->  | Y252: =IF(t_instalado[[#This Row],[FLUXO]]<>"",ROUND(t_instalado[[#This Row],[FLUXO]]/t_instalado[[#This Row],[Luminárias]],0),"") ->  | Z252: =IF(t_instalado[[#This Row],[Luminárias]]<>"",ROUND(t_instalado[[#This Row],[lm_médio]]/t_instalado[[#This Row],[W_médio]],2),"") -> 
A253: 19 | B253: =_xlfn.XLOOKUP(t_instalado[[#This Row],[cód.]],t_sitio[cód],t_sitio[Trecho],"") ->  | M253: =t_instalado[[#This Row],[Q.1]]+t_instalado[[#This Row],[Q.2]]+t_instalado[[#This Row],[Q.3]] -> 0 | N253: =t_instalado[[#This Row],[Q.1]]+t_instalado[[#This Row],[Q.2]]+t_instalado[[#This Row],[Q.3]] -> 0 | O253: =IF(t_instalado[[#This Row],[Q.1]]<>"",SUMIFS(t_reator[p],t_reator[tipo],t_instalado[[#This Row],[T.1]],t_reator[w],t_instalado[[#This Row],[P.1(W)]]),"") ->  | P253: =IF(t_instalado[[#This Row],[Q.2]]<>"",SUMIFS(t_reator[p],t_reator[tipo],t_instalado[[#This Row],[T.2]],t_reator[w],t_instalado[[#This Row],[P.2(W)]]),"") ->  | Q253: =IF(t_instalado[[#This Row],[Q.3]]<>"",SUMIFS(t_reator[p],t_reator[tipo],t_instalado[[#This Row],[T.3]],t_reator[w],t_instalado[[#This Row],[P.3(W)]]),"") ->  | R253: =IF(t_instalado[[#This Row],[Q.1]]<>"",IFERROR(IFERROR(D253*(E253+O253)+G253*(H253+P253)+J253*(K253+Q253),D253*(E253+O253)+G253*(H253+P253)),D253*(E253+O253)),"") ->  | S253: =IF(t_instalado[[#This Row],[Consumo_W]]<>"",ROUND(t_instalado[[#This Row],[Consumo_W]]/t_instalado[[#This Row],[Luminárias]],0),"") ->  | T253: =IF(t_instalado[[#This Row],[Q.1]]<>"",SUMIFS(t_fluxo_lumin[fluxo],t_fluxo_lumin[tipo],t_instalado[[#This Row],[T.1]])*t_instalado[[#This Row],[P.1(W)]]*t_instalado[[#This Row],[Q.1]],"") ->  | U253: =IF(t_instalado[[#This Row],[Q.2]]<>"",SUMIFS(t_fluxo_lumin[fluxo],t_fluxo_lumin[tipo],t_instalado[[#This Row],[T.2]])*t_instalado[[#This Row],[Q.2]]*t_instalado[[#This Row],[P.2(W)]],"") ->  | V253: =IF(t_instalado[[#This Row],[Q.3]]<>"",SUMIFS(t_fluxo_lumin[fluxo],t_fluxo_lumin[tipo],t_instalado[[#This Row],[T.3]])*t_instalado[[#This Row],[Q.3]]*t_instalado[[#This Row],[P.3(W)]],"") ->  | W253: =IF(t_instalado[[#This Row],[Trecho]]<>"",SUM(t_instalado[[#This Row],[f.1]:[f.3]]),"") ->  | X253: =IF(t_instalado[[#This Row],[Trecho]]<>"",t_instalado[[#This Row],[Q.1]]+t_instalado[[#This Row],[Q.2]]+t_instalado[[#This Row],[Q.3]],"") ->  | Y253: =IF(t_instalado[[#This Row],[FLUXO]]<>"",ROUND(t_instalado[[#This Row],[FLUXO]]/t_instalado[[#This Row],[Luminárias]],0),"") ->  | Z253: =IF(t_instalado[[#This Row],[Luminárias]]<>"",ROUND(t_instalado[[#This Row],[lm_médio]]/t_instalado[[#This Row],[W_médio]],2),"") -> 
A254: 20 | B254: =_xlfn.XLOOKUP(t_instalado[[#This Row],[cód.]],t_sitio[cód],t_sitio[Trecho],"") ->  | M254: =t_instalado[[#This Row],[Q.1]]+t_instalado[[#This Row],[Q.2]]+t_instalado[[#This Row],[Q.3]] -> 0 | N254: =t_instalado[[#This Row],[Q.1]]+t_instalado[[#This Row],[Q.2]]+t_instalado[[#This Row],[Q.3]] -> 0 | O254: =IF(t_instalado[[#This Row],[Q.1]]<>"",SUMIFS(t_reator[p],t_reator[tipo],t_instalado[[#This Row],[T.1]],t_reator[w],t_instalado[[#This Row],[P.1(W)]]),"") ->  | P254: =IF(t_instalado[[#This Row],[Q.2]]<>"",SUMIFS(t_reator[p],t_reator[tipo],t_instalado[[#This Row],[T.2]],t_reator[w],t_instalado[[#This Row],[P.2(W)]]),"") ->  | Q254: =IF(t_instalado[[#This Row],[Q.3]]<>"",SUMIFS(t_reator[p],t_reator[tipo],t_instalado[[#This Row],[T.3]],t_reator[w],t_instalado[[#This Row],[P.3(W)]]),"") ->  | R254: =IF(t_instalado[[#This Row],[Q.1]]<>"",IFERROR(IFERROR(D254*(E254+O254)+G254*(H254+P254)+J254*(K254+Q254),D254*(E254+O254)+G254*(H254+P254)),D254*(E254+O254)),"") ->  | S254: =IF(t_instalado[[#This Row],[Consumo_W]]<>"",ROUND(t_instalado[[#This Row],[Consumo_W]]/t_instalado[[#This Row],[Luminárias]],0),"") ->  | T254: =IF(t_instalado[[#This Row],[Q.1]]<>"",SUMIFS(t_fluxo_lumin[fluxo],t_fluxo_lumin[tipo],t_instalado[[#This Row],[T.1]])*t_instalado[[#This Row],[P.1(W)]]*t_instalado[[#This Row],[Q.1]],"") ->  | U254: =IF(t_instalado[[#This Row],[Q.2]]<>"",SUMIFS(t_fluxo_lumin[fluxo],t_fluxo_lumin[tipo],t_instalado[[#This Row],[T.2]])*t_instalado[[#This Row],[Q.2]]*t_instalado[[#This Row],[P.2(W)]],"") ->  | V254: =IF(t_instalado[[#This Row],[Q.3]]<>"",SUMIFS(t_fluxo_lumin[fluxo],t_fluxo_lumin[tipo],t_instalado[[#This Row],[T.3]])*t_instalado[[#This Row],[Q.3]]*t_instalado[[#This Row],[P.3(W)]],"") ->  | W254: =IF(t_instalado[[#This Row],[Trecho]]<>"",SUM(t_instalado[[#This Row],[f.1]:[f.3]]),"") ->  | X254: =IF(t_instalado[[#This Row],[Trecho]]<>"",t_instalado[[#This Row],[Q.1]]+t_instalado[[#This Row],[Q.2]]+t_instalado[[#This Row],[Q.3]],"") ->  | Y254: =IF(t_instalado[[#This Row],[FLUXO]]<>"",ROUND(t_instalado[[#This Row],[FLUXO]]/t_instalado[[#This Row],[Luminárias]],0),"") ->  | Z254: =IF(t_instalado[[#This Row],[Luminárias]]<>"",ROUND(t_instalado[[#This Row],[lm_médio]]/t_instalado[[#This Row],[W_médio]],2),"") -> 
A255: 21 | B255: =_xlfn.XLOOKUP(t_instalado[[#This Row],[cód.]],t_sitio[cód],t_sitio[Trecho],"") ->  | M255: =t_instalado[[#This Row],[Q.1]]+t_instalado[[#This Row],[Q.2]]+t_instalado[[#This Row],[Q.3]] -> 0 | N255: =t_instalado[[#This Row],[Q.1]]+t_instalado[[#This Row],[Q.2]]+t_instalado[[#This Row],[Q.3]] -> 0 | O255: =IF(t_instalado[[#This Row],[Q.1]]<>"",SUMIFS(t_reator[p],t_reator[tipo],t_instalado[[#This Row],[T.1]],t_reator[w],t_instalado[[#This Row],[P.1(W)]]),"") ->  | P255: =IF(t_instalado[[#This Row],[Q.2]]<>"",SUMIFS(t_reator[p],t_reator[tipo],t_instalado[[#This Row],[T.2]],t_reator[w],t_instalado[[#This Row],[P.2(W)]]),"") ->  | Q255: =IF(t_instalado[[#This Row],[Q.3]]<>"",SUMIFS(t_reator[p],t_reator[tipo],t_instalado[[#This Row],[T.3]],t_reator[w],t_instalado[[#This Row],[P.3(W)]]),"") ->  | R255: =IF(t_instalado[[#This Row],[Q.1]]<>"",IFERROR(IFERROR(D255*(E255+O255)+G255*(H255+P255)+J255*(K255+Q255),D255*(E255+O255)+G255*(H255+P255)),D255*(E255+O255)),"") ->  | S255: =IF(t_instalado[[#This Row],[Consumo_W]]<>"",ROUND(t_instalado[[#This Row],[Consumo_W]]/t_instalado[[#This Row],[Luminárias]],0),"") ->  | T255: =IF(t_instalado[[#This Row],[Q.1]]<>"",SUMIFS(t_fluxo_lumin[fluxo],t_fluxo_lumin[tipo],t_instalado[[#This Row],[T.1]])*t_instalado[[#This Row],[P.1(W)]]*t_instalado[[#This Row],[Q.1]],"") ->  | U255: =IF(t_instalado[[#This Row],[Q.2]]<>"",SUMIFS(t_fluxo_lumin[fluxo],t_fluxo_lumin[tipo],t_instalado[[#This Row],[T.2]])*t_instalado[[#This Row],[Q.2]]*t_instalado[[#This Row],[P.2(W)]],"") ->  | V255: =IF(t_instalado[[#This Row],[Q.3]]<>"",SUMIFS(t_fluxo_lumin[fluxo],t_fluxo_lumin[tipo],t_instalado[[#This Row],[T.3]])*t_instalado[[#This Row],[Q.3]]*t_instalado[[#This Row],[P.3(W)]],"") ->  | W255: =IF(t_instalado[[#This Row],[Trecho]]<>"",SUM(t_instalado[[#This Row],[f.1]:[f.3]]),"") ->  | X255: =IF(t_instalado[[#This Row],[Trecho]]<>"",t_instalado[[#This Row],[Q.1]]+t_instalado[[#This Row],[Q.2]]+t_instalado[[#This Row],[Q.3]],"") ->  | Y255: =IF(t_instalado[[#This Row],[FLUXO]]<>"",ROUND(t_instalado[[#This Row],[FLUXO]]/t_instalado[[#This Row],[Luminárias]],0),"") ->  | Z255: =IF(t_instalado[[#This Row],[Luminárias]]<>"",ROUND(t_instalado[[#This Row],[lm_médio]]/t_instalado[[#This Row],[W_médio]],2),"") -> 
A256: 22 | B256: =_xlfn.XLOOKUP(t_instalado[[#This Row],[cód.]],t_sitio[cód],t_sitio[Trecho],"") ->  | M256: =t_instalado[[#This Row],[Q.1]]+t_instalado[[#This Row],[Q.2]]+t_instalado[[#This Row],[Q.3]] -> 0 | N256: =t_instalado[[#This Row],[Q.1]]+t_instalado[[#This Row],[Q.2]]+t_instalado[[#This Row],[Q.3]] -> 0 | O256: =IF(t_instalado[[#This Row],[Q.1]]<>"",SUMIFS(t_reator[p],t_reator[tipo],t_instalado[[#This Row],[T.1]],t_reator[w],t_instalado[[#This Row],[P.1(W)]]),"") ->  | P256: =IF(t_instalado[[#This Row],[Q.2]]<>"",SUMIFS(t_reator[p],t_reator[tipo],t_instalado[[#This Row],[T.2]],t_reator[w],t_instalado[[#This Row],[P.2(W)]]),"") ->  | Q256: =IF(t_instalado[[#This Row],[Q.3]]<>"",SUMIFS(t_reator[p],t_reator[tipo],t_instalado[[#This Row],[T.3]],t_reator[w],t_instalado[[#This Row],[P.3(W)]]),"") ->  | R256: =IF(t_instalado[[#This Row],[Q.1]]<>"",IFERROR(IFERROR(D256*(E256+O256)+G256*(H256+P256)+J256*(K256+Q256),D256*(E256+O256)+G256*(H256+P256)),D256*(E256+O256)),"") ->  | S256: =IF(t_instalado[[#This Row],[Consumo_W]]<>"",ROUND(t_instalado[[#This Row],[Consumo_W]]/t_instalado[[#This Row],[Luminárias]],0),"") ->  | T256: =IF(t_instalado[[#This Row],[Q.1]]<>"",SUMIFS(t_fluxo_lumin[fluxo],t_fluxo_lumin[tipo],t_instalado[[#This Row],[T.1]])*t_instalado[[#This Row],[P.1(W)]]*t_instalado[[#This Row],[Q.1]],"") ->  | U256: =IF(t_instalado[[#This Row],[Q.2]]<>"",SUMIFS(t_fluxo_lumin[fluxo],t_fluxo_lumin[tipo],t_instalado[[#This Row],[T.2]])*t_instalado[[#This Row],[Q.2]]*t_instalado[[#This Row],[P.2(W)]],"") ->  | V256: =IF(t_instalado[[#This Row],[Q.3]]<>"",SUMIFS(t_fluxo_lumin[fluxo],t_fluxo_lumin[tipo],t_instalado[[#This Row],[T.3]])*t_instalado[[#This Row],[Q.3]]*t_instalado[[#This Row],[P.3(W)]],"") ->  | W256: =IF(t_instalado[[#This Row],[Trecho]]<>"",SUM(t_instalado[[#This Row],[f.1]:[f.3]]),"") ->  | X256: =IF(t_instalado[[#This Row],[Trecho]]<>"",t_instalado[[#This Row],[Q.1]]+t_instalado[[#This Row],[Q.2]]+t_instalado[[#This Row],[Q.3]],"") ->  | Y256: =IF(t_instalado[[#This Row],[FLUXO]]<>"",ROUND(t_instalado[[#This Row],[FLUXO]]/t_instalado[[#This Row],[Luminárias]],0),"") ->  | Z256: =IF(t_instalado[[#This Row],[Luminárias]]<>"",ROUND(t_instalado[[#This Row],[lm_médio]]/t_instalado[[#This Row],[W_médio]],2),"") -> 
A257: 23 | B257: =_xlfn.XLOOKUP(t_instalado[[#This Row],[cód.]],t_sitio[cód],t_sitio[Trecho],"") ->  | M257: =t_instalado[[#This Row],[Q.1]]+t_instalado[[#This Row],[Q.2]]+t_instalado[[#This Row],[Q.3]] -> 0 | N257: =t_instalado[[#This Row],[Q.1]]+t_instalado[[#This Row],[Q.2]]+t_instalado[[#This Row],[Q.3]] -> 0 | O257: =IF(t_instalado[[#This Row],[Q.1]]<>"",SUMIFS(t_reator[p],t_reator[tipo],t_instalado[[#This Row],[T.1]],t_reator[w],t_instalado[[#This Row],[P.1(W)]]),"") ->  | P257: =IF(t_instalado[[#This Row],[Q.2]]<>"",SUMIFS(t_reator[p],t_reator[tipo],t_instalado[[#This Row],[T.2]],t_reator[w],t_instalado[[#This Row],[P.2(W)]]),"") ->  | Q257: =IF(t_instalado[[#This Row],[Q.3]]<>"",SUMIFS(t_reator[p],t_reator[tipo],t_instalado[[#This Row],[T.3]],t_reator[w],t_instalado[[#This Row],[P.3(W)]]),"") ->  | R257: =IF(t_instalado[[#This Row],[Q.1]]<>"",IFERROR(IFERROR(D257*(E257+O257)+G257*(H257+P257)+J257*(K257+Q257),D257*(E257+O257)+G257*(H257+P257)),D257*(E257+O257)),"") ->  | S257: =IF(t_instalado[[#This Row],[Consumo_W]]<>"",ROUND(t_instalado[[#This Row],[Consumo_W]]/t_instalado[[#This Row],[Luminárias]],0),"") ->  | T257: =IF(t_instalado[[#This Row],[Q.1]]<>"",SUMIFS(t_fluxo_lumin[fluxo],t_fluxo_lumin[tipo],t_instalado[[#This Row],[T.1]])*t_instalado[[#This Row],[P.1(W)]]*t_instalado[[#This Row],[Q.1]],"") ->  | U257: =IF(t_instalado[[#This Row],[Q.2]]<>"",SUMIFS(t_fluxo_lumin[fluxo],t_fluxo_lumin[tipo],t_instalado[[#This Row],[T.2]])*t_instalado[[#This Row],[Q.2]]*t_instalado[[#This Row],[P.2(W)]],"") ->  | V257: =IF(t_instalado[[#This Row],[Q.3]]<>"",SUMIFS(t_fluxo_lumin[fluxo],t_fluxo_lumin[tipo],t_instalado[[#This Row],[T.3]])*t_instalado[[#This Row],[Q.3]]*t_instalado[[#This Row],[P.3(W)]],"") ->  | W257: =IF(t_instalado[[#This Row],[Trecho]]<>"",SUM(t_instalado[[#This Row],[f.1]:[f.3]]),"") ->  | X257: =IF(t_instalado[[#This Row],[Trecho]]<>"",t_instalado[[#This Row],[Q.1]]+t_instalado[[#This Row],[Q.2]]+t_instalado[[#This Row],[Q.3]],"") ->  | Y257: =IF(t_instalado[[#This Row],[FLUXO]]<>"",ROUND(t_instalado[[#This Row],[FLUXO]]/t_instalado[[#This Row],[Luminárias]],0),"") ->  | Z257: =IF(t_instalado[[#This Row],[Luminárias]]<>"",ROUND(t_instalado[[#This Row],[lm_médio]]/t_instalado[[#This Row],[W_médio]],2),"") -> 
A258: 24 | B258: =_xlfn.XLOOKUP(t_instalado[[#This Row],[cód.]],t_sitio[cód],t_sitio[Trecho],"") ->  | M258: =t_instalado[[#This Row],[Q.1]]+t_instalado[[#This Row],[Q.2]]+t_instalado[[#This Row],[Q.3]] -> 0 | N258: =t_instalado[[#This Row],[Q.1]]+t_instalado[[#This Row],[Q.2]]+t_instalado[[#This Row],[Q.3]] -> 0 | O258: =IF(t_instalado[[#This Row],[Q.1]]<>"",SUMIFS(t_reator[p],t_reator[tipo],t_instalado[[#This Row],[T.1]],t_reator[w],t_instalado[[#This Row],[P.1(W)]]),"") ->  | P258: =IF(t_instalado[[#This Row],[Q.2]]<>"",SUMIFS(t_reator[p],t_reator[tipo],t_instalado[[#This Row],[T.2]],t_reator[w],t_instalado[[#This Row],[P.2(W)]]),"") ->  | Q258: =IF(t_instalado[[#This Row],[Q.3]]<>"",SUMIFS(t_reator[p],t_reator[tipo],t_instalado[[#This Row],[T.3]],t_reator[w],t_instalado[[#This Row],[P.3(W)]]),"") ->  | R258: =IF(t_instalado[[#This Row],[Q.1]]<>"",IFERROR(IFERROR(D258*(E258+O258)+G258*(H258+P258)+J258*(K258+Q258),D258*(E258+O258)+G258*(H258+P258)),D258*(E258+O258)),"") ->  | S258: =IF(t_instalado[[#This Row],[Consumo_W]]<>"",ROUND(t_instalado[[#This Row],[Consumo_W]]/t_instalado[[#This Row],[Luminárias]],0),"") ->  | T258: =IF(t_instalado[[#This Row],[Q.1]]<>"",SUMIFS(t_fluxo_lumin[fluxo],t_fluxo_lumin[tipo],t_instalado[[#This Row],[T.1]])*t_instalado[[#This Row],[P.1(W)]]*t_instalado[[#This Row],[Q.1]],"") ->  | U258: =IF(t_instalado[[#This Row],[Q.2]]<>"",SUMIFS(t_fluxo_lumin[fluxo],t_fluxo_lumin[tipo],t_instalado[[#This Row],[T.2]])*t_instalado[[#This Row],[Q.2]]*t_instalado[[#This Row],[P.2(W)]],"") ->  | V258: =IF(t_instalado[[#This Row],[Q.3]]<>"",SUMIFS(t_fluxo_lumin[fluxo],t_fluxo_lumin[tipo],t_instalado[[#This Row],[T.3]])*t_instalado[[#This Row],[Q.3]]*t_instalado[[#This Row],[P.3(W)]],"") ->  | W258: =IF(t_instalado[[#This Row],[Trecho]]<>"",SUM(t_instalado[[#This Row],[f.1]:[f.3]]),"") ->  | X258: =IF(t_instalado[[#This Row],[Trecho]]<>"",t_instalado[[#This Row],[Q.1]]+t_instalado[[#This Row],[Q.2]]+t_instalado[[#This Row],[Q.3]],"") ->  | Y258: =IF(t_instalado[[#This Row],[FLUXO]]<>"",ROUND(t_instalado[[#This Row],[FLUXO]]/t_instalado[[#This Row],[Luminárias]],0),"") ->  | Z258: =IF(t_instalado[[#This Row],[Luminárias]]<>"",ROUND(t_instalado[[#This Row],[lm_médio]]/t_instalado[[#This Row],[W_médio]],2),"") -> 
A259: 25 | B259: =_xlfn.XLOOKUP(t_instalado[[#This Row],[cód.]],t_sitio[cód],t_sitio[Trecho],"") ->  | M259: =t_instalado[[#This Row],[Q.1]]+t_instalado[[#This Row],[Q.2]]+t_instalado[[#This Row],[Q.3]] -> 0 | N259: =t_instalado[[#This Row],[Q.1]]+t_instalado[[#This Row],[Q.2]]+t_instalado[[#This Row],[Q.3]] -> 0 | O259: =IF(t_instalado[[#This Row],[Q.1]]<>"",SUMIFS(t_reator[p],t_reator[tipo],t_instalado[[#This Row],[T.1]],t_reator[w],t_instalado[[#This Row],[P.1(W)]]),"") ->  | P259: =IF(t_instalado[[#This Row],[Q.2]]<>"",SUMIFS(t_reator[p],t_reator[tipo],t_instalado[[#This Row],[T.2]],t_reator[w],t_instalado[[#This Row],[P.2(W)]]),"") ->  | Q259: =IF(t_instalado[[#This Row],[Q.3]]<>"",SUMIFS(t_reator[p],t_reator[tipo],t_instalado[[#This Row],[T.3]],t_reator[w],t_instalado[[#This Row],[P.3(W)]]),"") ->  | R259: =IF(t_instalado[[#This Row],[Q.1]]<>"",IFERROR(IFERROR(D259*(E259+O259)+G259*(H259+P259)+J259*(K259+Q259),D259*(E259+O259)+G259*(H259+P259)),D259*(E259+O259)),"") ->  | S259: =IF(t_instalado[[#This Row],[Consumo_W]]<>"",ROUND(t_instalado[[#This Row],[Consumo_W]]/t_instalado[[#This Row],[Luminárias]],0),"") ->  | T259: =IF(t_instalado[[#This Row],[Q.1]]<>"",SUMIFS(t_fluxo_lumin[fluxo],t_fluxo_lumin[tipo],t_instalado[[#This Row],[T.1]])*t_instalado[[#This Row],[P.1(W)]]*t_instalado[[#This Row],[Q.1]],"") ->  | U259: =IF(t_instalado[[#This Row],[Q.2]]<>"",SUMIFS(t_fluxo_lumin[fluxo],t_fluxo_lumin[tipo],t_instalado[[#This Row],[T.2]])*t_instalado[[#This Row],[Q.2]]*t_instalado[[#This Row],[P.2(W)]],"") ->  | V259: =IF(t_instalado[[#This Row],[Q.3]]<>"",SUMIFS(t_fluxo_lumin[fluxo],t_fluxo_lumin[tipo],t_instalado[[#This Row],[T.3]])*t_instalado[[#This Row],[Q.3]]*t_instalado[[#This Row],[P.3(W)]],"") ->  | W259: =IF(t_instalado[[#This Row],[Trecho]]<>"",SUM(t_instalado[[#This Row],[f.1]:[f.3]]),"") ->  | X259: =IF(t_instalado[[#This Row],[Trecho]]<>"",t_instalado[[#This Row],[Q.1]]+t_instalado[[#This Row],[Q.2]]+t_instalado[[#This Row],[Q.3]],"") ->  | Y259: =IF(t_instalado[[#This Row],[FLUXO]]<>"",ROUND(t_instalado[[#This Row],[FLUXO]]/t_instalado[[#This Row],[Luminárias]],0),"") ->  | Z259: =IF(t_instalado[[#This Row],[Luminárias]]<>"",ROUND(t_instalado[[#This Row],[lm_médio]]/t_instalado[[#This Row],[W_médio]],2),"") -> 
A260: 26 | B260: =_xlfn.XLOOKUP(t_instalado[[#This Row],[cód.]],t_sitio[cód],t_sitio[Trecho],"") ->  | M260: =t_instalado[[#This Row],[Q.1]]+t_instalado[[#This Row],[Q.2]]+t_instalado[[#This Row],[Q.3]] -> 0 | N260: =t_instalado[[#This Row],[Q.1]]+t_instalado[[#This Row],[Q.2]]+t_instalado[[#This Row],[Q.3]] -> 0 | O260: =IF(t_instalado[[#This Row],[Q.1]]<>"",SUMIFS(t_reator[p],t_reator[tipo],t_instalado[[#This Row],[T.1]],t_reator[w],t_instalado[[#This Row],[P.1(W)]]),"") ->  | P260: =IF(t_instalado[[#This Row],[Q.2]]<>"",SUMIFS(t_reator[p],t_reator[tipo],t_instalado[[#This Row],[T.2]],t_reator[w],t_instalado[[#This Row],[P.2(W)]]),"") ->  | Q260: =IF(t_instalado[[#This Row],[Q.3]]<>"",SUMIFS(t_reator[p],t_reator[tipo],t_instalado[[#This Row],[T.3]],t_reator[w],t_instalado[[#This Row],[P.3(W)]]),"") ->  | R260: =IF(t_instalado[[#This Row],[Q.1]]<>"",IFERROR(IFERROR(D260*(E260+O260)+G260*(H260+P260)+J260*(K260+Q260),D260*(E260+O260)+G260*(H260+P260)),D260*(E260+O260)),"") ->  | S260: =IF(t_instalado[[#This Row],[Consumo_W]]<>"",ROUND(t_instalado[[#This Row],[Consumo_W]]/t_instalado[[#This Row],[Luminárias]],0),"") ->  | T260: =IF(t_instalado[[#This Row],[Q.1]]<>"",SUMIFS(t_fluxo_lumin[fluxo],t_fluxo_lumin[tipo],t_instalado[[#This Row],[T.1]])*t_instalado[[#This Row],[P.1(W)]]*t_instalado[[#This Row],[Q.1]],"") ->  | U260: =IF(t_instalado[[#This Row],[Q.2]]<>"",SUMIFS(t_fluxo_lumin[fluxo],t_fluxo_lumin[tipo],t_instalado[[#This Row],[T.2]])*t_instalado[[#This Row],[Q.2]]*t_instalado[[#This Row],[P.2(W)]],"") ->  | V260: =IF(t_instalado[[#This Row],[Q.3]]<>"",SUMIFS(t_fluxo_lumin[fluxo],t_fluxo_lumin[tipo],t_instalado[[#This Row],[T.3]])*t_instalado[[#This Row],[Q.3]]*t_instalado[[#This Row],[P.3(W)]],"") ->  | W260: =IF(t_instalado[[#This Row],[Trecho]]<>"",SUM(t_instalado[[#This Row],[f.1]:[f.3]]),"") ->  | X260: =IF(t_instalado[[#This Row],[Trecho]]<>"",t_instalado[[#This Row],[Q.1]]+t_instalado[[#This Row],[Q.2]]+t_instalado[[#This Row],[Q.3]],"") ->  | Y260: =IF(t_instalado[[#This Row],[FLUXO]]<>"",ROUND(t_instalado[[#This Row],[FLUXO]]/t_instalado[[#This Row],[Luminárias]],0),"") ->  | Z260: =IF(t_instalado[[#This Row],[Luminárias]]<>"",ROUND(t_instalado[[#This Row],[lm_médio]]/t_instalado[[#This Row],[W_médio]],2),"") -> 
A261: 27 | B261: =_xlfn.XLOOKUP(t_instalado[[#This Row],[cód.]],t_sitio[cód],t_sitio[Trecho],"") ->  | M261: =t_instalado[[#This Row],[Q.1]]+t_instalado[[#This Row],[Q.2]]+t_instalado[[#This Row],[Q.3]] -> 0 | N261: =t_instalado[[#This Row],[Q.1]]+t_instalado[[#This Row],[Q.2]]+t_instalado[[#This Row],[Q.3]] -> 0 | O261: =IF(t_instalado[[#This Row],[Q.1]]<>"",SUMIFS(t_reator[p],t_reator[tipo],t_instalado[[#This Row],[T.1]],t_reator[w],t_instalado[[#This Row],[P.1(W)]]),"") ->  | P261: =IF(t_instalado[[#This Row],[Q.2]]<>"",SUMIFS(t_reator[p],t_reator[tipo],t_instalado[[#This Row],[T.2]],t_reator[w],t_instalado[[#This Row],[P.2(W)]]),"") ->  | Q261: =IF(t_instalado[[#This Row],[Q.3]]<>"",SUMIFS(t_reator[p],t_reator[tipo],t_instalado[[#This Row],[T.3]],t_reator[w],t_instalado[[#This Row],[P.3(W)]]),"") ->  | R261: =IF(t_instalado[[#This Row],[Q.1]]<>"",IFERROR(IFERROR(D261*(E261+O261)+G261*(H261+P261)+J261*(K261+Q261),D261*(E261+O261)+G261*(H261+P261)),D261*(E261+O261)),"") ->  | S261: =IF(t_instalado[[#This Row],[Consumo_W]]<>"",ROUND(t_instalado[[#This Row],[Consumo_W]]/t_instalado[[#This Row],[Luminárias]],0),"") ->  | T261: =IF(t_instalado[[#This Row],[Q.1]]<>"",SUMIFS(t_fluxo_lumin[fluxo],t_fluxo_lumin[tipo],t_instalado[[#This Row],[T.1]])*t_instalado[[#This Row],[P.1(W)]]*t_instalado[[#This Row],[Q.1]],"") ->  | U261: =IF(t_instalado[[#This Row],[Q.2]]<>"",SUMIFS(t_fluxo_lumin[fluxo],t_fluxo_lumin[tipo],t_instalado[[#This Row],[T.2]])*t_instalado[[#This Row],[Q.2]]*t_instalado[[#This Row],[P.2(W)]],"") ->  | V261: =IF(t_instalado[[#This Row],[Q.3]]<>"",SUMIFS(t_fluxo_lumin[fluxo],t_fluxo_lumin[tipo],t_instalado[[#This Row],[T.3]])*t_instalado[[#This Row],[Q.3]]*t_instalado[[#This Row],[P.3(W)]],"") ->  | W261: =IF(t_instalado[[#This Row],[Trecho]]<>"",SUM(t_instalado[[#This Row],[f.1]:[f.3]]),"") ->  | X261: =IF(t_instalado[[#This Row],[Trecho]]<>"",t_instalado[[#This Row],[Q.1]]+t_instalado[[#This Row],[Q.2]]+t_instalado[[#This Row],[Q.3]],"") ->  | Y261: =IF(t_instalado[[#This Row],[FLUXO]]<>"",ROUND(t_instalado[[#This Row],[FLUXO]]/t_instalado[[#This Row],[Luminárias]],0),"") ->  | Z261: =IF(t_instalado[[#This Row],[Luminárias]]<>"",ROUND(t_instalado[[#This Row],[lm_médio]]/t_instalado[[#This Row],[W_médio]],2),"") -> 
A262: 28 | B262: =_xlfn.XLOOKUP(t_instalado[[#This Row],[cód.]],t_sitio[cód],t_sitio[Trecho],"") ->  | M262: =t_instalado[[#This Row],[Q.1]]+t_instalado[[#This Row],[Q.2]]+t_instalado[[#This Row],[Q.3]] -> 0 | N262: =t_instalado[[#This Row],[Q.1]]+t_instalado[[#This Row],[Q.2]]+t_instalado[[#This Row],[Q.3]] -> 0 | O262: =IF(t_instalado[[#This Row],[Q.1]]<>"",SUMIFS(t_reator[p],t_reator[tipo],t_instalado[[#This Row],[T.1]],t_reator[w],t_instalado[[#This Row],[P.1(W)]]),"") ->  | P262: =IF(t_instalado[[#This Row],[Q.2]]<>"",SUMIFS(t_reator[p],t_reator[tipo],t_instalado[[#This Row],[T.2]],t_reator[w],t_instalado[[#This Row],[P.2(W)]]),"") ->  | Q262: =IF(t_instalado[[#This Row],[Q.3]]<>"",SUMIFS(t_reator[p],t_reator[tipo],t_instalado[[#This Row],[T.3]],t_reator[w],t_instalado[[#This Row],[P.3(W)]]),"") ->  | R262: =IF(t_instalado[[#This Row],[Q.1]]<>"",IFERROR(IFERROR(D262*(E262+O262)+G262*(H262+P262)+J262*(K262+Q262),D262*(E262+O262)+G262*(H262+P262)),D262*(E262+O262)),"") ->  | S262: =IF(t_instalado[[#This Row],[Consumo_W]]<>"",ROUND(t_instalado[[#This Row],[Consumo_W]]/t_instalado[[#This Row],[Luminárias]],0),"") ->  | T262: =IF(t_instalado[[#This Row],[Q.1]]<>"",SUMIFS(t_fluxo_lumin[fluxo],t_fluxo_lumin[tipo],t_instalado[[#This Row],[T.1]])*t_instalado[[#This Row],[P.1(W)]]*t_instalado[[#This Row],[Q.1]],"") ->  | U262: =IF(t_instalado[[#This Row],[Q.2]]<>"",SUMIFS(t_fluxo_lumin[fluxo],t_fluxo_lumin[tipo],t_instalado[[#This Row],[T.2]])*t_instalado[[#This Row],[Q.2]]*t_instalado[[#This Row],[P.2(W)]],"") ->  | V262: =IF(t_instalado[[#This Row],[Q.3]]<>"",SUMIFS(t_fluxo_lumin[fluxo],t_fluxo_lumin[tipo],t_instalado[[#This Row],[T.3]])*t_instalado[[#This Row],[Q.3]]*t_instalado[[#This Row],[P.3(W)]],"") ->  | W262: =IF(t_instalado[[#This Row],[Trecho]]<>"",SUM(t_instalado[[#This Row],[f.1]:[f.3]]),"") ->  | X262: =IF(t_instalado[[#This Row],[Trecho]]<>"",t_instalado[[#This Row],[Q.1]]+t_instalado[[#This Row],[Q.2]]+t_instalado[[#This Row],[Q.3]],"") ->  | Y262: =IF(t_instalado[[#This Row],[FLUXO]]<>"",ROUND(t_instalado[[#This Row],[FLUXO]]/t_instalado[[#This Row],[Luminárias]],0),"") ->  | Z262: =IF(t_instalado[[#This Row],[Luminárias]]<>"",ROUND(t_instalado[[#This Row],[lm_médio]]/t_instalado[[#This Row],[W_médio]],2),"") -> 
A263: 29 | B263: =_xlfn.XLOOKUP(t_instalado[[#This Row],[cód.]],t_sitio[cód],t_sitio[Trecho],"") ->  | M263: =t_instalado[[#This Row],[Q.1]]+t_instalado[[#This Row],[Q.2]]+t_instalado[[#This Row],[Q.3]] -> 0 | N263: =t_instalado[[#This Row],[Q.1]]+t_instalado[[#This Row],[Q.2]]+t_instalado[[#This Row],[Q.3]] -> 0 | O263: =IF(t_instalado[[#This Row],[Q.1]]<>"",SUMIFS(t_reator[p],t_reator[tipo],t_instalado[[#This Row],[T.1]],t_reator[w],t_instalado[[#This Row],[P.1(W)]]),"") ->  | P263: =IF(t_instalado[[#This Row],[Q.2]]<>"",SUMIFS(t_reator[p],t_reator[tipo],t_instalado[[#This Row],[T.2]],t_reator[w],t_instalado[[#This Row],[P.2(W)]]),"") ->  | Q263: =IF(t_instalado[[#This Row],[Q.3]]<>"",SUMIFS(t_reator[p],t_reator[tipo],t_instalado[[#This Row],[T.3]],t_reator[w],t_instalado[[#This Row],[P.3(W)]]),"") ->  | R263: =IF(t_instalado[[#This Row],[Q.1]]<>"",IFERROR(IFERROR(D263*(E263+O263)+G263*(H263+P263)+J263*(K263+Q263),D263*(E263+O263)+G263*(H263+P263)),D263*(E263+O263)),"") ->  | S263: =IF(t_instalado[[#This Row],[Consumo_W]]<>"",ROUND(t_instalado[[#This Row],[Consumo_W]]/t_instalado[[#This Row],[Luminárias]],0),"") ->  | T263: =IF(t_instalado[[#This Row],[Q.1]]<>"",SUMIFS(t_fluxo_lumin[fluxo],t_fluxo_lumin[tipo],t_instalado[[#This Row],[T.1]])*t_instalado[[#This Row],[P.1(W)]]*t_instalado[[#This Row],[Q.1]],"") ->  | U263: =IF(t_instalado[[#This Row],[Q.2]]<>"",SUMIFS(t_fluxo_lumin[fluxo],t_fluxo_lumin[tipo],t_instalado[[#This Row],[T.2]])*t_instalado[[#This Row],[Q.2]]*t_instalado[[#This Row],[P.2(W)]],"") ->  | V263: =IF(t_instalado[[#This Row],[Q.3]]<>"",SUMIFS(t_fluxo_lumin[fluxo],t_fluxo_lumin[tipo],t_instalado[[#This Row],[T.3]])*t_instalado[[#This Row],[Q.3]]*t_instalado[[#This Row],[P.3(W)]],"") ->  | W263: =IF(t_instalado[[#This Row],[Trecho]]<>"",SUM(t_instalado[[#This Row],[f.1]:[f.3]]),"") ->  | X263: =IF(t_instalado[[#This Row],[Trecho]]<>"",t_instalado[[#This Row],[Q.1]]+t_instalado[[#This Row],[Q.2]]+t_instalado[[#This Row],[Q.3]],"") ->  | Y263: =IF(t_instalado[[#This Row],[FLUXO]]<>"",ROUND(t_instalado[[#This Row],[FLUXO]]/t_instalado[[#This Row],[Luminárias]],0),"") ->  | Z263: =IF(t_instalado[[#This Row],[Luminárias]]<>"",ROUND(t_instalado[[#This Row],[lm_médio]]/t_instalado[[#This Row],[W_médio]],2),"") -> 
A264: 30 | B264: =_xlfn.XLOOKUP(t_instalado[[#This Row],[cód.]],t_sitio[cód],t_sitio[Trecho],"") ->  | M264: =t_instalado[[#This Row],[Q.1]]+t_instalado[[#This Row],[Q.2]]+t_instalado[[#This Row],[Q.3]] -> 0 | N264: =t_instalado[[#This Row],[Q.1]]+t_instalado[[#This Row],[Q.2]]+t_instalado[[#This Row],[Q.3]] -> 0 | O264: =IF(t_instalado[[#This Row],[Q.1]]<>"",SUMIFS(t_reator[p],t_reator[tipo],t_instalado[[#This Row],[T.1]],t_reator[w],t_instalado[[#This Row],[P.1(W)]]),"") ->  | P264: =IF(t_instalado[[#This Row],[Q.2]]<>"",SUMIFS(t_reator[p],t_reator[tipo],t_instalado[[#This Row],[T.2]],t_reator[w],t_instalado[[#This Row],[P.2(W)]]),"") ->  | Q264: =IF(t_instalado[[#This Row],[Q.3]]<>"",SUMIFS(t_reator[p],t_reator[tipo],t_instalado[[#This Row],[T.3]],t_reator[w],t_instalado[[#This Row],[P.3(W)]]),"") ->  | R264: =IF(t_instalado[[#This Row],[Q.1]]<>"",IFERROR(IFERROR(D264*(E264+O264)+G264*(H264+P264)+J264*(K264+Q264),D264*(E264+O264)+G264*(H264+P264)),D264*(E264+O264)),"") ->  | S264: =IF(t_instalado[[#This Row],[Consumo_W]]<>"",ROUND(t_instalado[[#This Row],[Consumo_W]]/t_instalado[[#This Row],[Luminárias]],0),"") ->  | T264: =IF(t_instalado[[#This Row],[Q.1]]<>"",SUMIFS(t_fluxo_lumin[fluxo],t_fluxo_lumin[tipo],t_instalado[[#This Row],[T.1]])*t_instalado[[#This Row],[P.1(W)]]*t_instalado[[#This Row],[Q.1]],"") ->  | U264: =IF(t_instalado[[#This Row],[Q.2]]<>"",SUMIFS(t_fluxo_lumin[fluxo],t_fluxo_lumin[tipo],t_instalado[[#This Row],[T.2]])*t_instalado[[#This Row],[Q.2]]*t_instalado[[#This Row],[P.2(W)]],"") ->  | V264: =IF(t_instalado[[#This Row],[Q.3]]<>"",SUMIFS(t_fluxo_lumin[fluxo],t_fluxo_lumin[tipo],t_instalado[[#This Row],[T.3]])*t_instalado[[#This Row],[Q.3]]*t_instalado[[#This Row],[P.3(W)]],"") ->  | W264: =IF(t_instalado[[#This Row],[Trecho]]<>"",SUM(t_instalado[[#This Row],[f.1]:[f.3]]),"") ->  | X264: =IF(t_instalado[[#This Row],[Trecho]]<>"",t_instalado[[#This Row],[Q.1]]+t_instalado[[#This Row],[Q.2]]+t_instalado[[#This Row],[Q.3]],"") ->  | Y264: =IF(t_instalado[[#This Row],[FLUXO]]<>"",ROUND(t_instalado[[#This Row],[FLUXO]]/t_instalado[[#This Row],[Luminárias]],0),"") ->  | Z264: =IF(t_instalado[[#This Row],[Luminárias]]<>"",ROUND(t_instalado[[#This Row],[lm_médio]]/t_instalado[[#This Row],[W_médio]],2),"") -> 
A265: 31 | B265: =_xlfn.XLOOKUP(t_instalado[[#This Row],[cód.]],t_sitio[cód],t_sitio[Trecho],"") ->  | M265: =t_instalado[[#This Row],[Q.1]]+t_instalado[[#This Row],[Q.2]]+t_instalado[[#This Row],[Q.3]] -> 0 | N265: =t_instalado[[#This Row],[Q.1]]+t_instalado[[#This Row],[Q.2]]+t_instalado[[#This Row],[Q.3]] -> 0 | O265: =IF(t_instalado[[#This Row],[Q.1]]<>"",SUMIFS(t_reator[p],t_reator[tipo],t_instalado[[#This Row],[T.1]],t_reator[w],t_instalado[[#This Row],[P.1(W)]]),"") ->  | P265: =IF(t_instalado[[#This Row],[Q.2]]<>"",SUMIFS(t_reator[p],t_reator[tipo],t_instalado[[#This Row],[T.2]],t_reator[w],t_instalado[[#This Row],[P.2(W)]]),"") ->  | Q265: =IF(t_instalado[[#This Row],[Q.3]]<>"",SUMIFS(t_reator[p],t_reator[tipo],t_instalado[[#This Row],[T.3]],t_reator[w],t_instalado[[#This Row],[P.3(W)]]),"") ->  | R265: =IF(t_instalado[[#This Row],[Q.1]]<>"",IFERROR(IFERROR(D265*(E265+O265)+G265*(H265+P265)+J265*(K265+Q265),D265*(E265+O265)+G265*(H265+P265)),D265*(E265+O265)),"") ->  | S265: =IF(t_instalado[[#This Row],[Consumo_W]]<>"",ROUND(t_instalado[[#This Row],[Consumo_W]]/t_instalado[[#This Row],[Luminárias]],0),"") ->  | T265: =IF(t_instalado[[#This Row],[Q.1]]<>"",SUMIFS(t_fluxo_lumin[fluxo],t_fluxo_lumin[tipo],t_instalado[[#This Row],[T.1]])*t_instalado[[#This Row],[P.1(W)]]*t_instalado[[#This Row],[Q.1]],"") ->  | U265: =IF(t_instalado[[#This Row],[Q.2]]<>"",SUMIFS(t_fluxo_lumin[fluxo],t_fluxo_lumin[tipo],t_instalado[[#This Row],[T.2]])*t_instalado[[#This Row],[Q.2]]*t_instalado[[#This Row],[P.2(W)]],"") ->  | V265: =IF(t_instalado[[#This Row],[Q.3]]<>"",SUMIFS(t_fluxo_lumin[fluxo],t_fluxo_lumin[tipo],t_instalado[[#This Row],[T.3]])*t_instalado[[#This Row],[Q.3]]*t_instalado[[#This Row],[P.3(W)]],"") ->  | W265: =IF(t_instalado[[#This Row],[Trecho]]<>"",SUM(t_instalado[[#This Row],[f.1]:[f.3]]),"") ->  | X265: =IF(t_instalado[[#This Row],[Trecho]]<>"",t_instalado[[#This Row],[Q.1]]+t_instalado[[#This Row],[Q.2]]+t_instalado[[#This Row],[Q.3]],"") ->  | Y265: =IF(t_instalado[[#This Row],[FLUXO]]<>"",ROUND(t_instalado[[#This Row],[FLUXO]]/t_instalado[[#This Row],[Luminárias]],0),"") ->  | Z265: =IF(t_instalado[[#This Row],[Luminárias]]<>"",ROUND(t_instalado[[#This Row],[lm_médio]]/t_instalado[[#This Row],[W_médio]],2),"") -> 
A266: 32 | B266: =_xlfn.XLOOKUP(t_instalado[[#This Row],[cód.]],t_sitio[cód],t_sitio[Trecho],"") ->  | M266: =t_instalado[[#This Row],[Q.1]]+t_instalado[[#This Row],[Q.2]]+t_instalado[[#This Row],[Q.3]] -> 0 | N266: =t_instalado[[#This Row],[Q.1]]+t_instalado[[#This Row],[Q.2]]+t_instalado[[#This Row],[Q.3]] -> 0 | O266: =IF(t_instalado[[#This Row],[Q.1]]<>"",SUMIFS(t_reator[p],t_reator[tipo],t_instalado[[#This Row],[T.1]],t_reator[w],t_instalado[[#This Row],[P.1(W)]]),"") ->  | P266: =IF(t_instalado[[#This Row],[Q.2]]<>"",SUMIFS(t_reator[p],t_reator[tipo],t_instalado[[#This Row],[T.2]],t_reator[w],t_instalado[[#This Row],[P.2(W)]]),"") ->  | Q266: =IF(t_instalado[[#This Row],[Q.3]]<>"",SUMIFS(t_reator[p],t_reator[tipo],t_instalado[[#This Row],[T.3]],t_reator[w],t_instalado[[#This Row],[P.3(W)]]),"") ->  | R266: =IF(t_instalado[[#This Row],[Q.1]]<>"",IFERROR(IFERROR(D266*(E266+O266)+G266*(H266+P266)+J266*(K266+Q266),D266*(E266+O266)+G266*(H266+P266)),D266*(E266+O266)),"") ->  | S266: =IF(t_instalado[[#This Row],[Consumo_W]]<>"",ROUND(t_instalado[[#This Row],[Consumo_W]]/t_instalado[[#This Row],[Luminárias]],0),"") ->  | T266: =IF(t_instalado[[#This Row],[Q.1]]<>"",SUMIFS(t_fluxo_lumin[fluxo],t_fluxo_lumin[tipo],t_instalado[[#This Row],[T.1]])*t_instalado[[#This Row],[P.1(W)]]*t_instalado[[#This Row],[Q.1]],"") ->  | U266: =IF(t_instalado[[#This Row],[Q.2]]<>"",SUMIFS(t_fluxo_lumin[fluxo],t_fluxo_lumin[tipo],t_instalado[[#This Row],[T.2]])*t_instalado[[#This Row],[Q.2]]*t_instalado[[#This Row],[P.2(W)]],"") ->  | V266: =IF(t_instalado[[#This Row],[Q.3]]<>"",SUMIFS(t_fluxo_lumin[fluxo],t_fluxo_lumin[tipo],t_instalado[[#This Row],[T.3]])*t_instalado[[#This Row],[Q.3]]*t_instalado[[#This Row],[P.3(W)]],"") ->  | W266: =IF(t_instalado[[#This Row],[Trecho]]<>"",SUM(t_instalado[[#This Row],[f.1]:[f.3]]),"") ->  | X266: =IF(t_instalado[[#This Row],[Trecho]]<>"",t_instalado[[#This Row],[Q.1]]+t_instalado[[#This Row],[Q.2]]+t_instalado[[#This Row],[Q.3]],"") ->  | Y266: =IF(t_instalado[[#This Row],[FLUXO]]<>"",ROUND(t_instalado[[#This Row],[FLUXO]]/t_instalado[[#This Row],[Luminárias]],0),"") ->  | Z266: =IF(t_instalado[[#This Row],[Luminárias]]<>"",ROUND(t_instalado[[#This Row],[lm_médio]]/t_instalado[[#This Row],[W_médio]],2),"") -> 
A267: 33 | B267: =_xlfn.XLOOKUP(t_instalado[[#This Row],[cód.]],t_sitio[cód],t_sitio[Trecho],"") ->  | M267: =t_instalado[[#This Row],[Q.1]]+t_instalado[[#This Row],[Q.2]]+t_instalado[[#This Row],[Q.3]] -> 0 | N267: =t_instalado[[#This Row],[Q.1]]+t_instalado[[#This Row],[Q.2]]+t_instalado[[#This Row],[Q.3]] -> 0 | O267: =IF(t_instalado[[#This Row],[Q.1]]<>"",SUMIFS(t_reator[p],t_reator[tipo],t_instalado[[#This Row],[T.1]],t_reator[w],t_instalado[[#This Row],[P.1(W)]]),"") ->  | P267: =IF(t_instalado[[#This Row],[Q.2]]<>"",SUMIFS(t_reator[p],t_reator[tipo],t_instalado[[#This Row],[T.2]],t_reator[w],t_instalado[[#This Row],[P.2(W)]]),"") ->  | Q267: =IF(t_instalado[[#This Row],[Q.3]]<>"",SUMIFS(t_reator[p],t_reator[tipo],t_instalado[[#This Row],[T.3]],t_reator[w],t_instalado[[#This Row],[P.3(W)]]),"") ->  | R267: =IF(t_instalado[[#This Row],[Q.1]]<>"",IFERROR(IFERROR(D267*(E267+O267)+G267*(H267+P267)+J267*(K267+Q267),D267*(E267+O267)+G267*(H267+P267)),D267*(E267+O267)),"") ->  | S267: =IF(t_instalado[[#This Row],[Consumo_W]]<>"",ROUND(t_instalado[[#This Row],[Consumo_W]]/t_instalado[[#This Row],[Luminárias]],0),"") ->  | T267: =IF(t_instalado[[#This Row],[Q.1]]<>"",SUMIFS(t_fluxo_lumin[fluxo],t_fluxo_lumin[tipo],t_instalado[[#This Row],[T.1]])*t_instalado[[#This Row],[P.1(W)]]*t_instalado[[#This Row],[Q.1]],"") ->  | U267: =IF(t_instalado[[#This Row],[Q.2]]<>"",SUMIFS(t_fluxo_lumin[fluxo],t_fluxo_lumin[tipo],t_instalado[[#This Row],[T.2]])*t_instalado[[#This Row],[Q.2]]*t_instalado[[#This Row],[P.2(W)]],"") ->  | V267: =IF(t_instalado[[#This Row],[Q.3]]<>"",SUMIFS(t_fluxo_lumin[fluxo],t_fluxo_lumin[tipo],t_instalado[[#This Row],[T.3]])*t_instalado[[#This Row],[Q.3]]*t_instalado[[#This Row],[P.3(W)]],"") ->  | W267: =IF(t_instalado[[#This Row],[Trecho]]<>"",SUM(t_instalado[[#This Row],[f.1]:[f.3]]),"") ->  | X267: =IF(t_instalado[[#This Row],[Trecho]]<>"",t_instalado[[#This Row],[Q.1]]+t_instalado[[#This Row],[Q.2]]+t_instalado[[#This Row],[Q.3]],"") ->  | Y267: =IF(t_instalado[[#This Row],[FLUXO]]<>"",ROUND(t_instalado[[#This Row],[FLUXO]]/t_instalado[[#This Row],[Luminárias]],0),"") ->  | Z267: =IF(t_instalado[[#This Row],[Luminárias]]<>"",ROUND(t_instalado[[#This Row],[lm_médio]]/t_instalado[[#This Row],[W_médio]],2),"") -> 
A268: 34 | B268: =_xlfn.XLOOKUP(t_instalado[[#This Row],[cód.]],t_sitio[cód],t_sitio[Trecho],"") ->  | M268: =t_instalado[[#This Row],[Q.1]]+t_instalado[[#This Row],[Q.2]]+t_instalado[[#This Row],[Q.3]] -> 0 | N268: =t_instalado[[#This Row],[Q.1]]+t_instalado[[#This Row],[Q.2]]+t_instalado[[#This Row],[Q.3]] -> 0 | O268: =IF(t_instalado[[#This Row],[Q.1]]<>"",SUMIFS(t_reator[p],t_reator[tipo],t_instalado[[#This Row],[T.1]],t_reator[w],t_instalado[[#This Row],[P.1(W)]]),"") ->  | P268: =IF(t_instalado[[#This Row],[Q.2]]<>"",SUMIFS(t_reator[p],t_reator[tipo],t_instalado[[#This Row],[T.2]],t_reator[w],t_instalado[[#This Row],[P.2(W)]]),"") ->  | Q268: =IF(t_instalado[[#This Row],[Q.3]]<>"",SUMIFS(t_reator[p],t_reator[tipo],t_instalado[[#This Row],[T.3]],t_reator[w],t_instalado[[#This Row],[P.3(W)]]),"") ->  | R268: =IF(t_instalado[[#This Row],[Q.1]]<>"",IFERROR(IFERROR(D268*(E268+O268)+G268*(H268+P268)+J268*(K268+Q268),D268*(E268+O268)+G268*(H268+P268)),D268*(E268+O268)),"") ->  | S268: =IF(t_instalado[[#This Row],[Consumo_W]]<>"",ROUND(t_instalado[[#This Row],[Consumo_W]]/t_instalado[[#This Row],[Luminárias]],0),"") ->  | T268: =IF(t_instalado[[#This Row],[Q.1]]<>"",SUMIFS(t_fluxo_lumin[fluxo],t_fluxo_lumin[tipo],t_instalado[[#This Row],[T.1]])*t_instalado[[#This Row],[P.1(W)]]*t_instalado[[#This Row],[Q.1]],"") ->  | U268: =IF(t_instalado[[#This Row],[Q.2]]<>"",SUMIFS(t_fluxo_lumin[fluxo],t_fluxo_lumin[tipo],t_instalado[[#This Row],[T.2]])*t_instalado[[#This Row],[Q.2]]*t_instalado[[#This Row],[P.2(W)]],"") ->  | V268: =IF(t_instalado[[#This Row],[Q.3]]<>"",SUMIFS(t_fluxo_lumin[fluxo],t_fluxo_lumin[tipo],t_instalado[[#This Row],[T.3]])*t_instalado[[#This Row],[Q.3]]*t_instalado[[#This Row],[P.3(W)]],"") ->  | W268: =IF(t_instalado[[#This Row],[Trecho]]<>"",SUM(t_instalado[[#This Row],[f.1]:[f.3]]),"") ->  | X268: =IF(t_instalado[[#This Row],[Trecho]]<>"",t_instalado[[#This Row],[Q.1]]+t_instalado[[#This Row],[Q.2]]+t_instalado[[#This Row],[Q.3]],"") ->  | Y268: =IF(t_instalado[[#This Row],[FLUXO]]<>"",ROUND(t_instalado[[#This Row],[FLUXO]]/t_instalado[[#This Row],[Luminárias]],0),"") ->  | Z268: =IF(t_instalado[[#This Row],[Luminárias]]<>"",ROUND(t_instalado[[#This Row],[lm_médio]]/t_instalado[[#This Row],[W_médio]],2),"") -> 
A269: 35 | B269: =_xlfn.XLOOKUP(t_instalado[[#This Row],[cód.]],t_sitio[cód],t_sitio[Trecho],"") ->  | M269: =t_instalado[[#This Row],[Q.1]]+t_instalado[[#This Row],[Q.2]]+t_instalado[[#This Row],[Q.3]] -> 0 | N269: =t_instalado[[#This Row],[Q.1]]+t_instalado[[#This Row],[Q.2]]+t_instalado[[#This Row],[Q.3]] -> 0 | O269: =IF(t_instalado[[#This Row],[Q.1]]<>"",SUMIFS(t_reator[p],t_reator[tipo],t_instalado[[#This Row],[T.1]],t_reator[w],t_instalado[[#This Row],[P.1(W)]]),"") ->  | P269: =IF(t_instalado[[#This Row],[Q.2]]<>"",SUMIFS(t_reator[p],t_reator[tipo],t_instalado[[#This Row],[T.2]],t_reator[w],t_instalado[[#This Row],[P.2(W)]]),"") ->  | Q269: =IF(t_instalado[[#This Row],[Q.3]]<>"",SUMIFS(t_reator[p],t_reator[tipo],t_instalado[[#This Row],[T.3]],t_reator[w],t_instalado[[#This Row],[P.3(W)]]),"") ->  | R269: =IF(t_instalado[[#This Row],[Q.1]]<>"",IFERROR(IFERROR(D269*(E269+O269)+G269*(H269+P269)+J269*(K269+Q269),D269*(E269+O269)+G269*(H269+P269)),D269*(E269+O269)),"") ->  | S269: =IF(t_instalado[[#This Row],[Consumo_W]]<>"",ROUND(t_instalado[[#This Row],[Consumo_W]]/t_instalado[[#This Row],[Luminárias]],0),"") ->  | T269: =IF(t_instalado[[#This Row],[Q.1]]<>"",SUMIFS(t_fluxo_lumin[fluxo],t_fluxo_lumin[tipo],t_instalado[[#This Row],[T.1]])*t_instalado[[#This Row],[P.1(W)]]*t_instalado[[#This Row],[Q.1]],"") ->  | U269: =IF(t_instalado[[#This Row],[Q.2]]<>"",SUMIFS(t_fluxo_lumin[fluxo],t_fluxo_lumin[tipo],t_instalado[[#This Row],[T.2]])*t_instalado[[#This Row],[Q.2]]*t_instalado[[#This Row],[P.2(W)]],"") ->  | V269: =IF(t_instalado[[#This Row],[Q.3]]<>"",SUMIFS(t_fluxo_lumin[fluxo],t_fluxo_lumin[tipo],t_instalado[[#This Row],[T.3]])*t_instalado[[#This Row],[Q.3]]*t_instalado[[#This Row],[P.3(W)]],"") ->  | W269: =IF(t_instalado[[#This Row],[Trecho]]<>"",SUM(t_instalado[[#This Row],[f.1]:[f.3]]),"") ->  | X269: =IF(t_instalado[[#This Row],[Trecho]]<>"",t_instalado[[#This Row],[Q.1]]+t_instalado[[#This Row],[Q.2]]+t_instalado[[#This Row],[Q.3]],"") ->  | Y269: =IF(t_instalado[[#This Row],[FLUXO]]<>"",ROUND(t_instalado[[#This Row],[FLUXO]]/t_instalado[[#This Row],[Luminárias]],0),"") ->  | Z269: =IF(t_instalado[[#This Row],[Luminárias]]<>"",ROUND(t_instalado[[#This Row],[lm_médio]]/t_instalado[[#This Row],[W_médio]],2),"") -> 
A270: 36 | B270: =_xlfn.XLOOKUP(t_instalado[[#This Row],[cód.]],t_sitio[cód],t_sitio[Trecho],"") ->  | M270: =t_instalado[[#This Row],[Q.1]]+t_instalado[[#This Row],[Q.2]]+t_instalado[[#This Row],[Q.3]] -> 0 | N270: =t_instalado[[#This Row],[Q.1]]+t_instalado[[#This Row],[Q.2]]+t_instalado[[#This Row],[Q.3]] -> 0 | O270: =IF(t_instalado[[#This Row],[Q.1]]<>"",SUMIFS(t_reator[p],t_reator[tipo],t_instalado[[#This Row],[T.1]],t_reator[w],t_instalado[[#This Row],[P.1(W)]]),"") ->  | P270: =IF(t_instalado[[#This Row],[Q.2]]<>"",SUMIFS(t_reator[p],t_reator[tipo],t_instalado[[#This Row],[T.2]],t_reator[w],t_instalado[[#This Row],[P.2(W)]]),"") ->  | Q270: =IF(t_instalado[[#This Row],[Q.3]]<>"",SUMIFS(t_reator[p],t_reator[tipo],t_instalado[[#This Row],[T.3]],t_reator[w],t_instalado[[#This Row],[P.3(W)]]),"") ->  | R270: =IF(t_instalado[[#This Row],[Q.1]]<>"",IFERROR(IFERROR(D270*(E270+O270)+G270*(H270+P270)+J270*(K270+Q270),D270*(E270+O270)+G270*(H270+P270)),D270*(E270+O270)),"") ->  | S270: =IF(t_instalado[[#This Row],[Consumo_W]]<>"",ROUND(t_instalado[[#This Row],[Consumo_W]]/t_instalado[[#This Row],[Luminárias]],0),"") ->  | T270: =IF(t_instalado[[#This Row],[Q.1]]<>"",SUMIFS(t_fluxo_lumin[fluxo],t_fluxo_lumin[tipo],t_instalado[[#This Row],[T.1]])*t_instalado[[#This Row],[P.1(W)]]*t_instalado[[#This Row],[Q.1]],"") ->  | U270: =IF(t_instalado[[#This Row],[Q.2]]<>"",SUMIFS(t_fluxo_lumin[fluxo],t_fluxo_lumin[tipo],t_instalado[[#This Row],[T.2]])*t_instalado[[#This Row],[Q.2]]*t_instalado[[#This Row],[P.2(W)]],"") ->  | V270: =IF(t_instalado[[#This Row],[Q.3]]<>"",SUMIFS(t_fluxo_lumin[fluxo],t_fluxo_lumin[tipo],t_instalado[[#This Row],[T.3]])*t_instalado[[#This Row],[Q.3]]*t_instalado[[#This Row],[P.3(W)]],"") ->  | W270: =IF(t_instalado[[#This Row],[Trecho]]<>"",SUM(t_instalado[[#This Row],[f.1]:[f.3]]),"") ->  | X270: =IF(t_instalado[[#This Row],[Trecho]]<>"",t_instalado[[#This Row],[Q.1]]+t_instalado[[#This Row],[Q.2]]+t_instalado[[#This Row],[Q.3]],"") ->  | Y270: =IF(t_instalado[[#This Row],[FLUXO]]<>"",ROUND(t_instalado[[#This Row],[FLUXO]]/t_instalado[[#This Row],[Luminárias]],0),"") ->  | Z270: =IF(t_instalado[[#This Row],[Luminárias]]<>"",ROUND(t_instalado[[#This Row],[lm_médio]]/t_instalado[[#This Row],[W_médio]],2),"") -> 
A271: 37 | B271: =_xlfn.XLOOKUP(t_instalado[[#This Row],[cód.]],t_sitio[cód],t_sitio[Trecho],"") ->  | M271: =t_instalado[[#This Row],[Q.1]]+t_instalado[[#This Row],[Q.2]]+t_instalado[[#This Row],[Q.3]] -> 0 | N271: =t_instalado[[#This Row],[Q.1]]+t_instalado[[#This Row],[Q.2]]+t_instalado[[#This Row],[Q.3]] -> 0 | O271: =IF(t_instalado[[#This Row],[Q.1]]<>"",SUMIFS(t_reator[p],t_reator[tipo],t_instalado[[#This Row],[T.1]],t_reator[w],t_instalado[[#This Row],[P.1(W)]]),"") ->  | P271: =IF(t_instalado[[#This Row],[Q.2]]<>"",SUMIFS(t_reator[p],t_reator[tipo],t_instalado[[#This Row],[T.2]],t_reator[w],t_instalado[[#This Row],[P.2(W)]]),"") ->  | Q271: =IF(t_instalado[[#This Row],[Q.3]]<>"",SUMIFS(t_reator[p],t_reator[tipo],t_instalado[[#This Row],[T.3]],t_reator[w],t_instalado[[#This Row],[P.3(W)]]),"") ->  | R271: =IF(t_instalado[[#This Row],[Q.1]]<>"",IFERROR(IFERROR(D271*(E271+O271)+G271*(H271+P271)+J271*(K271+Q271),D271*(E271+O271)+G271*(H271+P271)),D271*(E271+O271)),"") ->  | S271: =IF(t_instalado[[#This Row],[Consumo_W]]<>"",ROUND(t_instalado[[#This Row],[Consumo_W]]/t_instalado[[#This Row],[Luminárias]],0),"") ->  | T271: =IF(t_instalado[[#This Row],[Q.1]]<>"",SUMIFS(t_fluxo_lumin[fluxo],t_fluxo_lumin[tipo],t_instalado[[#This Row],[T.1]])*t_instalado[[#This Row],[P.1(W)]]*t_instalado[[#This Row],[Q.1]],"") ->  | U271: =IF(t_instalado[[#This Row],[Q.2]]<>"",SUMIFS(t_fluxo_lumin[fluxo],t_fluxo_lumin[tipo],t_instalado[[#This Row],[T.2]])*t_instalado[[#This Row],[Q.2]]*t_instalado[[#This Row],[P.2(W)]],"") ->  | V271: =IF(t_instalado[[#This Row],[Q.3]]<>"",SUMIFS(t_fluxo_lumin[fluxo],t_fluxo_lumin[tipo],t_instalado[[#This Row],[T.3]])*t_instalado[[#This Row],[Q.3]]*t_instalado[[#This Row],[P.3(W)]],"") ->  | W271: =IF(t_instalado[[#This Row],[Trecho]]<>"",SUM(t_instalado[[#This Row],[f.1]:[f.3]]),"") ->  | X271: =IF(t_instalado[[#This Row],[Trecho]]<>"",t_instalado[[#This Row],[Q.1]]+t_instalado[[#This Row],[Q.2]]+t_instalado[[#This Row],[Q.3]],"") ->  | Y271: =IF(t_instalado[[#This Row],[FLUXO]]<>"",ROUND(t_instalado[[#This Row],[FLUXO]]/t_instalado[[#This Row],[Luminárias]],0),"") ->  | Z271: =IF(t_instalado[[#This Row],[Luminárias]]<>"",ROUND(t_instalado[[#This Row],[lm_médio]]/t_instalado[[#This Row],[W_médio]],2),"") -> 
A272: 38 | B272: =_xlfn.XLOOKUP(t_instalado[[#This Row],[cód.]],t_sitio[cód],t_sitio[Trecho],"") ->  | M272: =t_instalado[[#This Row],[Q.1]]+t_instalado[[#This Row],[Q.2]]+t_instalado[[#This Row],[Q.3]] -> 0 | N272: =t_instalado[[#This Row],[Q.1]]+t_instalado[[#This Row],[Q.2]]+t_instalado[[#This Row],[Q.3]] -> 0 | O272: =IF(t_instalado[[#This Row],[Q.1]]<>"",SUMIFS(t_reator[p],t_reator[tipo],t_instalado[[#This Row],[T.1]],t_reator[w],t_instalado[[#This Row],[P.1(W)]]),"") ->  | P272: =IF(t_instalado[[#This Row],[Q.2]]<>"",SUMIFS(t_reator[p],t_reator[tipo],t_instalado[[#This Row],[T.2]],t_reator[w],t_instalado[[#This Row],[P.2(W)]]),"") ->  | Q272: =IF(t_instalado[[#This Row],[Q.3]]<>"",SUMIFS(t_reator[p],t_reator[tipo],t_instalado[[#This Row],[T.3]],t_reator[w],t_instalado[[#This Row],[P.3(W)]]),"") ->  | R272: =IF(t_instalado[[#This Row],[Q.1]]<>"",IFERROR(IFERROR(D272*(E272+O272)+G272*(H272+P272)+J272*(K272+Q272),D272*(E272+O272)+G272*(H272+P272)),D272*(E272+O272)),"") ->  | S272: =IF(t_instalado[[#This Row],[Consumo_W]]<>"",ROUND(t_instalado[[#This Row],[Consumo_W]]/t_instalado[[#This Row],[Luminárias]],0),"") ->  | T272: =IF(t_instalado[[#This Row],[Q.1]]<>"",SUMIFS(t_fluxo_lumin[fluxo],t_fluxo_lumin[tipo],t_instalado[[#This Row],[T.1]])*t_instalado[[#This Row],[P.1(W)]]*t_instalado[[#This Row],[Q.1]],"") ->  | U272: =IF(t_instalado[[#This Row],[Q.2]]<>"",SUMIFS(t_fluxo_lumin[fluxo],t_fluxo_lumin[tipo],t_instalado[[#This Row],[T.2]])*t_instalado[[#This Row],[Q.2]]*t_instalado[[#This Row],[P.2(W)]],"") ->  | V272: =IF(t_instalado[[#This Row],[Q.3]]<>"",SUMIFS(t_fluxo_lumin[fluxo],t_fluxo_lumin[tipo],t_instalado[[#This Row],[T.3]])*t_instalado[[#This Row],[Q.3]]*t_instalado[[#This Row],[P.3(W)]],"") ->  | W272: =IF(t_instalado[[#This Row],[Trecho]]<>"",SUM(t_instalado[[#This Row],[f.1]:[f.3]]),"") ->  | X272: =IF(t_instalado[[#This Row],[Trecho]]<>"",t_instalado[[#This Row],[Q.1]]+t_instalado[[#This Row],[Q.2]]+t_instalado[[#This Row],[Q.3]],"") ->  | Y272: =IF(t_instalado[[#This Row],[FLUXO]]<>"",ROUND(t_instalado[[#This Row],[FLUXO]]/t_instalado[[#This Row],[Luminárias]],0),"") ->  | Z272: =IF(t_instalado[[#This Row],[Luminárias]]<>"",ROUND(t_instalado[[#This Row],[lm_médio]]/t_instalado[[#This Row],[W_médio]],2),"") -> 
A273: 39 | B273: =_xlfn.XLOOKUP(t_instalado[[#This Row],[cód.]],t_sitio[cód],t_sitio[Trecho],"") ->  | M273: =t_instalado[[#This Row],[Q.1]]+t_instalado[[#This Row],[Q.2]]+t_instalado[[#This Row],[Q.3]] -> 0 | N273: =t_instalado[[#This Row],[Q.1]]+t_instalado[[#This Row],[Q.2]]+t_instalado[[#This Row],[Q.3]] -> 0 | O273: =IF(t_instalado[[#This Row],[Q.1]]<>"",SUMIFS(t_reator[p],t_reator[tipo],t_instalado[[#This Row],[T.1]],t_reator[w],t_instalado[[#This Row],[P.1(W)]]),"") ->  | P273: =IF(t_instalado[[#This Row],[Q.2]]<>"",SUMIFS(t_reator[p],t_reator[tipo],t_instalado[[#This Row],[T.2]],t_reator[w],t_instalado[[#This Row],[P.2(W)]]),"") ->  | Q273: =IF(t_instalado[[#This Row],[Q.3]]<>"",SUMIFS(t_reator[p],t_reator[tipo],t_instalado[[#This Row],[T.3]],t_reator[w],t_instalado[[#This Row],[P.3(W)]]),"") ->  | R273: =IF(t_instalado[[#This Row],[Q.1]]<>"",IFERROR(IFERROR(D273*(E273+O273)+G273*(H273+P273)+J273*(K273+Q273),D273*(E273+O273)+G273*(H273+P273)),D273*(E273+O273)),"") ->  | S273: =IF(t_instalado[[#This Row],[Consumo_W]]<>"",ROUND(t_instalado[[#This Row],[Consumo_W]]/t_instalado[[#This Row],[Luminárias]],0),"") ->  | T273: =IF(t_instalado[[#This Row],[Q.1]]<>"",SUMIFS(t_fluxo_lumin[fluxo],t_fluxo_lumin[tipo],t_instalado[[#This Row],[T.1]])*t_instalado[[#This Row],[P.1(W)]]*t_instalado[[#This Row],[Q.1]],"") ->  | U273: =IF(t_instalado[[#This Row],[Q.2]]<>"",SUMIFS(t_fluxo_lumin[fluxo],t_fluxo_lumin[tipo],t_instalado[[#This Row],[T.2]])*t_instalado[[#This Row],[Q.2]]*t_instalado[[#This Row],[P.2(W)]],"") ->  | V273: =IF(t_instalado[[#This Row],[Q.3]]<>"",SUMIFS(t_fluxo_lumin[fluxo],t_fluxo_lumin[tipo],t_instalado[[#This Row],[T.3]])*t_instalado[[#This Row],[Q.3]]*t_instalado[[#This Row],[P.3(W)]],"") ->  | W273: =IF(t_instalado[[#This Row],[Trecho]]<>"",SUM(t_instalado[[#This Row],[f.1]:[f.3]]),"") ->  | X273: =IF(t_instalado[[#This Row],[Trecho]]<>"",t_instalado[[#This Row],[Q.1]]+t_instalado[[#This Row],[Q.2]]+t_instalado[[#This Row],[Q.3]],"") ->  | Y273: =IF(t_instalado[[#This Row],[FLUXO]]<>"",ROUND(t_instalado[[#This Row],[FLUXO]]/t_instalado[[#This Row],[Luminárias]],0),"") ->  | Z273: =IF(t_instalado[[#This Row],[Luminárias]]<>"",ROUND(t_instalado[[#This Row],[lm_médio]]/t_instalado[[#This Row],[W_médio]],2),"") -> 
A274: 40 | B274: =_xlfn.XLOOKUP(t_instalado[[#This Row],[cód.]],t_sitio[cód],t_sitio[Trecho],"") ->  | M274: =t_instalado[[#This Row],[Q.1]]+t_instalado[[#This Row],[Q.2]]+t_instalado[[#This Row],[Q.3]] -> 0 | N274: =t_instalado[[#This Row],[Q.1]]+t_instalado[[#This Row],[Q.2]]+t_instalado[[#This Row],[Q.3]] -> 0 | O274: =IF(t_instalado[[#This Row],[Q.1]]<>"",SUMIFS(t_reator[p],t_reator[tipo],t_instalado[[#This Row],[T.1]],t_reator[w],t_instalado[[#This Row],[P.1(W)]]),"") ->  | P274: =IF(t_instalado[[#This Row],[Q.2]]<>"",SUMIFS(t_reator[p],t_reator[tipo],t_instalado[[#This Row],[T.2]],t_reator[w],t_instalado[[#This Row],[P.2(W)]]),"") ->  | Q274: =IF(t_instalado[[#This Row],[Q.3]]<>"",SUMIFS(t_reator[p],t_reator[tipo],t_instalado[[#This Row],[T.3]],t_reator[w],t_instalado[[#This Row],[P.3(W)]]),"") ->  | R274: =IF(t_instalado[[#This Row],[Q.1]]<>"",IFERROR(IFERROR(D274*(E274+O274)+G274*(H274+P274)+J274*(K274+Q274),D274*(E274+O274)+G274*(H274+P274)),D274*(E274+O274)),"") ->  | S274: =IF(t_instalado[[#This Row],[Consumo_W]]<>"",ROUND(t_instalado[[#This Row],[Consumo_W]]/t_instalado[[#This Row],[Luminárias]],0),"") ->  | T274: =IF(t_instalado[[#This Row],[Q.1]]<>"",SUMIFS(t_fluxo_lumin[fluxo],t_fluxo_lumin[tipo],t_instalado[[#This Row],[T.1]])*t_instalado[[#This Row],[P.1(W)]]*t_instalado[[#This Row],[Q.1]],"") ->  | U274: =IF(t_instalado[[#This Row],[Q.2]]<>"",SUMIFS(t_fluxo_lumin[fluxo],t_fluxo_lumin[tipo],t_instalado[[#This Row],[T.2]])*t_instalado[[#This Row],[Q.2]]*t_instalado[[#This Row],[P.2(W)]],"") ->  | V274: =IF(t_instalado[[#This Row],[Q.3]]<>"",SUMIFS(t_fluxo_lumin[fluxo],t_fluxo_lumin[tipo],t_instalado[[#This Row],[T.3]])*t_instalado[[#This Row],[Q.3]]*t_instalado[[#This Row],[P.3(W)]],"") ->  | W274: =IF(t_instalado[[#This Row],[Trecho]]<>"",SUM(t_instalado[[#This Row],[f.1]:[f.3]]),"") ->  | X274: =IF(t_instalado[[#This Row],[Trecho]]<>"",t_instalado[[#This Row],[Q.1]]+t_instalado[[#This Row],[Q.2]]+t_instalado[[#This Row],[Q.3]],"") ->  | Y274: =IF(t_instalado[[#This Row],[FLUXO]]<>"",ROUND(t_instalado[[#This Row],[FLUXO]]/t_instalado[[#This Row],[Luminárias]],0),"") ->  | Z274: =IF(t_instalado[[#This Row],[Luminárias]]<>"",ROUND(t_instalado[[#This Row],[lm_médio]]/t_instalado[[#This Row],[W_médio]],2),"") -> 
A275: 41 | B275: =_xlfn.XLOOKUP(t_instalado[[#This Row],[cód.]],t_sitio[cód],t_sitio[Trecho],"") ->  | M275: =t_instalado[[#This Row],[Q.1]]+t_instalado[[#This Row],[Q.2]]+t_instalado[[#This Row],[Q.3]] -> 0 | N275: =t_instalado[[#This Row],[Q.1]]+t_instalado[[#This Row],[Q.2]]+t_instalado[[#This Row],[Q.3]] -> 0 | O275: =IF(t_instalado[[#This Row],[Q.1]]<>"",SUMIFS(t_reator[p],t_reator[tipo],t_instalado[[#This Row],[T.1]],t_reator[w],t_instalado[[#This Row],[P.1(W)]]),"") ->  | P275: =IF(t_instalado[[#This Row],[Q.2]]<>"",SUMIFS(t_reator[p],t_reator[tipo],t_instalado[[#This Row],[T.2]],t_reator[w],t_instalado[[#This Row],[P.2(W)]]),"") ->  | Q275: =IF(t_instalado[[#This Row],[Q.3]]<>"",SUMIFS(t_reator[p],t_reator[tipo],t_instalado[[#This Row],[T.3]],t_reator[w],t_instalado[[#This Row],[P.3(W)]]),"") ->  | R275: =IF(t_instalado[[#This Row],[Q.1]]<>"",IFERROR(IFERROR(D275*(E275+O275)+G275*(H275+P275)+J275*(K275+Q275),D275*(E275+O275)+G275*(H275+P275)),D275*(E275+O275)),"") ->  | S275: =IF(t_instalado[[#This Row],[Consumo_W]]<>"",ROUND(t_instalado[[#This Row],[Consumo_W]]/t_instalado[[#This Row],[Luminárias]],0),"") ->  | T275: =IF(t_instalado[[#This Row],[Q.1]]<>"",SUMIFS(t_fluxo_lumin[fluxo],t_fluxo_lumin[tipo],t_instalado[[#This Row],[T.1]])*t_instalado[[#This Row],[P.1(W)]]*t_instalado[[#This Row],[Q.1]],"") ->  | U275: =IF(t_instalado[[#This Row],[Q.2]]<>"",SUMIFS(t_fluxo_lumin[fluxo],t_fluxo_lumin[tipo],t_instalado[[#This Row],[T.2]])*t_instalado[[#This Row],[Q.2]]*t_instalado[[#This Row],[P.2(W)]],"") ->  | V275: =IF(t_instalado[[#This Row],[Q.3]]<>"",SUMIFS(t_fluxo_lumin[fluxo],t_fluxo_lumin[tipo],t_instalado[[#This Row],[T.3]])*t_instalado[[#This Row],[Q.3]]*t_instalado[[#This Row],[P.3(W)]],"") ->  | W275: =IF(t_instalado[[#This Row],[Trecho]]<>"",SUM(t_instalado[[#This Row],[f.1]:[f.3]]),"") ->  | X275: =IF(t_instalado[[#This Row],[Trecho]]<>"",t_instalado[[#This Row],[Q.1]]+t_instalado[[#This Row],[Q.2]]+t_instalado[[#This Row],[Q.3]],"") ->  | Y275: =IF(t_instalado[[#This Row],[FLUXO]]<>"",ROUND(t_instalado[[#This Row],[FLUXO]]/t_instalado[[#This Row],[Luminárias]],0),"") ->  | Z275: =IF(t_instalado[[#This Row],[Luminárias]]<>"",ROUND(t_instalado[[#This Row],[lm_médio]]/t_instalado[[#This Row],[W_médio]],2),"") -> 
A276: 42 | B276: =_xlfn.XLOOKUP(t_instalado[[#This Row],[cód.]],t_sitio[cód],t_sitio[Trecho],"") ->  | M276: =t_instalado[[#This Row],[Q.1]]+t_instalado[[#This Row],[Q.2]]+t_instalado[[#This Row],[Q.3]] -> 0 | N276: =t_instalado[[#This Row],[Q.1]]+t_instalado[[#This Row],[Q.2]]+t_instalado[[#This Row],[Q.3]] -> 0 | O276: =IF(t_instalado[[#This Row],[Q.1]]<>"",SUMIFS(t_reator[p],t_reator[tipo],t_instalado[[#This Row],[T.1]],t_reator[w],t_instalado[[#This Row],[P.1(W)]]),"") ->  | P276: =IF(t_instalado[[#This Row],[Q.2]]<>"",SUMIFS(t_reator[p],t_reator[tipo],t_instalado[[#This Row],[T.2]],t_reator[w],t_instalado[[#This Row],[P.2(W)]]),"") ->  | Q276: =IF(t_instalado[[#This Row],[Q.3]]<>"",SUMIFS(t_reator[p],t_reator[tipo],t_instalado[[#This Row],[T.3]],t_reator[w],t_instalado[[#This Row],[P.3(W)]]),"") ->  | R276: =IF(t_instalado[[#This Row],[Q.1]]<>"",IFERROR(IFERROR(D276*(E276+O276)+G276*(H276+P276)+J276*(K276+Q276),D276*(E276+O276)+G276*(H276+P276)),D276*(E276+O276)),"") ->  | S276: =IF(t_instalado[[#This Row],[Consumo_W]]<>"",ROUND(t_instalado[[#This Row],[Consumo_W]]/t_instalado[[#This Row],[Luminárias]],0),"") ->  | T276: =IF(t_instalado[[#This Row],[Q.1]]<>"",SUMIFS(t_fluxo_lumin[fluxo],t_fluxo_lumin[tipo],t_instalado[[#This Row],[T.1]])*t_instalado[[#This Row],[P.1(W)]]*t_instalado[[#This Row],[Q.1]],"") ->  | U276: =IF(t_instalado[[#This Row],[Q.2]]<>"",SUMIFS(t_fluxo_lumin[fluxo],t_fluxo_lumin[tipo],t_instalado[[#This Row],[T.2]])*t_instalado[[#This Row],[Q.2]]*t_instalado[[#This Row],[P.2(W)]],"") ->  | V276: =IF(t_instalado[[#This Row],[Q.3]]<>"",SUMIFS(t_fluxo_lumin[fluxo],t_fluxo_lumin[tipo],t_instalado[[#This Row],[T.3]])*t_instalado[[#This Row],[Q.3]]*t_instalado[[#This Row],[P.3(W)]],"") ->  | W276: =IF(t_instalado[[#This Row],[Trecho]]<>"",SUM(t_instalado[[#This Row],[f.1]:[f.3]]),"") ->  | X276: =IF(t_instalado[[#This Row],[Trecho]]<>"",t_instalado[[#This Row],[Q.1]]+t_instalado[[#This Row],[Q.2]]+t_instalado[[#This Row],[Q.3]],"") ->  | Y276: =IF(t_instalado[[#This Row],[FLUXO]]<>"",ROUND(t_instalado[[#This Row],[FLUXO]]/t_instalado[[#This Row],[Luminárias]],0),"") ->  | Z276: =IF(t_instalado[[#This Row],[Luminárias]]<>"",ROUND(t_instalado[[#This Row],[lm_médio]]/t_instalado[[#This Row],[W_médio]],2),"") -> 
A277: 43 | B277: =_xlfn.XLOOKUP(t_instalado[[#This Row],[cód.]],t_sitio[cód],t_sitio[Trecho],"") ->  | M277: =t_instalado[[#This Row],[Q.1]]+t_instalado[[#This Row],[Q.2]]+t_instalado[[#This Row],[Q.3]] -> 0 | N277: =t_instalado[[#This Row],[Q.1]]+t_instalado[[#This Row],[Q.2]]+t_instalado[[#This Row],[Q.3]] -> 0 | O277: =IF(t_instalado[[#This Row],[Q.1]]<>"",SUMIFS(t_reator[p],t_reator[tipo],t_instalado[[#This Row],[T.1]],t_reator[w],t_instalado[[#This Row],[P.1(W)]]),"") ->  | P277: =IF(t_instalado[[#This Row],[Q.2]]<>"",SUMIFS(t_reator[p],t_reator[tipo],t_instalado[[#This Row],[T.2]],t_reator[w],t_instalado[[#This Row],[P.2(W)]]),"") ->  | Q277: =IF(t_instalado[[#This Row],[Q.3]]<>"",SUMIFS(t_reator[p],t_reator[tipo],t_instalado[[#This Row],[T.3]],t_reator[w],t_instalado[[#This Row],[P.3(W)]]),"") ->  | R277: =IF(t_instalado[[#This Row],[Q.1]]<>"",IFERROR(IFERROR(D277*(E277+O277)+G277*(H277+P277)+J277*(K277+Q277),D277*(E277+O277)+G277*(H277+P277)),D277*(E277+O277)),"") ->  | S277: =IF(t_instalado[[#This Row],[Consumo_W]]<>"",ROUND(t_instalado[[#This Row],[Consumo_W]]/t_instalado[[#This Row],[Luminárias]],0),"") ->  | T277: =IF(t_instalado[[#This Row],[Q.1]]<>"",SUMIFS(t_fluxo_lumin[fluxo],t_fluxo_lumin[tipo],t_instalado[[#This Row],[T.1]])*t_instalado[[#This Row],[P.1(W)]]*t_instalado[[#This Row],[Q.1]],"") ->  | U277: =IF(t_instalado[[#This Row],[Q.2]]<>"",SUMIFS(t_fluxo_lumin[fluxo],t_fluxo_lumin[tipo],t_instalado[[#This Row],[T.2]])*t_instalado[[#This Row],[Q.2]]*t_instalado[[#This Row],[P.2(W)]],"") ->  | V277: =IF(t_instalado[[#This Row],[Q.3]]<>"",SUMIFS(t_fluxo_lumin[fluxo],t_fluxo_lumin[tipo],t_instalado[[#This Row],[T.3]])*t_instalado[[#This Row],[Q.3]]*t_instalado[[#This Row],[P.3(W)]],"") ->  | W277: =IF(t_instalado[[#This Row],[Trecho]]<>"",SUM(t_instalado[[#This Row],[f.1]:[f.3]]),"") ->  | X277: =IF(t_instalado[[#This Row],[Trecho]]<>"",t_instalado[[#This Row],[Q.1]]+t_instalado[[#This Row],[Q.2]]+t_instalado[[#This Row],[Q.3]],"") ->  | Y277: =IF(t_instalado[[#This Row],[FLUXO]]<>"",ROUND(t_instalado[[#This Row],[FLUXO]]/t_instalado[[#This Row],[Luminárias]],0),"") ->  | Z277: =IF(t_instalado[[#This Row],[Luminárias]]<>"",ROUND(t_instalado[[#This Row],[lm_médio]]/t_instalado[[#This Row],[W_médio]],2),"") -> 
A278: 44 | B278: =_xlfn.XLOOKUP(t_instalado[[#This Row],[cód.]],t_sitio[cód],t_sitio[Trecho],"") ->  | M278: =t_instalado[[#This Row],[Q.1]]+t_instalado[[#This Row],[Q.2]]+t_instalado[[#This Row],[Q.3]] -> 0 | N278: =t_instalado[[#This Row],[Q.1]]+t_instalado[[#This Row],[Q.2]]+t_instalado[[#This Row],[Q.3]] -> 0 | O278: =IF(t_instalado[[#This Row],[Q.1]]<>"",SUMIFS(t_reator[p],t_reator[tipo],t_instalado[[#This Row],[T.1]],t_reator[w],t_instalado[[#This Row],[P.1(W)]]),"") ->  | P278: =IF(t_instalado[[#This Row],[Q.2]]<>"",SUMIFS(t_reator[p],t_reator[tipo],t_instalado[[#This Row],[T.2]],t_reator[w],t_instalado[[#This Row],[P.2(W)]]),"") ->  | Q278: =IF(t_instalado[[#This Row],[Q.3]]<>"",SUMIFS(t_reator[p],t_reator[tipo],t_instalado[[#This Row],[T.3]],t_reator[w],t_instalado[[#This Row],[P.3(W)]]),"") ->  | R278: =IF(t_instalado[[#This Row],[Q.1]]<>"",IFERROR(IFERROR(D278*(E278+O278)+G278*(H278+P278)+J278*(K278+Q278),D278*(E278+O278)+G278*(H278+P278)),D278*(E278+O278)),"") ->  | S278: =IF(t_instalado[[#This Row],[Consumo_W]]<>"",ROUND(t_instalado[[#This Row],[Consumo_W]]/t_instalado[[#This Row],[Luminárias]],0),"") ->  | T278: =IF(t_instalado[[#This Row],[Q.1]]<>"",SUMIFS(t_fluxo_lumin[fluxo],t_fluxo_lumin[tipo],t_instalado[[#This Row],[T.1]])*t_instalado[[#This Row],[P.1(W)]]*t_instalado[[#This Row],[Q.1]],"") ->  | U278: =IF(t_instalado[[#This Row],[Q.2]]<>"",SUMIFS(t_fluxo_lumin[fluxo],t_fluxo_lumin[tipo],t_instalado[[#This Row],[T.2]])*t_instalado[[#This Row],[Q.2]]*t_instalado[[#This Row],[P.2(W)]],"") ->  | V278: =IF(t_instalado[[#This Row],[Q.3]]<>"",SUMIFS(t_fluxo_lumin[fluxo],t_fluxo_lumin[tipo],t_instalado[[#This Row],[T.3]])*t_instalado[[#This Row],[Q.3]]*t_instalado[[#This Row],[P.3(W)]],"") ->  | W278: =IF(t_instalado[[#This Row],[Trecho]]<>"",SUM(t_instalado[[#This Row],[f.1]:[f.3]]),"") ->  | X278: =IF(t_instalado[[#This Row],[Trecho]]<>"",t_instalado[[#This Row],[Q.1]]+t_instalado[[#This Row],[Q.2]]+t_instalado[[#This Row],[Q.3]],"") ->  | Y278: =IF(t_instalado[[#This Row],[FLUXO]]<>"",ROUND(t_instalado[[#This Row],[FLUXO]]/t_instalado[[#This Row],[Luminárias]],0),"") ->  | Z278: =IF(t_instalado[[#This Row],[Luminárias]]<>"",ROUND(t_instalado[[#This Row],[lm_médio]]/t_instalado[[#This Row],[W_médio]],2),"") -> 
A279: 45 | B279: =_xlfn.XLOOKUP(t_instalado[[#This Row],[cód.]],t_sitio[cód],t_sitio[Trecho],"") ->  | M279: =t_instalado[[#This Row],[Q.1]]+t_instalado[[#This Row],[Q.2]]+t_instalado[[#This Row],[Q.3]] -> 0 | N279: =t_instalado[[#This Row],[Q.1]]+t_instalado[[#This Row],[Q.2]]+t_instalado[[#This Row],[Q.3]] -> 0 | O279: =IF(t_instalado[[#This Row],[Q.1]]<>"",SUMIFS(t_reator[p],t_reator[tipo],t_instalado[[#This Row],[T.1]],t_reator[w],t_instalado[[#This Row],[P.1(W)]]),"") ->  | P279: =IF(t_instalado[[#This Row],[Q.2]]<>"",SUMIFS(t_reator[p],t_reator[tipo],t_instalado[[#This Row],[T.2]],t_reator[w],t_instalado[[#This Row],[P.2(W)]]),"") ->  | Q279: =IF(t_instalado[[#This Row],[Q.3]]<>"",SUMIFS(t_reator[p],t_reator[tipo],t_instalado[[#This Row],[T.3]],t_reator[w],t_instalado[[#This Row],[P.3(W)]]),"") ->  | R279: =IF(t_instalado[[#This Row],[Q.1]]<>"",IFERROR(IFERROR(D279*(E279+O279)+G279*(H279+P279)+J279*(K279+Q279),D279*(E279+O279)+G279*(H279+P279)),D279*(E279+O279)),"") ->  | S279: =IF(t_instalado[[#This Row],[Consumo_W]]<>"",ROUND(t_instalado[[#This Row],[Consumo_W]]/t_instalado[[#This Row],[Luminárias]],0),"") ->  | T279: =IF(t_instalado[[#This Row],[Q.1]]<>"",SUMIFS(t_fluxo_lumin[fluxo],t_fluxo_lumin[tipo],t_instalado[[#This Row],[T.1]])*t_instalado[[#This Row],[P.1(W)]]*t_instalado[[#This Row],[Q.1]],"") ->  | U279: =IF(t_instalado[[#This Row],[Q.2]]<>"",SUMIFS(t_fluxo_lumin[fluxo],t_fluxo_lumin[tipo],t_instalado[[#This Row],[T.2]])*t_instalado[[#This Row],[Q.2]]*t_instalado[[#This Row],[P.2(W)]],"") ->  | V279: =IF(t_instalado[[#This Row],[Q.3]]<>"",SUMIFS(t_fluxo_lumin[fluxo],t_fluxo_lumin[tipo],t_instalado[[#This Row],[T.3]])*t_instalado[[#This Row],[Q.3]]*t_instalado[[#This Row],[P.3(W)]],"") ->  | W279: =IF(t_instalado[[#This Row],[Trecho]]<>"",SUM(t_instalado[[#This Row],[f.1]:[f.3]]),"") ->  | X279: =IF(t_instalado[[#This Row],[Trecho]]<>"",t_instalado[[#This Row],[Q.1]]+t_instalado[[#This Row],[Q.2]]+t_instalado[[#This Row],[Q.3]],"") ->  | Y279: =IF(t_instalado[[#This Row],[FLUXO]]<>"",ROUND(t_instalado[[#This Row],[FLUXO]]/t_instalado[[#This Row],[Luminárias]],0),"") ->  | Z279: =IF(t_instalado[[#This Row],[Luminárias]]<>"",ROUND(t_instalado[[#This Row],[lm_médio]]/t_instalado[[#This Row],[W_médio]],2),"") -> 
A280: 46 | B280: =_xlfn.XLOOKUP(t_instalado[[#This Row],[cód.]],t_sitio[cód],t_sitio[Trecho],"") ->  | M280: =t_instalado[[#This Row],[Q.1]]+t_instalado[[#This Row],[Q.2]]+t_instalado[[#This Row],[Q.3]] -> 0 | N280: =t_instalado[[#This Row],[Q.1]]+t_instalado[[#This Row],[Q.2]]+t_instalado[[#This Row],[Q.3]] -> 0 | O280: =IF(t_instalado[[#This Row],[Q.1]]<>"",SUMIFS(t_reator[p],t_reator[tipo],t_instalado[[#This Row],[T.1]],t_reator[w],t_instalado[[#This Row],[P.1(W)]]),"") ->  | P280: =IF(t_instalado[[#This Row],[Q.2]]<>"",SUMIFS(t_reator[p],t_reator[tipo],t_instalado[[#This Row],[T.2]],t_reator[w],t_instalado[[#This Row],[P.2(W)]]),"") ->  | Q280: =IF(t_instalado[[#This Row],[Q.3]]<>"",SUMIFS(t_reator[p],t_reator[tipo],t_instalado[[#This Row],[T.3]],t_reator[w],t_instalado[[#This Row],[P.3(W)]]),"") ->  | R280: =IF(t_instalado[[#This Row],[Q.1]]<>"",IFERROR(IFERROR(D280*(E280+O280)+G280*(H280+P280)+J280*(K280+Q280),D280*(E280+O280)+G280*(H280+P280)),D280*(E280+O280)),"") ->  | S280: =IF(t_instalado[[#This Row],[Consumo_W]]<>"",ROUND(t_instalado[[#This Row],[Consumo_W]]/t_instalado[[#This Row],[Luminárias]],0),"") ->  | T280: =IF(t_instalado[[#This Row],[Q.1]]<>"",SUMIFS(t_fluxo_lumin[fluxo],t_fluxo_lumin[tipo],t_instalado[[#This Row],[T.1]])*t_instalado[[#This Row],[P.1(W)]]*t_instalado[[#This Row],[Q.1]],"") ->  | U280: =IF(t_instalado[[#This Row],[Q.2]]<>"",SUMIFS(t_fluxo_lumin[fluxo],t_fluxo_lumin[tipo],t_instalado[[#This Row],[T.2]])*t_instalado[[#This Row],[Q.2]]*t_instalado[[#This Row],[P.2(W)]],"") ->  | V280: =IF(t_instalado[[#This Row],[Q.3]]<>"",SUMIFS(t_fluxo_lumin[fluxo],t_fluxo_lumin[tipo],t_instalado[[#This Row],[T.3]])*t_instalado[[#This Row],[Q.3]]*t_instalado[[#This Row],[P.3(W)]],"") ->  | W280: =IF(t_instalado[[#This Row],[Trecho]]<>"",SUM(t_instalado[[#This Row],[f.1]:[f.3]]),"") ->  | X280: =IF(t_instalado[[#This Row],[Trecho]]<>"",t_instalado[[#This Row],[Q.1]]+t_instalado[[#This Row],[Q.2]]+t_instalado[[#This Row],[Q.3]],"") ->  | Y280: =IF(t_instalado[[#This Row],[FLUXO]]<>"",ROUND(t_instalado[[#This Row],[FLUXO]]/t_instalado[[#This Row],[Luminárias]],0),"") ->  | Z280: =IF(t_instalado[[#This Row],[Luminárias]]<>"",ROUND(t_instalado[[#This Row],[lm_médio]]/t_instalado[[#This Row],[W_médio]],2),"") -> 
A281: 47 | B281: =_xlfn.XLOOKUP(t_instalado[[#This Row],[cód.]],t_sitio[cód],t_sitio[Trecho],"") ->  | M281: =t_instalado[[#This Row],[Q.1]]+t_instalado[[#This Row],[Q.2]]+t_instalado[[#This Row],[Q.3]] -> 0 | N281: =t_instalado[[#This Row],[Q.1]]+t_instalado[[#This Row],[Q.2]]+t_instalado[[#This Row],[Q.3]] -> 0 | O281: =IF(t_instalado[[#This Row],[Q.1]]<>"",SUMIFS(t_reator[p],t_reator[tipo],t_instalado[[#This Row],[T.1]],t_reator[w],t_instalado[[#This Row],[P.1(W)]]),"") ->  | P281: =IF(t_instalado[[#This Row],[Q.2]]<>"",SUMIFS(t_reator[p],t_reator[tipo],t_instalado[[#This Row],[T.2]],t_reator[w],t_instalado[[#This Row],[P.2(W)]]),"") ->  | Q281: =IF(t_instalado[[#This Row],[Q.3]]<>"",SUMIFS(t_reator[p],t_reator[tipo],t_instalado[[#This Row],[T.3]],t_reator[w],t_instalado[[#This Row],[P.3(W)]]),"") ->  | R281: =IF(t_instalado[[#This Row],[Q.1]]<>"",IFERROR(IFERROR(D281*(E281+O281)+G281*(H281+P281)+J281*(K281+Q281),D281*(E281+O281)+G281*(H281+P281)),D281*(E281+O281)),"") ->  | S281: =IF(t_instalado[[#This Row],[Consumo_W]]<>"",ROUND(t_instalado[[#This Row],[Consumo_W]]/t_instalado[[#This Row],[Luminárias]],0),"") ->  | T281: =IF(t_instalado[[#This Row],[Q.1]]<>"",SUMIFS(t_fluxo_lumin[fluxo],t_fluxo_lumin[tipo],t_instalado[[#This Row],[T.1]])*t_instalado[[#This Row],[P.1(W)]]*t_instalado[[#This Row],[Q.1]],"") ->  | U281: =IF(t_instalado[[#This Row],[Q.2]]<>"",SUMIFS(t_fluxo_lumin[fluxo],t_fluxo_lumin[tipo],t_instalado[[#This Row],[T.2]])*t_instalado[[#This Row],[Q.2]]*t_instalado[[#This Row],[P.2(W)]],"") ->  | V281: =IF(t_instalado[[#This Row],[Q.3]]<>"",SUMIFS(t_fluxo_lumin[fluxo],t_fluxo_lumin[tipo],t_instalado[[#This Row],[T.3]])*t_instalado[[#This Row],[Q.3]]*t_instalado[[#This Row],[P.3(W)]],"") ->  | W281: =IF(t_instalado[[#This Row],[Trecho]]<>"",SUM(t_instalado[[#This Row],[f.1]:[f.3]]),"") ->  | X281: =IF(t_instalado[[#This Row],[Trecho]]<>"",t_instalado[[#This Row],[Q.1]]+t_instalado[[#This Row],[Q.2]]+t_instalado[[#This Row],[Q.3]],"") ->  | Y281: =IF(t_instalado[[#This Row],[FLUXO]]<>"",ROUND(t_instalado[[#This Row],[FLUXO]]/t_instalado[[#This Row],[Luminárias]],0),"") ->  | Z281: =IF(t_instalado[[#This Row],[Luminárias]]<>"",ROUND(t_instalado[[#This Row],[lm_médio]]/t_instalado[[#This Row],[W_médio]],2),"") -> 
A282: 48 | B282: =_xlfn.XLOOKUP(t_instalado[[#This Row],[cód.]],t_sitio[cód],t_sitio[Trecho],"") ->  | M282: =t_instalado[[#This Row],[Q.1]]+t_instalado[[#This Row],[Q.2]]+t_instalado[[#This Row],[Q.3]] -> 0 | N282: =t_instalado[[#This Row],[Q.1]]+t_instalado[[#This Row],[Q.2]]+t_instalado[[#This Row],[Q.3]] -> 0 | O282: =IF(t_instalado[[#This Row],[Q.1]]<>"",SUMIFS(t_reator[p],t_reator[tipo],t_instalado[[#This Row],[T.1]],t_reator[w],t_instalado[[#This Row],[P.1(W)]]),"") ->  | P282: =IF(t_instalado[[#This Row],[Q.2]]<>"",SUMIFS(t_reator[p],t_reator[tipo],t_instalado[[#This Row],[T.2]],t_reator[w],t_instalado[[#This Row],[P.2(W)]]),"") ->  | Q282: =IF(t_instalado[[#This Row],[Q.3]]<>"",SUMIFS(t_reator[p],t_reator[tipo],t_instalado[[#This Row],[T.3]],t_reator[w],t_instalado[[#This Row],[P.3(W)]]),"") ->  | R282: =IF(t_instalado[[#This Row],[Q.1]]<>"",IFERROR(IFERROR(D282*(E282+O282)+G282*(H282+P282)+J282*(K282+Q282),D282*(E282+O282)+G282*(H282+P282)),D282*(E282+O282)),"") ->  | S282: =IF(t_instalado[[#This Row],[Consumo_W]]<>"",ROUND(t_instalado[[#This Row],[Consumo_W]]/t_instalado[[#This Row],[Luminárias]],0),"") ->  | T282: =IF(t_instalado[[#This Row],[Q.1]]<>"",SUMIFS(t_fluxo_lumin[fluxo],t_fluxo_lumin[tipo],t_instalado[[#This Row],[T.1]])*t_instalado[[#This Row],[P.1(W)]]*t_instalado[[#This Row],[Q.1]],"") ->  | U282: =IF(t_instalado[[#This Row],[Q.2]]<>"",SUMIFS(t_fluxo_lumin[fluxo],t_fluxo_lumin[tipo],t_instalado[[#This Row],[T.2]])*t_instalado[[#This Row],[Q.2]]*t_instalado[[#This Row],[P.2(W)]],"") ->  | V282: =IF(t_instalado[[#This Row],[Q.3]]<>"",SUMIFS(t_fluxo_lumin[fluxo],t_fluxo_lumin[tipo],t_instalado[[#This Row],[T.3]])*t_instalado[[#This Row],[Q.3]]*t_instalado[[#This Row],[P.3(W)]],"") ->  | W282: =IF(t_instalado[[#This Row],[Trecho]]<>"",SUM(t_instalado[[#This Row],[f.1]:[f.3]]),"") ->  | X282: =IF(t_instalado[[#This Row],[Trecho]]<>"",t_instalado[[#This Row],[Q.1]]+t_instalado[[#This Row],[Q.2]]+t_instalado[[#This Row],[Q.3]],"") ->  | Y282: =IF(t_instalado[[#This Row],[FLUXO]]<>"",ROUND(t_instalado[[#This Row],[FLUXO]]/t_instalado[[#This Row],[Luminárias]],0),"") ->  | Z282: =IF(t_instalado[[#This Row],[Luminárias]]<>"",ROUND(t_instalado[[#This Row],[lm_médio]]/t_instalado[[#This Row],[W_médio]],2),"") -> 
A283: 49 | B283: =_xlfn.XLOOKUP(t_instalado[[#This Row],[cód.]],t_sitio[cód],t_sitio[Trecho],"") ->  | M283: =t_instalado[[#This Row],[Q.1]]+t_instalado[[#This Row],[Q.2]]+t_instalado[[#This Row],[Q.3]] -> 0 | N283: =t_instalado[[#This Row],[Q.1]]+t_instalado[[#This Row],[Q.2]]+t_instalado[[#This Row],[Q.3]] -> 0 | O283: =IF(t_instalado[[#This Row],[Q.1]]<>"",SUMIFS(t_reator[p],t_reator[tipo],t_instalado[[#This Row],[T.1]],t_reator[w],t_instalado[[#This Row],[P.1(W)]]),"") ->  | P283: =IF(t_instalado[[#This Row],[Q.2]]<>"",SUMIFS(t_reator[p],t_reator[tipo],t_instalado[[#This Row],[T.2]],t_reator[w],t_instalado[[#This Row],[P.2(W)]]),"") ->  | Q283: =IF(t_instalado[[#This Row],[Q.3]]<>"",SUMIFS(t_reator[p],t_reator[tipo],t_instalado[[#This Row],[T.3]],t_reator[w],t_instalado[[#This Row],[P.3(W)]]),"") ->  | R283: =IF(t_instalado[[#This Row],[Q.1]]<>"",IFERROR(IFERROR(D283*(E283+O283)+G283*(H283+P283)+J283*(K283+Q283),D283*(E283+O283)+G283*(H283+P283)),D283*(E283+O283)),"") ->  | S283: =IF(t_instalado[[#This Row],[Consumo_W]]<>"",ROUND(t_instalado[[#This Row],[Consumo_W]]/t_instalado[[#This Row],[Luminárias]],0),"") ->  | T283: =IF(t_instalado[[#This Row],[Q.1]]<>"",SUMIFS(t_fluxo_lumin[fluxo],t_fluxo_lumin[tipo],t_instalado[[#This Row],[T.1]])*t_instalado[[#This Row],[P.1(W)]]*t_instalado[[#This Row],[Q.1]],"") ->  | U283: =IF(t_instalado[[#This Row],[Q.2]]<>"",SUMIFS(t_fluxo_lumin[fluxo],t_fluxo_lumin[tipo],t_instalado[[#This Row],[T.2]])*t_instalado[[#This Row],[Q.2]]*t_instalado[[#This Row],[P.2(W)]],"") ->  | V283: =IF(t_instalado[[#This Row],[Q.3]]<>"",SUMIFS(t_fluxo_lumin[fluxo],t_fluxo_lumin[tipo],t_instalado[[#This Row],[T.3]])*t_instalado[[#This Row],[Q.3]]*t_instalado[[#This Row],[P.3(W)]],"") ->  | W283: =IF(t_instalado[[#This Row],[Trecho]]<>"",SUM(t_instalado[[#This Row],[f.1]:[f.3]]),"") ->  | X283: =IF(t_instalado[[#This Row],[Trecho]]<>"",t_instalado[[#This Row],[Q.1]]+t_instalado[[#This Row],[Q.2]]+t_instalado[[#This Row],[Q.3]],"") ->  | Y283: =IF(t_instalado[[#This Row],[FLUXO]]<>"",ROUND(t_instalado[[#This Row],[FLUXO]]/t_instalado[[#This Row],[Luminárias]],0),"") ->  | Z283: =IF(t_instalado[[#This Row],[Luminárias]]<>"",ROUND(t_instalado[[#This Row],[lm_médio]]/t_instalado[[#This Row],[W_médio]],2),"") -> 
A284: 50 | B284: =_xlfn.XLOOKUP(t_instalado[[#This Row],[cód.]],t_sitio[cód],t_sitio[Trecho],"") ->  | M284: =t_instalado[[#This Row],[Q.1]]+t_instalado[[#This Row],[Q.2]]+t_instalado[[#This Row],[Q.3]] -> 0 | N284: =t_instalado[[#This Row],[Q.1]]+t_instalado[[#This Row],[Q.2]]+t_instalado[[#This Row],[Q.3]] -> 0 | O284: =IF(t_instalado[[#This Row],[Q.1]]<>"",SUMIFS(t_reator[p],t_reator[tipo],t_instalado[[#This Row],[T.1]],t_reator[w],t_instalado[[#This Row],[P.1(W)]]),"") ->  | P284: =IF(t_instalado[[#This Row],[Q.2]]<>"",SUMIFS(t_reator[p],t_reator[tipo],t_instalado[[#This Row],[T.2]],t_reator[w],t_instalado[[#This Row],[P.2(W)]]),"") ->  | Q284: =IF(t_instalado[[#This Row],[Q.3]]<>"",SUMIFS(t_reator[p],t_reator[tipo],t_instalado[[#This Row],[T.3]],t_reator[w],t_instalado[[#This Row],[P.3(W)]]),"") ->  | R284: =IF(t_instalado[[#This Row],[Q.1]]<>"",IFERROR(IFERROR(D284*(E284+O284)+G284*(H284+P284)+J284*(K284+Q284),D284*(E284+O284)+G284*(H284+P284)),D284*(E284+O284)),"") ->  | S284: =IF(t_instalado[[#This Row],[Consumo_W]]<>"",ROUND(t_instalado[[#This Row],[Consumo_W]]/t_instalado[[#This Row],[Luminárias]],0),"") ->  | T284: =IF(t_instalado[[#This Row],[Q.1]]<>"",SUMIFS(t_fluxo_lumin[fluxo],t_fluxo_lumin[tipo],t_instalado[[#This Row],[T.1]])*t_instalado[[#This Row],[P.1(W)]]*t_instalado[[#This Row],[Q.1]],"") ->  | U284: =IF(t_instalado[[#This Row],[Q.2]]<>"",SUMIFS(t_fluxo_lumin[fluxo],t_fluxo_lumin[tipo],t_instalado[[#This Row],[T.2]])*t_instalado[[#This Row],[Q.2]]*t_instalado[[#This Row],[P.2(W)]],"") ->  | V284: =IF(t_instalado[[#This Row],[Q.3]]<>"",SUMIFS(t_fluxo_lumin[fluxo],t_fluxo_lumin[tipo],t_instalado[[#This Row],[T.3]])*t_instalado[[#This Row],[Q.3]]*t_instalado[[#This Row],[P.3(W)]],"") ->  | W284: =IF(t_instalado[[#This Row],[Trecho]]<>"",SUM(t_instalado[[#This Row],[f.1]:[f.3]]),"") ->  | X284: =IF(t_instalado[[#This Row],[Trecho]]<>"",t_instalado[[#This Row],[Q.1]]+t_instalado[[#This Row],[Q.2]]+t_instalado[[#This Row],[Q.3]],"") ->  | Y284: =IF(t_instalado[[#This Row],[FLUXO]]<>"",ROUND(t_instalado[[#This Row],[FLUXO]]/t_instalado[[#This Row],[Luminárias]],0),"") ->  | Z284: =IF(t_instalado[[#This Row],[Luminárias]]<>"",ROUND(t_instalado[[#This Row],[lm_médio]]/t_instalado[[#This Row],[W_médio]],2),"") -> 
A285: 51 | B285: =_xlfn.XLOOKUP(t_instalado[[#This Row],[cód.]],t_sitio[cód],t_sitio[Trecho],"") ->  | M285: =t_instalado[[#This Row],[Q.1]]+t_instalado[[#This Row],[Q.2]]+t_instalado[[#This Row],[Q.3]] -> 0 | N285: =t_instalado[[#This Row],[Q.1]]+t_instalado[[#This Row],[Q.2]]+t_instalado[[#This Row],[Q.3]] -> 0 | O285: =IF(t_instalado[[#This Row],[Q.1]]<>"",SUMIFS(t_reator[p],t_reator[tipo],t_instalado[[#This Row],[T.1]],t_reator[w],t_instalado[[#This Row],[P.1(W)]]),"") ->  | P285: =IF(t_instalado[[#This Row],[Q.2]]<>"",SUMIFS(t_reator[p],t_reator[tipo],t_instalado[[#This Row],[T.2]],t_reator[w],t_instalado[[#This Row],[P.2(W)]]),"") ->  | Q285: =IF(t_instalado[[#This Row],[Q.3]]<>"",SUMIFS(t_reator[p],t_reator[tipo],t_instalado[[#This Row],[T.3]],t_reator[w],t_instalado[[#This Row],[P.3(W)]]),"") ->  | R285: =IF(t_instalado[[#This Row],[Q.1]]<>"",IFERROR(IFERROR(D285*(E285+O285)+G285*(H285+P285)+J285*(K285+Q285),D285*(E285+O285)+G285*(H285+P285)),D285*(E285+O285)),"") ->  | S285: =IF(t_instalado[[#This Row],[Consumo_W]]<>"",ROUND(t_instalado[[#This Row],[Consumo_W]]/t_instalado[[#This Row],[Luminárias]],0),"") ->  | T285: =IF(t_instalado[[#This Row],[Q.1]]<>"",SUMIFS(t_fluxo_lumin[fluxo],t_fluxo_lumin[tipo],t_instalado[[#This Row],[T.1]])*t_instalado[[#This Row],[P.1(W)]]*t_instalado[[#This Row],[Q.1]],"") ->  | U285: =IF(t_instalado[[#This Row],[Q.2]]<>"",SUMIFS(t_fluxo_lumin[fluxo],t_fluxo_lumin[tipo],t_instalado[[#This Row],[T.2]])*t_instalado[[#This Row],[Q.2]]*t_instalado[[#This Row],[P.2(W)]],"") ->  | V285: =IF(t_instalado[[#This Row],[Q.3]]<>"",SUMIFS(t_fluxo_lumin[fluxo],t_fluxo_lumin[tipo],t_instalado[[#This Row],[T.3]])*t_instalado[[#This Row],[Q.3]]*t_instalado[[#This Row],[P.3(W)]],"") ->  | W285: =IF(t_instalado[[#This Row],[Trecho]]<>"",SUM(t_instalado[[#This Row],[f.1]:[f.3]]),"") ->  | X285: =IF(t_instalado[[#This Row],[Trecho]]<>"",t_instalado[[#This Row],[Q.1]]+t_instalado[[#This Row],[Q.2]]+t_instalado[[#This Row],[Q.3]],"") ->  | Y285: =IF(t_instalado[[#This Row],[FLUXO]]<>"",ROUND(t_instalado[[#This Row],[FLUXO]]/t_instalado[[#This Row],[Luminárias]],0),"") ->  | Z285: =IF(t_instalado[[#This Row],[Luminárias]]<>"",ROUND(t_instalado[[#This Row],[lm_médio]]/t_instalado[[#This Row],[W_médio]],2),"") -> 
A286: 52 | B286: =_xlfn.XLOOKUP(t_instalado[[#This Row],[cód.]],t_sitio[cód],t_sitio[Trecho],"") ->  | M286: =t_instalado[[#This Row],[Q.1]]+t_instalado[[#This Row],[Q.2]]+t_instalado[[#This Row],[Q.3]] -> 0 | N286: =t_instalado[[#This Row],[Q.1]]+t_instalado[[#This Row],[Q.2]]+t_instalado[[#This Row],[Q.3]] -> 0 | O286: =IF(t_instalado[[#This Row],[Q.1]]<>"",SUMIFS(t_reator[p],t_reator[tipo],t_instalado[[#This Row],[T.1]],t_reator[w],t_instalado[[#This Row],[P.1(W)]]),"") ->  | P286: =IF(t_instalado[[#This Row],[Q.2]]<>"",SUMIFS(t_reator[p],t_reator[tipo],t_instalado[[#This Row],[T.2]],t_reator[w],t_instalado[[#This Row],[P.2(W)]]),"") ->  | Q286: =IF(t_instalado[[#This Row],[Q.3]]<>"",SUMIFS(t_reator[p],t_reator[tipo],t_instalado[[#This Row],[T.3]],t_reator[w],t_instalado[[#This Row],[P.3(W)]]),"") ->  | R286: =IF(t_instalado[[#This Row],[Q.1]]<>"",IFERROR(IFERROR(D286*(E286+O286)+G286*(H286+P286)+J286*(K286+Q286),D286*(E286+O286)+G286*(H286+P286)),D286*(E286+O286)),"") ->  | S286: =IF(t_instalado[[#This Row],[Consumo_W]]<>"",ROUND(t_instalado[[#This Row],[Consumo_W]]/t_instalado[[#This Row],[Luminárias]],0),"") ->  | T286: =IF(t_instalado[[#This Row],[Q.1]]<>"",SUMIFS(t_fluxo_lumin[fluxo],t_fluxo_lumin[tipo],t_instalado[[#This Row],[T.1]])*t_instalado[[#This Row],[P.1(W)]]*t_instalado[[#This Row],[Q.1]],"") ->  | U286: =IF(t_instalado[[#This Row],[Q.2]]<>"",SUMIFS(t_fluxo_lumin[fluxo],t_fluxo_lumin[tipo],t_instalado[[#This Row],[T.2]])*t_instalado[[#This Row],[Q.2]]*t_instalado[[#This Row],[P.2(W)]],"") ->  | V286: =IF(t_instalado[[#This Row],[Q.3]]<>"",SUMIFS(t_fluxo_lumin[fluxo],t_fluxo_lumin[tipo],t_instalado[[#This Row],[T.3]])*t_instalado[[#This Row],[Q.3]]*t_instalado[[#This Row],[P.3(W)]],"") ->  | W286: =IF(t_instalado[[#This Row],[Trecho]]<>"",SUM(t_instalado[[#This Row],[f.1]:[f.3]]),"") ->  | X286: =IF(t_instalado[[#This Row],[Trecho]]<>"",t_instalado[[#This Row],[Q.1]]+t_instalado[[#This Row],[Q.2]]+t_instalado[[#This Row],[Q.3]],"") ->  | Y286: =IF(t_instalado[[#This Row],[FLUXO]]<>"",ROUND(t_instalado[[#This Row],[FLUXO]]/t_instalado[[#This Row],[Luminárias]],0),"") ->  | Z286: =IF(t_instalado[[#This Row],[Luminárias]]<>"",ROUND(t_instalado[[#This Row],[lm_médio]]/t_instalado[[#This Row],[W_médio]],2),"") -> 
A287: 53 | B287: =_xlfn.XLOOKUP(t_instalado[[#This Row],[cód.]],t_sitio[cód],t_sitio[Trecho],"") ->  | M287: =t_instalado[[#This Row],[Q.1]]+t_instalado[[#This Row],[Q.2]]+t_instalado[[#This Row],[Q.3]] -> 0 | N287: =t_instalado[[#This Row],[Q.1]]+t_instalado[[#This Row],[Q.2]]+t_instalado[[#This Row],[Q.3]] -> 0 | O287: =IF(t_instalado[[#This Row],[Q.1]]<>"",SUMIFS(t_reator[p],t_reator[tipo],t_instalado[[#This Row],[T.1]],t_reator[w],t_instalado[[#This Row],[P.1(W)]]),"") ->  | P287: =IF(t_instalado[[#This Row],[Q.2]]<>"",SUMIFS(t_reator[p],t_reator[tipo],t_instalado[[#This Row],[T.2]],t_reator[w],t_instalado[[#This Row],[P.2(W)]]),"") ->  | Q287: =IF(t_instalado[[#This Row],[Q.3]]<>"",SUMIFS(t_reator[p],t_reator[tipo],t_instalado[[#This Row],[T.3]],t_reator[w],t_instalado[[#This Row],[P.3(W)]]),"") ->  | R287: =IF(t_instalado[[#This Row],[Q.1]]<>"",IFERROR(IFERROR(D287*(E287+O287)+G287*(H287+P287)+J287*(K287+Q287),D287*(E287+O287)+G287*(H287+P287)),D287*(E287+O287)),"") ->  | S287: =IF(t_instalado[[#This Row],[Consumo_W]]<>"",ROUND(t_instalado[[#This Row],[Consumo_W]]/t_instalado[[#This Row],[Luminárias]],0),"") ->  | T287: =IF(t_instalado[[#This Row],[Q.1]]<>"",SUMIFS(t_fluxo_lumin[fluxo],t_fluxo_lumin[tipo],t_instalado[[#This Row],[T.1]])*t_instalado[[#This Row],[P.1(W)]]*t_instalado[[#This Row],[Q.1]],"") ->  | U287: =IF(t_instalado[[#This Row],[Q.2]]<>"",SUMIFS(t_fluxo_lumin[fluxo],t_fluxo_lumin[tipo],t_instalado[[#This Row],[T.2]])*t_instalado[[#This Row],[Q.2]]*t_instalado[[#This Row],[P.2(W)]],"") ->  | V287: =IF(t_instalado[[#This Row],[Q.3]]<>"",SUMIFS(t_fluxo_lumin[fluxo],t_fluxo_lumin[tipo],t_instalado[[#This Row],[T.3]])*t_instalado[[#This Row],[Q.3]]*t_instalado[[#This Row],[P.3(W)]],"") ->  | W287: =IF(t_instalado[[#This Row],[Trecho]]<>"",SUM(t_instalado[[#This Row],[f.1]:[f.3]]),"") ->  | X287: =IF(t_instalado[[#This Row],[Trecho]]<>"",t_instalado[[#This Row],[Q.1]]+t_instalado[[#This Row],[Q.2]]+t_instalado[[#This Row],[Q.3]],"") ->  | Y287: =IF(t_instalado[[#This Row],[FLUXO]]<>"",ROUND(t_instalado[[#This Row],[FLUXO]]/t_instalado[[#This Row],[Luminárias]],0),"") ->  | Z287: =IF(t_instalado[[#This Row],[Luminárias]]<>"",ROUND(t_instalado[[#This Row],[lm_médio]]/t_instalado[[#This Row],[W_médio]],2),"") -> 
A288: 54 | B288: =_xlfn.XLOOKUP(t_instalado[[#This Row],[cód.]],t_sitio[cód],t_sitio[Trecho],"") ->  | M288: =t_instalado[[#This Row],[Q.1]]+t_instalado[[#This Row],[Q.2]]+t_instalado[[#This Row],[Q.3]] -> 0 | N288: =t_instalado[[#This Row],[Q.1]]+t_instalado[[#This Row],[Q.2]]+t_instalado[[#This Row],[Q.3]] -> 0 | O288: =IF(t_instalado[[#This Row],[Q.1]]<>"",SUMIFS(t_reator[p],t_reator[tipo],t_instalado[[#This Row],[T.1]],t_reator[w],t_instalado[[#This Row],[P.1(W)]]),"") ->  | P288: =IF(t_instalado[[#This Row],[Q.2]]<>"",SUMIFS(t_reator[p],t_reator[tipo],t_instalado[[#This Row],[T.2]],t_reator[w],t_instalado[[#This Row],[P.2(W)]]),"") ->  | Q288: =IF(t_instalado[[#This Row],[Q.3]]<>"",SUMIFS(t_reator[p],t_reator[tipo],t_instalado[[#This Row],[T.3]],t_reator[w],t_instalado[[#This Row],[P.3(W)]]),"") ->  | R288: =IF(t_instalado[[#This Row],[Q.1]]<>"",IFERROR(IFERROR(D288*(E288+O288)+G288*(H288+P288)+J288*(K288+Q288),D288*(E288+O288)+G288*(H288+P288)),D288*(E288+O288)),"") ->  | S288: =IF(t_instalado[[#This Row],[Consumo_W]]<>"",ROUND(t_instalado[[#This Row],[Consumo_W]]/t_instalado[[#This Row],[Luminárias]],0),"") ->  | T288: =IF(t_instalado[[#This Row],[Q.1]]<>"",SUMIFS(t_fluxo_lumin[fluxo],t_fluxo_lumin[tipo],t_instalado[[#This Row],[T.1]])*t_instalado[[#This Row],[P.1(W)]]*t_instalado[[#This Row],[Q.1]],"") ->  | U288: =IF(t_instalado[[#This Row],[Q.2]]<>"",SUMIFS(t_fluxo_lumin[fluxo],t_fluxo_lumin[tipo],t_instalado[[#This Row],[T.2]])*t_instalado[[#This Row],[Q.2]]*t_instalado[[#This Row],[P.2(W)]],"") ->  | V288: =IF(t_instalado[[#This Row],[Q.3]]<>"",SUMIFS(t_fluxo_lumin[fluxo],t_fluxo_lumin[tipo],t_instalado[[#This Row],[T.3]])*t_instalado[[#This Row],[Q.3]]*t_instalado[[#This Row],[P.3(W)]],"") ->  | W288: =IF(t_instalado[[#This Row],[Trecho]]<>"",SUM(t_instalado[[#This Row],[f.1]:[f.3]]),"") ->  | X288: =IF(t_instalado[[#This Row],[Trecho]]<>"",t_instalado[[#This Row],[Q.1]]+t_instalado[[#This Row],[Q.2]]+t_instalado[[#This Row],[Q.3]],"") ->  | Y288: =IF(t_instalado[[#This Row],[FLUXO]]<>"",ROUND(t_instalado[[#This Row],[FLUXO]]/t_instalado[[#This Row],[Luminárias]],0),"") ->  | Z288: =IF(t_instalado[[#This Row],[Luminárias]]<>"",ROUND(t_instalado[[#This Row],[lm_médio]]/t_instalado[[#This Row],[W_médio]],2),"") -> 
A289: 55 | B289: =_xlfn.XLOOKUP(t_instalado[[#This Row],[cód.]],t_sitio[cód],t_sitio[Trecho],"") ->  | M289: =t_instalado[[#This Row],[Q.1]]+t_instalado[[#This Row],[Q.2]]+t_instalado[[#This Row],[Q.3]] -> 0 | N289: =t_instalado[[#This Row],[Q.1]]+t_instalado[[#This Row],[Q.2]]+t_instalado[[#This Row],[Q.3]] -> 0 | O289: =IF(t_instalado[[#This Row],[Q.1]]<>"",SUMIFS(t_reator[p],t_reator[tipo],t_instalado[[#This Row],[T.1]],t_reator[w],t_instalado[[#This Row],[P.1(W)]]),"") ->  | P289: =IF(t_instalado[[#This Row],[Q.2]]<>"",SUMIFS(t_reator[p],t_reator[tipo],t_instalado[[#This Row],[T.2]],t_reator[w],t_instalado[[#This Row],[P.2(W)]]),"") ->  | Q289: =IF(t_instalado[[#This Row],[Q.3]]<>"",SUMIFS(t_reator[p],t_reator[tipo],t_instalado[[#This Row],[T.3]],t_reator[w],t_instalado[[#This Row],[P.3(W)]]),"") ->  | R289: =IF(t_instalado[[#This Row],[Q.1]]<>"",IFERROR(IFERROR(D289*(E289+O289)+G289*(H289+P289)+J289*(K289+Q289),D289*(E289+O289)+G289*(H289+P289)),D289*(E289+O289)),"") ->  | S289: =IF(t_instalado[[#This Row],[Consumo_W]]<>"",ROUND(t_instalado[[#This Row],[Consumo_W]]/t_instalado[[#This Row],[Luminárias]],0),"") ->  | T289: =IF(t_instalado[[#This Row],[Q.1]]<>"",SUMIFS(t_fluxo_lumin[fluxo],t_fluxo_lumin[tipo],t_instalado[[#This Row],[T.1]])*t_instalado[[#This Row],[P.1(W)]]*t_instalado[[#This Row],[Q.1]],"") ->  | U289: =IF(t_instalado[[#This Row],[Q.2]]<>"",SUMIFS(t_fluxo_lumin[fluxo],t_fluxo_lumin[tipo],t_instalado[[#This Row],[T.2]])*t_instalado[[#This Row],[Q.2]]*t_instalado[[#This Row],[P.2(W)]],"") ->  | V289: =IF(t_instalado[[#This Row],[Q.3]]<>"",SUMIFS(t_fluxo_lumin[fluxo],t_fluxo_lumin[tipo],t_instalado[[#This Row],[T.3]])*t_instalado[[#This Row],[Q.3]]*t_instalado[[#This Row],[P.3(W)]],"") ->  | W289: =IF(t_instalado[[#This Row],[Trecho]]<>"",SUM(t_instalado[[#This Row],[f.1]:[f.3]]),"") ->  | X289: =IF(t_instalado[[#This Row],[Trecho]]<>"",t_instalado[[#This Row],[Q.1]]+t_instalado[[#This Row],[Q.2]]+t_instalado[[#This Row],[Q.3]],"") ->  | Y289: =IF(t_instalado[[#This Row],[FLUXO]]<>"",ROUND(t_instalado[[#This Row],[FLUXO]]/t_instalado[[#This Row],[Luminárias]],0),"") ->  | Z289: =IF(t_instalado[[#This Row],[Luminárias]]<>"",ROUND(t_instalado[[#This Row],[lm_médio]]/t_instalado[[#This Row],[W_médio]],2),"") -> 
A290: 56 | B290: =_xlfn.XLOOKUP(t_instalado[[#This Row],[cód.]],t_sitio[cód],t_sitio[Trecho],"") ->  | M290: =t_instalado[[#This Row],[Q.1]]+t_instalado[[#This Row],[Q.2]]+t_instalado[[#This Row],[Q.3]] -> 0 | N290: =t_instalado[[#This Row],[Q.1]]+t_instalado[[#This Row],[Q.2]]+t_instalado[[#This Row],[Q.3]] -> 0 | O290: =IF(t_instalado[[#This Row],[Q.1]]<>"",SUMIFS(t_reator[p],t_reator[tipo],t_instalado[[#This Row],[T.1]],t_reator[w],t_instalado[[#This Row],[P.1(W)]]),"") ->  | P290: =IF(t_instalado[[#This Row],[Q.2]]<>"",SUMIFS(t_reator[p],t_reator[tipo],t_instalado[[#This Row],[T.2]],t_reator[w],t_instalado[[#This Row],[P.2(W)]]),"") ->  | Q290: =IF(t_instalado[[#This Row],[Q.3]]<>"",SUMIFS(t_reator[p],t_reator[tipo],t_instalado[[#This Row],[T.3]],t_reator[w],t_instalado[[#This Row],[P.3(W)]]),"") ->  | R290: =IF(t_instalado[[#This Row],[Q.1]]<>"",IFERROR(IFERROR(D290*(E290+O290)+G290*(H290+P290)+J290*(K290+Q290),D290*(E290+O290)+G290*(H290+P290)),D290*(E290+O290)),"") ->  | S290: =IF(t_instalado[[#This Row],[Consumo_W]]<>"",ROUND(t_instalado[[#This Row],[Consumo_W]]/t_instalado[[#This Row],[Luminárias]],0),"") ->  | T290: =IF(t_instalado[[#This Row],[Q.1]]<>"",SUMIFS(t_fluxo_lumin[fluxo],t_fluxo_lumin[tipo],t_instalado[[#This Row],[T.1]])*t_instalado[[#This Row],[P.1(W)]]*t_instalado[[#This Row],[Q.1]],"") ->  | U290: =IF(t_instalado[[#This Row],[Q.2]]<>"",SUMIFS(t_fluxo_lumin[fluxo],t_fluxo_lumin[tipo],t_instalado[[#This Row],[T.2]])*t_instalado[[#This Row],[Q.2]]*t_instalado[[#This Row],[P.2(W)]],"") ->  | V290: =IF(t_instalado[[#This Row],[Q.3]]<>"",SUMIFS(t_fluxo_lumin[fluxo],t_fluxo_lumin[tipo],t_instalado[[#This Row],[T.3]])*t_instalado[[#This Row],[Q.3]]*t_instalado[[#This Row],[P.3(W)]],"") ->  | W290: =IF(t_instalado[[#This Row],[Trecho]]<>"",SUM(t_instalado[[#This Row],[f.1]:[f.3]]),"") ->  | X290: =IF(t_instalado[[#This Row],[Trecho]]<>"",t_instalado[[#This Row],[Q.1]]+t_instalado[[#This Row],[Q.2]]+t_instalado[[#This Row],[Q.3]],"") ->  | Y290: =IF(t_instalado[[#This Row],[FLUXO]]<>"",ROUND(t_instalado[[#This Row],[FLUXO]]/t_instalado[[#This Row],[Luminárias]],0),"") ->  | Z290: =IF(t_instalado[[#This Row],[Luminárias]]<>"",ROUND(t_instalado[[#This Row],[lm_médio]]/t_instalado[[#This Row],[W_médio]],2),"") -> 
A291: 57 | B291: =_xlfn.XLOOKUP(t_instalado[[#This Row],[cód.]],t_sitio[cód],t_sitio[Trecho],"") ->  | M291: =t_instalado[[#This Row],[Q.1]]+t_instalado[[#This Row],[Q.2]]+t_instalado[[#This Row],[Q.3]] -> 0 | N291: =t_instalado[[#This Row],[Q.1]]+t_instalado[[#This Row],[Q.2]]+t_instalado[[#This Row],[Q.3]] -> 0 | O291: =IF(t_instalado[[#This Row],[Q.1]]<>"",SUMIFS(t_reator[p],t_reator[tipo],t_instalado[[#This Row],[T.1]],t_reator[w],t_instalado[[#This Row],[P.1(W)]]),"") ->  | P291: =IF(t_instalado[[#This Row],[Q.2]]<>"",SUMIFS(t_reator[p],t_reator[tipo],t_instalado[[#This Row],[T.2]],t_reator[w],t_instalado[[#This Row],[P.2(W)]]),"") ->  | Q291: =IF(t_instalado[[#This Row],[Q.3]]<>"",SUMIFS(t_reator[p],t_reator[tipo],t_instalado[[#This Row],[T.3]],t_reator[w],t_instalado[[#This Row],[P.3(W)]]),"") ->  | R291: =IF(t_instalado[[#This Row],[Q.1]]<>"",IFERROR(IFERROR(D291*(E291+O291)+G291*(H291+P291)+J291*(K291+Q291),D291*(E291+O291)+G291*(H291+P291)),D291*(E291+O291)),"") ->  | S291: =IF(t_instalado[[#This Row],[Consumo_W]]<>"",ROUND(t_instalado[[#This Row],[Consumo_W]]/t_instalado[[#This Row],[Luminárias]],0),"") ->  | T291: =IF(t_instalado[[#This Row],[Q.1]]<>"",SUMIFS(t_fluxo_lumin[fluxo],t_fluxo_lumin[tipo],t_instalado[[#This Row],[T.1]])*t_instalado[[#This Row],[P.1(W)]]*t_instalado[[#This Row],[Q.1]],"") ->  | U291: =IF(t_instalado[[#This Row],[Q.2]]<>"",SUMIFS(t_fluxo_lumin[fluxo],t_fluxo_lumin[tipo],t_instalado[[#This Row],[T.2]])*t_instalado[[#This Row],[Q.2]]*t_instalado[[#This Row],[P.2(W)]],"") ->  | V291: =IF(t_instalado[[#This Row],[Q.3]]<>"",SUMIFS(t_fluxo_lumin[fluxo],t_fluxo_lumin[tipo],t_instalado[[#This Row],[T.3]])*t_instalado[[#This Row],[Q.3]]*t_instalado[[#This Row],[P.3(W)]],"") ->  | W291: =IF(t_instalado[[#This Row],[Trecho]]<>"",SUM(t_instalado[[#This Row],[f.1]:[f.3]]),"") ->  | X291: =IF(t_instalado[[#This Row],[Trecho]]<>"",t_instalado[[#This Row],[Q.1]]+t_instalado[[#This Row],[Q.2]]+t_instalado[[#This Row],[Q.3]],"") ->  | Y291: =IF(t_instalado[[#This Row],[FLUXO]]<>"",ROUND(t_instalado[[#This Row],[FLUXO]]/t_instalado[[#This Row],[Luminárias]],0),"") ->  | Z291: =IF(t_instalado[[#This Row],[Luminárias]]<>"",ROUND(t_instalado[[#This Row],[lm_médio]]/t_instalado[[#This Row],[W_médio]],2),"") -> 
A292: 58 | B292: =_xlfn.XLOOKUP(t_instalado[[#This Row],[cód.]],t_sitio[cód],t_sitio[Trecho],"") ->  | M292: =t_instalado[[#This Row],[Q.1]]+t_instalado[[#This Row],[Q.2]]+t_instalado[[#This Row],[Q.3]] -> 0 | N292: =t_instalado[[#This Row],[Q.1]]+t_instalado[[#This Row],[Q.2]]+t_instalado[[#This Row],[Q.3]] -> 0 | O292: =IF(t_instalado[[#This Row],[Q.1]]<>"",SUMIFS(t_reator[p],t_reator[tipo],t_instalado[[#This Row],[T.1]],t_reator[w],t_instalado[[#This Row],[P.1(W)]]),"") ->  | P292: =IF(t_instalado[[#This Row],[Q.2]]<>"",SUMIFS(t_reator[p],t_reator[tipo],t_instalado[[#This Row],[T.2]],t_reator[w],t_instalado[[#This Row],[P.2(W)]]),"") ->  | Q292: =IF(t_instalado[[#This Row],[Q.3]]<>"",SUMIFS(t_reator[p],t_reator[tipo],t_instalado[[#This Row],[T.3]],t_reator[w],t_instalado[[#This Row],[P.3(W)]]),"") ->  | R292: =IF(t_instalado[[#This Row],[Q.1]]<>"",IFERROR(IFERROR(D292*(E292+O292)+G292*(H292+P292)+J292*(K292+Q292),D292*(E292+O292)+G292*(H292+P292)),D292*(E292+O292)),"") ->  | S292: =IF(t_instalado[[#This Row],[Consumo_W]]<>"",ROUND(t_instalado[[#This Row],[Consumo_W]]/t_instalado[[#This Row],[Luminárias]],0),"") ->  | T292: =IF(t_instalado[[#This Row],[Q.1]]<>"",SUMIFS(t_fluxo_lumin[fluxo],t_fluxo_lumin[tipo],t_instalado[[#This Row],[T.1]])*t_instalado[[#This Row],[P.1(W)]]*t_instalado[[#This Row],[Q.1]],"") ->  | U292: =IF(t_instalado[[#This Row],[Q.2]]<>"",SUMIFS(t_fluxo_lumin[fluxo],t_fluxo_lumin[tipo],t_instalado[[#This Row],[T.2]])*t_instalado[[#This Row],[Q.2]]*t_instalado[[#This Row],[P.2(W)]],"") ->  | V292: =IF(t_instalado[[#This Row],[Q.3]]<>"",SUMIFS(t_fluxo_lumin[fluxo],t_fluxo_lumin[tipo],t_instalado[[#This Row],[T.3]])*t_instalado[[#This Row],[Q.3]]*t_instalado[[#This Row],[P.3(W)]],"") ->  | W292: =IF(t_instalado[[#This Row],[Trecho]]<>"",SUM(t_instalado[[#This Row],[f.1]:[f.3]]),"") ->  | X292: =IF(t_instalado[[#This Row],[Trecho]]<>"",t_instalado[[#This Row],[Q.1]]+t_instalado[[#This Row],[Q.2]]+t_instalado[[#This Row],[Q.3]],"") ->  | Y292: =IF(t_instalado[[#This Row],[FLUXO]]<>"",ROUND(t_instalado[[#This Row],[FLUXO]]/t_instalado[[#This Row],[Luminárias]],0),"") ->  | Z292: =IF(t_instalado[[#This Row],[Luminárias]]<>"",ROUND(t_instalado[[#This Row],[lm_médio]]/t_instalado[[#This Row],[W_médio]],2),"") -> 
A293: 59 | B293: =_xlfn.XLOOKUP(t_instalado[[#This Row],[cód.]],t_sitio[cód],t_sitio[Trecho],"") ->  | M293: =t_instalado[[#This Row],[Q.1]]+t_instalado[[#This Row],[Q.2]]+t_instalado[[#This Row],[Q.3]] -> 0 | N293: =t_instalado[[#This Row],[Q.1]]+t_instalado[[#This Row],[Q.2]]+t_instalado[[#This Row],[Q.3]] -> 0 | O293: =IF(t_instalado[[#This Row],[Q.1]]<>"",SUMIFS(t_reator[p],t_reator[tipo],t_instalado[[#This Row],[T.1]],t_reator[w],t_instalado[[#This Row],[P.1(W)]]),"") ->  | P293: =IF(t_instalado[[#This Row],[Q.2]]<>"",SUMIFS(t_reator[p],t_reator[tipo],t_instalado[[#This Row],[T.2]],t_reator[w],t_instalado[[#This Row],[P.2(W)]]),"") ->  | Q293: =IF(t_instalado[[#This Row],[Q.3]]<>"",SUMIFS(t_reator[p],t_reator[tipo],t_instalado[[#This Row],[T.3]],t_reator[w],t_instalado[[#This Row],[P.3(W)]]),"") ->  | R293: =IF(t_instalado[[#This Row],[Q.1]]<>"",IFERROR(IFERROR(D293*(E293+O293)+G293*(H293+P293)+J293*(K293+Q293),D293*(E293+O293)+G293*(H293+P293)),D293*(E293+O293)),"") ->  | S293: =IF(t_instalado[[#This Row],[Consumo_W]]<>"",ROUND(t_instalado[[#This Row],[Consumo_W]]/t_instalado[[#This Row],[Luminárias]],0),"") ->  | T293: =IF(t_instalado[[#This Row],[Q.1]]<>"",SUMIFS(t_fluxo_lumin[fluxo],t_fluxo_lumin[tipo],t_instalado[[#This Row],[T.1]])*t_instalado[[#This Row],[P.1(W)]]*t_instalado[[#This Row],[Q.1]],"") ->  | U293: =IF(t_instalado[[#This Row],[Q.2]]<>"",SUMIFS(t_fluxo_lumin[fluxo],t_fluxo_lumin[tipo],t_instalado[[#This Row],[T.2]])*t_instalado[[#This Row],[Q.2]]*t_instalado[[#This Row],[P.2(W)]],"") ->  | V293: =IF(t_instalado[[#This Row],[Q.3]]<>"",SUMIFS(t_fluxo_lumin[fluxo],t_fluxo_lumin[tipo],t_instalado[[#This Row],[T.3]])*t_instalado[[#This Row],[Q.3]]*t_instalado[[#This Row],[P.3(W)]],"") ->  | W293: =IF(t_instalado[[#This Row],[Trecho]]<>"",SUM(t_instalado[[#This Row],[f.1]:[f.3]]),"") ->  | X293: =IF(t_instalado[[#This Row],[Trecho]]<>"",t_instalado[[#This Row],[Q.1]]+t_instalado[[#This Row],[Q.2]]+t_instalado[[#This Row],[Q.3]],"") ->  | Y293: =IF(t_instalado[[#This Row],[FLUXO]]<>"",ROUND(t_instalado[[#This Row],[FLUXO]]/t_instalado[[#This Row],[Luminárias]],0),"") ->  | Z293: =IF(t_instalado[[#This Row],[Luminárias]]<>"",ROUND(t_instalado[[#This Row],[lm_médio]]/t_instalado[[#This Row],[W_médio]],2),"") -> 
A294: 60 | B294: =_xlfn.XLOOKUP(t_instalado[[#This Row],[cód.]],t_sitio[cód],t_sitio[Trecho],"") ->  | M294: =t_instalado[[#This Row],[Q.1]]+t_instalado[[#This Row],[Q.2]]+t_instalado[[#This Row],[Q.3]] -> 0 | N294: =t_instalado[[#This Row],[Q.1]]+t_instalado[[#This Row],[Q.2]]+t_instalado[[#This Row],[Q.3]] -> 0 | O294: =IF(t_instalado[[#This Row],[Q.1]]<>"",SUMIFS(t_reator[p],t_reator[tipo],t_instalado[[#This Row],[T.1]],t_reator[w],t_instalado[[#This Row],[P.1(W)]]),"") ->  | P294: =IF(t_instalado[[#This Row],[Q.2]]<>"",SUMIFS(t_reator[p],t_reator[tipo],t_instalado[[#This Row],[T.2]],t_reator[w],t_instalado[[#This Row],[P.2(W)]]),"") ->  | Q294: =IF(t_instalado[[#This Row],[Q.3]]<>"",SUMIFS(t_reator[p],t_reator[tipo],t_instalado[[#This Row],[T.3]],t_reator[w],t_instalado[[#This Row],[P.3(W)]]),"") ->  | R294: =IF(t_instalado[[#This Row],[Q.1]]<>"",IFERROR(IFERROR(D294*(E294+O294)+G294*(H294+P294)+J294*(K294+Q294),D294*(E294+O294)+G294*(H294+P294)),D294*(E294+O294)),"") ->  | S294: =IF(t_instalado[[#This Row],[Consumo_W]]<>"",ROUND(t_instalado[[#This Row],[Consumo_W]]/t_instalado[[#This Row],[Luminárias]],0),"") ->  | T294: =IF(t_instalado[[#This Row],[Q.1]]<>"",SUMIFS(t_fluxo_lumin[fluxo],t_fluxo_lumin[tipo],t_instalado[[#This Row],[T.1]])*t_instalado[[#This Row],[P.1(W)]]*t_instalado[[#This Row],[Q.1]],"") ->  | U294: =IF(t_instalado[[#This Row],[Q.2]]<>"",SUMIFS(t_fluxo_lumin[fluxo],t_fluxo_lumin[tipo],t_instalado[[#This Row],[T.2]])*t_instalado[[#This Row],[Q.2]]*t_instalado[[#This Row],[P.2(W)]],"") ->  | V294: =IF(t_instalado[[#This Row],[Q.3]]<>"",SUMIFS(t_fluxo_lumin[fluxo],t_fluxo_lumin[tipo],t_instalado[[#This Row],[T.3]])*t_instalado[[#This Row],[Q.3]]*t_instalado[[#This Row],[P.3(W)]],"") ->  | W294: =IF(t_instalado[[#This Row],[Trecho]]<>"",SUM(t_instalado[[#This Row],[f.1]:[f.3]]),"") ->  | X294: =IF(t_instalado[[#This Row],[Trecho]]<>"",t_instalado[[#This Row],[Q.1]]+t_instalado[[#This Row],[Q.2]]+t_instalado[[#This Row],[Q.3]],"") ->  | Y294: =IF(t_instalado[[#This Row],[FLUXO]]<>"",ROUND(t_instalado[[#This Row],[FLUXO]]/t_instalado[[#This Row],[Luminárias]],0),"") ->  | Z294: =IF(t_instalado[[#This Row],[Luminárias]]<>"",ROUND(t_instalado[[#This Row],[lm_médio]]/t_instalado[[#This Row],[W_médio]],2),"") -> 
A295: 61 | B295: =_xlfn.XLOOKUP(t_instalado[[#This Row],[cód.]],t_sitio[cód],t_sitio[Trecho],"") ->  | M295: =t_instalado[[#This Row],[Q.1]]+t_instalado[[#This Row],[Q.2]]+t_instalado[[#This Row],[Q.3]] -> 0 | N295: =t_instalado[[#This Row],[Q.1]]+t_instalado[[#This Row],[Q.2]]+t_instalado[[#This Row],[Q.3]] -> 0 | O295: =IF(t_instalado[[#This Row],[Q.1]]<>"",SUMIFS(t_reator[p],t_reator[tipo],t_instalado[[#This Row],[T.1]],t_reator[w],t_instalado[[#This Row],[P.1(W)]]),"") ->  | P295: =IF(t_instalado[[#This Row],[Q.2]]<>"",SUMIFS(t_reator[p],t_reator[tipo],t_instalado[[#This Row],[T.2]],t_reator[w],t_instalado[[#This Row],[P.2(W)]]),"") ->  | Q295: =IF(t_instalado[[#This Row],[Q.3]]<>"",SUMIFS(t_reator[p],t_reator[tipo],t_instalado[[#This Row],[T.3]],t_reator[w],t_instalado[[#This Row],[P.3(W)]]),"") ->  | R295: =IF(t_instalado[[#This Row],[Q.1]]<>"",IFERROR(IFERROR(D295*(E295+O295)+G295*(H295+P295)+J295*(K295+Q295),D295*(E295+O295)+G295*(H295+P295)),D295*(E295+O295)),"") ->  | S295: =IF(t_instalado[[#This Row],[Consumo_W]]<>"",ROUND(t_instalado[[#This Row],[Consumo_W]]/t_instalado[[#This Row],[Luminárias]],0),"") ->  | T295: =IF(t_instalado[[#This Row],[Q.1]]<>"",SUMIFS(t_fluxo_lumin[fluxo],t_fluxo_lumin[tipo],t_instalado[[#This Row],[T.1]])*t_instalado[[#This Row],[P.1(W)]]*t_instalado[[#This Row],[Q.1]],"") ->  | U295: =IF(t_instalado[[#This Row],[Q.2]]<>"",SUMIFS(t_fluxo_lumin[fluxo],t_fluxo_lumin[tipo],t_instalado[[#This Row],[T.2]])*t_instalado[[#This Row],[Q.2]]*t_instalado[[#This Row],[P.2(W)]],"") ->  | V295: =IF(t_instalado[[#This Row],[Q.3]]<>"",SUMIFS(t_fluxo_lumin[fluxo],t_fluxo_lumin[tipo],t_instalado[[#This Row],[T.3]])*t_instalado[[#This Row],[Q.3]]*t_instalado[[#This Row],[P.3(W)]],"") ->  | W295: =IF(t_instalado[[#This Row],[Trecho]]<>"",SUM(t_instalado[[#This Row],[f.1]:[f.3]]),"") ->  | X295: =IF(t_instalado[[#This Row],[Trecho]]<>"",t_instalado[[#This Row],[Q.1]]+t_instalado[[#This Row],[Q.2]]+t_instalado[[#This Row],[Q.3]],"") ->  | Y295: =IF(t_instalado[[#This Row],[FLUXO]]<>"",ROUND(t_instalado[[#This Row],[FLUXO]]/t_instalado[[#This Row],[Luminárias]],0),"") ->  | Z295: =IF(t_instalado[[#This Row],[Luminárias]]<>"",ROUND(t_instalado[[#This Row],[lm_médio]]/t_instalado[[#This Row],[W_médio]],2),"") -> 
A296: 62 | B296: =_xlfn.XLOOKUP(t_instalado[[#This Row],[cód.]],t_sitio[cód],t_sitio[Trecho],"") ->  | M296: =t_instalado[[#This Row],[Q.1]]+t_instalado[[#This Row],[Q.2]]+t_instalado[[#This Row],[Q.3]] -> 0 | N296: =t_instalado[[#This Row],[Q.1]]+t_instalado[[#This Row],[Q.2]]+t_instalado[[#This Row],[Q.3]] -> 0 | O296: =IF(t_instalado[[#This Row],[Q.1]]<>"",SUMIFS(t_reator[p],t_reator[tipo],t_instalado[[#This Row],[T.1]],t_reator[w],t_instalado[[#This Row],[P.1(W)]]),"") ->  | P296: =IF(t_instalado[[#This Row],[Q.2]]<>"",SUMIFS(t_reator[p],t_reator[tipo],t_instalado[[#This Row],[T.2]],t_reator[w],t_instalado[[#This Row],[P.2(W)]]),"") ->  | Q296: =IF(t_instalado[[#This Row],[Q.3]]<>"",SUMIFS(t_reator[p],t_reator[tipo],t_instalado[[#This Row],[T.3]],t_reator[w],t_instalado[[#This Row],[P.3(W)]]),"") ->  | R296: =IF(t_instalado[[#This Row],[Q.1]]<>"",IFERROR(IFERROR(D296*(E296+O296)+G296*(H296+P296)+J296*(K296+Q296),D296*(E296+O296)+G296*(H296+P296)),D296*(E296+O296)),"") ->  | S296: =IF(t_instalado[[#This Row],[Consumo_W]]<>"",ROUND(t_instalado[[#This Row],[Consumo_W]]/t_instalado[[#This Row],[Luminárias]],0),"") ->  | T296: =IF(t_instalado[[#This Row],[Q.1]]<>"",SUMIFS(t_fluxo_lumin[fluxo],t_fluxo_lumin[tipo],t_instalado[[#This Row],[T.1]])*t_instalado[[#This Row],[P.1(W)]]*t_instalado[[#This Row],[Q.1]],"") ->  | U296: =IF(t_instalado[[#This Row],[Q.2]]<>"",SUMIFS(t_fluxo_lumin[fluxo],t_fluxo_lumin[tipo],t_instalado[[#This Row],[T.2]])*t_instalado[[#This Row],[Q.2]]*t_instalado[[#This Row],[P.2(W)]],"") ->  | V296: =IF(t_instalado[[#This Row],[Q.3]]<>"",SUMIFS(t_fluxo_lumin[fluxo],t_fluxo_lumin[tipo],t_instalado[[#This Row],[T.3]])*t_instalado[[#This Row],[Q.3]]*t_instalado[[#This Row],[P.3(W)]],"") ->  | W296: =IF(t_instalado[[#This Row],[Trecho]]<>"",SUM(t_instalado[[#This Row],[f.1]:[f.3]]),"") ->  | X296: =IF(t_instalado[[#This Row],[Trecho]]<>"",t_instalado[[#This Row],[Q.1]]+t_instalado[[#This Row],[Q.2]]+t_instalado[[#This Row],[Q.3]],"") ->  | Y296: =IF(t_instalado[[#This Row],[FLUXO]]<>"",ROUND(t_instalado[[#This Row],[FLUXO]]/t_instalado[[#This Row],[Luminárias]],0),"") ->  | Z296: =IF(t_instalado[[#This Row],[Luminárias]]<>"",ROUND(t_instalado[[#This Row],[lm_médio]]/t_instalado[[#This Row],[W_médio]],2),"") -> 
A297: 63 | B297: =_xlfn.XLOOKUP(t_instalado[[#This Row],[cód.]],t_sitio[cód],t_sitio[Trecho],"") ->  | M297: =t_instalado[[#This Row],[Q.1]]+t_instalado[[#This Row],[Q.2]]+t_instalado[[#This Row],[Q.3]] -> 0 | N297: =t_instalado[[#This Row],[Q.1]]+t_instalado[[#This Row],[Q.2]]+t_instalado[[#This Row],[Q.3]] -> 0 | O297: =IF(t_instalado[[#This Row],[Q.1]]<>"",SUMIFS(t_reator[p],t_reator[tipo],t_instalado[[#This Row],[T.1]],t_reator[w],t_instalado[[#This Row],[P.1(W)]]),"") ->  | P297: =IF(t_instalado[[#This Row],[Q.2]]<>"",SUMIFS(t_reator[p],t_reator[tipo],t_instalado[[#This Row],[T.2]],t_reator[w],t_instalado[[#This Row],[P.2(W)]]),"") ->  | Q297: =IF(t_instalado[[#This Row],[Q.3]]<>"",SUMIFS(t_reator[p],t_reator[tipo],t_instalado[[#This Row],[T.3]],t_reator[w],t_instalado[[#This Row],[P.3(W)]]),"") ->  | R297: =IF(t_instalado[[#This Row],[Q.1]]<>"",IFERROR(IFERROR(D297*(E297+O297)+G297*(H297+P297)+J297*(K297+Q297),D297*(E297+O297)+G297*(H297+P297)),D297*(E297+O297)),"") ->  | S297: =IF(t_instalado[[#This Row],[Consumo_W]]<>"",ROUND(t_instalado[[#This Row],[Consumo_W]]/t_instalado[[#This Row],[Luminárias]],0),"") ->  | T297: =IF(t_instalado[[#This Row],[Q.1]]<>"",SUMIFS(t_fluxo_lumin[fluxo],t_fluxo_lumin[tipo],t_instalado[[#This Row],[T.1]])*t_instalado[[#This Row],[P.1(W)]]*t_instalado[[#This Row],[Q.1]],"") ->  | U297: =IF(t_instalado[[#This Row],[Q.2]]<>"",SUMIFS(t_fluxo_lumin[fluxo],t_fluxo_lumin[tipo],t_instalado[[#This Row],[T.2]])*t_instalado[[#This Row],[Q.2]]*t_instalado[[#This Row],[P.2(W)]],"") ->  | V297: =IF(t_instalado[[#This Row],[Q.3]]<>"",SUMIFS(t_fluxo_lumin[fluxo],t_fluxo_lumin[tipo],t_instalado[[#This Row],[T.3]])*t_instalado[[#This Row],[Q.3]]*t_instalado[[#This Row],[P.3(W)]],"") ->  | W297: =IF(t_instalado[[#This Row],[Trecho]]<>"",SUM(t_instalado[[#This Row],[f.1]:[f.3]]),"") ->  | X297: =IF(t_instalado[[#This Row],[Trecho]]<>"",t_instalado[[#This Row],[Q.1]]+t_instalado[[#This Row],[Q.2]]+t_instalado[[#This Row],[Q.3]],"") ->  | Y297: =IF(t_instalado[[#This Row],[FLUXO]]<>"",ROUND(t_instalado[[#This Row],[FLUXO]]/t_instalado[[#This Row],[Luminárias]],0),"") ->  | Z297: =IF(t_instalado[[#This Row],[Luminárias]]<>"",ROUND(t_instalado[[#This Row],[lm_médio]]/t_instalado[[#This Row],[W_médio]],2),"") -> 
A298: 64 | B298: =_xlfn.XLOOKUP(t_instalado[[#This Row],[cód.]],t_sitio[cód],t_sitio[Trecho],"") ->  | M298: =t_instalado[[#This Row],[Q.1]]+t_instalado[[#This Row],[Q.2]]+t_instalado[[#This Row],[Q.3]] -> 0 | N298: =t_instalado[[#This Row],[Q.1]]+t_instalado[[#This Row],[Q.2]]+t_instalado[[#This Row],[Q.3]] -> 0 | O298: =IF(t_instalado[[#This Row],[Q.1]]<>"",SUMIFS(t_reator[p],t_reator[tipo],t_instalado[[#This Row],[T.1]],t_reator[w],t_instalado[[#This Row],[P.1(W)]]),"") ->  | P298: =IF(t_instalado[[#This Row],[Q.2]]<>"",SUMIFS(t_reator[p],t_reator[tipo],t_instalado[[#This Row],[T.2]],t_reator[w],t_instalado[[#This Row],[P.2(W)]]),"") ->  | Q298: =IF(t_instalado[[#This Row],[Q.3]]<>"",SUMIFS(t_reator[p],t_reator[tipo],t_instalado[[#This Row],[T.3]],t_reator[w],t_instalado[[#This Row],[P.3(W)]]),"") ->  | R298: =IF(t_instalado[[#This Row],[Q.1]]<>"",IFERROR(IFERROR(D298*(E298+O298)+G298*(H298+P298)+J298*(K298+Q298),D298*(E298+O298)+G298*(H298+P298)),D298*(E298+O298)),"") ->  | S298: =IF(t_instalado[[#This Row],[Consumo_W]]<>"",ROUND(t_instalado[[#This Row],[Consumo_W]]/t_instalado[[#This Row],[Luminárias]],0),"") ->  | T298: =IF(t_instalado[[#This Row],[Q.1]]<>"",SUMIFS(t_fluxo_lumin[fluxo],t_fluxo_lumin[tipo],t_instalado[[#This Row],[T.1]])*t_instalado[[#This Row],[P.1(W)]]*t_instalado[[#This Row],[Q.1]],"") ->  | U298: =IF(t_instalado[[#This Row],[Q.2]]<>"",SUMIFS(t_fluxo_lumin[fluxo],t_fluxo_lumin[tipo],t_instalado[[#This Row],[T.2]])*t_instalado[[#This Row],[Q.2]]*t_instalado[[#This Row],[P.2(W)]],"") ->  | V298: =IF(t_instalado[[#This Row],[Q.3]]<>"",SUMIFS(t_fluxo_lumin[fluxo],t_fluxo_lumin[tipo],t_instalado[[#This Row],[T.3]])*t_instalado[[#This Row],[Q.3]]*t_instalado[[#This Row],[P.3(W)]],"") ->  | W298: =IF(t_instalado[[#This Row],[Trecho]]<>"",SUM(t_instalado[[#This Row],[f.1]:[f.3]]),"") ->  | X298: =IF(t_instalado[[#This Row],[Trecho]]<>"",t_instalado[[#This Row],[Q.1]]+t_instalado[[#This Row],[Q.2]]+t_instalado[[#This Row],[Q.3]],"") ->  | Y298: =IF(t_instalado[[#This Row],[FLUXO]]<>"",ROUND(t_instalado[[#This Row],[FLUXO]]/t_instalado[[#This Row],[Luminárias]],0),"") ->  | Z298: =IF(t_instalado[[#This Row],[Luminárias]]<>"",ROUND(t_instalado[[#This Row],[lm_médio]]/t_instalado[[#This Row],[W_médio]],2),"") -> 
A299: 65 | B299: =_xlfn.XLOOKUP(t_instalado[[#This Row],[cód.]],t_sitio[cód],t_sitio[Trecho],"") ->  | M299: =t_instalado[[#This Row],[Q.1]]+t_instalado[[#This Row],[Q.2]]+t_instalado[[#This Row],[Q.3]] -> 0 | N299: =t_instalado[[#This Row],[Q.1]]+t_instalado[[#This Row],[Q.2]]+t_instalado[[#This Row],[Q.3]] -> 0 | O299: =IF(t_instalado[[#This Row],[Q.1]]<>"",SUMIFS(t_reator[p],t_reator[tipo],t_instalado[[#This Row],[T.1]],t_reator[w],t_instalado[[#This Row],[P.1(W)]]),"") ->  | P299: =IF(t_instalado[[#This Row],[Q.2]]<>"",SUMIFS(t_reator[p],t_reator[tipo],t_instalado[[#This Row],[T.2]],t_reator[w],t_instalado[[#This Row],[P.2(W)]]),"") ->  | Q299: =IF(t_instalado[[#This Row],[Q.3]]<>"",SUMIFS(t_reator[p],t_reator[tipo],t_instalado[[#This Row],[T.3]],t_reator[w],t_instalado[[#This Row],[P.3(W)]]),"") ->  | R299: =IF(t_instalado[[#This Row],[Q.1]]<>"",IFERROR(IFERROR(D299*(E299+O299)+G299*(H299+P299)+J299*(K299+Q299),D299*(E299+O299)+G299*(H299+P299)),D299*(E299+O299)),"") ->  | S299: =IF(t_instalado[[#This Row],[Consumo_W]]<>"",ROUND(t_instalado[[#This Row],[Consumo_W]]/t_instalado[[#This Row],[Luminárias]],0),"") ->  | T299: =IF(t_instalado[[#This Row],[Q.1]]<>"",SUMIFS(t_fluxo_lumin[fluxo],t_fluxo_lumin[tipo],t_instalado[[#This Row],[T.1]])*t_instalado[[#This Row],[P.1(W)]]*t_instalado[[#This Row],[Q.1]],"") ->  | U299: =IF(t_instalado[[#This Row],[Q.2]]<>"",SUMIFS(t_fluxo_lumin[fluxo],t_fluxo_lumin[tipo],t_instalado[[#This Row],[T.2]])*t_instalado[[#This Row],[Q.2]]*t_instalado[[#This Row],[P.2(W)]],"") ->  | V299: =IF(t_instalado[[#This Row],[Q.3]]<>"",SUMIFS(t_fluxo_lumin[fluxo],t_fluxo_lumin[tipo],t_instalado[[#This Row],[T.3]])*t_instalado[[#This Row],[Q.3]]*t_instalado[[#This Row],[P.3(W)]],"") ->  | W299: =IF(t_instalado[[#This Row],[Trecho]]<>"",SUM(t_instalado[[#This Row],[f.1]:[f.3]]),"") ->  | X299: =IF(t_instalado[[#This Row],[Trecho]]<>"",t_instalado[[#This Row],[Q.1]]+t_instalado[[#This Row],[Q.2]]+t_instalado[[#This Row],[Q.3]],"") ->  | Y299: =IF(t_instalado[[#This Row],[FLUXO]]<>"",ROUND(t_instalado[[#This Row],[FLUXO]]/t_instalado[[#This Row],[Luminárias]],0),"") ->  | Z299: =IF(t_instalado[[#This Row],[Luminárias]]<>"",ROUND(t_instalado[[#This Row],[lm_médio]]/t_instalado[[#This Row],[W_médio]],2),"") -> 
A300: 66 | B300: =_xlfn.XLOOKUP(t_instalado[[#This Row],[cód.]],t_sitio[cód],t_sitio[Trecho],"") ->  | M300: =t_instalado[[#This Row],[Q.1]]+t_instalado[[#This Row],[Q.2]]+t_instalado[[#This Row],[Q.3]] -> 0 | N300: =t_instalado[[#This Row],[Q.1]]+t_instalado[[#This Row],[Q.2]]+t_instalado[[#This Row],[Q.3]] -> 0 | O300: =IF(t_instalado[[#This Row],[Q.1]]<>"",SUMIFS(t_reator[p],t_reator[tipo],t_instalado[[#This Row],[T.1]],t_reator[w],t_instalado[[#This Row],[P.1(W)]]),"") ->  | P300: =IF(t_instalado[[#This Row],[Q.2]]<>"",SUMIFS(t_reator[p],t_reator[tipo],t_instalado[[#This Row],[T.2]],t_reator[w],t_instalado[[#This Row],[P.2(W)]]),"") ->  | Q300: =IF(t_instalado[[#This Row],[Q.3]]<>"",SUMIFS(t_reator[p],t_reator[tipo],t_instalado[[#This Row],[T.3]],t_reator[w],t_instalado[[#This Row],[P.3(W)]]),"") ->  | R300: =IF(t_instalado[[#This Row],[Q.1]]<>"",IFERROR(IFERROR(D300*(E300+O300)+G300*(H300+P300)+J300*(K300+Q300),D300*(E300+O300)+G300*(H300+P300)),D300*(E300+O300)),"") ->  | S300: =IF(t_instalado[[#This Row],[Consumo_W]]<>"",ROUND(t_instalado[[#This Row],[Consumo_W]]/t_instalado[[#This Row],[Luminárias]],0),"") ->  | T300: =IF(t_instalado[[#This Row],[Q.1]]<>"",SUMIFS(t_fluxo_lumin[fluxo],t_fluxo_lumin[tipo],t_instalado[[#This Row],[T.1]])*t_instalado[[#This Row],[P.1(W)]]*t_instalado[[#This Row],[Q.1]],"") ->  | U300: =IF(t_instalado[[#This Row],[Q.2]]<>"",SUMIFS(t_fluxo_lumin[fluxo],t_fluxo_lumin[tipo],t_instalado[[#This Row],[T.2]])*t_instalado[[#This Row],[Q.2]]*t_instalado[[#This Row],[P.2(W)]],"") ->  | V300: =IF(t_instalado[[#This Row],[Q.3]]<>"",SUMIFS(t_fluxo_lumin[fluxo],t_fluxo_lumin[tipo],t_instalado[[#This Row],[T.3]])*t_instalado[[#This Row],[Q.3]]*t_instalado[[#This Row],[P.3(W)]],"") ->  | W300: =IF(t_instalado[[#This Row],[Trecho]]<>"",SUM(t_instalado[[#This Row],[f.1]:[f.3]]),"") ->  | X300: =IF(t_instalado[[#This Row],[Trecho]]<>"",t_instalado[[#This Row],[Q.1]]+t_instalado[[#This Row],[Q.2]]+t_instalado[[#This Row],[Q.3]],"") ->  | Y300: =IF(t_instalado[[#This Row],[FLUXO]]<>"",ROUND(t_instalado[[#This Row],[FLUXO]]/t_instalado[[#This Row],[Luminárias]],0),"") ->  | Z300: =IF(t_instalado[[#This Row],[Luminárias]]<>"",ROUND(t_instalado[[#This Row],[lm_médio]]/t_instalado[[#This Row],[W_médio]],2),"") -> 
A301: 67 | B301: =_xlfn.XLOOKUP(t_instalado[[#This Row],[cód.]],t_sitio[cód],t_sitio[Trecho],"") ->  | M301: =t_instalado[[#This Row],[Q.1]]+t_instalado[[#This Row],[Q.2]]+t_instalado[[#This Row],[Q.3]] -> 0 | N301: =t_instalado[[#This Row],[Q.1]]+t_instalado[[#This Row],[Q.2]]+t_instalado[[#This Row],[Q.3]] -> 0 | O301: =IF(t_instalado[[#This Row],[Q.1]]<>"",SUMIFS(t_reator[p],t_reator[tipo],t_instalado[[#This Row],[T.1]],t_reator[w],t_instalado[[#This Row],[P.1(W)]]),"") ->  | P301: =IF(t_instalado[[#This Row],[Q.2]]<>"",SUMIFS(t_reator[p],t_reator[tipo],t_instalado[[#This Row],[T.2]],t_reator[w],t_instalado[[#This Row],[P.2(W)]]),"") ->  | Q301: =IF(t_instalado[[#This Row],[Q.3]]<>"",SUMIFS(t_reator[p],t_reator[tipo],t_instalado[[#This Row],[T.3]],t_reator[w],t_instalado[[#This Row],[P.3(W)]]),"") ->  | R301: =IF(t_instalado[[#This Row],[Q.1]]<>"",IFERROR(IFERROR(D301*(E301+O301)+G301*(H301+P301)+J301*(K301+Q301),D301*(E301+O301)+G301*(H301+P301)),D301*(E301+O301)),"") ->  | S301: =IF(t_instalado[[#This Row],[Consumo_W]]<>"",ROUND(t_instalado[[#This Row],[Consumo_W]]/t_instalado[[#This Row],[Luminárias]],0),"") ->  | T301: =IF(t_instalado[[#This Row],[Q.1]]<>"",SUMIFS(t_fluxo_lumin[fluxo],t_fluxo_lumin[tipo],t_instalado[[#This Row],[T.1]])*t_instalado[[#This Row],[P.1(W)]]*t_instalado[[#This Row],[Q.1]],"") ->  | U301: =IF(t_instalado[[#This Row],[Q.2]]<>"",SUMIFS(t_fluxo_lumin[fluxo],t_fluxo_lumin[tipo],t_instalado[[#This Row],[T.2]])*t_instalado[[#This Row],[Q.2]]*t_instalado[[#This Row],[P.2(W)]],"") ->  | V301: =IF(t_instalado[[#This Row],[Q.3]]<>"",SUMIFS(t_fluxo_lumin[fluxo],t_fluxo_lumin[tipo],t_instalado[[#This Row],[T.3]])*t_instalado[[#This Row],[Q.3]]*t_instalado[[#This Row],[P.3(W)]],"") ->  | W301: =IF(t_instalado[[#This Row],[Trecho]]<>"",SUM(t_instalado[[#This Row],[f.1]:[f.3]]),"") ->  | X301: =IF(t_instalado[[#This Row],[Trecho]]<>"",t_instalado[[#This Row],[Q.1]]+t_instalado[[#This Row],[Q.2]]+t_instalado[[#This Row],[Q.3]],"") ->  | Y301: =IF(t_instalado[[#This Row],[FLUXO]]<>"",ROUND(t_instalado[[#This Row],[FLUXO]]/t_instalado[[#This Row],[Luminárias]],0),"") ->  | Z301: =IF(t_instalado[[#This Row],[Luminárias]]<>"",ROUND(t_instalado[[#This Row],[lm_médio]]/t_instalado[[#This Row],[W_médio]],2),"") -> 
A302: 68 | B302: =_xlfn.XLOOKUP(t_instalado[[#This Row],[cód.]],t_sitio[cód],t_sitio[Trecho],"") ->  | M302: =t_instalado[[#This Row],[Q.1]]+t_instalado[[#This Row],[Q.2]]+t_instalado[[#This Row],[Q.3]] -> 0 | N302: =t_instalado[[#This Row],[Q.1]]+t_instalado[[#This Row],[Q.2]]+t_instalado[[#This Row],[Q.3]] -> 0 | O302: =IF(t_instalado[[#This Row],[Q.1]]<>"",SUMIFS(t_reator[p],t_reator[tipo],t_instalado[[#This Row],[T.1]],t_reator[w],t_instalado[[#This Row],[P.1(W)]]),"") ->  | P302: =IF(t_instalado[[#This Row],[Q.2]]<>"",SUMIFS(t_reator[p],t_reator[tipo],t_instalado[[#This Row],[T.2]],t_reator[w],t_instalado[[#This Row],[P.2(W)]]),"") ->  | Q302: =IF(t_instalado[[#This Row],[Q.3]]<>"",SUMIFS(t_reator[p],t_reator[tipo],t_instalado[[#This Row],[T.3]],t_reator[w],t_instalado[[#This Row],[P.3(W)]]),"") ->  | R302: =IF(t_instalado[[#This Row],[Q.1]]<>"",IFERROR(IFERROR(D302*(E302+O302)+G302*(H302+P302)+J302*(K302+Q302),D302*(E302+O302)+G302*(H302+P302)),D302*(E302+O302)),"") ->  | S302: =IF(t_instalado[[#This Row],[Consumo_W]]<>"",ROUND(t_instalado[[#This Row],[Consumo_W]]/t_instalado[[#This Row],[Luminárias]],0),"") ->  | T302: =IF(t_instalado[[#This Row],[Q.1]]<>"",SUMIFS(t_fluxo_lumin[fluxo],t_fluxo_lumin[tipo],t_instalado[[#This Row],[T.1]])*t_instalado[[#This Row],[P.1(W)]]*t_instalado[[#This Row],[Q.1]],"") ->  | U302: =IF(t_instalado[[#This Row],[Q.2]]<>"",SUMIFS(t_fluxo_lumin[fluxo],t_fluxo_lumin[tipo],t_instalado[[#This Row],[T.2]])*t_instalado[[#This Row],[Q.2]]*t_instalado[[#This Row],[P.2(W)]],"") ->  | V302: =IF(t_instalado[[#This Row],[Q.3]]<>"",SUMIFS(t_fluxo_lumin[fluxo],t_fluxo_lumin[tipo],t_instalado[[#This Row],[T.3]])*t_instalado[[#This Row],[Q.3]]*t_instalado[[#This Row],[P.3(W)]],"") ->  | W302: =IF(t_instalado[[#This Row],[Trecho]]<>"",SUM(t_instalado[[#This Row],[f.1]:[f.3]]),"") ->  | X302: =IF(t_instalado[[#This Row],[Trecho]]<>"",t_instalado[[#This Row],[Q.1]]+t_instalado[[#This Row],[Q.2]]+t_instalado[[#This Row],[Q.3]],"") ->  | Y302: =IF(t_instalado[[#This Row],[FLUXO]]<>"",ROUND(t_instalado[[#This Row],[FLUXO]]/t_instalado[[#This Row],[Luminárias]],0),"") ->  | Z302: =IF(t_instalado[[#This Row],[Luminárias]]<>"",ROUND(t_instalado[[#This Row],[lm_médio]]/t_instalado[[#This Row],[W_médio]],2),"") -> 
A303: 69 | B303: =_xlfn.XLOOKUP(t_instalado[[#This Row],[cód.]],t_sitio[cód],t_sitio[Trecho],"") ->  | M303: =t_instalado[[#This Row],[Q.1]]+t_instalado[[#This Row],[Q.2]]+t_instalado[[#This Row],[Q.3]] -> 0 | N303: =t_instalado[[#This Row],[Q.1]]+t_instalado[[#This Row],[Q.2]]+t_instalado[[#This Row],[Q.3]] -> 0 | O303: =IF(t_instalado[[#This Row],[Q.1]]<>"",SUMIFS(t_reator[p],t_reator[tipo],t_instalado[[#This Row],[T.1]],t_reator[w],t_instalado[[#This Row],[P.1(W)]]),"") ->  | P303: =IF(t_instalado[[#This Row],[Q.2]]<>"",SUMIFS(t_reator[p],t_reator[tipo],t_instalado[[#This Row],[T.2]],t_reator[w],t_instalado[[#This Row],[P.2(W)]]),"") ->  | Q303: =IF(t_instalado[[#This Row],[Q.3]]<>"",SUMIFS(t_reator[p],t_reator[tipo],t_instalado[[#This Row],[T.3]],t_reator[w],t_instalado[[#This Row],[P.3(W)]]),"") ->  | R303: =IF(t_instalado[[#This Row],[Q.1]]<>"",IFERROR(IFERROR(D303*(E303+O303)+G303*(H303+P303)+J303*(K303+Q303),D303*(E303+O303)+G303*(H303+P303)),D303*(E303+O303)),"") ->  | S303: =IF(t_instalado[[#This Row],[Consumo_W]]<>"",ROUND(t_instalado[[#This Row],[Consumo_W]]/t_instalado[[#This Row],[Luminárias]],0),"") ->  | T303: =IF(t_instalado[[#This Row],[Q.1]]<>"",SUMIFS(t_fluxo_lumin[fluxo],t_fluxo_lumin[tipo],t_instalado[[#This Row],[T.1]])*t_instalado[[#This Row],[P.1(W)]]*t_instalado[[#This Row],[Q.1]],"") ->  | U303: =IF(t_instalado[[#This Row],[Q.2]]<>"",SUMIFS(t_fluxo_lumin[fluxo],t_fluxo_lumin[tipo],t_instalado[[#This Row],[T.2]])*t_instalado[[#This Row],[Q.2]]*t_instalado[[#This Row],[P.2(W)]],"") ->  | V303: =IF(t_instalado[[#This Row],[Q.3]]<>"",SUMIFS(t_fluxo_lumin[fluxo],t_fluxo_lumin[tipo],t_instalado[[#This Row],[T.3]])*t_instalado[[#This Row],[Q.3]]*t_instalado[[#This Row],[P.3(W)]],"") ->  | W303: =IF(t_instalado[[#This Row],[Trecho]]<>"",SUM(t_instalado[[#This Row],[f.1]:[f.3]]),"") ->  | X303: =IF(t_instalado[[#This Row],[Trecho]]<>"",t_instalado[[#This Row],[Q.1]]+t_instalado[[#This Row],[Q.2]]+t_instalado[[#This Row],[Q.3]],"") ->  | Y303: =IF(t_instalado[[#This Row],[FLUXO]]<>"",ROUND(t_instalado[[#This Row],[FLUXO]]/t_instalado[[#This Row],[Luminárias]],0),"") ->  | Z303: =IF(t_instalado[[#This Row],[Luminárias]]<>"",ROUND(t_instalado[[#This Row],[lm_médio]]/t_instalado[[#This Row],[W_médio]],2),"") -> 
A304: 70 | B304: =_xlfn.XLOOKUP(t_instalado[[#This Row],[cód.]],t_sitio[cód],t_sitio[Trecho],"") ->  | M304: =t_instalado[[#This Row],[Q.1]]+t_instalado[[#This Row],[Q.2]]+t_instalado[[#This Row],[Q.3]] -> 0 | N304: =t_instalado[[#This Row],[Q.1]]+t_instalado[[#This Row],[Q.2]]+t_instalado[[#This Row],[Q.3]] -> 0 | O304: =IF(t_instalado[[#This Row],[Q.1]]<>"",SUMIFS(t_reator[p],t_reator[tipo],t_instalado[[#This Row],[T.1]],t_reator[w],t_instalado[[#This Row],[P.1(W)]]),"") ->  | P304: =IF(t_instalado[[#This Row],[Q.2]]<>"",SUMIFS(t_reator[p],t_reator[tipo],t_instalado[[#This Row],[T.2]],t_reator[w],t_instalado[[#This Row],[P.2(W)]]),"") ->  | Q304: =IF(t_instalado[[#This Row],[Q.3]]<>"",SUMIFS(t_reator[p],t_reator[tipo],t_instalado[[#This Row],[T.3]],t_reator[w],t_instalado[[#This Row],[P.3(W)]]),"") ->  | R304: =IF(t_instalado[[#This Row],[Q.1]]<>"",IFERROR(IFERROR(D304*(E304+O304)+G304*(H304+P304)+J304*(K304+Q304),D304*(E304+O304)+G304*(H304+P304)),D304*(E304+O304)),"") ->  | S304: =IF(t_instalado[[#This Row],[Consumo_W]]<>"",ROUND(t_instalado[[#This Row],[Consumo_W]]/t_instalado[[#This Row],[Luminárias]],0),"") ->  | T304: =IF(t_instalado[[#This Row],[Q.1]]<>"",SUMIFS(t_fluxo_lumin[fluxo],t_fluxo_lumin[tipo],t_instalado[[#This Row],[T.1]])*t_instalado[[#This Row],[P.1(W)]]*t_instalado[[#This Row],[Q.1]],"") ->  | U304: =IF(t_instalado[[#This Row],[Q.2]]<>"",SUMIFS(t_fluxo_lumin[fluxo],t_fluxo_lumin[tipo],t_instalado[[#This Row],[T.2]])*t_instalado[[#This Row],[Q.2]]*t_instalado[[#This Row],[P.2(W)]],"") ->  | V304: =IF(t_instalado[[#This Row],[Q.3]]<>"",SUMIFS(t_fluxo_lumin[fluxo],t_fluxo_lumin[tipo],t_instalado[[#This Row],[T.3]])*t_instalado[[#This Row],[Q.3]]*t_instalado[[#This Row],[P.3(W)]],"") ->  | W304: =IF(t_instalado[[#This Row],[Trecho]]<>"",SUM(t_instalado[[#This Row],[f.1]:[f.3]]),"") ->  | X304: =IF(t_instalado[[#This Row],[Trecho]]<>"",t_instalado[[#This Row],[Q.1]]+t_instalado[[#This Row],[Q.2]]+t_instalado[[#This Row],[Q.3]],"") ->  | Y304: =IF(t_instalado[[#This Row],[FLUXO]]<>"",ROUND(t_instalado[[#This Row],[FLUXO]]/t_instalado[[#This Row],[Luminárias]],0),"") ->  | Z304: =IF(t_instalado[[#This Row],[Luminárias]]<>"",ROUND(t_instalado[[#This Row],[lm_médio]]/t_instalado[[#This Row],[W_médio]],2),"") -> 
A305: 71 | B305: =_xlfn.XLOOKUP(t_instalado[[#This Row],[cód.]],t_sitio[cód],t_sitio[Trecho],"") ->  | M305: =t_instalado[[#This Row],[Q.1]]+t_instalado[[#This Row],[Q.2]]+t_instalado[[#This Row],[Q.3]] -> 0 | N305: =t_instalado[[#This Row],[Q.1]]+t_instalado[[#This Row],[Q.2]]+t_instalado[[#This Row],[Q.3]] -> 0 | O305: =IF(t_instalado[[#This Row],[Q.1]]<>"",SUMIFS(t_reator[p],t_reator[tipo],t_instalado[[#This Row],[T.1]],t_reator[w],t_instalado[[#This Row],[P.1(W)]]),"") ->  | P305: =IF(t_instalado[[#This Row],[Q.2]]<>"",SUMIFS(t_reator[p],t_reator[tipo],t_instalado[[#This Row],[T.2]],t_reator[w],t_instalado[[#This Row],[P.2(W)]]),"") ->  | Q305: =IF(t_instalado[[#This Row],[Q.3]]<>"",SUMIFS(t_reator[p],t_reator[tipo],t_instalado[[#This Row],[T.3]],t_reator[w],t_instalado[[#This Row],[P.3(W)]]),"") ->  | R305: =IF(t_instalado[[#This Row],[Q.1]]<>"",IFERROR(IFERROR(D305*(E305+O305)+G305*(H305+P305)+J305*(K305+Q305),D305*(E305+O305)+G305*(H305+P305)),D305*(E305+O305)),"") ->  | S305: =IF(t_instalado[[#This Row],[Consumo_W]]<>"",ROUND(t_instalado[[#This Row],[Consumo_W]]/t_instalado[[#This Row],[Luminárias]],0),"") ->  | T305: =IF(t_instalado[[#This Row],[Q.1]]<>"",SUMIFS(t_fluxo_lumin[fluxo],t_fluxo_lumin[tipo],t_instalado[[#This Row],[T.1]])*t_instalado[[#This Row],[P.1(W)]]*t_instalado[[#This Row],[Q.1]],"") ->  | U305: =IF(t_instalado[[#This Row],[Q.2]]<>"",SUMIFS(t_fluxo_lumin[fluxo],t_fluxo_lumin[tipo],t_instalado[[#This Row],[T.2]])*t_instalado[[#This Row],[Q.2]]*t_instalado[[#This Row],[P.2(W)]],"") ->  | V305: =IF(t_instalado[[#This Row],[Q.3]]<>"",SUMIFS(t_fluxo_lumin[fluxo],t_fluxo_lumin[tipo],t_instalado[[#This Row],[T.3]])*t_instalado[[#This Row],[Q.3]]*t_instalado[[#This Row],[P.3(W)]],"") ->  | W305: =IF(t_instalado[[#This Row],[Trecho]]<>"",SUM(t_instalado[[#This Row],[f.1]:[f.3]]),"") ->  | X305: =IF(t_instalado[[#This Row],[Trecho]]<>"",t_instalado[[#This Row],[Q.1]]+t_instalado[[#This Row],[Q.2]]+t_instalado[[#This Row],[Q.3]],"") ->  | Y305: =IF(t_instalado[[#This Row],[FLUXO]]<>"",ROUND(t_instalado[[#This Row],[FLUXO]]/t_instalado[[#This Row],[Luminárias]],0),"") ->  | Z305: =IF(t_instalado[[#This Row],[Luminárias]]<>"",ROUND(t_instalado[[#This Row],[lm_médio]]/t_instalado[[#This Row],[W_médio]],2),"") -> 
A306: 72 | B306: =_xlfn.XLOOKUP(t_instalado[[#This Row],[cód.]],t_sitio[cód],t_sitio[Trecho],"") ->  | M306: =t_instalado[[#This Row],[Q.1]]+t_instalado[[#This Row],[Q.2]]+t_instalado[[#This Row],[Q.3]] -> 0 | N306: =t_instalado[[#This Row],[Q.1]]+t_instalado[[#This Row],[Q.2]]+t_instalado[[#This Row],[Q.3]] -> 0 | O306: =IF(t_instalado[[#This Row],[Q.1]]<>"",SUMIFS(t_reator[p],t_reator[tipo],t_instalado[[#This Row],[T.1]],t_reator[w],t_instalado[[#This Row],[P.1(W)]]),"") ->  | P306: =IF(t_instalado[[#This Row],[Q.2]]<>"",SUMIFS(t_reator[p],t_reator[tipo],t_instalado[[#This Row],[T.2]],t_reator[w],t_instalado[[#This Row],[P.2(W)]]),"") ->  | Q306: =IF(t_instalado[[#This Row],[Q.3]]<>"",SUMIFS(t_reator[p],t_reator[tipo],t_instalado[[#This Row],[T.3]],t_reator[w],t_instalado[[#This Row],[P.3(W)]]),"") ->  | R306: =IF(t_instalado[[#This Row],[Q.1]]<>"",IFERROR(IFERROR(D306*(E306+O306)+G306*(H306+P306)+J306*(K306+Q306),D306*(E306+O306)+G306*(H306+P306)),D306*(E306+O306)),"") ->  | S306: =IF(t_instalado[[#This Row],[Consumo_W]]<>"",ROUND(t_instalado[[#This Row],[Consumo_W]]/t_instalado[[#This Row],[Luminárias]],0),"") ->  | T306: =IF(t_instalado[[#This Row],[Q.1]]<>"",SUMIFS(t_fluxo_lumin[fluxo],t_fluxo_lumin[tipo],t_instalado[[#This Row],[T.1]])*t_instalado[[#This Row],[P.1(W)]]*t_instalado[[#This Row],[Q.1]],"") ->  | U306: =IF(t_instalado[[#This Row],[Q.2]]<>"",SUMIFS(t_fluxo_lumin[fluxo],t_fluxo_lumin[tipo],t_instalado[[#This Row],[T.2]])*t_instalado[[#This Row],[Q.2]]*t_instalado[[#This Row],[P.2(W)]],"") ->  | V306: =IF(t_instalado[[#This Row],[Q.3]]<>"",SUMIFS(t_fluxo_lumin[fluxo],t_fluxo_lumin[tipo],t_instalado[[#This Row],[T.3]])*t_instalado[[#This Row],[Q.3]]*t_instalado[[#This Row],[P.3(W)]],"") ->  | W306: =IF(t_instalado[[#This Row],[Trecho]]<>"",SUM(t_instalado[[#This Row],[f.1]:[f.3]]),"") ->  | X306: =IF(t_instalado[[#This Row],[Trecho]]<>"",t_instalado[[#This Row],[Q.1]]+t_instalado[[#This Row],[Q.2]]+t_instalado[[#This Row],[Q.3]],"") ->  | Y306: =IF(t_instalado[[#This Row],[FLUXO]]<>"",ROUND(t_instalado[[#This Row],[FLUXO]]/t_instalado[[#This Row],[Luminárias]],0),"") ->  | Z306: =IF(t_instalado[[#This Row],[Luminárias]]<>"",ROUND(t_instalado[[#This Row],[lm_médio]]/t_instalado[[#This Row],[W_médio]],2),"") -> 
A307: 73 | B307: =_xlfn.XLOOKUP(t_instalado[[#This Row],[cód.]],t_sitio[cód],t_sitio[Trecho],"") ->  | M307: =t_instalado[[#This Row],[Q.1]]+t_instalado[[#This Row],[Q.2]]+t_instalado[[#This Row],[Q.3]] -> 0 | N307: =t_instalado[[#This Row],[Q.1]]+t_instalado[[#This Row],[Q.2]]+t_instalado[[#This Row],[Q.3]] -> 0 | O307: =IF(t_instalado[[#This Row],[Q.1]]<>"",SUMIFS(t_reator[p],t_reator[tipo],t_instalado[[#This Row],[T.1]],t_reator[w],t_instalado[[#This Row],[P.1(W)]]),"") ->  | P307: =IF(t_instalado[[#This Row],[Q.2]]<>"",SUMIFS(t_reator[p],t_reator[tipo],t_instalado[[#This Row],[T.2]],t_reator[w],t_instalado[[#This Row],[P.2(W)]]),"") ->  | Q307: =IF(t_instalado[[#This Row],[Q.3]]<>"",SUMIFS(t_reator[p],t_reator[tipo],t_instalado[[#This Row],[T.3]],t_reator[w],t_instalado[[#This Row],[P.3(W)]]),"") ->  | R307: =IF(t_instalado[[#This Row],[Q.1]]<>"",IFERROR(IFERROR(D307*(E307+O307)+G307*(H307+P307)+J307*(K307+Q307),D307*(E307+O307)+G307*(H307+P307)),D307*(E307+O307)),"") ->  | S307: =IF(t_instalado[[#This Row],[Consumo_W]]<>"",ROUND(t_instalado[[#This Row],[Consumo_W]]/t_instalado[[#This Row],[Luminárias]],0),"") ->  | T307: =IF(t_instalado[[#This Row],[Q.1]]<>"",SUMIFS(t_fluxo_lumin[fluxo],t_fluxo_lumin[tipo],t_instalado[[#This Row],[T.1]])*t_instalado[[#This Row],[P.1(W)]]*t_instalado[[#This Row],[Q.1]],"") ->  | U307: =IF(t_instalado[[#This Row],[Q.2]]<>"",SUMIFS(t_fluxo_lumin[fluxo],t_fluxo_lumin[tipo],t_instalado[[#This Row],[T.2]])*t_instalado[[#This Row],[Q.2]]*t_instalado[[#This Row],[P.2(W)]],"") ->  | V307: =IF(t_instalado[[#This Row],[Q.3]]<>"",SUMIFS(t_fluxo_lumin[fluxo],t_fluxo_lumin[tipo],t_instalado[[#This Row],[T.3]])*t_instalado[[#This Row],[Q.3]]*t_instalado[[#This Row],[P.3(W)]],"") ->  | W307: =IF(t_instalado[[#This Row],[Trecho]]<>"",SUM(t_instalado[[#This Row],[f.1]:[f.3]]),"") ->  | X307: =IF(t_instalado[[#This Row],[Trecho]]<>"",t_instalado[[#This Row],[Q.1]]+t_instalado[[#This Row],[Q.2]]+t_instalado[[#This Row],[Q.3]],"") ->  | Y307: =IF(t_instalado[[#This Row],[FLUXO]]<>"",ROUND(t_instalado[[#This Row],[FLUXO]]/t_instalado[[#This Row],[Luminárias]],0),"") ->  | Z307: =IF(t_instalado[[#This Row],[Luminárias]]<>"",ROUND(t_instalado[[#This Row],[lm_médio]]/t_instalado[[#This Row],[W_médio]],2),"") -> 
A308: 74 | B308: =_xlfn.XLOOKUP(t_instalado[[#This Row],[cód.]],t_sitio[cód],t_sitio[Trecho],"") ->  | M308: =t_instalado[[#This Row],[Q.1]]+t_instalado[[#This Row],[Q.2]]+t_instalado[[#This Row],[Q.3]] -> 0 | N308: =t_instalado[[#This Row],[Q.1]]+t_instalado[[#This Row],[Q.2]]+t_instalado[[#This Row],[Q.3]] -> 0 | O308: =IF(t_instalado[[#This Row],[Q.1]]<>"",SUMIFS(t_reator[p],t_reator[tipo],t_instalado[[#This Row],[T.1]],t_reator[w],t_instalado[[#This Row],[P.1(W)]]),"") ->  | P308: =IF(t_instalado[[#This Row],[Q.2]]<>"",SUMIFS(t_reator[p],t_reator[tipo],t_instalado[[#This Row],[T.2]],t_reator[w],t_instalado[[#This Row],[P.2(W)]]),"") ->  | Q308: =IF(t_instalado[[#This Row],[Q.3]]<>"",SUMIFS(t_reator[p],t_reator[tipo],t_instalado[[#This Row],[T.3]],t_reator[w],t_instalado[[#This Row],[P.3(W)]]),"") ->  | R308: =IF(t_instalado[[#This Row],[Q.1]]<>"",IFERROR(IFERROR(D308*(E308+O308)+G308*(H308+P308)+J308*(K308+Q308),D308*(E308+O308)+G308*(H308+P308)),D308*(E308+O308)),"") ->  | S308: =IF(t_instalado[[#This Row],[Consumo_W]]<>"",ROUND(t_instalado[[#This Row],[Consumo_W]]/t_instalado[[#This Row],[Luminárias]],0),"") ->  | T308: =IF(t_instalado[[#This Row],[Q.1]]<>"",SUMIFS(t_fluxo_lumin[fluxo],t_fluxo_lumin[tipo],t_instalado[[#This Row],[T.1]])*t_instalado[[#This Row],[P.1(W)]]*t_instalado[[#This Row],[Q.1]],"") ->  | U308: =IF(t_instalado[[#This Row],[Q.2]]<>"",SUMIFS(t_fluxo_lumin[fluxo],t_fluxo_lumin[tipo],t_instalado[[#This Row],[T.2]])*t_instalado[[#This Row],[Q.2]]*t_instalado[[#This Row],[P.2(W)]],"") ->  | V308: =IF(t_instalado[[#This Row],[Q.3]]<>"",SUMIFS(t_fluxo_lumin[fluxo],t_fluxo_lumin[tipo],t_instalado[[#This Row],[T.3]])*t_instalado[[#This Row],[Q.3]]*t_instalado[[#This Row],[P.3(W)]],"") ->  | W308: =IF(t_instalado[[#This Row],[Trecho]]<>"",SUM(t_instalado[[#This Row],[f.1]:[f.3]]),"") ->  | X308: =IF(t_instalado[[#This Row],[Trecho]]<>"",t_instalado[[#This Row],[Q.1]]+t_instalado[[#This Row],[Q.2]]+t_instalado[[#This Row],[Q.3]],"") ->  | Y308: =IF(t_instalado[[#This Row],[FLUXO]]<>"",ROUND(t_instalado[[#This Row],[FLUXO]]/t_instalado[[#This Row],[Luminárias]],0),"") ->  | Z308: =IF(t_instalado[[#This Row],[Luminárias]]<>"",ROUND(t_instalado[[#This Row],[lm_médio]]/t_instalado[[#This Row],[W_médio]],2),"") -> 
A309: 75 | B309: =_xlfn.XLOOKUP(t_instalado[[#This Row],[cód.]],t_sitio[cód],t_sitio[Trecho],"") ->  | M309: =t_instalado[[#This Row],[Q.1]]+t_instalado[[#This Row],[Q.2]]+t_instalado[[#This Row],[Q.3]] -> 0 | N309: =t_instalado[[#This Row],[Q.1]]+t_instalado[[#This Row],[Q.2]]+t_instalado[[#This Row],[Q.3]] -> 0 | O309: =IF(t_instalado[[#This Row],[Q.1]]<>"",SUMIFS(t_reator[p],t_reator[tipo],t_instalado[[#This Row],[T.1]],t_reator[w],t_instalado[[#This Row],[P.1(W)]]),"") ->  | P309: =IF(t_instalado[[#This Row],[Q.2]]<>"",SUMIFS(t_reator[p],t_reator[tipo],t_instalado[[#This Row],[T.2]],t_reator[w],t_instalado[[#This Row],[P.2(W)]]),"") ->  | Q309: =IF(t_instalado[[#This Row],[Q.3]]<>"",SUMIFS(t_reator[p],t_reator[tipo],t_instalado[[#This Row],[T.3]],t_reator[w],t_instalado[[#This Row],[P.3(W)]]),"") ->  | R309: =IF(t_instalado[[#This Row],[Q.1]]<>"",IFERROR(IFERROR(D309*(E309+O309)+G309*(H309+P309)+J309*(K309+Q309),D309*(E309+O309)+G309*(H309+P309)),D309*(E309+O309)),"") ->  | S309: =IF(t_instalado[[#This Row],[Consumo_W]]<>"",ROUND(t_instalado[[#This Row],[Consumo_W]]/t_instalado[[#This Row],[Luminárias]],0),"") ->  | T309: =IF(t_instalado[[#This Row],[Q.1]]<>"",SUMIFS(t_fluxo_lumin[fluxo],t_fluxo_lumin[tipo],t_instalado[[#This Row],[T.1]])*t_instalado[[#This Row],[P.1(W)]]*t_instalado[[#This Row],[Q.1]],"") ->  | U309: =IF(t_instalado[[#This Row],[Q.2]]<>"",SUMIFS(t_fluxo_lumin[fluxo],t_fluxo_lumin[tipo],t_instalado[[#This Row],[T.2]])*t_instalado[[#This Row],[Q.2]]*t_instalado[[#This Row],[P.2(W)]],"") ->  | V309: =IF(t_instalado[[#This Row],[Q.3]]<>"",SUMIFS(t_fluxo_lumin[fluxo],t_fluxo_lumin[tipo],t_instalado[[#This Row],[T.3]])*t_instalado[[#This Row],[Q.3]]*t_instalado[[#This Row],[P.3(W)]],"") ->  | W309: =IF(t_instalado[[#This Row],[Trecho]]<>"",SUM(t_instalado[[#This Row],[f.1]:[f.3]]),"") ->  | X309: =IF(t_instalado[[#This Row],[Trecho]]<>"",t_instalado[[#This Row],[Q.1]]+t_instalado[[#This Row],[Q.2]]+t_instalado[[#This Row],[Q.3]],"") ->  | Y309: =IF(t_instalado[[#This Row],[FLUXO]]<>"",ROUND(t_instalado[[#This Row],[FLUXO]]/t_instalado[[#This Row],[Luminárias]],0),"") ->  | Z309: =IF(t_instalado[[#This Row],[Luminárias]]<>"",ROUND(t_instalado[[#This Row],[lm_médio]]/t_instalado[[#This Row],[W_médio]],2),"") -> 
A310: 76 | B310: =_xlfn.XLOOKUP(t_instalado[[#This Row],[cód.]],t_sitio[cód],t_sitio[Trecho],"") ->  | M310: =t_instalado[[#This Row],[Q.1]]+t_instalado[[#This Row],[Q.2]]+t_instalado[[#This Row],[Q.3]] -> 0 | N310: =t_instalado[[#This Row],[Q.1]]+t_instalado[[#This Row],[Q.2]]+t_instalado[[#This Row],[Q.3]] -> 0 | O310: =IF(t_instalado[[#This Row],[Q.1]]<>"",SUMIFS(t_reator[p],t_reator[tipo],t_instalado[[#This Row],[T.1]],t_reator[w],t_instalado[[#This Row],[P.1(W)]]),"") ->  | P310: =IF(t_instalado[[#This Row],[Q.2]]<>"",SUMIFS(t_reator[p],t_reator[tipo],t_instalado[[#This Row],[T.2]],t_reator[w],t_instalado[[#This Row],[P.2(W)]]),"") ->  | Q310: =IF(t_instalado[[#This Row],[Q.3]]<>"",SUMIFS(t_reator[p],t_reator[tipo],t_instalado[[#This Row],[T.3]],t_reator[w],t_instalado[[#This Row],[P.3(W)]]),"") ->  | R310: =IF(t_instalado[[#This Row],[Q.1]]<>"",IFERROR(IFERROR(D310*(E310+O310)+G310*(H310+P310)+J310*(K310+Q310),D310*(E310+O310)+G310*(H310+P310)),D310*(E310+O310)),"") ->  | S310: =IF(t_instalado[[#This Row],[Consumo_W]]<>"",ROUND(t_instalado[[#This Row],[Consumo_W]]/t_instalado[[#This Row],[Luminárias]],0),"") ->  | T310: =IF(t_instalado[[#This Row],[Q.1]]<>"",SUMIFS(t_fluxo_lumin[fluxo],t_fluxo_lumin[tipo],t_instalado[[#This Row],[T.1]])*t_instalado[[#This Row],[P.1(W)]]*t_instalado[[#This Row],[Q.1]],"") ->  | U310: =IF(t_instalado[[#This Row],[Q.2]]<>"",SUMIFS(t_fluxo_lumin[fluxo],t_fluxo_lumin[tipo],t_instalado[[#This Row],[T.2]])*t_instalado[[#This Row],[Q.2]]*t_instalado[[#This Row],[P.2(W)]],"") ->  | V310: =IF(t_instalado[[#This Row],[Q.3]]<>"",SUMIFS(t_fluxo_lumin[fluxo],t_fluxo_lumin[tipo],t_instalado[[#This Row],[T.3]])*t_instalado[[#This Row],[Q.3]]*t_instalado[[#This Row],[P.3(W)]],"") ->  | W310: =IF(t_instalado[[#This Row],[Trecho]]<>"",SUM(t_instalado[[#This Row],[f.1]:[f.3]]),"") ->  | X310: =IF(t_instalado[[#This Row],[Trecho]]<>"",t_instalado[[#This Row],[Q.1]]+t_instalado[[#This Row],[Q.2]]+t_instalado[[#This Row],[Q.3]],"") ->  | Y310: =IF(t_instalado[[#This Row],[FLUXO]]<>"",ROUND(t_instalado[[#This Row],[FLUXO]]/t_instalado[[#This Row],[Luminárias]],0),"") ->  | Z310: =IF(t_instalado[[#This Row],[Luminárias]]<>"",ROUND(t_instalado[[#This Row],[lm_médio]]/t_instalado[[#This Row],[W_médio]],2),"") -> 
A311: 77 | B311: =_xlfn.XLOOKUP(t_instalado[[#This Row],[cód.]],t_sitio[cód],t_sitio[Trecho],"") ->  | M311: =t_instalado[[#This Row],[Q.1]]+t_instalado[[#This Row],[Q.2]]+t_instalado[[#This Row],[Q.3]] -> 0 | N311: =t_instalado[[#This Row],[Q.1]]+t_instalado[[#This Row],[Q.2]]+t_instalado[[#This Row],[Q.3]] -> 0 | O311: =IF(t_instalado[[#This Row],[Q.1]]<>"",SUMIFS(t_reator[p],t_reator[tipo],t_instalado[[#This Row],[T.1]],t_reator[w],t_instalado[[#This Row],[P.1(W)]]),"") ->  | P311: =IF(t_instalado[[#This Row],[Q.2]]<>"",SUMIFS(t_reator[p],t_reator[tipo],t_instalado[[#This Row],[T.2]],t_reator[w],t_instalado[[#This Row],[P.2(W)]]),"") ->  | Q311: =IF(t_instalado[[#This Row],[Q.3]]<>"",SUMIFS(t_reator[p],t_reator[tipo],t_instalado[[#This Row],[T.3]],t_reator[w],t_instalado[[#This Row],[P.3(W)]]),"") ->  | R311: =IF(t_instalado[[#This Row],[Q.1]]<>"",IFERROR(IFERROR(D311*(E311+O311)+G311*(H311+P311)+J311*(K311+Q311),D311*(E311+O311)+G311*(H311+P311)),D311*(E311+O311)),"") ->  | S311: =IF(t_instalado[[#This Row],[Consumo_W]]<>"",ROUND(t_instalado[[#This Row],[Consumo_W]]/t_instalado[[#This Row],[Luminárias]],0),"") ->  | T311: =IF(t_instalado[[#This Row],[Q.1]]<>"",SUMIFS(t_fluxo_lumin[fluxo],t_fluxo_lumin[tipo],t_instalado[[#This Row],[T.1]])*t_instalado[[#This Row],[P.1(W)]]*t_instalado[[#This Row],[Q.1]],"") ->  | U311: =IF(t_instalado[[#This Row],[Q.2]]<>"",SUMIFS(t_fluxo_lumin[fluxo],t_fluxo_lumin[tipo],t_instalado[[#This Row],[T.2]])*t_instalado[[#This Row],[Q.2]]*t_instalado[[#This Row],[P.2(W)]],"") ->  | V311: =IF(t_instalado[[#This Row],[Q.3]]<>"",SUMIFS(t_fluxo_lumin[fluxo],t_fluxo_lumin[tipo],t_instalado[[#This Row],[T.3]])*t_instalado[[#This Row],[Q.3]]*t_instalado[[#This Row],[P.3(W)]],"") ->  | W311: =IF(t_instalado[[#This Row],[Trecho]]<>"",SUM(t_instalado[[#This Row],[f.1]:[f.3]]),"") ->  | X311: =IF(t_instalado[[#This Row],[Trecho]]<>"",t_instalado[[#This Row],[Q.1]]+t_instalado[[#This Row],[Q.2]]+t_instalado[[#This Row],[Q.3]],"") ->  | Y311: =IF(t_instalado[[#This Row],[FLUXO]]<>"",ROUND(t_instalado[[#This Row],[FLUXO]]/t_instalado[[#This Row],[Luminárias]],0),"") ->  | Z311: =IF(t_instalado[[#This Row],[Luminárias]]<>"",ROUND(t_instalado[[#This Row],[lm_médio]]/t_instalado[[#This Row],[W_médio]],2),"") -> 
A312: 78 | B312: =_xlfn.XLOOKUP(t_instalado[[#This Row],[cód.]],t_sitio[cód],t_sitio[Trecho],"") ->  | M312: =t_instalado[[#This Row],[Q.1]]+t_instalado[[#This Row],[Q.2]]+t_instalado[[#This Row],[Q.3]] -> 0 | N312: =t_instalado[[#This Row],[Q.1]]+t_instalado[[#This Row],[Q.2]]+t_instalado[[#This Row],[Q.3]] -> 0 | O312: =IF(t_instalado[[#This Row],[Q.1]]<>"",SUMIFS(t_reator[p],t_reator[tipo],t_instalado[[#This Row],[T.1]],t_reator[w],t_instalado[[#This Row],[P.1(W)]]),"") ->  | P312: =IF(t_instalado[[#This Row],[Q.2]]<>"",SUMIFS(t_reator[p],t_reator[tipo],t_instalado[[#This Row],[T.2]],t_reator[w],t_instalado[[#This Row],[P.2(W)]]),"") ->  | Q312: =IF(t_instalado[[#This Row],[Q.3]]<>"",SUMIFS(t_reator[p],t_reator[tipo],t_instalado[[#This Row],[T.3]],t_reator[w],t_instalado[[#This Row],[P.3(W)]]),"") ->  | R312: =IF(t_instalado[[#This Row],[Q.1]]<>"",IFERROR(IFERROR(D312*(E312+O312)+G312*(H312+P312)+J312*(K312+Q312),D312*(E312+O312)+G312*(H312+P312)),D312*(E312+O312)),"") ->  | S312: =IF(t_instalado[[#This Row],[Consumo_W]]<>"",ROUND(t_instalado[[#This Row],[Consumo_W]]/t_instalado[[#This Row],[Luminárias]],0),"") ->  | T312: =IF(t_instalado[[#This Row],[Q.1]]<>"",SUMIFS(t_fluxo_lumin[fluxo],t_fluxo_lumin[tipo],t_instalado[[#This Row],[T.1]])*t_instalado[[#This Row],[P.1(W)]]*t_instalado[[#This Row],[Q.1]],"") ->  | U312: =IF(t_instalado[[#This Row],[Q.2]]<>"",SUMIFS(t_fluxo_lumin[fluxo],t_fluxo_lumin[tipo],t_instalado[[#This Row],[T.2]])*t_instalado[[#This Row],[Q.2]]*t_instalado[[#This Row],[P.2(W)]],"") ->  | V312: =IF(t_instalado[[#This Row],[Q.3]]<>"",SUMIFS(t_fluxo_lumin[fluxo],t_fluxo_lumin[tipo],t_instalado[[#This Row],[T.3]])*t_instalado[[#This Row],[Q.3]]*t_instalado[[#This Row],[P.3(W)]],"") ->  | W312: =IF(t_instalado[[#This Row],[Trecho]]<>"",SUM(t_instalado[[#This Row],[f.1]:[f.3]]),"") ->  | X312: =IF(t_instalado[[#This Row],[Trecho]]<>"",t_instalado[[#This Row],[Q.1]]+t_instalado[[#This Row],[Q.2]]+t_instalado[[#This Row],[Q.3]],"") ->  | Y312: =IF(t_instalado[[#This Row],[FLUXO]]<>"",ROUND(t_instalado[[#This Row],[FLUXO]]/t_instalado[[#This Row],[Luminárias]],0),"") ->  | Z312: =IF(t_instalado[[#This Row],[Luminárias]]<>"",ROUND(t_instalado[[#This Row],[lm_médio]]/t_instalado[[#This Row],[W_médio]],2),"") -> 
A313: 79 | B313: =_xlfn.XLOOKUP(t_instalado[[#This Row],[cód.]],t_sitio[cód],t_sitio[Trecho],"") ->  | M313: =t_instalado[[#This Row],[Q.1]]+t_instalado[[#This Row],[Q.2]]+t_instalado[[#This Row],[Q.3]] -> 0 | N313: =t_instalado[[#This Row],[Q.1]]+t_instalado[[#This Row],[Q.2]]+t_instalado[[#This Row],[Q.3]] -> 0 | O313: =IF(t_instalado[[#This Row],[Q.1]]<>"",SUMIFS(t_reator[p],t_reator[tipo],t_instalado[[#This Row],[T.1]],t_reator[w],t_instalado[[#This Row],[P.1(W)]]),"") ->  | P313: =IF(t_instalado[[#This Row],[Q.2]]<>"",SUMIFS(t_reator[p],t_reator[tipo],t_instalado[[#This Row],[T.2]],t_reator[w],t_instalado[[#This Row],[P.2(W)]]),"") ->  | Q313: =IF(t_instalado[[#This Row],[Q.3]]<>"",SUMIFS(t_reator[p],t_reator[tipo],t_instalado[[#This Row],[T.3]],t_reator[w],t_instalado[[#This Row],[P.3(W)]]),"") ->  | R313: =IF(t_instalado[[#This Row],[Q.1]]<>"",IFERROR(IFERROR(D313*(E313+O313)+G313*(H313+P313)+J313*(K313+Q313),D313*(E313+O313)+G313*(H313+P313)),D313*(E313+O313)),"") ->  | S313: =IF(t_instalado[[#This Row],[Consumo_W]]<>"",ROUND(t_instalado[[#This Row],[Consumo_W]]/t_instalado[[#This Row],[Luminárias]],0),"") ->  | T313: =IF(t_instalado[[#This Row],[Q.1]]<>"",SUMIFS(t_fluxo_lumin[fluxo],t_fluxo_lumin[tipo],t_instalado[[#This Row],[T.1]])*t_instalado[[#This Row],[P.1(W)]]*t_instalado[[#This Row],[Q.1]],"") ->  | U313: =IF(t_instalado[[#This Row],[Q.2]]<>"",SUMIFS(t_fluxo_lumin[fluxo],t_fluxo_lumin[tipo],t_instalado[[#This Row],[T.2]])*t_instalado[[#This Row],[Q.2]]*t_instalado[[#This Row],[P.2(W)]],"") ->  | V313: =IF(t_instalado[[#This Row],[Q.3]]<>"",SUMIFS(t_fluxo_lumin[fluxo],t_fluxo_lumin[tipo],t_instalado[[#This Row],[T.3]])*t_instalado[[#This Row],[Q.3]]*t_instalado[[#This Row],[P.3(W)]],"") ->  | W313: =IF(t_instalado[[#This Row],[Trecho]]<>"",SUM(t_instalado[[#This Row],[f.1]:[f.3]]),"") ->  | X313: =IF(t_instalado[[#This Row],[Trecho]]<>"",t_instalado[[#This Row],[Q.1]]+t_instalado[[#This Row],[Q.2]]+t_instalado[[#This Row],[Q.3]],"") ->  | Y313: =IF(t_instalado[[#This Row],[FLUXO]]<>"",ROUND(t_instalado[[#This Row],[FLUXO]]/t_instalado[[#This Row],[Luminárias]],0),"") ->  | Z313: =IF(t_instalado[[#This Row],[Luminárias]]<>"",ROUND(t_instalado[[#This Row],[lm_médio]]/t_instalado[[#This Row],[W_médio]],2),"") -> 
A314: 80 | B314: =_xlfn.XLOOKUP(t_instalado[[#This Row],[cód.]],t_sitio[cód],t_sitio[Trecho],"") ->  | M314: =t_instalado[[#This Row],[Q.1]]+t_instalado[[#This Row],[Q.2]]+t_instalado[[#This Row],[Q.3]] -> 0 | N314: =t_instalado[[#This Row],[Q.1]]+t_instalado[[#This Row],[Q.2]]+t_instalado[[#This Row],[Q.3]] -> 0 | O314: =IF(t_instalado[[#This Row],[Q.1]]<>"",SUMIFS(t_reator[p],t_reator[tipo],t_instalado[[#This Row],[T.1]],t_reator[w],t_instalado[[#This Row],[P.1(W)]]),"") ->  | P314: =IF(t_instalado[[#This Row],[Q.2]]<>"",SUMIFS(t_reator[p],t_reator[tipo],t_instalado[[#This Row],[T.2]],t_reator[w],t_instalado[[#This Row],[P.2(W)]]),"") ->  | Q314: =IF(t_instalado[[#This Row],[Q.3]]<>"",SUMIFS(t_reator[p],t_reator[tipo],t_instalado[[#This Row],[T.3]],t_reator[w],t_instalado[[#This Row],[P.3(W)]]),"") ->  | R314: =IF(t_instalado[[#This Row],[Q.1]]<>"",IFERROR(IFERROR(D314*(E314+O314)+G314*(H314+P314)+J314*(K314+Q314),D314*(E314+O314)+G314*(H314+P314)),D314*(E314+O314)),"") ->  | S314: =IF(t_instalado[[#This Row],[Consumo_W]]<>"",ROUND(t_instalado[[#This Row],[Consumo_W]]/t_instalado[[#This Row],[Luminárias]],0),"") ->  | T314: =IF(t_instalado[[#This Row],[Q.1]]<>"",SUMIFS(t_fluxo_lumin[fluxo],t_fluxo_lumin[tipo],t_instalado[[#This Row],[T.1]])*t_instalado[[#This Row],[P.1(W)]]*t_instalado[[#This Row],[Q.1]],"") ->  | U314: =IF(t_instalado[[#This Row],[Q.2]]<>"",SUMIFS(t_fluxo_lumin[fluxo],t_fluxo_lumin[tipo],t_instalado[[#This Row],[T.2]])*t_instalado[[#This Row],[Q.2]]*t_instalado[[#This Row],[P.2(W)]],"") ->  | V314: =IF(t_instalado[[#This Row],[Q.3]]<>"",SUMIFS(t_fluxo_lumin[fluxo],t_fluxo_lumin[tipo],t_instalado[[#This Row],[T.3]])*t_instalado[[#This Row],[Q.3]]*t_instalado[[#This Row],[P.3(W)]],"") ->  | W314: =IF(t_instalado[[#This Row],[Trecho]]<>"",SUM(t_instalado[[#This Row],[f.1]:[f.3]]),"") ->  | X314: =IF(t_instalado[[#This Row],[Trecho]]<>"",t_instalado[[#This Row],[Q.1]]+t_instalado[[#This Row],[Q.2]]+t_instalado[[#This Row],[Q.3]],"") ->  | Y314: =IF(t_instalado[[#This Row],[FLUXO]]<>"",ROUND(t_instalado[[#This Row],[FLUXO]]/t_instalado[[#This Row],[Luminárias]],0),"") ->  | Z314: =IF(t_instalado[[#This Row],[Luminárias]]<>"",ROUND(t_instalado[[#This Row],[lm_médio]]/t_instalado[[#This Row],[W_médio]],2),"") -> 
A315: 81 | B315: =_xlfn.XLOOKUP(t_instalado[[#This Row],[cód.]],t_sitio[cód],t_sitio[Trecho],"") ->  | M315: =t_instalado[[#This Row],[Q.1]]+t_instalado[[#This Row],[Q.2]]+t_instalado[[#This Row],[Q.3]] -> 0 | N315: =t_instalado[[#This Row],[Q.1]]+t_instalado[[#This Row],[Q.2]]+t_instalado[[#This Row],[Q.3]] -> 0 | O315: =IF(t_instalado[[#This Row],[Q.1]]<>"",SUMIFS(t_reator[p],t_reator[tipo],t_instalado[[#This Row],[T.1]],t_reator[w],t_instalado[[#This Row],[P.1(W)]]),"") ->  | P315: =IF(t_instalado[[#This Row],[Q.2]]<>"",SUMIFS(t_reator[p],t_reator[tipo],t_instalado[[#This Row],[T.2]],t_reator[w],t_instalado[[#This Row],[P.2(W)]]),"") ->  | Q315: =IF(t_instalado[[#This Row],[Q.3]]<>"",SUMIFS(t_reator[p],t_reator[tipo],t_instalado[[#This Row],[T.3]],t_reator[w],t_instalado[[#This Row],[P.3(W)]]),"") ->  | R315: =IF(t_instalado[[#This Row],[Q.1]]<>"",IFERROR(IFERROR(D315*(E315+O315)+G315*(H315+P315)+J315*(K315+Q315),D315*(E315+O315)+G315*(H315+P315)),D315*(E315+O315)),"") ->  | S315: =IF(t_instalado[[#This Row],[Consumo_W]]<>"",ROUND(t_instalado[[#This Row],[Consumo_W]]/t_instalado[[#This Row],[Luminárias]],0),"") ->  | T315: =IF(t_instalado[[#This Row],[Q.1]]<>"",SUMIFS(t_fluxo_lumin[fluxo],t_fluxo_lumin[tipo],t_instalado[[#This Row],[T.1]])*t_instalado[[#This Row],[P.1(W)]]*t_instalado[[#This Row],[Q.1]],"") ->  | U315: =IF(t_instalado[[#This Row],[Q.2]]<>"",SUMIFS(t_fluxo_lumin[fluxo],t_fluxo_lumin[tipo],t_instalado[[#This Row],[T.2]])*t_instalado[[#This Row],[Q.2]]*t_instalado[[#This Row],[P.2(W)]],"") ->  | V315: =IF(t_instalado[[#This Row],[Q.3]]<>"",SUMIFS(t_fluxo_lumin[fluxo],t_fluxo_lumin[tipo],t_instalado[[#This Row],[T.3]])*t_instalado[[#This Row],[Q.3]]*t_instalado[[#This Row],[P.3(W)]],"") ->  | W315: =IF(t_instalado[[#This Row],[Trecho]]<>"",SUM(t_instalado[[#This Row],[f.1]:[f.3]]),"") ->  | X315: =IF(t_instalado[[#This Row],[Trecho]]<>"",t_instalado[[#This Row],[Q.1]]+t_instalado[[#This Row],[Q.2]]+t_instalado[[#This Row],[Q.3]],"") ->  | Y315: =IF(t_instalado[[#This Row],[FLUXO]]<>"",ROUND(t_instalado[[#This Row],[FLUXO]]/t_instalado[[#This Row],[Luminárias]],0),"") ->  | Z315: =IF(t_instalado[[#This Row],[Luminárias]]<>"",ROUND(t_instalado[[#This Row],[lm_médio]]/t_instalado[[#This Row],[W_médio]],2),"") -> 
A316: 82 | B316: =_xlfn.XLOOKUP(t_instalado[[#This Row],[cód.]],t_sitio[cód],t_sitio[Trecho],"") ->  | M316: =t_instalado[[#This Row],[Q.1]]+t_instalado[[#This Row],[Q.2]]+t_instalado[[#This Row],[Q.3]] -> 0 | N316: =t_instalado[[#This Row],[Q.1]]+t_instalado[[#This Row],[Q.2]]+t_instalado[[#This Row],[Q.3]] -> 0 | O316: =IF(t_instalado[[#This Row],[Q.1]]<>"",SUMIFS(t_reator[p],t_reator[tipo],t_instalado[[#This Row],[T.1]],t_reator[w],t_instalado[[#This Row],[P.1(W)]]),"") ->  | P316: =IF(t_instalado[[#This Row],[Q.2]]<>"",SUMIFS(t_reator[p],t_reator[tipo],t_instalado[[#This Row],[T.2]],t_reator[w],t_instalado[[#This Row],[P.2(W)]]),"") ->  | Q316: =IF(t_instalado[[#This Row],[Q.3]]<>"",SUMIFS(t_reator[p],t_reator[tipo],t_instalado[[#This Row],[T.3]],t_reator[w],t_instalado[[#This Row],[P.3(W)]]),"") ->  | R316: =IF(t_instalado[[#This Row],[Q.1]]<>"",IFERROR(IFERROR(D316*(E316+O316)+G316*(H316+P316)+J316*(K316+Q316),D316*(E316+O316)+G316*(H316+P316)),D316*(E316+O316)),"") ->  | S316: =IF(t_instalado[[#This Row],[Consumo_W]]<>"",ROUND(t_instalado[[#This Row],[Consumo_W]]/t_instalado[[#This Row],[Luminárias]],0),"") ->  | T316: =IF(t_instalado[[#This Row],[Q.1]]<>"",SUMIFS(t_fluxo_lumin[fluxo],t_fluxo_lumin[tipo],t_instalado[[#This Row],[T.1]])*t_instalado[[#This Row],[P.1(W)]]*t_instalado[[#This Row],[Q.1]],"") ->  | U316: =IF(t_instalado[[#This Row],[Q.2]]<>"",SUMIFS(t_fluxo_lumin[fluxo],t_fluxo_lumin[tipo],t_instalado[[#This Row],[T.2]])*t_instalado[[#This Row],[Q.2]]*t_instalado[[#This Row],[P.2(W)]],"") ->  | V316: =IF(t_instalado[[#This Row],[Q.3]]<>"",SUMIFS(t_fluxo_lumin[fluxo],t_fluxo_lumin[tipo],t_instalado[[#This Row],[T.3]])*t_instalado[[#This Row],[Q.3]]*t_instalado[[#This Row],[P.3(W)]],"") ->  | W316: =IF(t_instalado[[#This Row],[Trecho]]<>"",SUM(t_instalado[[#This Row],[f.1]:[f.3]]),"") ->  | X316: =IF(t_instalado[[#This Row],[Trecho]]<>"",t_instalado[[#This Row],[Q.1]]+t_instalado[[#This Row],[Q.2]]+t_instalado[[#This Row],[Q.3]],"") ->  | Y316: =IF(t_instalado[[#This Row],[FLUXO]]<>"",ROUND(t_instalado[[#This Row],[FLUXO]]/t_instalado[[#This Row],[Luminárias]],0),"") ->  | Z316: =IF(t_instalado[[#This Row],[Luminárias]]<>"",ROUND(t_instalado[[#This Row],[lm_médio]]/t_instalado[[#This Row],[W_médio]],2),"") -> 
A317: 83 | B317: =_xlfn.XLOOKUP(t_instalado[[#This Row],[cód.]],t_sitio[cód],t_sitio[Trecho],"") ->  | M317: =t_instalado[[#This Row],[Q.1]]+t_instalado[[#This Row],[Q.2]]+t_instalado[[#This Row],[Q.3]] -> 0 | N317: =t_instalado[[#This Row],[Q.1]]+t_instalado[[#This Row],[Q.2]]+t_instalado[[#This Row],[Q.3]] -> 0 | O317: =IF(t_instalado[[#This Row],[Q.1]]<>"",SUMIFS(t_reator[p],t_reator[tipo],t_instalado[[#This Row],[T.1]],t_reator[w],t_instalado[[#This Row],[P.1(W)]]),"") ->  | P317: =IF(t_instalado[[#This Row],[Q.2]]<>"",SUMIFS(t_reator[p],t_reator[tipo],t_instalado[[#This Row],[T.2]],t_reator[w],t_instalado[[#This Row],[P.2(W)]]),"") ->  | Q317: =IF(t_instalado[[#This Row],[Q.3]]<>"",SUMIFS(t_reator[p],t_reator[tipo],t_instalado[[#This Row],[T.3]],t_reator[w],t_instalado[[#This Row],[P.3(W)]]),"") ->  | R317: =IF(t_instalado[[#This Row],[Q.1]]<>"",IFERROR(IFERROR(D317*(E317+O317)+G317*(H317+P317)+J317*(K317+Q317),D317*(E317+O317)+G317*(H317+P317)),D317*(E317+O317)),"") ->  | S317: =IF(t_instalado[[#This Row],[Consumo_W]]<>"",ROUND(t_instalado[[#This Row],[Consumo_W]]/t_instalado[[#This Row],[Luminárias]],0),"") ->  | T317: =IF(t_instalado[[#This Row],[Q.1]]<>"",SUMIFS(t_fluxo_lumin[fluxo],t_fluxo_lumin[tipo],t_instalado[[#This Row],[T.1]])*t_instalado[[#This Row],[P.1(W)]]*t_instalado[[#This Row],[Q.1]],"") ->  | U317: =IF(t_instalado[[#This Row],[Q.2]]<>"",SUMIFS(t_fluxo_lumin[fluxo],t_fluxo_lumin[tipo],t_instalado[[#This Row],[T.2]])*t_instalado[[#This Row],[Q.2]]*t_instalado[[#This Row],[P.2(W)]],"") ->  | V317: =IF(t_instalado[[#This Row],[Q.3]]<>"",SUMIFS(t_fluxo_lumin[fluxo],t_fluxo_lumin[tipo],t_instalado[[#This Row],[T.3]])*t_instalado[[#This Row],[Q.3]]*t_instalado[[#This Row],[P.3(W)]],"") ->  | W317: =IF(t_instalado[[#This Row],[Trecho]]<>"",SUM(t_instalado[[#This Row],[f.1]:[f.3]]),"") ->  | X317: =IF(t_instalado[[#This Row],[Trecho]]<>"",t_instalado[[#This Row],[Q.1]]+t_instalado[[#This Row],[Q.2]]+t_instalado[[#This Row],[Q.3]],"") ->  | Y317: =IF(t_instalado[[#This Row],[FLUXO]]<>"",ROUND(t_instalado[[#This Row],[FLUXO]]/t_instalado[[#This Row],[Luminárias]],0),"") ->  | Z317: =IF(t_instalado[[#This Row],[Luminárias]]<>"",ROUND(t_instalado[[#This Row],[lm_médio]]/t_instalado[[#This Row],[W_médio]],2),"") -> 
A318: 84 | B318: =_xlfn.XLOOKUP(t_instalado[[#This Row],[cód.]],t_sitio[cód],t_sitio[Trecho],"") ->  | M318: =t_instalado[[#This Row],[Q.1]]+t_instalado[[#This Row],[Q.2]]+t_instalado[[#This Row],[Q.3]] -> 0 | N318: =t_instalado[[#This Row],[Q.1]]+t_instalado[[#This Row],[Q.2]]+t_instalado[[#This Row],[Q.3]] -> 0 | O318: =IF(t_instalado[[#This Row],[Q.1]]<>"",SUMIFS(t_reator[p],t_reator[tipo],t_instalado[[#This Row],[T.1]],t_reator[w],t_instalado[[#This Row],[P.1(W)]]),"") ->  | P318: =IF(t_instalado[[#This Row],[Q.2]]<>"",SUMIFS(t_reator[p],t_reator[tipo],t_instalado[[#This Row],[T.2]],t_reator[w],t_instalado[[#This Row],[P.2(W)]]),"") ->  | Q318: =IF(t_instalado[[#This Row],[Q.3]]<>"",SUMIFS(t_reator[p],t_reator[tipo],t_instalado[[#This Row],[T.3]],t_reator[w],t_instalado[[#This Row],[P.3(W)]]),"") ->  | R318: =IF(t_instalado[[#This Row],[Q.1]]<>"",IFERROR(IFERROR(D318*(E318+O318)+G318*(H318+P318)+J318*(K318+Q318),D318*(E318+O318)+G318*(H318+P318)),D318*(E318+O318)),"") ->  | S318: =IF(t_instalado[[#This Row],[Consumo_W]]<>"",ROUND(t_instalado[[#This Row],[Consumo_W]]/t_instalado[[#This Row],[Luminárias]],0),"") ->  | T318: =IF(t_instalado[[#This Row],[Q.1]]<>"",SUMIFS(t_fluxo_lumin[fluxo],t_fluxo_lumin[tipo],t_instalado[[#This Row],[T.1]])*t_instalado[[#This Row],[P.1(W)]]*t_instalado[[#This Row],[Q.1]],"") ->  | U318: =IF(t_instalado[[#This Row],[Q.2]]<>"",SUMIFS(t_fluxo_lumin[fluxo],t_fluxo_lumin[tipo],t_instalado[[#This Row],[T.2]])*t_instalado[[#This Row],[Q.2]]*t_instalado[[#This Row],[P.2(W)]],"") ->  | V318: =IF(t_instalado[[#This Row],[Q.3]]<>"",SUMIFS(t_fluxo_lumin[fluxo],t_fluxo_lumin[tipo],t_instalado[[#This Row],[T.3]])*t_instalado[[#This Row],[Q.3]]*t_instalado[[#This Row],[P.3(W)]],"") ->  | W318: =IF(t_instalado[[#This Row],[Trecho]]<>"",SUM(t_instalado[[#This Row],[f.1]:[f.3]]),"") ->  | X318: =IF(t_instalado[[#This Row],[Trecho]]<>"",t_instalado[[#This Row],[Q.1]]+t_instalado[[#This Row],[Q.2]]+t_instalado[[#This Row],[Q.3]],"") ->  | Y318: =IF(t_instalado[[#This Row],[FLUXO]]<>"",ROUND(t_instalado[[#This Row],[FLUXO]]/t_instalado[[#This Row],[Luminárias]],0),"") ->  | Z318: =IF(t_instalado[[#This Row],[Luminárias]]<>"",ROUND(t_instalado[[#This Row],[lm_médio]]/t_instalado[[#This Row],[W_médio]],2),"") -> 
A319: 85 | B319: =_xlfn.XLOOKUP(t_instalado[[#This Row],[cód.]],t_sitio[cód],t_sitio[Trecho],"") ->  | M319: =t_instalado[[#This Row],[Q.1]]+t_instalado[[#This Row],[Q.2]]+t_instalado[[#This Row],[Q.3]] -> 0 | N319: =t_instalado[[#This Row],[Q.1]]+t_instalado[[#This Row],[Q.2]]+t_instalado[[#This Row],[Q.3]] -> 0 | O319: =IF(t_instalado[[#This Row],[Q.1]]<>"",SUMIFS(t_reator[p],t_reator[tipo],t_instalado[[#This Row],[T.1]],t_reator[w],t_instalado[[#This Row],[P.1(W)]]),"") ->  | P319: =IF(t_instalado[[#This Row],[Q.2]]<>"",SUMIFS(t_reator[p],t_reator[tipo],t_instalado[[#This Row],[T.2]],t_reator[w],t_instalado[[#This Row],[P.2(W)]]),"") ->  | Q319: =IF(t_instalado[[#This Row],[Q.3]]<>"",SUMIFS(t_reator[p],t_reator[tipo],t_instalado[[#This Row],[T.3]],t_reator[w],t_instalado[[#This Row],[P.3(W)]]),"") ->  | R319: =IF(t_instalado[[#This Row],[Q.1]]<>"",IFERROR(IFERROR(D319*(E319+O319)+G319*(H319+P319)+J319*(K319+Q319),D319*(E319+O319)+G319*(H319+P319)),D319*(E319+O319)),"") ->  | S319: =IF(t_instalado[[#This Row],[Consumo_W]]<>"",ROUND(t_instalado[[#This Row],[Consumo_W]]/t_instalado[[#This Row],[Luminárias]],0),"") ->  | T319: =IF(t_instalado[[#This Row],[Q.1]]<>"",SUMIFS(t_fluxo_lumin[fluxo],t_fluxo_lumin[tipo],t_instalado[[#This Row],[T.1]])*t_instalado[[#This Row],[P.1(W)]]*t_instalado[[#This Row],[Q.1]],"") ->  | U319: =IF(t_instalado[[#This Row],[Q.2]]<>"",SUMIFS(t_fluxo_lumin[fluxo],t_fluxo_lumin[tipo],t_instalado[[#This Row],[T.2]])*t_instalado[[#This Row],[Q.2]]*t_instalado[[#This Row],[P.2(W)]],"") ->  | V319: =IF(t_instalado[[#This Row],[Q.3]]<>"",SUMIFS(t_fluxo_lumin[fluxo],t_fluxo_lumin[tipo],t_instalado[[#This Row],[T.3]])*t_instalado[[#This Row],[Q.3]]*t_instalado[[#This Row],[P.3(W)]],"") ->  | W319: =IF(t_instalado[[#This Row],[Trecho]]<>"",SUM(t_instalado[[#This Row],[f.1]:[f.3]]),"") ->  | X319: =IF(t_instalado[[#This Row],[Trecho]]<>"",t_instalado[[#This Row],[Q.1]]+t_instalado[[#This Row],[Q.2]]+t_instalado[[#This Row],[Q.3]],"") ->  | Y319: =IF(t_instalado[[#This Row],[FLUXO]]<>"",ROUND(t_instalado[[#This Row],[FLUXO]]/t_instalado[[#This Row],[Luminárias]],0),"") ->  | Z319: =IF(t_instalado[[#This Row],[Luminárias]]<>"",ROUND(t_instalado[[#This Row],[lm_médio]]/t_instalado[[#This Row],[W_médio]],2),"") -> 
A320: 86 | B320: =_xlfn.XLOOKUP(t_instalado[[#This Row],[cód.]],t_sitio[cód],t_sitio[Trecho],"") ->  | M320: =t_instalado[[#This Row],[Q.1]]+t_instalado[[#This Row],[Q.2]]+t_instalado[[#This Row],[Q.3]] -> 0 | N320: =t_instalado[[#This Row],[Q.1]]+t_instalado[[#This Row],[Q.2]]+t_instalado[[#This Row],[Q.3]] -> 0 | O320: =IF(t_instalado[[#This Row],[Q.1]]<>"",SUMIFS(t_reator[p],t_reator[tipo],t_instalado[[#This Row],[T.1]],t_reator[w],t_instalado[[#This Row],[P.1(W)]]),"") ->  | P320: =IF(t_instalado[[#This Row],[Q.2]]<>"",SUMIFS(t_reator[p],t_reator[tipo],t_instalado[[#This Row],[T.2]],t_reator[w],t_instalado[[#This Row],[P.2(W)]]),"") ->  | Q320: =IF(t_instalado[[#This Row],[Q.3]]<>"",SUMIFS(t_reator[p],t_reator[tipo],t_instalado[[#This Row],[T.3]],t_reator[w],t_instalado[[#This Row],[P.3(W)]]),"") ->  | R320: =IF(t_instalado[[#This Row],[Q.1]]<>"",IFERROR(IFERROR(D320*(E320+O320)+G320*(H320+P320)+J320*(K320+Q320),D320*(E320+O320)+G320*(H320+P320)),D320*(E320+O320)),"") ->  | S320: =IF(t_instalado[[#This Row],[Consumo_W]]<>"",ROUND(t_instalado[[#This Row],[Consumo_W]]/t_instalado[[#This Row],[Luminárias]],0),"") ->  | T320: =IF(t_instalado[[#This Row],[Q.1]]<>"",SUMIFS(t_fluxo_lumin[fluxo],t_fluxo_lumin[tipo],t_instalado[[#This Row],[T.1]])*t_instalado[[#This Row],[P.1(W)]]*t_instalado[[#This Row],[Q.1]],"") ->  | U320: =IF(t_instalado[[#This Row],[Q.2]]<>"",SUMIFS(t_fluxo_lumin[fluxo],t_fluxo_lumin[tipo],t_instalado[[#This Row],[T.2]])*t_instalado[[#This Row],[Q.2]]*t_instalado[[#This Row],[P.2(W)]],"") ->  | V320: =IF(t_instalado[[#This Row],[Q.3]]<>"",SUMIFS(t_fluxo_lumin[fluxo],t_fluxo_lumin[tipo],t_instalado[[#This Row],[T.3]])*t_instalado[[#This Row],[Q.3]]*t_instalado[[#This Row],[P.3(W)]],"") ->  | W320: =IF(t_instalado[[#This Row],[Trecho]]<>"",SUM(t_instalado[[#This Row],[f.1]:[f.3]]),"") ->  | X320: =IF(t_instalado[[#This Row],[Trecho]]<>"",t_instalado[[#This Row],[Q.1]]+t_instalado[[#This Row],[Q.2]]+t_instalado[[#This Row],[Q.3]],"") ->  | Y320: =IF(t_instalado[[#This Row],[FLUXO]]<>"",ROUND(t_instalado[[#This Row],[FLUXO]]/t_instalado[[#This Row],[Luminárias]],0),"") ->  | Z320: =IF(t_instalado[[#This Row],[Luminárias]]<>"",ROUND(t_instalado[[#This Row],[lm_médio]]/t_instalado[[#This Row],[W_médio]],2),"") -> 
A321: 87 | B321: =_xlfn.XLOOKUP(t_instalado[[#This Row],[cód.]],t_sitio[cód],t_sitio[Trecho],"") ->  | M321: =t_instalado[[#This Row],[Q.1]]+t_instalado[[#This Row],[Q.2]]+t_instalado[[#This Row],[Q.3]] -> 0 | N321: =t_instalado[[#This Row],[Q.1]]+t_instalado[[#This Row],[Q.2]]+t_instalado[[#This Row],[Q.3]] -> 0 | O321: =IF(t_instalado[[#This Row],[Q.1]]<>"",SUMIFS(t_reator[p],t_reator[tipo],t_instalado[[#This Row],[T.1]],t_reator[w],t_instalado[[#This Row],[P.1(W)]]),"") ->  | P321: =IF(t_instalado[[#This Row],[Q.2]]<>"",SUMIFS(t_reator[p],t_reator[tipo],t_instalado[[#This Row],[T.2]],t_reator[w],t_instalado[[#This Row],[P.2(W)]]),"") ->  | Q321: =IF(t_instalado[[#This Row],[Q.3]]<>"",SUMIFS(t_reator[p],t_reator[tipo],t_instalado[[#This Row],[T.3]],t_reator[w],t_instalado[[#This Row],[P.3(W)]]),"") ->  | R321: =IF(t_instalado[[#This Row],[Q.1]]<>"",IFERROR(IFERROR(D321*(E321+O321)+G321*(H321+P321)+J321*(K321+Q321),D321*(E321+O321)+G321*(H321+P321)),D321*(E321+O321)),"") ->  | S321: =IF(t_instalado[[#This Row],[Consumo_W]]<>"",ROUND(t_instalado[[#This Row],[Consumo_W]]/t_instalado[[#This Row],[Luminárias]],0),"") ->  | T321: =IF(t_instalado[[#This Row],[Q.1]]<>"",SUMIFS(t_fluxo_lumin[fluxo],t_fluxo_lumin[tipo],t_instalado[[#This Row],[T.1]])*t_instalado[[#This Row],[P.1(W)]]*t_instalado[[#This Row],[Q.1]],"") ->  | U321: =IF(t_instalado[[#This Row],[Q.2]]<>"",SUMIFS(t_fluxo_lumin[fluxo],t_fluxo_lumin[tipo],t_instalado[[#This Row],[T.2]])*t_instalado[[#This Row],[Q.2]]*t_instalado[[#This Row],[P.2(W)]],"") ->  | V321: =IF(t_instalado[[#This Row],[Q.3]]<>"",SUMIFS(t_fluxo_lumin[fluxo],t_fluxo_lumin[tipo],t_instalado[[#This Row],[T.3]])*t_instalado[[#This Row],[Q.3]]*t_instalado[[#This Row],[P.3(W)]],"") ->  | W321: =IF(t_instalado[[#This Row],[Trecho]]<>"",SUM(t_instalado[[#This Row],[f.1]:[f.3]]),"") ->  | X321: =IF(t_instalado[[#This Row],[Trecho]]<>"",t_instalado[[#This Row],[Q.1]]+t_instalado[[#This Row],[Q.2]]+t_instalado[[#This Row],[Q.3]],"") ->  | Y321: =IF(t_instalado[[#This Row],[FLUXO]]<>"",ROUND(t_instalado[[#This Row],[FLUXO]]/t_instalado[[#This Row],[Luminárias]],0),"") ->  | Z321: =IF(t_instalado[[#This Row],[Luminárias]]<>"",ROUND(t_instalado[[#This Row],[lm_médio]]/t_instalado[[#This Row],[W_médio]],2),"") -> 
A322: 88 | B322: =_xlfn.XLOOKUP(t_instalado[[#This Row],[cód.]],t_sitio[cód],t_sitio[Trecho],"") ->  | M322: =t_instalado[[#This Row],[Q.1]]+t_instalado[[#This Row],[Q.2]]+t_instalado[[#This Row],[Q.3]] -> 0 | N322: =t_instalado[[#This Row],[Q.1]]+t_instalado[[#This Row],[Q.2]]+t_instalado[[#This Row],[Q.3]] -> 0 | O322: =IF(t_instalado[[#This Row],[Q.1]]<>"",SUMIFS(t_reator[p],t_reator[tipo],t_instalado[[#This Row],[T.1]],t_reator[w],t_instalado[[#This Row],[P.1(W)]]),"") ->  | P322: =IF(t_instalado[[#This Row],[Q.2]]<>"",SUMIFS(t_reator[p],t_reator[tipo],t_instalado[[#This Row],[T.2]],t_reator[w],t_instalado[[#This Row],[P.2(W)]]),"") ->  | Q322: =IF(t_instalado[[#This Row],[Q.3]]<>"",SUMIFS(t_reator[p],t_reator[tipo],t_instalado[[#This Row],[T.3]],t_reator[w],t_instalado[[#This Row],[P.3(W)]]),"") ->  | R322: =IF(t_instalado[[#This Row],[Q.1]]<>"",IFERROR(IFERROR(D322*(E322+O322)+G322*(H322+P322)+J322*(K322+Q322),D322*(E322+O322)+G322*(H322+P322)),D322*(E322+O322)),"") ->  | S322: =IF(t_instalado[[#This Row],[Consumo_W]]<>"",ROUND(t_instalado[[#This Row],[Consumo_W]]/t_instalado[[#This Row],[Luminárias]],0),"") ->  | T322: =IF(t_instalado[[#This Row],[Q.1]]<>"",SUMIFS(t_fluxo_lumin[fluxo],t_fluxo_lumin[tipo],t_instalado[[#This Row],[T.1]])*t_instalado[[#This Row],[P.1(W)]]*t_instalado[[#This Row],[Q.1]],"") ->  | U322: =IF(t_instalado[[#This Row],[Q.2]]<>"",SUMIFS(t_fluxo_lumin[fluxo],t_fluxo_lumin[tipo],t_instalado[[#This Row],[T.2]])*t_instalado[[#This Row],[Q.2]]*t_instalado[[#This Row],[P.2(W)]],"") ->  | V322: =IF(t_instalado[[#This Row],[Q.3]]<>"",SUMIFS(t_fluxo_lumin[fluxo],t_fluxo_lumin[tipo],t_instalado[[#This Row],[T.3]])*t_instalado[[#This Row],[Q.3]]*t_instalado[[#This Row],[P.3(W)]],"") ->  | W322: =IF(t_instalado[[#This Row],[Trecho]]<>"",SUM(t_instalado[[#This Row],[f.1]:[f.3]]),"") ->  | X322: =IF(t_instalado[[#This Row],[Trecho]]<>"",t_instalado[[#This Row],[Q.1]]+t_instalado[[#This Row],[Q.2]]+t_instalado[[#This Row],[Q.3]],"") ->  | Y322: =IF(t_instalado[[#This Row],[FLUXO]]<>"",ROUND(t_instalado[[#This Row],[FLUXO]]/t_instalado[[#This Row],[Luminárias]],0),"") ->  | Z322: =IF(t_instalado[[#This Row],[Luminárias]]<>"",ROUND(t_instalado[[#This Row],[lm_médio]]/t_instalado[[#This Row],[W_médio]],2),"") -> 
A323: 89 | B323: =_xlfn.XLOOKUP(t_instalado[[#This Row],[cód.]],t_sitio[cód],t_sitio[Trecho],"") ->  | M323: =t_instalado[[#This Row],[Q.1]]+t_instalado[[#This Row],[Q.2]]+t_instalado[[#This Row],[Q.3]] -> 0 | N323: =t_instalado[[#This Row],[Q.1]]+t_instalado[[#This Row],[Q.2]]+t_instalado[[#This Row],[Q.3]] -> 0 | O323: =IF(t_instalado[[#This Row],[Q.1]]<>"",SUMIFS(t_reator[p],t_reator[tipo],t_instalado[[#This Row],[T.1]],t_reator[w],t_instalado[[#This Row],[P.1(W)]]),"") ->  | P323: =IF(t_instalado[[#This Row],[Q.2]]<>"",SUMIFS(t_reator[p],t_reator[tipo],t_instalado[[#This Row],[T.2]],t_reator[w],t_instalado[[#This Row],[P.2(W)]]),"") ->  | Q323: =IF(t_instalado[[#This Row],[Q.3]]<>"",SUMIFS(t_reator[p],t_reator[tipo],t_instalado[[#This Row],[T.3]],t_reator[w],t_instalado[[#This Row],[P.3(W)]]),"") ->  | R323: =IF(t_instalado[[#This Row],[Q.1]]<>"",IFERROR(IFERROR(D323*(E323+O323)+G323*(H323+P323)+J323*(K323+Q323),D323*(E323+O323)+G323*(H323+P323)),D323*(E323+O323)),"") ->  | S323: =IF(t_instalado[[#This Row],[Consumo_W]]<>"",ROUND(t_instalado[[#This Row],[Consumo_W]]/t_instalado[[#This Row],[Luminárias]],0),"") ->  | T323: =IF(t_instalado[[#This Row],[Q.1]]<>"",SUMIFS(t_fluxo_lumin[fluxo],t_fluxo_lumin[tipo],t_instalado[[#This Row],[T.1]])*t_instalado[[#This Row],[P.1(W)]]*t_instalado[[#This Row],[Q.1]],"") ->  | U323: =IF(t_instalado[[#This Row],[Q.2]]<>"",SUMIFS(t_fluxo_lumin[fluxo],t_fluxo_lumin[tipo],t_instalado[[#This Row],[T.2]])*t_instalado[[#This Row],[Q.2]]*t_instalado[[#This Row],[P.2(W)]],"") ->  | V323: =IF(t_instalado[[#This Row],[Q.3]]<>"",SUMIFS(t_fluxo_lumin[fluxo],t_fluxo_lumin[tipo],t_instalado[[#This Row],[T.3]])*t_instalado[[#This Row],[Q.3]]*t_instalado[[#This Row],[P.3(W)]],"") ->  | W323: =IF(t_instalado[[#This Row],[Trecho]]<>"",SUM(t_instalado[[#This Row],[f.1]:[f.3]]),"") ->  | X323: =IF(t_instalado[[#This Row],[Trecho]]<>"",t_instalado[[#This Row],[Q.1]]+t_instalado[[#This Row],[Q.2]]+t_instalado[[#This Row],[Q.3]],"") ->  | Y323: =IF(t_instalado[[#This Row],[FLUXO]]<>"",ROUND(t_instalado[[#This Row],[FLUXO]]/t_instalado[[#This Row],[Luminárias]],0),"") ->  | Z323: =IF(t_instalado[[#This Row],[Luminárias]]<>"",ROUND(t_instalado[[#This Row],[lm_médio]]/t_instalado[[#This Row],[W_médio]],2),"") -> 
A324: 90 | B324: =_xlfn.XLOOKUP(t_instalado[[#This Row],[cód.]],t_sitio[cód],t_sitio[Trecho],"") ->  | M324: =t_instalado[[#This Row],[Q.1]]+t_instalado[[#This Row],[Q.2]]+t_instalado[[#This Row],[Q.3]] -> 0 | N324: =t_instalado[[#This Row],[Q.1]]+t_instalado[[#This Row],[Q.2]]+t_instalado[[#This Row],[Q.3]] -> 0 | O324: =IF(t_instalado[[#This Row],[Q.1]]<>"",SUMIFS(t_reator[p],t_reator[tipo],t_instalado[[#This Row],[T.1]],t_reator[w],t_instalado[[#This Row],[P.1(W)]]),"") ->  | P324: =IF(t_instalado[[#This Row],[Q.2]]<>"",SUMIFS(t_reator[p],t_reator[tipo],t_instalado[[#This Row],[T.2]],t_reator[w],t_instalado[[#This Row],[P.2(W)]]),"") ->  | Q324: =IF(t_instalado[[#This Row],[Q.3]]<>"",SUMIFS(t_reator[p],t_reator[tipo],t_instalado[[#This Row],[T.3]],t_reator[w],t_instalado[[#This Row],[P.3(W)]]),"") ->  | R324: =IF(t_instalado[[#This Row],[Q.1]]<>"",IFERROR(IFERROR(D324*(E324+O324)+G324*(H324+P324)+J324*(K324+Q324),D324*(E324+O324)+G324*(H324+P324)),D324*(E324+O324)),"") ->  | S324: =IF(t_instalado[[#This Row],[Consumo_W]]<>"",ROUND(t_instalado[[#This Row],[Consumo_W]]/t_instalado[[#This Row],[Luminárias]],0),"") ->  | T324: =IF(t_instalado[[#This Row],[Q.1]]<>"",SUMIFS(t_fluxo_lumin[fluxo],t_fluxo_lumin[tipo],t_instalado[[#This Row],[T.1]])*t_instalado[[#This Row],[P.1(W)]]*t_instalado[[#This Row],[Q.1]],"") ->  | U324: =IF(t_instalado[[#This Row],[Q.2]]<>"",SUMIFS(t_fluxo_lumin[fluxo],t_fluxo_lumin[tipo],t_instalado[[#This Row],[T.2]])*t_instalado[[#This Row],[Q.2]]*t_instalado[[#This Row],[P.2(W)]],"") ->  | V324: =IF(t_instalado[[#This Row],[Q.3]]<>"",SUMIFS(t_fluxo_lumin[fluxo],t_fluxo_lumin[tipo],t_instalado[[#This Row],[T.3]])*t_instalado[[#This Row],[Q.3]]*t_instalado[[#This Row],[P.3(W)]],"") ->  | W324: =IF(t_instalado[[#This Row],[Trecho]]<>"",SUM(t_instalado[[#This Row],[f.1]:[f.3]]),"") ->  | X324: =IF(t_instalado[[#This Row],[Trecho]]<>"",t_instalado[[#This Row],[Q.1]]+t_instalado[[#This Row],[Q.2]]+t_instalado[[#This Row],[Q.3]],"") ->  | Y324: =IF(t_instalado[[#This Row],[FLUXO]]<>"",ROUND(t_instalado[[#This Row],[FLUXO]]/t_instalado[[#This Row],[Luminárias]],0),"") ->  | Z324: =IF(t_instalado[[#This Row],[Luminárias]]<>"",ROUND(t_instalado[[#This Row],[lm_médio]]/t_instalado[[#This Row],[W_médio]],2),"") -> 
A325: 91 | B325: =_xlfn.XLOOKUP(t_instalado[[#This Row],[cód.]],t_sitio[cód],t_sitio[Trecho],"") ->  | M325: =t_instalado[[#This Row],[Q.1]]+t_instalado[[#This Row],[Q.2]]+t_instalado[[#This Row],[Q.3]] -> 0 | N325: =t_instalado[[#This Row],[Q.1]]+t_instalado[[#This Row],[Q.2]]+t_instalado[[#This Row],[Q.3]] -> 0 | O325: =IF(t_instalado[[#This Row],[Q.1]]<>"",SUMIFS(t_reator[p],t_reator[tipo],t_instalado[[#This Row],[T.1]],t_reator[w],t_instalado[[#This Row],[P.1(W)]]),"") ->  | P325: =IF(t_instalado[[#This Row],[Q.2]]<>"",SUMIFS(t_reator[p],t_reator[tipo],t_instalado[[#This Row],[T.2]],t_reator[w],t_instalado[[#This Row],[P.2(W)]]),"") ->  | Q325: =IF(t_instalado[[#This Row],[Q.3]]<>"",SUMIFS(t_reator[p],t_reator[tipo],t_instalado[[#This Row],[T.3]],t_reator[w],t_instalado[[#This Row],[P.3(W)]]),"") ->  | R325: =IF(t_instalado[[#This Row],[Q.1]]<>"",IFERROR(IFERROR(D325*(E325+O325)+G325*(H325+P325)+J325*(K325+Q325),D325*(E325+O325)+G325*(H325+P325)),D325*(E325+O325)),"") ->  | S325: =IF(t_instalado[[#This Row],[Consumo_W]]<>"",ROUND(t_instalado[[#This Row],[Consumo_W]]/t_instalado[[#This Row],[Luminárias]],0),"") ->  | T325: =IF(t_instalado[[#This Row],[Q.1]]<>"",SUMIFS(t_fluxo_lumin[fluxo],t_fluxo_lumin[tipo],t_instalado[[#This Row],[T.1]])*t_instalado[[#This Row],[P.1(W)]]*t_instalado[[#This Row],[Q.1]],"") ->  | U325: =IF(t_instalado[[#This Row],[Q.2]]<>"",SUMIFS(t_fluxo_lumin[fluxo],t_fluxo_lumin[tipo],t_instalado[[#This Row],[T.2]])*t_instalado[[#This Row],[Q.2]]*t_instalado[[#This Row],[P.2(W)]],"") ->  | V325: =IF(t_instalado[[#This Row],[Q.3]]<>"",SUMIFS(t_fluxo_lumin[fluxo],t_fluxo_lumin[tipo],t_instalado[[#This Row],[T.3]])*t_instalado[[#This Row],[Q.3]]*t_instalado[[#This Row],[P.3(W)]],"") ->  | W325: =IF(t_instalado[[#This Row],[Trecho]]<>"",SUM(t_instalado[[#This Row],[f.1]:[f.3]]),"") ->  | X325: =IF(t_instalado[[#This Row],[Trecho]]<>"",t_instalado[[#This Row],[Q.1]]+t_instalado[[#This Row],[Q.2]]+t_instalado[[#This Row],[Q.3]],"") ->  | Y325: =IF(t_instalado[[#This Row],[FLUXO]]<>"",ROUND(t_instalado[[#This Row],[FLUXO]]/t_instalado[[#This Row],[Luminárias]],0),"") ->  | Z325: =IF(t_instalado[[#This Row],[Luminárias]]<>"",ROUND(t_instalado[[#This Row],[lm_médio]]/t_instalado[[#This Row],[W_médio]],2),"") -> 
A326: 92 | B326: =_xlfn.XLOOKUP(t_instalado[[#This Row],[cód.]],t_sitio[cód],t_sitio[Trecho],"") ->  | M326: =t_instalado[[#This Row],[Q.1]]+t_instalado[[#This Row],[Q.2]]+t_instalado[[#This Row],[Q.3]] -> 0 | N326: =t_instalado[[#This Row],[Q.1]]+t_instalado[[#This Row],[Q.2]]+t_instalado[[#This Row],[Q.3]] -> 0 | O326: =IF(t_instalado[[#This Row],[Q.1]]<>"",SUMIFS(t_reator[p],t_reator[tipo],t_instalado[[#This Row],[T.1]],t_reator[w],t_instalado[[#This Row],[P.1(W)]]),"") ->  | P326: =IF(t_instalado[[#This Row],[Q.2]]<>"",SUMIFS(t_reator[p],t_reator[tipo],t_instalado[[#This Row],[T.2]],t_reator[w],t_instalado[[#This Row],[P.2(W)]]),"") ->  | Q326: =IF(t_instalado[[#This Row],[Q.3]]<>"",SUMIFS(t_reator[p],t_reator[tipo],t_instalado[[#This Row],[T.3]],t_reator[w],t_instalado[[#This Row],[P.3(W)]]),"") ->  | R326: =IF(t_instalado[[#This Row],[Q.1]]<>"",IFERROR(IFERROR(D326*(E326+O326)+G326*(H326+P326)+J326*(K326+Q326),D326*(E326+O326)+G326*(H326+P326)),D326*(E326+O326)),"") ->  | S326: =IF(t_instalado[[#This Row],[Consumo_W]]<>"",ROUND(t_instalado[[#This Row],[Consumo_W]]/t_instalado[[#This Row],[Luminárias]],0),"") ->  | T326: =IF(t_instalado[[#This Row],[Q.1]]<>"",SUMIFS(t_fluxo_lumin[fluxo],t_fluxo_lumin[tipo],t_instalado[[#This Row],[T.1]])*t_instalado[[#This Row],[P.1(W)]]*t_instalado[[#This Row],[Q.1]],"") ->  | U326: =IF(t_instalado[[#This Row],[Q.2]]<>"",SUMIFS(t_fluxo_lumin[fluxo],t_fluxo_lumin[tipo],t_instalado[[#This Row],[T.2]])*t_instalado[[#This Row],[Q.2]]*t_instalado[[#This Row],[P.2(W)]],"") ->  | V326: =IF(t_instalado[[#This Row],[Q.3]]<>"",SUMIFS(t_fluxo_lumin[fluxo],t_fluxo_lumin[tipo],t_instalado[[#This Row],[T.3]])*t_instalado[[#This Row],[Q.3]]*t_instalado[[#This Row],[P.3(W)]],"") ->  | W326: =IF(t_instalado[[#This Row],[Trecho]]<>"",SUM(t_instalado[[#This Row],[f.1]:[f.3]]),"") ->  | X326: =IF(t_instalado[[#This Row],[Trecho]]<>"",t_instalado[[#This Row],[Q.1]]+t_instalado[[#This Row],[Q.2]]+t_instalado[[#This Row],[Q.3]],"") ->  | Y326: =IF(t_instalado[[#This Row],[FLUXO]]<>"",ROUND(t_instalado[[#This Row],[FLUXO]]/t_instalado[[#This Row],[Luminárias]],0),"") ->  | Z326: =IF(t_instalado[[#This Row],[Luminárias]]<>"",ROUND(t_instalado[[#This Row],[lm_médio]]/t_instalado[[#This Row],[W_médio]],2),"") -> 
A327: 93 | B327: =_xlfn.XLOOKUP(t_instalado[[#This Row],[cód.]],t_sitio[cód],t_sitio[Trecho],"") ->  | M327: =t_instalado[[#This Row],[Q.1]]+t_instalado[[#This Row],[Q.2]]+t_instalado[[#This Row],[Q.3]] -> 0 | N327: =t_instalado[[#This Row],[Q.1]]+t_instalado[[#This Row],[Q.2]]+t_instalado[[#This Row],[Q.3]] -> 0 | O327: =IF(t_instalado[[#This Row],[Q.1]]<>"",SUMIFS(t_reator[p],t_reator[tipo],t_instalado[[#This Row],[T.1]],t_reator[w],t_instalado[[#This Row],[P.1(W)]]),"") ->  | P327: =IF(t_instalado[[#This Row],[Q.2]]<>"",SUMIFS(t_reator[p],t_reator[tipo],t_instalado[[#This Row],[T.2]],t_reator[w],t_instalado[[#This Row],[P.2(W)]]),"") ->  | Q327: =IF(t_instalado[[#This Row],[Q.3]]<>"",SUMIFS(t_reator[p],t_reator[tipo],t_instalado[[#This Row],[T.3]],t_reator[w],t_instalado[[#This Row],[P.3(W)]]),"") ->  | R327: =IF(t_instalado[[#This Row],[Q.1]]<>"",IFERROR(IFERROR(D327*(E327+O327)+G327*(H327+P327)+J327*(K327+Q327),D327*(E327+O327)+G327*(H327+P327)),D327*(E327+O327)),"") ->  | S327: =IF(t_instalado[[#This Row],[Consumo_W]]<>"",ROUND(t_instalado[[#This Row],[Consumo_W]]/t_instalado[[#This Row],[Luminárias]],0),"") ->  | T327: =IF(t_instalado[[#This Row],[Q.1]]<>"",SUMIFS(t_fluxo_lumin[fluxo],t_fluxo_lumin[tipo],t_instalado[[#This Row],[T.1]])*t_instalado[[#This Row],[P.1(W)]]*t_instalado[[#This Row],[Q.1]],"") ->  | U327: =IF(t_instalado[[#This Row],[Q.2]]<>"",SUMIFS(t_fluxo_lumin[fluxo],t_fluxo_lumin[tipo],t_instalado[[#This Row],[T.2]])*t_instalado[[#This Row],[Q.2]]*t_instalado[[#This Row],[P.2(W)]],"") ->  | V327: =IF(t_instalado[[#This Row],[Q.3]]<>"",SUMIFS(t_fluxo_lumin[fluxo],t_fluxo_lumin[tipo],t_instalado[[#This Row],[T.3]])*t_instalado[[#This Row],[Q.3]]*t_instalado[[#This Row],[P.3(W)]],"") ->  | W327: =IF(t_instalado[[#This Row],[Trecho]]<>"",SUM(t_instalado[[#This Row],[f.1]:[f.3]]),"") ->  | X327: =IF(t_instalado[[#This Row],[Trecho]]<>"",t_instalado[[#This Row],[Q.1]]+t_instalado[[#This Row],[Q.2]]+t_instalado[[#This Row],[Q.3]],"") ->  | Y327: =IF(t_instalado[[#This Row],[FLUXO]]<>"",ROUND(t_instalado[[#This Row],[FLUXO]]/t_instalado[[#This Row],[Luminárias]],0),"") ->  | Z327: =IF(t_instalado[[#This Row],[Luminárias]]<>"",ROUND(t_instalado[[#This Row],[lm_médio]]/t_instalado[[#This Row],[W_médio]],2),"") -> 
A328: 94 | B328: =_xlfn.XLOOKUP(t_instalado[[#This Row],[cód.]],t_sitio[cód],t_sitio[Trecho],"") ->  | M328: =t_instalado[[#This Row],[Q.1]]+t_instalado[[#This Row],[Q.2]]+t_instalado[[#This Row],[Q.3]] -> 0 | N328: =t_instalado[[#This Row],[Q.1]]+t_instalado[[#This Row],[Q.2]]+t_instalado[[#This Row],[Q.3]] -> 0 | O328: =IF(t_instalado[[#This Row],[Q.1]]<>"",SUMIFS(t_reator[p],t_reator[tipo],t_instalado[[#This Row],[T.1]],t_reator[w],t_instalado[[#This Row],[P.1(W)]]),"") ->  | P328: =IF(t_instalado[[#This Row],[Q.2]]<>"",SUMIFS(t_reator[p],t_reator[tipo],t_instalado[[#This Row],[T.2]],t_reator[w],t_instalado[[#This Row],[P.2(W)]]),"") ->  | Q328: =IF(t_instalado[[#This Row],[Q.3]]<>"",SUMIFS(t_reator[p],t_reator[tipo],t_instalado[[#This Row],[T.3]],t_reator[w],t_instalado[[#This Row],[P.3(W)]]),"") ->  | R328: =IF(t_instalado[[#This Row],[Q.1]]<>"",IFERROR(IFERROR(D328*(E328+O328)+G328*(H328+P328)+J328*(K328+Q328),D328*(E328+O328)+G328*(H328+P328)),D328*(E328+O328)),"") ->  | S328: =IF(t_instalado[[#This Row],[Consumo_W]]<>"",ROUND(t_instalado[[#This Row],[Consumo_W]]/t_instalado[[#This Row],[Luminárias]],0),"") ->  | T328: =IF(t_instalado[[#This Row],[Q.1]]<>"",SUMIFS(t_fluxo_lumin[fluxo],t_fluxo_lumin[tipo],t_instalado[[#This Row],[T.1]])*t_instalado[[#This Row],[P.1(W)]]*t_instalado[[#This Row],[Q.1]],"") ->  | U328: =IF(t_instalado[[#This Row],[Q.2]]<>"",SUMIFS(t_fluxo_lumin[fluxo],t_fluxo_lumin[tipo],t_instalado[[#This Row],[T.2]])*t_instalado[[#This Row],[Q.2]]*t_instalado[[#This Row],[P.2(W)]],"") ->  | V328: =IF(t_instalado[[#This Row],[Q.3]]<>"",SUMIFS(t_fluxo_lumin[fluxo],t_fluxo_lumin[tipo],t_instalado[[#This Row],[T.3]])*t_instalado[[#This Row],[Q.3]]*t_instalado[[#This Row],[P.3(W)]],"") ->  | W328: =IF(t_instalado[[#This Row],[Trecho]]<>"",SUM(t_instalado[[#This Row],[f.1]:[f.3]]),"") ->  | X328: =IF(t_instalado[[#This Row],[Trecho]]<>"",t_instalado[[#This Row],[Q.1]]+t_instalado[[#This Row],[Q.2]]+t_instalado[[#This Row],[Q.3]],"") ->  | Y328: =IF(t_instalado[[#This Row],[FLUXO]]<>"",ROUND(t_instalado[[#This Row],[FLUXO]]/t_instalado[[#This Row],[Luminárias]],0),"") ->  | Z328: =IF(t_instalado[[#This Row],[Luminárias]]<>"",ROUND(t_instalado[[#This Row],[lm_médio]]/t_instalado[[#This Row],[W_médio]],2),"") -> 
A329: 95 | B329: =_xlfn.XLOOKUP(t_instalado[[#This Row],[cód.]],t_sitio[cód],t_sitio[Trecho],"") ->  | M329: =t_instalado[[#This Row],[Q.1]]+t_instalado[[#This Row],[Q.2]]+t_instalado[[#This Row],[Q.3]] -> 0 | N329: =t_instalado[[#This Row],[Q.1]]+t_instalado[[#This Row],[Q.2]]+t_instalado[[#This Row],[Q.3]] -> 0 | O329: =IF(t_instalado[[#This Row],[Q.1]]<>"",SUMIFS(t_reator[p],t_reator[tipo],t_instalado[[#This Row],[T.1]],t_reator[w],t_instalado[[#This Row],[P.1(W)]]),"") ->  | P329: =IF(t_instalado[[#This Row],[Q.2]]<>"",SUMIFS(t_reator[p],t_reator[tipo],t_instalado[[#This Row],[T.2]],t_reator[w],t_instalado[[#This Row],[P.2(W)]]),"") ->  | Q329: =IF(t_instalado[[#This Row],[Q.3]]<>"",SUMIFS(t_reator[p],t_reator[tipo],t_instalado[[#This Row],[T.3]],t_reator[w],t_instalado[[#This Row],[P.3(W)]]),"") ->  | R329: =IF(t_instalado[[#This Row],[Q.1]]<>"",IFERROR(IFERROR(D329*(E329+O329)+G329*(H329+P329)+J329*(K329+Q329),D329*(E329+O329)+G329*(H329+P329)),D329*(E329+O329)),"") ->  | S329: =IF(t_instalado[[#This Row],[Consumo_W]]<>"",ROUND(t_instalado[[#This Row],[Consumo_W]]/t_instalado[[#This Row],[Luminárias]],0),"") ->  | T329: =IF(t_instalado[[#This Row],[Q.1]]<>"",SUMIFS(t_fluxo_lumin[fluxo],t_fluxo_lumin[tipo],t_instalado[[#This Row],[T.1]])*t_instalado[[#This Row],[P.1(W)]]*t_instalado[[#This Row],[Q.1]],"") ->  | U329: =IF(t_instalado[[#This Row],[Q.2]]<>"",SUMIFS(t_fluxo_lumin[fluxo],t_fluxo_lumin[tipo],t_instalado[[#This Row],[T.2]])*t_instalado[[#This Row],[Q.2]]*t_instalado[[#This Row],[P.2(W)]],"") ->  | V329: =IF(t_instalado[[#This Row],[Q.3]]<>"",SUMIFS(t_fluxo_lumin[fluxo],t_fluxo_lumin[tipo],t_instalado[[#This Row],[T.3]])*t_instalado[[#This Row],[Q.3]]*t_instalado[[#This Row],[P.3(W)]],"") ->  | W329: =IF(t_instalado[[#This Row],[Trecho]]<>"",SUM(t_instalado[[#This Row],[f.1]:[f.3]]),"") ->  | X329: =IF(t_instalado[[#This Row],[Trecho]]<>"",t_instalado[[#This Row],[Q.1]]+t_instalado[[#This Row],[Q.2]]+t_instalado[[#This Row],[Q.3]],"") ->  | Y329: =IF(t_instalado[[#This Row],[FLUXO]]<>"",ROUND(t_instalado[[#This Row],[FLUXO]]/t_instalado[[#This Row],[Luminárias]],0),"") ->  | Z329: =IF(t_instalado[[#This Row],[Luminárias]]<>"",ROUND(t_instalado[[#This Row],[lm_médio]]/t_instalado[[#This Row],[W_médio]],2),"") -> 
A330: 96 | B330: =_xlfn.XLOOKUP(t_instalado[[#This Row],[cód.]],t_sitio[cód],t_sitio[Trecho],"") ->  | M330: =t_instalado[[#This Row],[Q.1]]+t_instalado[[#This Row],[Q.2]]+t_instalado[[#This Row],[Q.3]] -> 0 | N330: =t_instalado[[#This Row],[Q.1]]+t_instalado[[#This Row],[Q.2]]+t_instalado[[#This Row],[Q.3]] -> 0 | O330: =IF(t_instalado[[#This Row],[Q.1]]<>"",SUMIFS(t_reator[p],t_reator[tipo],t_instalado[[#This Row],[T.1]],t_reator[w],t_instalado[[#This Row],[P.1(W)]]),"") ->  | P330: =IF(t_instalado[[#This Row],[Q.2]]<>"",SUMIFS(t_reator[p],t_reator[tipo],t_instalado[[#This Row],[T.2]],t_reator[w],t_instalado[[#This Row],[P.2(W)]]),"") ->  | Q330: =IF(t_instalado[[#This Row],[Q.3]]<>"",SUMIFS(t_reator[p],t_reator[tipo],t_instalado[[#This Row],[T.3]],t_reator[w],t_instalado[[#This Row],[P.3(W)]]),"") ->  | R330: =IF(t_instalado[[#This Row],[Q.1]]<>"",IFERROR(IFERROR(D330*(E330+O330)+G330*(H330+P330)+J330*(K330+Q330),D330*(E330+O330)+G330*(H330+P330)),D330*(E330+O330)),"") ->  | S330: =IF(t_instalado[[#This Row],[Consumo_W]]<>"",ROUND(t_instalado[[#This Row],[Consumo_W]]/t_instalado[[#This Row],[Luminárias]],0),"") ->  | T330: =IF(t_instalado[[#This Row],[Q.1]]<>"",SUMIFS(t_fluxo_lumin[fluxo],t_fluxo_lumin[tipo],t_instalado[[#This Row],[T.1]])*t_instalado[[#This Row],[P.1(W)]]*t_instalado[[#This Row],[Q.1]],"") ->  | U330: =IF(t_instalado[[#This Row],[Q.2]]<>"",SUMIFS(t_fluxo_lumin[fluxo],t_fluxo_lumin[tipo],t_instalado[[#This Row],[T.2]])*t_instalado[[#This Row],[Q.2]]*t_instalado[[#This Row],[P.2(W)]],"") ->  | V330: =IF(t_instalado[[#This Row],[Q.3]]<>"",SUMIFS(t_fluxo_lumin[fluxo],t_fluxo_lumin[tipo],t_instalado[[#This Row],[T.3]])*t_instalado[[#This Row],[Q.3]]*t_instalado[[#This Row],[P.3(W)]],"") ->  | W330: =IF(t_instalado[[#This Row],[Trecho]]<>"",SUM(t_instalado[[#This Row],[f.1]:[f.3]]),"") ->  | X330: =IF(t_instalado[[#This Row],[Trecho]]<>"",t_instalado[[#This Row],[Q.1]]+t_instalado[[#This Row],[Q.2]]+t_instalado[[#This Row],[Q.3]],"") ->  | Y330: =IF(t_instalado[[#This Row],[FLUXO]]<>"",ROUND(t_instalado[[#This Row],[FLUXO]]/t_instalado[[#This Row],[Luminárias]],0),"") ->  | Z330: =IF(t_instalado[[#This Row],[Luminárias]]<>"",ROUND(t_instalado[[#This Row],[lm_médio]]/t_instalado[[#This Row],[W_médio]],2),"") -> 
A331: 97 | B331: =_xlfn.XLOOKUP(t_instalado[[#This Row],[cód.]],t_sitio[cód],t_sitio[Trecho],"") ->  | M331: =t_instalado[[#This Row],[Q.1]]+t_instalado[[#This Row],[Q.2]]+t_instalado[[#This Row],[Q.3]] -> 0 | N331: =t_instalado[[#This Row],[Q.1]]+t_instalado[[#This Row],[Q.2]]+t_instalado[[#This Row],[Q.3]] -> 0 | O331: =IF(t_instalado[[#This Row],[Q.1]]<>"",SUMIFS(t_reator[p],t_reator[tipo],t_instalado[[#This Row],[T.1]],t_reator[w],t_instalado[[#This Row],[P.1(W)]]),"") ->  | P331: =IF(t_instalado[[#This Row],[Q.2]]<>"",SUMIFS(t_reator[p],t_reator[tipo],t_instalado[[#This Row],[T.2]],t_reator[w],t_instalado[[#This Row],[P.2(W)]]),"") ->  | Q331: =IF(t_instalado[[#This Row],[Q.3]]<>"",SUMIFS(t_reator[p],t_reator[tipo],t_instalado[[#This Row],[T.3]],t_reator[w],t_instalado[[#This Row],[P.3(W)]]),"") ->  | R331: =IF(t_instalado[[#This Row],[Q.1]]<>"",IFERROR(IFERROR(D331*(E331+O331)+G331*(H331+P331)+J331*(K331+Q331),D331*(E331+O331)+G331*(H331+P331)),D331*(E331+O331)),"") ->  | S331: =IF(t_instalado[[#This Row],[Consumo_W]]<>"",ROUND(t_instalado[[#This Row],[Consumo_W]]/t_instalado[[#This Row],[Luminárias]],0),"") ->  | T331: =IF(t_instalado[[#This Row],[Q.1]]<>"",SUMIFS(t_fluxo_lumin[fluxo],t_fluxo_lumin[tipo],t_instalado[[#This Row],[T.1]])*t_instalado[[#This Row],[P.1(W)]]*t_instalado[[#This Row],[Q.1]],"") ->  | U331: =IF(t_instalado[[#This Row],[Q.2]]<>"",SUMIFS(t_fluxo_lumin[fluxo],t_fluxo_lumin[tipo],t_instalado[[#This Row],[T.2]])*t_instalado[[#This Row],[Q.2]]*t_instalado[[#This Row],[P.2(W)]],"") ->  | V331: =IF(t_instalado[[#This Row],[Q.3]]<>"",SUMIFS(t_fluxo_lumin[fluxo],t_fluxo_lumin[tipo],t_instalado[[#This Row],[T.3]])*t_instalado[[#This Row],[Q.3]]*t_instalado[[#This Row],[P.3(W)]],"") ->  | W331: =IF(t_instalado[[#This Row],[Trecho]]<>"",SUM(t_instalado[[#This Row],[f.1]:[f.3]]),"") ->  | X331: =IF(t_instalado[[#This Row],[Trecho]]<>"",t_instalado[[#This Row],[Q.1]]+t_instalado[[#This Row],[Q.2]]+t_instalado[[#This Row],[Q.3]],"") ->  | Y331: =IF(t_instalado[[#This Row],[FLUXO]]<>"",ROUND(t_instalado[[#This Row],[FLUXO]]/t_instalado[[#This Row],[Luminárias]],0),"") ->  | Z331: =IF(t_instalado[[#This Row],[Luminárias]]<>"",ROUND(t_instalado[[#This Row],[lm_médio]]/t_instalado[[#This Row],[W_médio]],2),"") -> 
A332: 98 | B332: =_xlfn.XLOOKUP(t_instalado[[#This Row],[cód.]],t_sitio[cód],t_sitio[Trecho],"") ->  | M332: =t_instalado[[#This Row],[Q.1]]+t_instalado[[#This Row],[Q.2]]+t_instalado[[#This Row],[Q.3]] -> 0 | N332: =t_instalado[[#This Row],[Q.1]]+t_instalado[[#This Row],[Q.2]]+t_instalado[[#This Row],[Q.3]] -> 0 | O332: =IF(t_instalado[[#This Row],[Q.1]]<>"",SUMIFS(t_reator[p],t_reator[tipo],t_instalado[[#This Row],[T.1]],t_reator[w],t_instalado[[#This Row],[P.1(W)]]),"") ->  | P332: =IF(t_instalado[[#This Row],[Q.2]]<>"",SUMIFS(t_reator[p],t_reator[tipo],t_instalado[[#This Row],[T.2]],t_reator[w],t_instalado[[#This Row],[P.2(W)]]),"") ->  | Q332: =IF(t_instalado[[#This Row],[Q.3]]<>"",SUMIFS(t_reator[p],t_reator[tipo],t_instalado[[#This Row],[T.3]],t_reator[w],t_instalado[[#This Row],[P.3(W)]]),"") ->  | R332: =IF(t_instalado[[#This Row],[Q.1]]<>"",IFERROR(IFERROR(D332*(E332+O332)+G332*(H332+P332)+J332*(K332+Q332),D332*(E332+O332)+G332*(H332+P332)),D332*(E332+O332)),"") ->  | S332: =IF(t_instalado[[#This Row],[Consumo_W]]<>"",ROUND(t_instalado[[#This Row],[Consumo_W]]/t_instalado[[#This Row],[Luminárias]],0),"") ->  | T332: =IF(t_instalado[[#This Row],[Q.1]]<>"",SUMIFS(t_fluxo_lumin[fluxo],t_fluxo_lumin[tipo],t_instalado[[#This Row],[T.1]])*t_instalado[[#This Row],[P.1(W)]]*t_instalado[[#This Row],[Q.1]],"") ->  | U332: =IF(t_instalado[[#This Row],[Q.2]]<>"",SUMIFS(t_fluxo_lumin[fluxo],t_fluxo_lumin[tipo],t_instalado[[#This Row],[T.2]])*t_instalado[[#This Row],[Q.2]]*t_instalado[[#This Row],[P.2(W)]],"") ->  | V332: =IF(t_instalado[[#This Row],[Q.3]]<>"",SUMIFS(t_fluxo_lumin[fluxo],t_fluxo_lumin[tipo],t_instalado[[#This Row],[T.3]])*t_instalado[[#This Row],[Q.3]]*t_instalado[[#This Row],[P.3(W)]],"") ->  | W332: =IF(t_instalado[[#This Row],[Trecho]]<>"",SUM(t_instalado[[#This Row],[f.1]:[f.3]]),"") ->  | X332: =IF(t_instalado[[#This Row],[Trecho]]<>"",t_instalado[[#This Row],[Q.1]]+t_instalado[[#This Row],[Q.2]]+t_instalado[[#This Row],[Q.3]],"") ->  | Y332: =IF(t_instalado[[#This Row],[FLUXO]]<>"",ROUND(t_instalado[[#This Row],[FLUXO]]/t_instalado[[#This Row],[Luminárias]],0),"") ->  | Z332: =IF(t_instalado[[#This Row],[Luminárias]]<>"",ROUND(t_instalado[[#This Row],[lm_médio]]/t_instalado[[#This Row],[W_médio]],2),"") -> 
A333: 99 | B333: =_xlfn.XLOOKUP(t_instalado[[#This Row],[cód.]],t_sitio[cód],t_sitio[Trecho],"") ->  | M333: =t_instalado[[#This Row],[Q.1]]+t_instalado[[#This Row],[Q.2]]+t_instalado[[#This Row],[Q.3]] -> 0 | N333: =t_instalado[[#This Row],[Q.1]]+t_instalado[[#This Row],[Q.2]]+t_instalado[[#This Row],[Q.3]] -> 0 | O333: =IF(t_instalado[[#This Row],[Q.1]]<>"",SUMIFS(t_reator[p],t_reator[tipo],t_instalado[[#This Row],[T.1]],t_reator[w],t_instalado[[#This Row],[P.1(W)]]),"") ->  | P333: =IF(t_instalado[[#This Row],[Q.2]]<>"",SUMIFS(t_reator[p],t_reator[tipo],t_instalado[[#This Row],[T.2]],t_reator[w],t_instalado[[#This Row],[P.2(W)]]),"") ->  | Q333: =IF(t_instalado[[#This Row],[Q.3]]<>"",SUMIFS(t_reator[p],t_reator[tipo],t_instalado[[#This Row],[T.3]],t_reator[w],t_instalado[[#This Row],[P.3(W)]]),"") ->  | R333: =IF(t_instalado[[#This Row],[Q.1]]<>"",IFERROR(IFERROR(D333*(E333+O333)+G333*(H333+P333)+J333*(K333+Q333),D333*(E333+O333)+G333*(H333+P333)),D333*(E333+O333)),"") ->  | S333: =IF(t_instalado[[#This Row],[Consumo_W]]<>"",ROUND(t_instalado[[#This Row],[Consumo_W]]/t_instalado[[#This Row],[Luminárias]],0),"") ->  | T333: =IF(t_instalado[[#This Row],[Q.1]]<>"",SUMIFS(t_fluxo_lumin[fluxo],t_fluxo_lumin[tipo],t_instalado[[#This Row],[T.1]])*t_instalado[[#This Row],[P.1(W)]]*t_instalado[[#This Row],[Q.1]],"") ->  | U333: =IF(t_instalado[[#This Row],[Q.2]]<>"",SUMIFS(t_fluxo_lumin[fluxo],t_fluxo_lumin[tipo],t_instalado[[#This Row],[T.2]])*t_instalado[[#This Row],[Q.2]]*t_instalado[[#This Row],[P.2(W)]],"") ->  | V333: =IF(t_instalado[[#This Row],[Q.3]]<>"",SUMIFS(t_fluxo_lumin[fluxo],t_fluxo_lumin[tipo],t_instalado[[#This Row],[T.3]])*t_instalado[[#This Row],[Q.3]]*t_instalado[[#This Row],[P.3(W)]],"") ->  | W333: =IF(t_instalado[[#This Row],[Trecho]]<>"",SUM(t_instalado[[#This Row],[f.1]:[f.3]]),"") ->  | X333: =IF(t_instalado[[#This Row],[Trecho]]<>"",t_instalado[[#This Row],[Q.1]]+t_instalado[[#This Row],[Q.2]]+t_instalado[[#This Row],[Q.3]],"") ->  | Y333: =IF(t_instalado[[#This Row],[FLUXO]]<>"",ROUND(t_instalado[[#This Row],[FLUXO]]/t_instalado[[#This Row],[Luminárias]],0),"") ->  | Z333: =IF(t_instalado[[#This Row],[Luminárias]]<>"",ROUND(t_instalado[[#This Row],[lm_médio]]/t_instalado[[#This Row],[W_médio]],2),"") -> 
A334: 100 | B334: =_xlfn.XLOOKUP(t_instalado[[#This Row],[cód.]],t_sitio[cód],t_sitio[Trecho],"") ->  | M334: =t_instalado[[#This Row],[Q.1]]+t_instalado[[#This Row],[Q.2]]+t_instalado[[#This Row],[Q.3]] -> 0 | N334: =t_instalado[[#This Row],[Q.1]]+t_instalado[[#This Row],[Q.2]]+t_instalado[[#This Row],[Q.3]] -> 0 | O334: =IF(t_instalado[[#This Row],[Q.1]]<>"",SUMIFS(t_reator[p],t_reator[tipo],t_instalado[[#This Row],[T.1]],t_reator[w],t_instalado[[#This Row],[P.1(W)]]),"") ->  | P334: =IF(t_instalado[[#This Row],[Q.2]]<>"",SUMIFS(t_reator[p],t_reator[tipo],t_instalado[[#This Row],[T.2]],t_reator[w],t_instalado[[#This Row],[P.2(W)]]),"") ->  | Q334: =IF(t_instalado[[#This Row],[Q.3]]<>"",SUMIFS(t_reator[p],t_reator[tipo],t_instalado[[#This Row],[T.3]],t_reator[w],t_instalado[[#This Row],[P.3(W)]]),"") ->  | R334: =IF(t_instalado[[#This Row],[Q.1]]<>"",IFERROR(IFERROR(D334*(E334+O334)+G334*(H334+P334)+J334*(K334+Q334),D334*(E334+O334)+G334*(H334+P334)),D334*(E334+O334)),"") ->  | S334: =IF(t_instalado[[#This Row],[Consumo_W]]<>"",ROUND(t_instalado[[#This Row],[Consumo_W]]/t_instalado[[#This Row],[Luminárias]],0),"") ->  | T334: =IF(t_instalado[[#This Row],[Q.1]]<>"",SUMIFS(t_fluxo_lumin[fluxo],t_fluxo_lumin[tipo],t_instalado[[#This Row],[T.1]])*t_instalado[[#This Row],[P.1(W)]]*t_instalado[[#This Row],[Q.1]],"") ->  | U334: =IF(t_instalado[[#This Row],[Q.2]]<>"",SUMIFS(t_fluxo_lumin[fluxo],t_fluxo_lumin[tipo],t_instalado[[#This Row],[T.2]])*t_instalado[[#This Row],[Q.2]]*t_instalado[[#This Row],[P.2(W)]],"") ->  | V334: =IF(t_instalado[[#This Row],[Q.3]]<>"",SUMIFS(t_fluxo_lumin[fluxo],t_fluxo_lumin[tipo],t_instalado[[#This Row],[T.3]])*t_instalado[[#This Row],[Q.3]]*t_instalado[[#This Row],[P.3(W)]],"") ->  | W334: =IF(t_instalado[[#This Row],[Trecho]]<>"",SUM(t_instalado[[#This Row],[f.1]:[f.3]]),"") ->  | X334: =IF(t_instalado[[#This Row],[Trecho]]<>"",t_instalado[[#This Row],[Q.1]]+t_instalado[[#This Row],[Q.2]]+t_instalado[[#This Row],[Q.3]],"") ->  | Y334: =IF(t_instalado[[#This Row],[FLUXO]]<>"",ROUND(t_instalado[[#This Row],[FLUXO]]/t_instalado[[#This Row],[Luminárias]],0),"") ->  | Z334: =IF(t_instalado[[#This Row],[Luminárias]]<>"",ROUND(t_instalado[[#This Row],[lm_médio]]/t_instalado[[#This Row],[W_médio]],2),"") -> 
A335: 101 | B335: =_xlfn.XLOOKUP(t_instalado[[#This Row],[cód.]],t_sitio[cód],t_sitio[Trecho],"") ->  | M335: =t_instalado[[#This Row],[Q.1]]+t_instalado[[#This Row],[Q.2]]+t_instalado[[#This Row],[Q.3]] -> 0 | N335: =t_instalado[[#This Row],[Q.1]]+t_instalado[[#This Row],[Q.2]]+t_instalado[[#This Row],[Q.3]] -> 0 | O335: =IF(t_instalado[[#This Row],[Q.1]]<>"",SUMIFS(t_reator[p],t_reator[tipo],t_instalado[[#This Row],[T.1]],t_reator[w],t_instalado[[#This Row],[P.1(W)]]),"") ->  | P335: =IF(t_instalado[[#This Row],[Q.2]]<>"",SUMIFS(t_reator[p],t_reator[tipo],t_instalado[[#This Row],[T.2]],t_reator[w],t_instalado[[#This Row],[P.2(W)]]),"") ->  | Q335: =IF(t_instalado[[#This Row],[Q.3]]<>"",SUMIFS(t_reator[p],t_reator[tipo],t_instalado[[#This Row],[T.3]],t_reator[w],t_instalado[[#This Row],[P.3(W)]]),"") ->  | R335: =IF(t_instalado[[#This Row],[Q.1]]<>"",IFERROR(IFERROR(D335*(E335+O335)+G335*(H335+P335)+J335*(K335+Q335),D335*(E335+O335)+G335*(H335+P335)),D335*(E335+O335)),"") ->  | S335: =IF(t_instalado[[#This Row],[Consumo_W]]<>"",ROUND(t_instalado[[#This Row],[Consumo_W]]/t_instalado[[#This Row],[Luminárias]],0),"") ->  | T335: =IF(t_instalado[[#This Row],[Q.1]]<>"",SUMIFS(t_fluxo_lumin[fluxo],t_fluxo_lumin[tipo],t_instalado[[#This Row],[T.1]])*t_instalado[[#This Row],[P.1(W)]]*t_instalado[[#This Row],[Q.1]],"") ->  | U335: =IF(t_instalado[[#This Row],[Q.2]]<>"",SUMIFS(t_fluxo_lumin[fluxo],t_fluxo_lumin[tipo],t_instalado[[#This Row],[T.2]])*t_instalado[[#This Row],[Q.2]]*t_instalado[[#This Row],[P.2(W)]],"") ->  | V335: =IF(t_instalado[[#This Row],[Q.3]]<>"",SUMIFS(t_fluxo_lumin[fluxo],t_fluxo_lumin[tipo],t_instalado[[#This Row],[T.3]])*t_instalado[[#This Row],[Q.3]]*t_instalado[[#This Row],[P.3(W)]],"") ->  | W335: =IF(t_instalado[[#This Row],[Trecho]]<>"",SUM(t_instalado[[#This Row],[f.1]:[f.3]]),"") ->  | X335: =IF(t_instalado[[#This Row],[Trecho]]<>"",t_instalado[[#This Row],[Q.1]]+t_instalado[[#This Row],[Q.2]]+t_instalado[[#This Row],[Q.3]],"") ->  | Y335: =IF(t_instalado[[#This Row],[FLUXO]]<>"",ROUND(t_instalado[[#This Row],[FLUXO]]/t_instalado[[#This Row],[Luminárias]],0),"") ->  | Z335: =IF(t_instalado[[#This Row],[Luminárias]]<>"",ROUND(t_instalado[[#This Row],[lm_médio]]/t_instalado[[#This Row],[W_médio]],2),"") -> 
A336: 102 | B336: =_xlfn.XLOOKUP(t_instalado[[#This Row],[cód.]],t_sitio[cód],t_sitio[Trecho],"") ->  | M336: =t_instalado[[#This Row],[Q.1]]+t_instalado[[#This Row],[Q.2]]+t_instalado[[#This Row],[Q.3]] -> 0 | N336: =t_instalado[[#This Row],[Q.1]]+t_instalado[[#This Row],[Q.2]]+t_instalado[[#This Row],[Q.3]] -> 0 | O336: =IF(t_instalado[[#This Row],[Q.1]]<>"",SUMIFS(t_reator[p],t_reator[tipo],t_instalado[[#This Row],[T.1]],t_reator[w],t_instalado[[#This Row],[P.1(W)]]),"") ->  | P336: =IF(t_instalado[[#This Row],[Q.2]]<>"",SUMIFS(t_reator[p],t_reator[tipo],t_instalado[[#This Row],[T.2]],t_reator[w],t_instalado[[#This Row],[P.2(W)]]),"") ->  | Q336: =IF(t_instalado[[#This Row],[Q.3]]<>"",SUMIFS(t_reator[p],t_reator[tipo],t_instalado[[#This Row],[T.3]],t_reator[w],t_instalado[[#This Row],[P.3(W)]]),"") ->  | R336: =IF(t_instalado[[#This Row],[Q.1]]<>"",IFERROR(IFERROR(D336*(E336+O336)+G336*(H336+P336)+J336*(K336+Q336),D336*(E336+O336)+G336*(H336+P336)),D336*(E336+O336)),"") ->  | S336: =IF(t_instalado[[#This Row],[Consumo_W]]<>"",ROUND(t_instalado[[#This Row],[Consumo_W]]/t_instalado[[#This Row],[Luminárias]],0),"") ->  | T336: =IF(t_instalado[[#This Row],[Q.1]]<>"",SUMIFS(t_fluxo_lumin[fluxo],t_fluxo_lumin[tipo],t_instalado[[#This Row],[T.1]])*t_instalado[[#This Row],[P.1(W)]]*t_instalado[[#This Row],[Q.1]],"") ->  | U336: =IF(t_instalado[[#This Row],[Q.2]]<>"",SUMIFS(t_fluxo_lumin[fluxo],t_fluxo_lumin[tipo],t_instalado[[#This Row],[T.2]])*t_instalado[[#This Row],[Q.2]]*t_instalado[[#This Row],[P.2(W)]],"") ->  | V336: =IF(t_instalado[[#This Row],[Q.3]]<>"",SUMIFS(t_fluxo_lumin[fluxo],t_fluxo_lumin[tipo],t_instalado[[#This Row],[T.3]])*t_instalado[[#This Row],[Q.3]]*t_instalado[[#This Row],[P.3(W)]],"") ->  | W336: =IF(t_instalado[[#This Row],[Trecho]]<>"",SUM(t_instalado[[#This Row],[f.1]:[f.3]]),"") ->  | X336: =IF(t_instalado[[#This Row],[Trecho]]<>"",t_instalado[[#This Row],[Q.1]]+t_instalado[[#This Row],[Q.2]]+t_instalado[[#This Row],[Q.3]],"") ->  | Y336: =IF(t_instalado[[#This Row],[FLUXO]]<>"",ROUND(t_instalado[[#This Row],[FLUXO]]/t_instalado[[#This Row],[Luminárias]],0),"") ->  | Z336: =IF(t_instalado[[#This Row],[Luminárias]]<>"",ROUND(t_instalado[[#This Row],[lm_médio]]/t_instalado[[#This Row],[W_médio]],2),"") -> 
A337: 103 | B337: =_xlfn.XLOOKUP(t_instalado[[#This Row],[cód.]],t_sitio[cód],t_sitio[Trecho],"") ->  | M337: =t_instalado[[#This Row],[Q.1]]+t_instalado[[#This Row],[Q.2]]+t_instalado[[#This Row],[Q.3]] -> 0 | N337: =t_instalado[[#This Row],[Q.1]]+t_instalado[[#This Row],[Q.2]]+t_instalado[[#This Row],[Q.3]] -> 0 | O337: =IF(t_instalado[[#This Row],[Q.1]]<>"",SUMIFS(t_reator[p],t_reator[tipo],t_instalado[[#This Row],[T.1]],t_reator[w],t_instalado[[#This Row],[P.1(W)]]),"") ->  | P337: =IF(t_instalado[[#This Row],[Q.2]]<>"",SUMIFS(t_reator[p],t_reator[tipo],t_instalado[[#This Row],[T.2]],t_reator[w],t_instalado[[#This Row],[P.2(W)]]),"") ->  | Q337: =IF(t_instalado[[#This Row],[Q.3]]<>"",SUMIFS(t_reator[p],t_reator[tipo],t_instalado[[#This Row],[T.3]],t_reator[w],t_instalado[[#This Row],[P.3(W)]]),"") ->  | R337: =IF(t_instalado[[#This Row],[Q.1]]<>"",IFERROR(IFERROR(D337*(E337+O337)+G337*(H337+P337)+J337*(K337+Q337),D337*(E337+O337)+G337*(H337+P337)),D337*(E337+O337)),"") ->  | S337: =IF(t_instalado[[#This Row],[Consumo_W]]<>"",ROUND(t_instalado[[#This Row],[Consumo_W]]/t_instalado[[#This Row],[Luminárias]],0),"") ->  | T337: =IF(t_instalado[[#This Row],[Q.1]]<>"",SUMIFS(t_fluxo_lumin[fluxo],t_fluxo_lumin[tipo],t_instalado[[#This Row],[T.1]])*t_instalado[[#This Row],[P.1(W)]]*t_instalado[[#This Row],[Q.1]],"") ->  | U337: =IF(t_instalado[[#This Row],[Q.2]]<>"",SUMIFS(t_fluxo_lumin[fluxo],t_fluxo_lumin[tipo],t_instalado[[#This Row],[T.2]])*t_instalado[[#This Row],[Q.2]]*t_instalado[[#This Row],[P.2(W)]],"") ->  | V337: =IF(t_instalado[[#This Row],[Q.3]]<>"",SUMIFS(t_fluxo_lumin[fluxo],t_fluxo_lumin[tipo],t_instalado[[#This Row],[T.3]])*t_instalado[[#This Row],[Q.3]]*t_instalado[[#This Row],[P.3(W)]],"") ->  | W337: =IF(t_instalado[[#This Row],[Trecho]]<>"",SUM(t_instalado[[#This Row],[f.1]:[f.3]]),"") ->  | X337: =IF(t_instalado[[#This Row],[Trecho]]<>"",t_instalado[[#This Row],[Q.1]]+t_instalado[[#This Row],[Q.2]]+t_instalado[[#This Row],[Q.3]],"") ->  | Y337: =IF(t_instalado[[#This Row],[FLUXO]]<>"",ROUND(t_instalado[[#This Row],[FLUXO]]/t_instalado[[#This Row],[Luminárias]],0),"") ->  | Z337: =IF(t_instalado[[#This Row],[Luminárias]]<>"",ROUND(t_instalado[[#This Row],[lm_médio]]/t_instalado[[#This Row],[W_médio]],2),"") -> 
A338: 104 | B338: =_xlfn.XLOOKUP(t_instalado[[#This Row],[cód.]],t_sitio[cód],t_sitio[Trecho],"") ->  | M338: =t_instalado[[#This Row],[Q.1]]+t_instalado[[#This Row],[Q.2]]+t_instalado[[#This Row],[Q.3]] -> 0 | N338: =t_instalado[[#This Row],[Q.1]]+t_instalado[[#This Row],[Q.2]]+t_instalado[[#This Row],[Q.3]] -> 0 | O338: =IF(t_instalado[[#This Row],[Q.1]]<>"",SUMIFS(t_reator[p],t_reator[tipo],t_instalado[[#This Row],[T.1]],t_reator[w],t_instalado[[#This Row],[P.1(W)]]),"") ->  | P338: =IF(t_instalado[[#This Row],[Q.2]]<>"",SUMIFS(t_reator[p],t_reator[tipo],t_instalado[[#This Row],[T.2]],t_reator[w],t_instalado[[#This Row],[P.2(W)]]),"") ->  | Q338: =IF(t_instalado[[#This Row],[Q.3]]<>"",SUMIFS(t_reator[p],t_reator[tipo],t_instalado[[#This Row],[T.3]],t_reator[w],t_instalado[[#This Row],[P.3(W)]]),"") ->  | R338: =IF(t_instalado[[#This Row],[Q.1]]<>"",IFERROR(IFERROR(D338*(E338+O338)+G338*(H338+P338)+J338*(K338+Q338),D338*(E338+O338)+G338*(H338+P338)),D338*(E338+O338)),"") ->  | S338: =IF(t_instalado[[#This Row],[Consumo_W]]<>"",ROUND(t_instalado[[#This Row],[Consumo_W]]/t_instalado[[#This Row],[Luminárias]],0),"") ->  | T338: =IF(t_instalado[[#This Row],[Q.1]]<>"",SUMIFS(t_fluxo_lumin[fluxo],t_fluxo_lumin[tipo],t_instalado[[#This Row],[T.1]])*t_instalado[[#This Row],[P.1(W)]]*t_instalado[[#This Row],[Q.1]],"") ->  | U338: =IF(t_instalado[[#This Row],[Q.2]]<>"",SUMIFS(t_fluxo_lumin[fluxo],t_fluxo_lumin[tipo],t_instalado[[#This Row],[T.2]])*t_instalado[[#This Row],[Q.2]]*t_instalado[[#This Row],[P.2(W)]],"") ->  | V338: =IF(t_instalado[[#This Row],[Q.3]]<>"",SUMIFS(t_fluxo_lumin[fluxo],t_fluxo_lumin[tipo],t_instalado[[#This Row],[T.3]])*t_instalado[[#This Row],[Q.3]]*t_instalado[[#This Row],[P.3(W)]],"") ->  | W338: =IF(t_instalado[[#This Row],[Trecho]]<>"",SUM(t_instalado[[#This Row],[f.1]:[f.3]]),"") ->  | X338: =IF(t_instalado[[#This Row],[Trecho]]<>"",t_instalado[[#This Row],[Q.1]]+t_instalado[[#This Row],[Q.2]]+t_instalado[[#This Row],[Q.3]],"") ->  | Y338: =IF(t_instalado[[#This Row],[FLUXO]]<>"",ROUND(t_instalado[[#This Row],[FLUXO]]/t_instalado[[#This Row],[Luminárias]],0),"") ->  | Z338: =IF(t_instalado[[#This Row],[Luminárias]]<>"",ROUND(t_instalado[[#This Row],[lm_médio]]/t_instalado[[#This Row],[W_médio]],2),"") -> 
A339: 105 | B339: =_xlfn.XLOOKUP(t_instalado[[#This Row],[cód.]],t_sitio[cód],t_sitio[Trecho],"") ->  | M339: =t_instalado[[#This Row],[Q.1]]+t_instalado[[#This Row],[Q.2]]+t_instalado[[#This Row],[Q.3]] -> 0 | N339: =t_instalado[[#This Row],[Q.1]]+t_instalado[[#This Row],[Q.2]]+t_instalado[[#This Row],[Q.3]] -> 0 | O339: =IF(t_instalado[[#This Row],[Q.1]]<>"",SUMIFS(t_reator[p],t_reator[tipo],t_instalado[[#This Row],[T.1]],t_reator[w],t_instalado[[#This Row],[P.1(W)]]),"") ->  | P339: =IF(t_instalado[[#This Row],[Q.2]]<>"",SUMIFS(t_reator[p],t_reator[tipo],t_instalado[[#This Row],[T.2]],t_reator[w],t_instalado[[#This Row],[P.2(W)]]),"") ->  | Q339: =IF(t_instalado[[#This Row],[Q.3]]<>"",SUMIFS(t_reator[p],t_reator[tipo],t_instalado[[#This Row],[T.3]],t_reator[w],t_instalado[[#This Row],[P.3(W)]]),"") ->  | R339: =IF(t_instalado[[#This Row],[Q.1]]<>"",IFERROR(IFERROR(D339*(E339+O339)+G339*(H339+P339)+J339*(K339+Q339),D339*(E339+O339)+G339*(H339+P339)),D339*(E339+O339)),"") ->  | S339: =IF(t_instalado[[#This Row],[Consumo_W]]<>"",ROUND(t_instalado[[#This Row],[Consumo_W]]/t_instalado[[#This Row],[Luminárias]],0),"") ->  | T339: =IF(t_instalado[[#This Row],[Q.1]]<>"",SUMIFS(t_fluxo_lumin[fluxo],t_fluxo_lumin[tipo],t_instalado[[#This Row],[T.1]])*t_instalado[[#This Row],[P.1(W)]]*t_instalado[[#This Row],[Q.1]],"") ->  | U339: =IF(t_instalado[[#This Row],[Q.2]]<>"",SUMIFS(t_fluxo_lumin[fluxo],t_fluxo_lumin[tipo],t_instalado[[#This Row],[T.2]])*t_instalado[[#This Row],[Q.2]]*t_instalado[[#This Row],[P.2(W)]],"") ->  | V339: =IF(t_instalado[[#This Row],[Q.3]]<>"",SUMIFS(t_fluxo_lumin[fluxo],t_fluxo_lumin[tipo],t_instalado[[#This Row],[T.3]])*t_instalado[[#This Row],[Q.3]]*t_instalado[[#This Row],[P.3(W)]],"") ->  | W339: =IF(t_instalado[[#This Row],[Trecho]]<>"",SUM(t_instalado[[#This Row],[f.1]:[f.3]]),"") ->  | X339: =IF(t_instalado[[#This Row],[Trecho]]<>"",t_instalado[[#This Row],[Q.1]]+t_instalado[[#This Row],[Q.2]]+t_instalado[[#This Row],[Q.3]],"") ->  | Y339: =IF(t_instalado[[#This Row],[FLUXO]]<>"",ROUND(t_instalado[[#This Row],[FLUXO]]/t_instalado[[#This Row],[Luminárias]],0),"") ->  | Z339: =IF(t_instalado[[#This Row],[Luminárias]]<>"",ROUND(t_instalado[[#This Row],[lm_médio]]/t_instalado[[#This Row],[W_médio]],2),"") -> 
A340: 106 | B340: =_xlfn.XLOOKUP(t_instalado[[#This Row],[cód.]],t_sitio[cód],t_sitio[Trecho],"") ->  | M340: =t_instalado[[#This Row],[Q.1]]+t_instalado[[#This Row],[Q.2]]+t_instalado[[#This Row],[Q.3]] -> 0 | N340: =t_instalado[[#This Row],[Q.1]]+t_instalado[[#This Row],[Q.2]]+t_instalado[[#This Row],[Q.3]] -> 0 | O340: =IF(t_instalado[[#This Row],[Q.1]]<>"",SUMIFS(t_reator[p],t_reator[tipo],t_instalado[[#This Row],[T.1]],t_reator[w],t_instalado[[#This Row],[P.1(W)]]),"") ->  | P340: =IF(t_instalado[[#This Row],[Q.2]]<>"",SUMIFS(t_reator[p],t_reator[tipo],t_instalado[[#This Row],[T.2]],t_reator[w],t_instalado[[#This Row],[P.2(W)]]),"") ->  | Q340: =IF(t_instalado[[#This Row],[Q.3]]<>"",SUMIFS(t_reator[p],t_reator[tipo],t_instalado[[#This Row],[T.3]],t_reator[w],t_instalado[[#This Row],[P.3(W)]]),"") ->  | R340: =IF(t_instalado[[#This Row],[Q.1]]<>"",IFERROR(IFERROR(D340*(E340+O340)+G340*(H340+P340)+J340*(K340+Q340),D340*(E340+O340)+G340*(H340+P340)),D340*(E340+O340)),"") ->  | S340: =IF(t_instalado[[#This Row],[Consumo_W]]<>"",ROUND(t_instalado[[#This Row],[Consumo_W]]/t_instalado[[#This Row],[Luminárias]],0),"") ->  | T340: =IF(t_instalado[[#This Row],[Q.1]]<>"",SUMIFS(t_fluxo_lumin[fluxo],t_fluxo_lumin[tipo],t_instalado[[#This Row],[T.1]])*t_instalado[[#This Row],[P.1(W)]]*t_instalado[[#This Row],[Q.1]],"") ->  | U340: =IF(t_instalado[[#This Row],[Q.2]]<>"",SUMIFS(t_fluxo_lumin[fluxo],t_fluxo_lumin[tipo],t_instalado[[#This Row],[T.2]])*t_instalado[[#This Row],[Q.2]]*t_instalado[[#This Row],[P.2(W)]],"") ->  | V340: =IF(t_instalado[[#This Row],[Q.3]]<>"",SUMIFS(t_fluxo_lumin[fluxo],t_fluxo_lumin[tipo],t_instalado[[#This Row],[T.3]])*t_instalado[[#This Row],[Q.3]]*t_instalado[[#This Row],[P.3(W)]],"") ->  | W340: =IF(t_instalado[[#This Row],[Trecho]]<>"",SUM(t_instalado[[#This Row],[f.1]:[f.3]]),"") ->  | X340: =IF(t_instalado[[#This Row],[Trecho]]<>"",t_instalado[[#This Row],[Q.1]]+t_instalado[[#This Row],[Q.2]]+t_instalado[[#This Row],[Q.3]],"") ->  | Y340: =IF(t_instalado[[#This Row],[FLUXO]]<>"",ROUND(t_instalado[[#This Row],[FLUXO]]/t_instalado[[#This Row],[Luminárias]],0),"") ->  | Z340: =IF(t_instalado[[#This Row],[Luminárias]]<>"",ROUND(t_instalado[[#This Row],[lm_médio]]/t_instalado[[#This Row],[W_médio]],2),"") -> 
A341: 107 | B341: =_xlfn.XLOOKUP(t_instalado[[#This Row],[cód.]],t_sitio[cód],t_sitio[Trecho],"") ->  | M341: =t_instalado[[#This Row],[Q.1]]+t_instalado[[#This Row],[Q.2]]+t_instalado[[#This Row],[Q.3]] -> 0 | N341: =t_instalado[[#This Row],[Q.1]]+t_instalado[[#This Row],[Q.2]]+t_instalado[[#This Row],[Q.3]] -> 0 | O341: =IF(t_instalado[[#This Row],[Q.1]]<>"",SUMIFS(t_reator[p],t_reator[tipo],t_instalado[[#This Row],[T.1]],t_reator[w],t_instalado[[#This Row],[P.1(W)]]),"") ->  | P341: =IF(t_instalado[[#This Row],[Q.2]]<>"",SUMIFS(t_reator[p],t_reator[tipo],t_instalado[[#This Row],[T.2]],t_reator[w],t_instalado[[#This Row],[P.2(W)]]),"") ->  | Q341: =IF(t_instalado[[#This Row],[Q.3]]<>"",SUMIFS(t_reator[p],t_reator[tipo],t_instalado[[#This Row],[T.3]],t_reator[w],t_instalado[[#This Row],[P.3(W)]]),"") ->  | R341: =IF(t_instalado[[#This Row],[Q.1]]<>"",IFERROR(IFERROR(D341*(E341+O341)+G341*(H341+P341)+J341*(K341+Q341),D341*(E341+O341)+G341*(H341+P341)),D341*(E341+O341)),"") ->  | S341: =IF(t_instalado[[#This Row],[Consumo_W]]<>"",ROUND(t_instalado[[#This Row],[Consumo_W]]/t_instalado[[#This Row],[Luminárias]],0),"") ->  | T341: =IF(t_instalado[[#This Row],[Q.1]]<>"",SUMIFS(t_fluxo_lumin[fluxo],t_fluxo_lumin[tipo],t_instalado[[#This Row],[T.1]])*t_instalado[[#This Row],[P.1(W)]]*t_instalado[[#This Row],[Q.1]],"") ->  | U341: =IF(t_instalado[[#This Row],[Q.2]]<>"",SUMIFS(t_fluxo_lumin[fluxo],t_fluxo_lumin[tipo],t_instalado[[#This Row],[T.2]])*t_instalado[[#This Row],[Q.2]]*t_instalado[[#This Row],[P.2(W)]],"") ->  | V341: =IF(t_instalado[[#This Row],[Q.3]]<>"",SUMIFS(t_fluxo_lumin[fluxo],t_fluxo_lumin[tipo],t_instalado[[#This Row],[T.3]])*t_instalado[[#This Row],[Q.3]]*t_instalado[[#This Row],[P.3(W)]],"") ->  | W341: =IF(t_instalado[[#This Row],[Trecho]]<>"",SUM(t_instalado[[#This Row],[f.1]:[f.3]]),"") ->  | X341: =IF(t_instalado[[#This Row],[Trecho]]<>"",t_instalado[[#This Row],[Q.1]]+t_instalado[[#This Row],[Q.2]]+t_instalado[[#This Row],[Q.3]],"") ->  | Y341: =IF(t_instalado[[#This Row],[FLUXO]]<>"",ROUND(t_instalado[[#This Row],[FLUXO]]/t_instalado[[#This Row],[Luminárias]],0),"") ->  | Z341: =IF(t_instalado[[#This Row],[Luminárias]]<>"",ROUND(t_instalado[[#This Row],[lm_médio]]/t_instalado[[#This Row],[W_médio]],2),"") -> 
A342: 108 | B342: =_xlfn.XLOOKUP(t_instalado[[#This Row],[cód.]],t_sitio[cód],t_sitio[Trecho],"") ->  | M342: =t_instalado[[#This Row],[Q.1]]+t_instalado[[#This Row],[Q.2]]+t_instalado[[#This Row],[Q.3]] -> 0 | N342: =t_instalado[[#This Row],[Q.1]]+t_instalado[[#This Row],[Q.2]]+t_instalado[[#This Row],[Q.3]] -> 0 | O342: =IF(t_instalado[[#This Row],[Q.1]]<>"",SUMIFS(t_reator[p],t_reator[tipo],t_instalado[[#This Row],[T.1]],t_reator[w],t_instalado[[#This Row],[P.1(W)]]),"") ->  | P342: =IF(t_instalado[[#This Row],[Q.2]]<>"",SUMIFS(t_reator[p],t_reator[tipo],t_instalado[[#This Row],[T.2]],t_reator[w],t_instalado[[#This Row],[P.2(W)]]),"") ->  | Q342: =IF(t_instalado[[#This Row],[Q.3]]<>"",SUMIFS(t_reator[p],t_reator[tipo],t_instalado[[#This Row],[T.3]],t_reator[w],t_instalado[[#This Row],[P.3(W)]]),"") ->  | R342: =IF(t_instalado[[#This Row],[Q.1]]<>"",IFERROR(IFERROR(D342*(E342+O342)+G342*(H342+P342)+J342*(K342+Q342),D342*(E342+O342)+G342*(H342+P342)),D342*(E342+O342)),"") ->  | S342: =IF(t_instalado[[#This Row],[Consumo_W]]<>"",ROUND(t_instalado[[#This Row],[Consumo_W]]/t_instalado[[#This Row],[Luminárias]],0),"") ->  | T342: =IF(t_instalado[[#This Row],[Q.1]]<>"",SUMIFS(t_fluxo_lumin[fluxo],t_fluxo_lumin[tipo],t_instalado[[#This Row],[T.1]])*t_instalado[[#This Row],[P.1(W)]]*t_instalado[[#This Row],[Q.1]],"") ->  | U342: =IF(t_instalado[[#This Row],[Q.2]]<>"",SUMIFS(t_fluxo_lumin[fluxo],t_fluxo_lumin[tipo],t_instalado[[#This Row],[T.2]])*t_instalado[[#This Row],[Q.2]]*t_instalado[[#This Row],[P.2(W)]],"") ->  | V342: =IF(t_instalado[[#This Row],[Q.3]]<>"",SUMIFS(t_fluxo_lumin[fluxo],t_fluxo_lumin[tipo],t_instalado[[#This Row],[T.3]])*t_instalado[[#This Row],[Q.3]]*t_instalado[[#This Row],[P.3(W)]],"") ->  | W342: =IF(t_instalado[[#This Row],[Trecho]]<>"",SUM(t_instalado[[#This Row],[f.1]:[f.3]]),"") ->  | X342: =IF(t_instalado[[#This Row],[Trecho]]<>"",t_instalado[[#This Row],[Q.1]]+t_instalado[[#This Row],[Q.2]]+t_instalado[[#This Row],[Q.3]],"") ->  | Y342: =IF(t_instalado[[#This Row],[FLUXO]]<>"",ROUND(t_instalado[[#This Row],[FLUXO]]/t_instalado[[#This Row],[Luminárias]],0),"") ->  | Z342: =IF(t_instalado[[#This Row],[Luminárias]]<>"",ROUND(t_instalado[[#This Row],[lm_médio]]/t_instalado[[#This Row],[W_médio]],2),"") -> 
A343: 109 | B343: =_xlfn.XLOOKUP(t_instalado[[#This Row],[cód.]],t_sitio[cód],t_sitio[Trecho],"") ->  | M343: =t_instalado[[#This Row],[Q.1]]+t_instalado[[#This Row],[Q.2]]+t_instalado[[#This Row],[Q.3]] -> 0 | N343: =t_instalado[[#This Row],[Q.1]]+t_instalado[[#This Row],[Q.2]]+t_instalado[[#This Row],[Q.3]] -> 0 | O343: =IF(t_instalado[[#This Row],[Q.1]]<>"",SUMIFS(t_reator[p],t_reator[tipo],t_instalado[[#This Row],[T.1]],t_reator[w],t_instalado[[#This Row],[P.1(W)]]),"") ->  | P343: =IF(t_instalado[[#This Row],[Q.2]]<>"",SUMIFS(t_reator[p],t_reator[tipo],t_instalado[[#This Row],[T.2]],t_reator[w],t_instalado[[#This Row],[P.2(W)]]),"") ->  | Q343: =IF(t_instalado[[#This Row],[Q.3]]<>"",SUMIFS(t_reator[p],t_reator[tipo],t_instalado[[#This Row],[T.3]],t_reator[w],t_instalado[[#This Row],[P.3(W)]]),"") ->  | R343: =IF(t_instalado[[#This Row],[Q.1]]<>"",IFERROR(IFERROR(D343*(E343+O343)+G343*(H343+P343)+J343*(K343+Q343),D343*(E343+O343)+G343*(H343+P343)),D343*(E343+O343)),"") ->  | S343: =IF(t_instalado[[#This Row],[Consumo_W]]<>"",ROUND(t_instalado[[#This Row],[Consumo_W]]/t_instalado[[#This Row],[Luminárias]],0),"") ->  | T343: =IF(t_instalado[[#This Row],[Q.1]]<>"",SUMIFS(t_fluxo_lumin[fluxo],t_fluxo_lumin[tipo],t_instalado[[#This Row],[T.1]])*t_instalado[[#This Row],[P.1(W)]]*t_instalado[[#This Row],[Q.1]],"") ->  | U343: =IF(t_instalado[[#This Row],[Q.2]]<>"",SUMIFS(t_fluxo_lumin[fluxo],t_fluxo_lumin[tipo],t_instalado[[#This Row],[T.2]])*t_instalado[[#This Row],[Q.2]]*t_instalado[[#This Row],[P.2(W)]],"") ->  | V343: =IF(t_instalado[[#This Row],[Q.3]]<>"",SUMIFS(t_fluxo_lumin[fluxo],t_fluxo_lumin[tipo],t_instalado[[#This Row],[T.3]])*t_instalado[[#This Row],[Q.3]]*t_instalado[[#This Row],[P.3(W)]],"") ->  | W343: =IF(t_instalado[[#This Row],[Trecho]]<>"",SUM(t_instalado[[#This Row],[f.1]:[f.3]]),"") ->  | X343: =IF(t_instalado[[#This Row],[Trecho]]<>"",t_instalado[[#This Row],[Q.1]]+t_instalado[[#This Row],[Q.2]]+t_instalado[[#This Row],[Q.3]],"") ->  | Y343: =IF(t_instalado[[#This Row],[FLUXO]]<>"",ROUND(t_instalado[[#This Row],[FLUXO]]/t_instalado[[#This Row],[Luminárias]],0),"") ->  | Z343: =IF(t_instalado[[#This Row],[Luminárias]]<>"",ROUND(t_instalado[[#This Row],[lm_médio]]/t_instalado[[#This Row],[W_médio]],2),"") -> 
A344: 110 | B344: =_xlfn.XLOOKUP(t_instalado[[#This Row],[cód.]],t_sitio[cód],t_sitio[Trecho],"") ->  | M344: =t_instalado[[#This Row],[Q.1]]+t_instalado[[#This Row],[Q.2]]+t_instalado[[#This Row],[Q.3]] -> 0 | N344: =t_instalado[[#This Row],[Q.1]]+t_instalado[[#This Row],[Q.2]]+t_instalado[[#This Row],[Q.3]] -> 0 | O344: =IF(t_instalado[[#This Row],[Q.1]]<>"",SUMIFS(t_reator[p],t_reator[tipo],t_instalado[[#This Row],[T.1]],t_reator[w],t_instalado[[#This Row],[P.1(W)]]),"") ->  | P344: =IF(t_instalado[[#This Row],[Q.2]]<>"",SUMIFS(t_reator[p],t_reator[tipo],t_instalado[[#This Row],[T.2]],t_reator[w],t_instalado[[#This Row],[P.2(W)]]),"") ->  | Q344: =IF(t_instalado[[#This Row],[Q.3]]<>"",SUMIFS(t_reator[p],t_reator[tipo],t_instalado[[#This Row],[T.3]],t_reator[w],t_instalado[[#This Row],[P.3(W)]]),"") ->  | R344: =IF(t_instalado[[#This Row],[Q.1]]<>"",IFERROR(IFERROR(D344*(E344+O344)+G344*(H344+P344)+J344*(K344+Q344),D344*(E344+O344)+G344*(H344+P344)),D344*(E344+O344)),"") ->  | S344: =IF(t_instalado[[#This Row],[Consumo_W]]<>"",ROUND(t_instalado[[#This Row],[Consumo_W]]/t_instalado[[#This Row],[Luminárias]],0),"") ->  | T344: =IF(t_instalado[[#This Row],[Q.1]]<>"",SUMIFS(t_fluxo_lumin[fluxo],t_fluxo_lumin[tipo],t_instalado[[#This Row],[T.1]])*t_instalado[[#This Row],[P.1(W)]]*t_instalado[[#This Row],[Q.1]],"") ->  | U344: =IF(t_instalado[[#This Row],[Q.2]]<>"",SUMIFS(t_fluxo_lumin[fluxo],t_fluxo_lumin[tipo],t_instalado[[#This Row],[T.2]])*t_instalado[[#This Row],[Q.2]]*t_instalado[[#This Row],[P.2(W)]],"") ->  | V344: =IF(t_instalado[[#This Row],[Q.3]]<>"",SUMIFS(t_fluxo_lumin[fluxo],t_fluxo_lumin[tipo],t_instalado[[#This Row],[T.3]])*t_instalado[[#This Row],[Q.3]]*t_instalado[[#This Row],[P.3(W)]],"") ->  | W344: =IF(t_instalado[[#This Row],[Trecho]]<>"",SUM(t_instalado[[#This Row],[f.1]:[f.3]]),"") ->  | X344: =IF(t_instalado[[#This Row],[Trecho]]<>"",t_instalado[[#This Row],[Q.1]]+t_instalado[[#This Row],[Q.2]]+t_instalado[[#This Row],[Q.3]],"") ->  | Y344: =IF(t_instalado[[#This Row],[FLUXO]]<>"",ROUND(t_instalado[[#This Row],[FLUXO]]/t_instalado[[#This Row],[Luminárias]],0),"") ->  | Z344: =IF(t_instalado[[#This Row],[Luminárias]]<>"",ROUND(t_instalado[[#This Row],[lm_médio]]/t_instalado[[#This Row],[W_médio]],2),"") -> 
A345: 111 | B345: =_xlfn.XLOOKUP(t_instalado[[#This Row],[cód.]],t_sitio[cód],t_sitio[Trecho],"") ->  | M345: =t_instalado[[#This Row],[Q.1]]+t_instalado[[#This Row],[Q.2]]+t_instalado[[#This Row],[Q.3]] -> 0 | N345: =t_instalado[[#This Row],[Q.1]]+t_instalado[[#This Row],[Q.2]]+t_instalado[[#This Row],[Q.3]] -> 0 | O345: =IF(t_instalado[[#This Row],[Q.1]]<>"",SUMIFS(t_reator[p],t_reator[tipo],t_instalado[[#This Row],[T.1]],t_reator[w],t_instalado[[#This Row],[P.1(W)]]),"") ->  | P345: =IF(t_instalado[[#This Row],[Q.2]]<>"",SUMIFS(t_reator[p],t_reator[tipo],t_instalado[[#This Row],[T.2]],t_reator[w],t_instalado[[#This Row],[P.2(W)]]),"") ->  | Q345: =IF(t_instalado[[#This Row],[Q.3]]<>"",SUMIFS(t_reator[p],t_reator[tipo],t_instalado[[#This Row],[T.3]],t_reator[w],t_instalado[[#This Row],[P.3(W)]]),"") ->  | R345: =IF(t_instalado[[#This Row],[Q.1]]<>"",IFERROR(IFERROR(D345*(E345+O345)+G345*(H345+P345)+J345*(K345+Q345),D345*(E345+O345)+G345*(H345+P345)),D345*(E345+O345)),"") ->  | S345: =IF(t_instalado[[#This Row],[Consumo_W]]<>"",ROUND(t_instalado[[#This Row],[Consumo_W]]/t_instalado[[#This Row],[Luminárias]],0),"") ->  | T345: =IF(t_instalado[[#This Row],[Q.1]]<>"",SUMIFS(t_fluxo_lumin[fluxo],t_fluxo_lumin[tipo],t_instalado[[#This Row],[T.1]])*t_instalado[[#This Row],[P.1(W)]]*t_instalado[[#This Row],[Q.1]],"") ->  | U345: =IF(t_instalado[[#This Row],[Q.2]]<>"",SUMIFS(t_fluxo_lumin[fluxo],t_fluxo_lumin[tipo],t_instalado[[#This Row],[T.2]])*t_instalado[[#This Row],[Q.2]]*t_instalado[[#This Row],[P.2(W)]],"") ->  | V345: =IF(t_instalado[[#This Row],[Q.3]]<>"",SUMIFS(t_fluxo_lumin[fluxo],t_fluxo_lumin[tipo],t_instalado[[#This Row],[T.3]])*t_instalado[[#This Row],[Q.3]]*t_instalado[[#This Row],[P.3(W)]],"") ->  | W345: =IF(t_instalado[[#This Row],[Trecho]]<>"",SUM(t_instalado[[#This Row],[f.1]:[f.3]]),"") ->  | X345: =IF(t_instalado[[#This Row],[Trecho]]<>"",t_instalado[[#This Row],[Q.1]]+t_instalado[[#This Row],[Q.2]]+t_instalado[[#This Row],[Q.3]],"") ->  | Y345: =IF(t_instalado[[#This Row],[FLUXO]]<>"",ROUND(t_instalado[[#This Row],[FLUXO]]/t_instalado[[#This Row],[Luminárias]],0),"") ->  | Z345: =IF(t_instalado[[#This Row],[Luminárias]]<>"",ROUND(t_instalado[[#This Row],[lm_médio]]/t_instalado[[#This Row],[W_médio]],2),"") -> 
A346: 112 | B346: =_xlfn.XLOOKUP(t_instalado[[#This Row],[cód.]],t_sitio[cód],t_sitio[Trecho],"") ->  | M346: =t_instalado[[#This Row],[Q.1]]+t_instalado[[#This Row],[Q.2]]+t_instalado[[#This Row],[Q.3]] -> 0 | N346: =t_instalado[[#This Row],[Q.1]]+t_instalado[[#This Row],[Q.2]]+t_instalado[[#This Row],[Q.3]] -> 0 | O346: =IF(t_instalado[[#This Row],[Q.1]]<>"",SUMIFS(t_reator[p],t_reator[tipo],t_instalado[[#This Row],[T.1]],t_reator[w],t_instalado[[#This Row],[P.1(W)]]),"") ->  | P346: =IF(t_instalado[[#This Row],[Q.2]]<>"",SUMIFS(t_reator[p],t_reator[tipo],t_instalado[[#This Row],[T.2]],t_reator[w],t_instalado[[#This Row],[P.2(W)]]),"") ->  | Q346: =IF(t_instalado[[#This Row],[Q.3]]<>"",SUMIFS(t_reator[p],t_reator[tipo],t_instalado[[#This Row],[T.3]],t_reator[w],t_instalado[[#This Row],[P.3(W)]]),"") ->  | R346: =IF(t_instalado[[#This Row],[Q.1]]<>"",IFERROR(IFERROR(D346*(E346+O346)+G346*(H346+P346)+J346*(K346+Q346),D346*(E346+O346)+G346*(H346+P346)),D346*(E346+O346)),"") ->  | S346: =IF(t_instalado[[#This Row],[Consumo_W]]<>"",ROUND(t_instalado[[#This Row],[Consumo_W]]/t_instalado[[#This Row],[Luminárias]],0),"") ->  | T346: =IF(t_instalado[[#This Row],[Q.1]]<>"",SUMIFS(t_fluxo_lumin[fluxo],t_fluxo_lumin[tipo],t_instalado[[#This Row],[T.1]])*t_instalado[[#This Row],[P.1(W)]]*t_instalado[[#This Row],[Q.1]],"") ->  | U346: =IF(t_instalado[[#This Row],[Q.2]]<>"",SUMIFS(t_fluxo_lumin[fluxo],t_fluxo_lumin[tipo],t_instalado[[#This Row],[T.2]])*t_instalado[[#This Row],[Q.2]]*t_instalado[[#This Row],[P.2(W)]],"") ->  | V346: =IF(t_instalado[[#This Row],[Q.3]]<>"",SUMIFS(t_fluxo_lumin[fluxo],t_fluxo_lumin[tipo],t_instalado[[#This Row],[T.3]])*t_instalado[[#This Row],[Q.3]]*t_instalado[[#This Row],[P.3(W)]],"") ->  | W346: =IF(t_instalado[[#This Row],[Trecho]]<>"",SUM(t_instalado[[#This Row],[f.1]:[f.3]]),"") ->  | X346: =IF(t_instalado[[#This Row],[Trecho]]<>"",t_instalado[[#This Row],[Q.1]]+t_instalado[[#This Row],[Q.2]]+t_instalado[[#This Row],[Q.3]],"") ->  | Y346: =IF(t_instalado[[#This Row],[FLUXO]]<>"",ROUND(t_instalado[[#This Row],[FLUXO]]/t_instalado[[#This Row],[Luminárias]],0),"") ->  | Z346: =IF(t_instalado[[#This Row],[Luminárias]]<>"",ROUND(t_instalado[[#This Row],[lm_médio]]/t_instalado[[#This Row],[W_médio]],2),"") -> 
A347: 113 | B347: =_xlfn.XLOOKUP(t_instalado[[#This Row],[cód.]],t_sitio[cód],t_sitio[Trecho],"") ->  | M347: =t_instalado[[#This Row],[Q.1]]+t_instalado[[#This Row],[Q.2]]+t_instalado[[#This Row],[Q.3]] -> 0 | N347: =t_instalado[[#This Row],[Q.1]]+t_instalado[[#This Row],[Q.2]]+t_instalado[[#This Row],[Q.3]] -> 0 | O347: =IF(t_instalado[[#This Row],[Q.1]]<>"",SUMIFS(t_reator[p],t_reator[tipo],t_instalado[[#This Row],[T.1]],t_reator[w],t_instalado[[#This Row],[P.1(W)]]),"") ->  | P347: =IF(t_instalado[[#This Row],[Q.2]]<>"",SUMIFS(t_reator[p],t_reator[tipo],t_instalado[[#This Row],[T.2]],t_reator[w],t_instalado[[#This Row],[P.2(W)]]),"") ->  | Q347: =IF(t_instalado[[#This Row],[Q.3]]<>"",SUMIFS(t_reator[p],t_reator[tipo],t_instalado[[#This Row],[T.3]],t_reator[w],t_instalado[[#This Row],[P.3(W)]]),"") ->  | R347: =IF(t_instalado[[#This Row],[Q.1]]<>"",IFERROR(IFERROR(D347*(E347+O347)+G347*(H347+P347)+J347*(K347+Q347),D347*(E347+O347)+G347*(H347+P347)),D347*(E347+O347)),"") ->  | S347: =IF(t_instalado[[#This Row],[Consumo_W]]<>"",ROUND(t_instalado[[#This Row],[Consumo_W]]/t_instalado[[#This Row],[Luminárias]],0),"") ->  | T347: =IF(t_instalado[[#This Row],[Q.1]]<>"",SUMIFS(t_fluxo_lumin[fluxo],t_fluxo_lumin[tipo],t_instalado[[#This Row],[T.1]])*t_instalado[[#This Row],[P.1(W)]]*t_instalado[[#This Row],[Q.1]],"") ->  | U347: =IF(t_instalado[[#This Row],[Q.2]]<>"",SUMIFS(t_fluxo_lumin[fluxo],t_fluxo_lumin[tipo],t_instalado[[#This Row],[T.2]])*t_instalado[[#This Row],[Q.2]]*t_instalado[[#This Row],[P.2(W)]],"") ->  | V347: =IF(t_instalado[[#This Row],[Q.3]]<>"",SUMIFS(t_fluxo_lumin[fluxo],t_fluxo_lumin[tipo],t_instalado[[#This Row],[T.3]])*t_instalado[[#This Row],[Q.3]]*t_instalado[[#This Row],[P.3(W)]],"") ->  | W347: =IF(t_instalado[[#This Row],[Trecho]]<>"",SUM(t_instalado[[#This Row],[f.1]:[f.3]]),"") ->  | X347: =IF(t_instalado[[#This Row],[Trecho]]<>"",t_instalado[[#This Row],[Q.1]]+t_instalado[[#This Row],[Q.2]]+t_instalado[[#This Row],[Q.3]],"") ->  | Y347: =IF(t_instalado[[#This Row],[FLUXO]]<>"",ROUND(t_instalado[[#This Row],[FLUXO]]/t_instalado[[#This Row],[Luminárias]],0),"") ->  | Z347: =IF(t_instalado[[#This Row],[Luminárias]]<>"",ROUND(t_instalado[[#This Row],[lm_médio]]/t_instalado[[#This Row],[W_médio]],2),"") -> 
A348: 114 | B348: =_xlfn.XLOOKUP(t_instalado[[#This Row],[cód.]],t_sitio[cód],t_sitio[Trecho],"") ->  | M348: =t_instalado[[#This Row],[Q.1]]+t_instalado[[#This Row],[Q.2]]+t_instalado[[#This Row],[Q.3]] -> 0 | N348: =t_instalado[[#This Row],[Q.1]]+t_instalado[[#This Row],[Q.2]]+t_instalado[[#This Row],[Q.3]] -> 0 | O348: =IF(t_instalado[[#This Row],[Q.1]]<>"",SUMIFS(t_reator[p],t_reator[tipo],t_instalado[[#This Row],[T.1]],t_reator[w],t_instalado[[#This Row],[P.1(W)]]),"") ->  | P348: =IF(t_instalado[[#This Row],[Q.2]]<>"",SUMIFS(t_reator[p],t_reator[tipo],t_instalado[[#This Row],[T.2]],t_reator[w],t_instalado[[#This Row],[P.2(W)]]),"") ->  | Q348: =IF(t_instalado[[#This Row],[Q.3]]<>"",SUMIFS(t_reator[p],t_reator[tipo],t_instalado[[#This Row],[T.3]],t_reator[w],t_instalado[[#This Row],[P.3(W)]]),"") ->  | R348: =IF(t_instalado[[#This Row],[Q.1]]<>"",IFERROR(IFERROR(D348*(E348+O348)+G348*(H348+P348)+J348*(K348+Q348),D348*(E348+O348)+G348*(H348+P348)),D348*(E348+O348)),"") ->  | S348: =IF(t_instalado[[#This Row],[Consumo_W]]<>"",ROUND(t_instalado[[#This Row],[Consumo_W]]/t_instalado[[#This Row],[Luminárias]],0),"") ->  | T348: =IF(t_instalado[[#This Row],[Q.1]]<>"",SUMIFS(t_fluxo_lumin[fluxo],t_fluxo_lumin[tipo],t_instalado[[#This Row],[T.1]])*t_instalado[[#This Row],[P.1(W)]]*t_instalado[[#This Row],[Q.1]],"") ->  | U348: =IF(t_instalado[[#This Row],[Q.2]]<>"",SUMIFS(t_fluxo_lumin[fluxo],t_fluxo_lumin[tipo],t_instalado[[#This Row],[T.2]])*t_instalado[[#This Row],[Q.2]]*t_instalado[[#This Row],[P.2(W)]],"") ->  | V348: =IF(t_instalado[[#This Row],[Q.3]]<>"",SUMIFS(t_fluxo_lumin[fluxo],t_fluxo_lumin[tipo],t_instalado[[#This Row],[T.3]])*t_instalado[[#This Row],[Q.3]]*t_instalado[[#This Row],[P.3(W)]],"") ->  | W348: =IF(t_instalado[[#This Row],[Trecho]]<>"",SUM(t_instalado[[#This Row],[f.1]:[f.3]]),"") ->  | X348: =IF(t_instalado[[#This Row],[Trecho]]<>"",t_instalado[[#This Row],[Q.1]]+t_instalado[[#This Row],[Q.2]]+t_instalado[[#This Row],[Q.3]],"") ->  | Y348: =IF(t_instalado[[#This Row],[FLUXO]]<>"",ROUND(t_instalado[[#This Row],[FLUXO]]/t_instalado[[#This Row],[Luminárias]],0),"") ->  | Z348: =IF(t_instalado[[#This Row],[Luminárias]]<>"",ROUND(t_instalado[[#This Row],[lm_médio]]/t_instalado[[#This Row],[W_médio]],2),"") -> 
A349: 115 | B349: =_xlfn.XLOOKUP(t_instalado[[#This Row],[cód.]],t_sitio[cód],t_sitio[Trecho],"") ->  | M349: =t_instalado[[#This Row],[Q.1]]+t_instalado[[#This Row],[Q.2]]+t_instalado[[#This Row],[Q.3]] -> 0 | N349: =t_instalado[[#This Row],[Q.1]]+t_instalado[[#This Row],[Q.2]]+t_instalado[[#This Row],[Q.3]] -> 0 | O349: =IF(t_instalado[[#This Row],[Q.1]]<>"",SUMIFS(t_reator[p],t_reator[tipo],t_instalado[[#This Row],[T.1]],t_reator[w],t_instalado[[#This Row],[P.1(W)]]),"") ->  | P349: =IF(t_instalado[[#This Row],[Q.2]]<>"",SUMIFS(t_reator[p],t_reator[tipo],t_instalado[[#This Row],[T.2]],t_reator[w],t_instalado[[#This Row],[P.2(W)]]),"") ->  | Q349: =IF(t_instalado[[#This Row],[Q.3]]<>"",SUMIFS(t_reator[p],t_reator[tipo],t_instalado[[#This Row],[T.3]],t_reator[w],t_instalado[[#This Row],[P.3(W)]]),"") ->  | R349: =IF(t_instalado[[#This Row],[Q.1]]<>"",IFERROR(IFERROR(D349*(E349+O349)+G349*(H349+P349)+J349*(K349+Q349),D349*(E349+O349)+G349*(H349+P349)),D349*(E349+O349)),"") ->  | S349: =IF(t_instalado[[#This Row],[Consumo_W]]<>"",ROUND(t_instalado[[#This Row],[Consumo_W]]/t_instalado[[#This Row],[Luminárias]],0),"") ->  | T349: =IF(t_instalado[[#This Row],[Q.1]]<>"",SUMIFS(t_fluxo_lumin[fluxo],t_fluxo_lumin[tipo],t_instalado[[#This Row],[T.1]])*t_instalado[[#This Row],[P.1(W)]]*t_instalado[[#This Row],[Q.1]],"") ->  | U349: =IF(t_instalado[[#This Row],[Q.2]]<>"",SUMIFS(t_fluxo_lumin[fluxo],t_fluxo_lumin[tipo],t_instalado[[#This Row],[T.2]])*t_instalado[[#This Row],[Q.2]]*t_instalado[[#This Row],[P.2(W)]],"") ->  | V349: =IF(t_instalado[[#This Row],[Q.3]]<>"",SUMIFS(t_fluxo_lumin[fluxo],t_fluxo_lumin[tipo],t_instalado[[#This Row],[T.3]])*t_instalado[[#This Row],[Q.3]]*t_instalado[[#This Row],[P.3(W)]],"") ->  | W349: =IF(t_instalado[[#This Row],[Trecho]]<>"",SUM(t_instalado[[#This Row],[f.1]:[f.3]]),"") ->  | X349: =IF(t_instalado[[#This Row],[Trecho]]<>"",t_instalado[[#This Row],[Q.1]]+t_instalado[[#This Row],[Q.2]]+t_instalado[[#This Row],[Q.3]],"") ->  | Y349: =IF(t_instalado[[#This Row],[FLUXO]]<>"",ROUND(t_instalado[[#This Row],[FLUXO]]/t_instalado[[#This Row],[Luminárias]],0),"") ->  | Z349: =IF(t_instalado[[#This Row],[Luminárias]]<>"",ROUND(t_instalado[[#This Row],[lm_médio]]/t_instalado[[#This Row],[W_médio]],2),"") -> 
A350: 116 | B350: =_xlfn.XLOOKUP(t_instalado[[#This Row],[cód.]],t_sitio[cód],t_sitio[Trecho],"") ->  | M350: =t_instalado[[#This Row],[Q.1]]+t_instalado[[#This Row],[Q.2]]+t_instalado[[#This Row],[Q.3]] -> 0 | N350: =t_instalado[[#This Row],[Q.1]]+t_instalado[[#This Row],[Q.2]]+t_instalado[[#This Row],[Q.3]] -> 0 | O350: =IF(t_instalado[[#This Row],[Q.1]]<>"",SUMIFS(t_reator[p],t_reator[tipo],t_instalado[[#This Row],[T.1]],t_reator[w],t_instalado[[#This Row],[P.1(W)]]),"") ->  | P350: =IF(t_instalado[[#This Row],[Q.2]]<>"",SUMIFS(t_reator[p],t_reator[tipo],t_instalado[[#This Row],[T.2]],t_reator[w],t_instalado[[#This Row],[P.2(W)]]),"") ->  | Q350: =IF(t_instalado[[#This Row],[Q.3]]<>"",SUMIFS(t_reator[p],t_reator[tipo],t_instalado[[#This Row],[T.3]],t_reator[w],t_instalado[[#This Row],[P.3(W)]]),"") ->  | R350: =IF(t_instalado[[#This Row],[Q.1]]<>"",IFERROR(IFERROR(D350*(E350+O350)+G350*(H350+P350)+J350*(K350+Q350),D350*(E350+O350)+G350*(H350+P350)),D350*(E350+O350)),"") ->  | S350: =IF(t_instalado[[#This Row],[Consumo_W]]<>"",ROUND(t_instalado[[#This Row],[Consumo_W]]/t_instalado[[#This Row],[Luminárias]],0),"") ->  | T350: =IF(t_instalado[[#This Row],[Q.1]]<>"",SUMIFS(t_fluxo_lumin[fluxo],t_fluxo_lumin[tipo],t_instalado[[#This Row],[T.1]])*t_instalado[[#This Row],[P.1(W)]]*t_instalado[[#This Row],[Q.1]],"") ->  | U350: =IF(t_instalado[[#This Row],[Q.2]]<>"",SUMIFS(t_fluxo_lumin[fluxo],t_fluxo_lumin[tipo],t_instalado[[#This Row],[T.2]])*t_instalado[[#This Row],[Q.2]]*t_instalado[[#This Row],[P.2(W)]],"") ->  | V350: =IF(t_instalado[[#This Row],[Q.3]]<>"",SUMIFS(t_fluxo_lumin[fluxo],t_fluxo_lumin[tipo],t_instalado[[#This Row],[T.3]])*t_instalado[[#This Row],[Q.3]]*t_instalado[[#This Row],[P.3(W)]],"") ->  | W350: =IF(t_instalado[[#This Row],[Trecho]]<>"",SUM(t_instalado[[#This Row],[f.1]:[f.3]]),"") ->  | X350: =IF(t_instalado[[#This Row],[Trecho]]<>"",t_instalado[[#This Row],[Q.1]]+t_instalado[[#This Row],[Q.2]]+t_instalado[[#This Row],[Q.3]],"") ->  | Y350: =IF(t_instalado[[#This Row],[FLUXO]]<>"",ROUND(t_instalado[[#This Row],[FLUXO]]/t_instalado[[#This Row],[Luminárias]],0),"") ->  | Z350: =IF(t_instalado[[#This Row],[Luminárias]]<>"",ROUND(t_instalado[[#This Row],[lm_médio]]/t_instalado[[#This Row],[W_médio]],2),"") -> 
A351: 117 | B351: =_xlfn.XLOOKUP(t_instalado[[#This Row],[cód.]],t_sitio[cód],t_sitio[Trecho],"") ->  | M351: =t_instalado[[#This Row],[Q.1]]+t_instalado[[#This Row],[Q.2]]+t_instalado[[#This Row],[Q.3]] -> 0 | N351: =t_instalado[[#This Row],[Q.1]]+t_instalado[[#This Row],[Q.2]]+t_instalado[[#This Row],[Q.3]] -> 0 | O351: =IF(t_instalado[[#This Row],[Q.1]]<>"",SUMIFS(t_reator[p],t_reator[tipo],t_instalado[[#This Row],[T.1]],t_reator[w],t_instalado[[#This Row],[P.1(W)]]),"") ->  | P351: =IF(t_instalado[[#This Row],[Q.2]]<>"",SUMIFS(t_reator[p],t_reator[tipo],t_instalado[[#This Row],[T.2]],t_reator[w],t_instalado[[#This Row],[P.2(W)]]),"") ->  | Q351: =IF(t_instalado[[#This Row],[Q.3]]<>"",SUMIFS(t_reator[p],t_reator[tipo],t_instalado[[#This Row],[T.3]],t_reator[w],t_instalado[[#This Row],[P.3(W)]]),"") ->  | R351: =IF(t_instalado[[#This Row],[Q.1]]<>"",IFERROR(IFERROR(D351*(E351+O351)+G351*(H351+P351)+J351*(K351+Q351),D351*(E351+O351)+G351*(H351+P351)),D351*(E351+O351)),"") ->  | S351: =IF(t_instalado[[#This Row],[Consumo_W]]<>"",ROUND(t_instalado[[#This Row],[Consumo_W]]/t_instalado[[#This Row],[Luminárias]],0),"") ->  | T351: =IF(t_instalado[[#This Row],[Q.1]]<>"",SUMIFS(t_fluxo_lumin[fluxo],t_fluxo_lumin[tipo],t_instalado[[#This Row],[T.1]])*t_instalado[[#This Row],[P.1(W)]]*t_instalado[[#This Row],[Q.1]],"") ->  | U351: =IF(t_instalado[[#This Row],[Q.2]]<>"",SUMIFS(t_fluxo_lumin[fluxo],t_fluxo_lumin[tipo],t_instalado[[#This Row],[T.2]])*t_instalado[[#This Row],[Q.2]]*t_instalado[[#This Row],[P.2(W)]],"") ->  | V351: =IF(t_instalado[[#This Row],[Q.3]]<>"",SUMIFS(t_fluxo_lumin[fluxo],t_fluxo_lumin[tipo],t_instalado[[#This Row],[T.3]])*t_instalado[[#This Row],[Q.3]]*t_instalado[[#This Row],[P.3(W)]],"") ->  | W351: =IF(t_instalado[[#This Row],[Trecho]]<>"",SUM(t_instalado[[#This Row],[f.1]:[f.3]]),"") ->  | X351: =IF(t_instalado[[#This Row],[Trecho]]<>"",t_instalado[[#This Row],[Q.1]]+t_instalado[[#This Row],[Q.2]]+t_instalado[[#This Row],[Q.3]],"") ->  | Y351: =IF(t_instalado[[#This Row],[FLUXO]]<>"",ROUND(t_instalado[[#This Row],[FLUXO]]/t_instalado[[#This Row],[Luminárias]],0),"") ->  | Z351: =IF(t_instalado[[#This Row],[Luminárias]]<>"",ROUND(t_instalado[[#This Row],[lm_médio]]/t_instalado[[#This Row],[W_médio]],2),"") -> 
A352: 118 | B352: =_xlfn.XLOOKUP(t_instalado[[#This Row],[cód.]],t_sitio[cód],t_sitio[Trecho],"") ->  | M352: =t_instalado[[#This Row],[Q.1]]+t_instalado[[#This Row],[Q.2]]+t_instalado[[#This Row],[Q.3]] -> 0 | N352: =t_instalado[[#This Row],[Q.1]]+t_instalado[[#This Row],[Q.2]]+t_instalado[[#This Row],[Q.3]] -> 0 | O352: =IF(t_instalado[[#This Row],[Q.1]]<>"",SUMIFS(t_reator[p],t_reator[tipo],t_instalado[[#This Row],[T.1]],t_reator[w],t_instalado[[#This Row],[P.1(W)]]),"") ->  | P352: =IF(t_instalado[[#This Row],[Q.2]]<>"",SUMIFS(t_reator[p],t_reator[tipo],t_instalado[[#This Row],[T.2]],t_reator[w],t_instalado[[#This Row],[P.2(W)]]),"") ->  | Q352: =IF(t_instalado[[#This Row],[Q.3]]<>"",SUMIFS(t_reator[p],t_reator[tipo],t_instalado[[#This Row],[T.3]],t_reator[w],t_instalado[[#This Row],[P.3(W)]]),"") ->  | R352: =IF(t_instalado[[#This Row],[Q.1]]<>"",IFERROR(IFERROR(D352*(E352+O352)+G352*(H352+P352)+J352*(K352+Q352),D352*(E352+O352)+G352*(H352+P352)),D352*(E352+O352)),"") ->  | S352: =IF(t_instalado[[#This Row],[Consumo_W]]<>"",ROUND(t_instalado[[#This Row],[Consumo_W]]/t_instalado[[#This Row],[Luminárias]],0),"") ->  | T352: =IF(t_instalado[[#This Row],[Q.1]]<>"",SUMIFS(t_fluxo_lumin[fluxo],t_fluxo_lumin[tipo],t_instalado[[#This Row],[T.1]])*t_instalado[[#This Row],[P.1(W)]]*t_instalado[[#This Row],[Q.1]],"") ->  | U352: =IF(t_instalado[[#This Row],[Q.2]]<>"",SUMIFS(t_fluxo_lumin[fluxo],t_fluxo_lumin[tipo],t_instalado[[#This Row],[T.2]])*t_instalado[[#This Row],[Q.2]]*t_instalado[[#This Row],[P.2(W)]],"") ->  | V352: =IF(t_instalado[[#This Row],[Q.3]]<>"",SUMIFS(t_fluxo_lumin[fluxo],t_fluxo_lumin[tipo],t_instalado[[#This Row],[T.3]])*t_instalado[[#This Row],[Q.3]]*t_instalado[[#This Row],[P.3(W)]],"") ->  | W352: =IF(t_instalado[[#This Row],[Trecho]]<>"",SUM(t_instalado[[#This Row],[f.1]:[f.3]]),"") ->  | X352: =IF(t_instalado[[#This Row],[Trecho]]<>"",t_instalado[[#This Row],[Q.1]]+t_instalado[[#This Row],[Q.2]]+t_instalado[[#This Row],[Q.3]],"") ->  | Y352: =IF(t_instalado[[#This Row],[FLUXO]]<>"",ROUND(t_instalado[[#This Row],[FLUXO]]/t_instalado[[#This Row],[Luminárias]],0),"") ->  | Z352: =IF(t_instalado[[#This Row],[Luminárias]]<>"",ROUND(t_instalado[[#This Row],[lm_médio]]/t_instalado[[#This Row],[W_médio]],2),"") -> 
A353: 119 | B353: =_xlfn.XLOOKUP(t_instalado[[#This Row],[cód.]],t_sitio[cód],t_sitio[Trecho],"") ->  | M353: =t_instalado[[#This Row],[Q.1]]+t_instalado[[#This Row],[Q.2]]+t_instalado[[#This Row],[Q.3]] -> 0 | N353: =t_instalado[[#This Row],[Q.1]]+t_instalado[[#This Row],[Q.2]]+t_instalado[[#This Row],[Q.3]] -> 0 | O353: =IF(t_instalado[[#This Row],[Q.1]]<>"",SUMIFS(t_reator[p],t_reator[tipo],t_instalado[[#This Row],[T.1]],t_reator[w],t_instalado[[#This Row],[P.1(W)]]),"") ->  | P353: =IF(t_instalado[[#This Row],[Q.2]]<>"",SUMIFS(t_reator[p],t_reator[tipo],t_instalado[[#This Row],[T.2]],t_reator[w],t_instalado[[#This Row],[P.2(W)]]),"") ->  | Q353: =IF(t_instalado[[#This Row],[Q.3]]<>"",SUMIFS(t_reator[p],t_reator[tipo],t_instalado[[#This Row],[T.3]],t_reator[w],t_instalado[[#This Row],[P.3(W)]]),"") ->  | R353: =IF(t_instalado[[#This Row],[Q.1]]<>"",IFERROR(IFERROR(D353*(E353+O353)+G353*(H353+P353)+J353*(K353+Q353),D353*(E353+O353)+G353*(H353+P353)),D353*(E353+O353)),"") ->  | S353: =IF(t_instalado[[#This Row],[Consumo_W]]<>"",ROUND(t_instalado[[#This Row],[Consumo_W]]/t_instalado[[#This Row],[Luminárias]],0),"") ->  | T353: =IF(t_instalado[[#This Row],[Q.1]]<>"",SUMIFS(t_fluxo_lumin[fluxo],t_fluxo_lumin[tipo],t_instalado[[#This Row],[T.1]])*t_instalado[[#This Row],[P.1(W)]]*t_instalado[[#This Row],[Q.1]],"") ->  | U353: =IF(t_instalado[[#This Row],[Q.2]]<>"",SUMIFS(t_fluxo_lumin[fluxo],t_fluxo_lumin[tipo],t_instalado[[#This Row],[T.2]])*t_instalado[[#This Row],[Q.2]]*t_instalado[[#This Row],[P.2(W)]],"") ->  | V353: =IF(t_instalado[[#This Row],[Q.3]]<>"",SUMIFS(t_fluxo_lumin[fluxo],t_fluxo_lumin[tipo],t_instalado[[#This Row],[T.3]])*t_instalado[[#This Row],[Q.3]]*t_instalado[[#This Row],[P.3(W)]],"") ->  | W353: =IF(t_instalado[[#This Row],[Trecho]]<>"",SUM(t_instalado[[#This Row],[f.1]:[f.3]]),"") ->  | X353: =IF(t_instalado[[#This Row],[Trecho]]<>"",t_instalado[[#This Row],[Q.1]]+t_instalado[[#This Row],[Q.2]]+t_instalado[[#This Row],[Q.3]],"") ->  | Y353: =IF(t_instalado[[#This Row],[FLUXO]]<>"",ROUND(t_instalado[[#This Row],[FLUXO]]/t_instalado[[#This Row],[Luminárias]],0),"") ->  | Z353: =IF(t_instalado[[#This Row],[Luminárias]]<>"",ROUND(t_instalado[[#This Row],[lm_médio]]/t_instalado[[#This Row],[W_médio]],2),"") -> 
A354: 120 | B354: =_xlfn.XLOOKUP(t_instalado[[#This Row],[cód.]],t_sitio[cód],t_sitio[Trecho],"") ->  | M354: =t_instalado[[#This Row],[Q.1]]+t_instalado[[#This Row],[Q.2]]+t_instalado[[#This Row],[Q.3]] -> 0 | N354: =t_instalado[[#This Row],[Q.1]]+t_instalado[[#This Row],[Q.2]]+t_instalado[[#This Row],[Q.3]] -> 0 | O354: =IF(t_instalado[[#This Row],[Q.1]]<>"",SUMIFS(t_reator[p],t_reator[tipo],t_instalado[[#This Row],[T.1]],t_reator[w],t_instalado[[#This Row],[P.1(W)]]),"") ->  | P354: =IF(t_instalado[[#This Row],[Q.2]]<>"",SUMIFS(t_reator[p],t_reator[tipo],t_instalado[[#This Row],[T.2]],t_reator[w],t_instalado[[#This Row],[P.2(W)]]),"") ->  | Q354: =IF(t_instalado[[#This Row],[Q.3]]<>"",SUMIFS(t_reator[p],t_reator[tipo],t_instalado[[#This Row],[T.3]],t_reator[w],t_instalado[[#This Row],[P.3(W)]]),"") ->  | R354: =IF(t_instalado[[#This Row],[Q.1]]<>"",IFERROR(IFERROR(D354*(E354+O354)+G354*(H354+P354)+J354*(K354+Q354),D354*(E354+O354)+G354*(H354+P354)),D354*(E354+O354)),"") ->  | S354: =IF(t_instalado[[#This Row],[Consumo_W]]<>"",ROUND(t_instalado[[#This Row],[Consumo_W]]/t_instalado[[#This Row],[Luminárias]],0),"") ->  | T354: =IF(t_instalado[[#This Row],[Q.1]]<>"",SUMIFS(t_fluxo_lumin[fluxo],t_fluxo_lumin[tipo],t_instalado[[#This Row],[T.1]])*t_instalado[[#This Row],[P.1(W)]]*t_instalado[[#This Row],[Q.1]],"") ->  | U354: =IF(t_instalado[[#This Row],[Q.2]]<>"",SUMIFS(t_fluxo_lumin[fluxo],t_fluxo_lumin[tipo],t_instalado[[#This Row],[T.2]])*t_instalado[[#This Row],[Q.2]]*t_instalado[[#This Row],[P.2(W)]],"") ->  | V354: =IF(t_instalado[[#This Row],[Q.3]]<>"",SUMIFS(t_fluxo_lumin[fluxo],t_fluxo_lumin[tipo],t_instalado[[#This Row],[T.3]])*t_instalado[[#This Row],[Q.3]]*t_instalado[[#This Row],[P.3(W)]],"") ->  | W354: =IF(t_instalado[[#This Row],[Trecho]]<>"",SUM(t_instalado[[#This Row],[f.1]:[f.3]]),"") ->  | X354: =IF(t_instalado[[#This Row],[Trecho]]<>"",t_instalado[[#This Row],[Q.1]]+t_instalado[[#This Row],[Q.2]]+t_instalado[[#This Row],[Q.3]],"") ->  | Y354: =IF(t_instalado[[#This Row],[FLUXO]]<>"",ROUND(t_instalado[[#This Row],[FLUXO]]/t_instalado[[#This Row],[Luminárias]],0),"") ->  | Z354: =IF(t_instalado[[#This Row],[Luminárias]]<>"",ROUND(t_instalado[[#This Row],[lm_médio]]/t_instalado[[#This Row],[W_médio]],2),"") -> 
A355: 121 | B355: =_xlfn.XLOOKUP(t_instalado[[#This Row],[cód.]],t_sitio[cód],t_sitio[Trecho],"") ->  | M355: =t_instalado[[#This Row],[Q.1]]+t_instalado[[#This Row],[Q.2]]+t_instalado[[#This Row],[Q.3]] -> 0 | N355: =t_instalado[[#This Row],[Q.1]]+t_instalado[[#This Row],[Q.2]]+t_instalado[[#This Row],[Q.3]] -> 0 | O355: =IF(t_instalado[[#This Row],[Q.1]]<>"",SUMIFS(t_reator[p],t_reator[tipo],t_instalado[[#This Row],[T.1]],t_reator[w],t_instalado[[#This Row],[P.1(W)]]),"") ->  | P355: =IF(t_instalado[[#This Row],[Q.2]]<>"",SUMIFS(t_reator[p],t_reator[tipo],t_instalado[[#This Row],[T.2]],t_reator[w],t_instalado[[#This Row],[P.2(W)]]),"") ->  | Q355: =IF(t_instalado[[#This Row],[Q.3]]<>"",SUMIFS(t_reator[p],t_reator[tipo],t_instalado[[#This Row],[T.3]],t_reator[w],t_instalado[[#This Row],[P.3(W)]]),"") ->  | R355: =IF(t_instalado[[#This Row],[Q.1]]<>"",IFERROR(IFERROR(D355*(E355+O355)+G355*(H355+P355)+J355*(K355+Q355),D355*(E355+O355)+G355*(H355+P355)),D355*(E355+O355)),"") ->  | S355: =IF(t_instalado[[#This Row],[Consumo_W]]<>"",ROUND(t_instalado[[#This Row],[Consumo_W]]/t_instalado[[#This Row],[Luminárias]],0),"") ->  | T355: =IF(t_instalado[[#This Row],[Q.1]]<>"",SUMIFS(t_fluxo_lumin[fluxo],t_fluxo_lumin[tipo],t_instalado[[#This Row],[T.1]])*t_instalado[[#This Row],[P.1(W)]]*t_instalado[[#This Row],[Q.1]],"") ->  | U355: =IF(t_instalado[[#This Row],[Q.2]]<>"",SUMIFS(t_fluxo_lumin[fluxo],t_fluxo_lumin[tipo],t_instalado[[#This Row],[T.2]])*t_instalado[[#This Row],[Q.2]]*t_instalado[[#This Row],[P.2(W)]],"") ->  | V355: =IF(t_instalado[[#This Row],[Q.3]]<>"",SUMIFS(t_fluxo_lumin[fluxo],t_fluxo_lumin[tipo],t_instalado[[#This Row],[T.3]])*t_instalado[[#This Row],[Q.3]]*t_instalado[[#This Row],[P.3(W)]],"") ->  | W355: =IF(t_instalado[[#This Row],[Trecho]]<>"",SUM(t_instalado[[#This Row],[f.1]:[f.3]]),"") ->  | X355: =IF(t_instalado[[#This Row],[Trecho]]<>"",t_instalado[[#This Row],[Q.1]]+t_instalado[[#This Row],[Q.2]]+t_instalado[[#This Row],[Q.3]],"") ->  | Y355: =IF(t_instalado[[#This Row],[FLUXO]]<>"",ROUND(t_instalado[[#This Row],[FLUXO]]/t_instalado[[#This Row],[Luminárias]],0),"") ->  | Z355: =IF(t_instalado[[#This Row],[Luminárias]]<>"",ROUND(t_instalado[[#This Row],[lm_médio]]/t_instalado[[#This Row],[W_médio]],2),"") -> 
A356: 122 | B356: =_xlfn.XLOOKUP(t_instalado[[#This Row],[cód.]],t_sitio[cód],t_sitio[Trecho],"") ->  | M356: =t_instalado[[#This Row],[Q.1]]+t_instalado[[#This Row],[Q.2]]+t_instalado[[#This Row],[Q.3]] -> 0 | N356: =t_instalado[[#This Row],[Q.1]]+t_instalado[[#This Row],[Q.2]]+t_instalado[[#This Row],[Q.3]] -> 0 | O356: =IF(t_instalado[[#This Row],[Q.1]]<>"",SUMIFS(t_reator[p],t_reator[tipo],t_instalado[[#This Row],[T.1]],t_reator[w],t_instalado[[#This Row],[P.1(W)]]),"") ->  | P356: =IF(t_instalado[[#This Row],[Q.2]]<>"",SUMIFS(t_reator[p],t_reator[tipo],t_instalado[[#This Row],[T.2]],t_reator[w],t_instalado[[#This Row],[P.2(W)]]),"") ->  | Q356: =IF(t_instalado[[#This Row],[Q.3]]<>"",SUMIFS(t_reator[p],t_reator[tipo],t_instalado[[#This Row],[T.3]],t_reator[w],t_instalado[[#This Row],[P.3(W)]]),"") ->  | R356: =IF(t_instalado[[#This Row],[Q.1]]<>"",IFERROR(IFERROR(D356*(E356+O356)+G356*(H356+P356)+J356*(K356+Q356),D356*(E356+O356)+G356*(H356+P356)),D356*(E356+O356)),"") ->  | S356: =IF(t_instalado[[#This Row],[Consumo_W]]<>"",ROUND(t_instalado[[#This Row],[Consumo_W]]/t_instalado[[#This Row],[Luminárias]],0),"") ->  | T356: =IF(t_instalado[[#This Row],[Q.1]]<>"",SUMIFS(t_fluxo_lumin[fluxo],t_fluxo_lumin[tipo],t_instalado[[#This Row],[T.1]])*t_instalado[[#This Row],[P.1(W)]]*t_instalado[[#This Row],[Q.1]],"") ->  | U356: =IF(t_instalado[[#This Row],[Q.2]]<>"",SUMIFS(t_fluxo_lumin[fluxo],t_fluxo_lumin[tipo],t_instalado[[#This Row],[T.2]])*t_instalado[[#This Row],[Q.2]]*t_instalado[[#This Row],[P.2(W)]],"") ->  | V356: =IF(t_instalado[[#This Row],[Q.3]]<>"",SUMIFS(t_fluxo_lumin[fluxo],t_fluxo_lumin[tipo],t_instalado[[#This Row],[T.3]])*t_instalado[[#This Row],[Q.3]]*t_instalado[[#This Row],[P.3(W)]],"") ->  | W356: =IF(t_instalado[[#This Row],[Trecho]]<>"",SUM(t_instalado[[#This Row],[f.1]:[f.3]]),"") ->  | X356: =IF(t_instalado[[#This Row],[Trecho]]<>"",t_instalado[[#This Row],[Q.1]]+t_instalado[[#This Row],[Q.2]]+t_instalado[[#This Row],[Q.3]],"") ->  | Y356: =IF(t_instalado[[#This Row],[FLUXO]]<>"",ROUND(t_instalado[[#This Row],[FLUXO]]/t_instalado[[#This Row],[Luminárias]],0),"") ->  | Z356: =IF(t_instalado[[#This Row],[Luminárias]]<>"",ROUND(t_instalado[[#This Row],[lm_médio]]/t_instalado[[#This Row],[W_médio]],2),"") -> 
A357: 123 | B357: =_xlfn.XLOOKUP(t_instalado[[#This Row],[cód.]],t_sitio[cód],t_sitio[Trecho],"") ->  | M357: =t_instalado[[#This Row],[Q.1]]+t_instalado[[#This Row],[Q.2]]+t_instalado[[#This Row],[Q.3]] -> 0 | N357: =t_instalado[[#This Row],[Q.1]]+t_instalado[[#This Row],[Q.2]]+t_instalado[[#This Row],[Q.3]] -> 0 | O357: =IF(t_instalado[[#This Row],[Q.1]]<>"",SUMIFS(t_reator[p],t_reator[tipo],t_instalado[[#This Row],[T.1]],t_reator[w],t_instalado[[#This Row],[P.1(W)]]),"") ->  | P357: =IF(t_instalado[[#This Row],[Q.2]]<>"",SUMIFS(t_reator[p],t_reator[tipo],t_instalado[[#This Row],[T.2]],t_reator[w],t_instalado[[#This Row],[P.2(W)]]),"") ->  | Q357: =IF(t_instalado[[#This Row],[Q.3]]<>"",SUMIFS(t_reator[p],t_reator[tipo],t_instalado[[#This Row],[T.3]],t_reator[w],t_instalado[[#This Row],[P.3(W)]]),"") ->  | R357: =IF(t_instalado[[#This Row],[Q.1]]<>"",IFERROR(IFERROR(D357*(E357+O357)+G357*(H357+P357)+J357*(K357+Q357),D357*(E357+O357)+G357*(H357+P357)),D357*(E357+O357)),"") ->  | S357: =IF(t_instalado[[#This Row],[Consumo_W]]<>"",ROUND(t_instalado[[#This Row],[Consumo_W]]/t_instalado[[#This Row],[Luminárias]],0),"") ->  | T357: =IF(t_instalado[[#This Row],[Q.1]]<>"",SUMIFS(t_fluxo_lumin[fluxo],t_fluxo_lumin[tipo],t_instalado[[#This Row],[T.1]])*t_instalado[[#This Row],[P.1(W)]]*t_instalado[[#This Row],[Q.1]],"") ->  | U357: =IF(t_instalado[[#This Row],[Q.2]]<>"",SUMIFS(t_fluxo_lumin[fluxo],t_fluxo_lumin[tipo],t_instalado[[#This Row],[T.2]])*t_instalado[[#This Row],[Q.2]]*t_instalado[[#This Row],[P.2(W)]],"") ->  | V357: =IF(t_instalado[[#This Row],[Q.3]]<>"",SUMIFS(t_fluxo_lumin[fluxo],t_fluxo_lumin[tipo],t_instalado[[#This Row],[T.3]])*t_instalado[[#This Row],[Q.3]]*t_instalado[[#This Row],[P.3(W)]],"") ->  | W357: =IF(t_instalado[[#This Row],[Trecho]]<>"",SUM(t_instalado[[#This Row],[f.1]:[f.3]]),"") ->  | X357: =IF(t_instalado[[#This Row],[Trecho]]<>"",t_instalado[[#This Row],[Q.1]]+t_instalado[[#This Row],[Q.2]]+t_instalado[[#This Row],[Q.3]],"") ->  | Y357: =IF(t_instalado[[#This Row],[FLUXO]]<>"",ROUND(t_instalado[[#This Row],[FLUXO]]/t_instalado[[#This Row],[Luminárias]],0),"") ->  | Z357: =IF(t_instalado[[#This Row],[Luminárias]]<>"",ROUND(t_instalado[[#This Row],[lm_médio]]/t_instalado[[#This Row],[W_médio]],2),"") -> 
A358: 124 | B358: =_xlfn.XLOOKUP(t_instalado[[#This Row],[cód.]],t_sitio[cód],t_sitio[Trecho],"") ->  | M358: =t_instalado[[#This Row],[Q.1]]+t_instalado[[#This Row],[Q.2]]+t_instalado[[#This Row],[Q.3]] -> 0 | N358: =t_instalado[[#This Row],[Q.1]]+t_instalado[[#This Row],[Q.2]]+t_instalado[[#This Row],[Q.3]] -> 0 | O358: =IF(t_instalado[[#This Row],[Q.1]]<>"",SUMIFS(t_reator[p],t_reator[tipo],t_instalado[[#This Row],[T.1]],t_reator[w],t_instalado[[#This Row],[P.1(W)]]),"") ->  | P358: =IF(t_instalado[[#This Row],[Q.2]]<>"",SUMIFS(t_reator[p],t_reator[tipo],t_instalado[[#This Row],[T.2]],t_reator[w],t_instalado[[#This Row],[P.2(W)]]),"") ->  | Q358: =IF(t_instalado[[#This Row],[Q.3]]<>"",SUMIFS(t_reator[p],t_reator[tipo],t_instalado[[#This Row],[T.3]],t_reator[w],t_instalado[[#This Row],[P.3(W)]]),"") ->  | R358: =IF(t_instalado[[#This Row],[Q.1]]<>"",IFERROR(IFERROR(D358*(E358+O358)+G358*(H358+P358)+J358*(K358+Q358),D358*(E358+O358)+G358*(H358+P358)),D358*(E358+O358)),"") ->  | S358: =IF(t_instalado[[#This Row],[Consumo_W]]<>"",ROUND(t_instalado[[#This Row],[Consumo_W]]/t_instalado[[#This Row],[Luminárias]],0),"") ->  | T358: =IF(t_instalado[[#This Row],[Q.1]]<>"",SUMIFS(t_fluxo_lumin[fluxo],t_fluxo_lumin[tipo],t_instalado[[#This Row],[T.1]])*t_instalado[[#This Row],[P.1(W)]]*t_instalado[[#This Row],[Q.1]],"") ->  | U358: =IF(t_instalado[[#This Row],[Q.2]]<>"",SUMIFS(t_fluxo_lumin[fluxo],t_fluxo_lumin[tipo],t_instalado[[#This Row],[T.2]])*t_instalado[[#This Row],[Q.2]]*t_instalado[[#This Row],[P.2(W)]],"") ->  | V358: =IF(t_instalado[[#This Row],[Q.3]]<>"",SUMIFS(t_fluxo_lumin[fluxo],t_fluxo_lumin[tipo],t_instalado[[#This Row],[T.3]])*t_instalado[[#This Row],[Q.3]]*t_instalado[[#This Row],[P.3(W)]],"") ->  | W358: =IF(t_instalado[[#This Row],[Trecho]]<>"",SUM(t_instalado[[#This Row],[f.1]:[f.3]]),"") ->  | X358: =IF(t_instalado[[#This Row],[Trecho]]<>"",t_instalado[[#This Row],[Q.1]]+t_instalado[[#This Row],[Q.2]]+t_instalado[[#This Row],[Q.3]],"") ->  | Y358: =IF(t_instalado[[#This Row],[FLUXO]]<>"",ROUND(t_instalado[[#This Row],[FLUXO]]/t_instalado[[#This Row],[Luminárias]],0),"") ->  | Z358: =IF(t_instalado[[#This Row],[Luminárias]]<>"",ROUND(t_instalado[[#This Row],[lm_médio]]/t_instalado[[#This Row],[W_médio]],2),"") -> 
A359: 125 | B359: =_xlfn.XLOOKUP(t_instalado[[#This Row],[cód.]],t_sitio[cód],t_sitio[Trecho],"") ->  | M359: =t_instalado[[#This Row],[Q.1]]+t_instalado[[#This Row],[Q.2]]+t_instalado[[#This Row],[Q.3]] -> 0 | N359: =t_instalado[[#This Row],[Q.1]]+t_instalado[[#This Row],[Q.2]]+t_instalado[[#This Row],[Q.3]] -> 0 | O359: =IF(t_instalado[[#This Row],[Q.1]]<>"",SUMIFS(t_reator[p],t_reator[tipo],t_instalado[[#This Row],[T.1]],t_reator[w],t_instalado[[#This Row],[P.1(W)]]),"") ->  | P359: =IF(t_instalado[[#This Row],[Q.2]]<>"",SUMIFS(t_reator[p],t_reator[tipo],t_instalado[[#This Row],[T.2]],t_reator[w],t_instalado[[#This Row],[P.2(W)]]),"") ->  | Q359: =IF(t_instalado[[#This Row],[Q.3]]<>"",SUMIFS(t_reator[p],t_reator[tipo],t_instalado[[#This Row],[T.3]],t_reator[w],t_instalado[[#This Row],[P.3(W)]]),"") ->  | R359: =IF(t_instalado[[#This Row],[Q.1]]<>"",IFERROR(IFERROR(D359*(E359+O359)+G359*(H359+P359)+J359*(K359+Q359),D359*(E359+O359)+G359*(H359+P359)),D359*(E359+O359)),"") ->  | S359: =IF(t_instalado[[#This Row],[Consumo_W]]<>"",ROUND(t_instalado[[#This Row],[Consumo_W]]/t_instalado[[#This Row],[Luminárias]],0),"") ->  | T359: =IF(t_instalado[[#This Row],[Q.1]]<>"",SUMIFS(t_fluxo_lumin[fluxo],t_fluxo_lumin[tipo],t_instalado[[#This Row],[T.1]])*t_instalado[[#This Row],[P.1(W)]]*t_instalado[[#This Row],[Q.1]],"") ->  | U359: =IF(t_instalado[[#This Row],[Q.2]]<>"",SUMIFS(t_fluxo_lumin[fluxo],t_fluxo_lumin[tipo],t_instalado[[#This Row],[T.2]])*t_instalado[[#This Row],[Q.2]]*t_instalado[[#This Row],[P.2(W)]],"") ->  | V359: =IF(t_instalado[[#This Row],[Q.3]]<>"",SUMIFS(t_fluxo_lumin[fluxo],t_fluxo_lumin[tipo],t_instalado[[#This Row],[T.3]])*t_instalado[[#This Row],[Q.3]]*t_instalado[[#This Row],[P.3(W)]],"") ->  | W359: =IF(t_instalado[[#This Row],[Trecho]]<>"",SUM(t_instalado[[#This Row],[f.1]:[f.3]]),"") ->  | X359: =IF(t_instalado[[#This Row],[Trecho]]<>"",t_instalado[[#This Row],[Q.1]]+t_instalado[[#This Row],[Q.2]]+t_instalado[[#This Row],[Q.3]],"") ->  | Y359: =IF(t_instalado[[#This Row],[FLUXO]]<>"",ROUND(t_instalado[[#This Row],[FLUXO]]/t_instalado[[#This Row],[Luminárias]],0),"") ->  | Z359: =IF(t_instalado[[#This Row],[Luminárias]]<>"",ROUND(t_instalado[[#This Row],[lm_médio]]/t_instalado[[#This Row],[W_médio]],2),"") -> 
A360: 126 | B360: =_xlfn.XLOOKUP(t_instalado[[#This Row],[cód.]],t_sitio[cód],t_sitio[Trecho],"") ->  | M360: =t_instalado[[#This Row],[Q.1]]+t_instalado[[#This Row],[Q.2]]+t_instalado[[#This Row],[Q.3]] -> 0 | N360: =t_instalado[[#This Row],[Q.1]]+t_instalado[[#This Row],[Q.2]]+t_instalado[[#This Row],[Q.3]] -> 0 | O360: =IF(t_instalado[[#This Row],[Q.1]]<>"",SUMIFS(t_reator[p],t_reator[tipo],t_instalado[[#This Row],[T.1]],t_reator[w],t_instalado[[#This Row],[P.1(W)]]),"") ->  | P360: =IF(t_instalado[[#This Row],[Q.2]]<>"",SUMIFS(t_reator[p],t_reator[tipo],t_instalado[[#This Row],[T.2]],t_reator[w],t_instalado[[#This Row],[P.2(W)]]),"") ->  | Q360: =IF(t_instalado[[#This Row],[Q.3]]<>"",SUMIFS(t_reator[p],t_reator[tipo],t_instalado[[#This Row],[T.3]],t_reator[w],t_instalado[[#This Row],[P.3(W)]]),"") ->  | R360: =IF(t_instalado[[#This Row],[Q.1]]<>"",IFERROR(IFERROR(D360*(E360+O360)+G360*(H360+P360)+J360*(K360+Q360),D360*(E360+O360)+G360*(H360+P360)),D360*(E360+O360)),"") ->  | S360: =IF(t_instalado[[#This Row],[Consumo_W]]<>"",ROUND(t_instalado[[#This Row],[Consumo_W]]/t_instalado[[#This Row],[Luminárias]],0),"") ->  | T360: =IF(t_instalado[[#This Row],[Q.1]]<>"",SUMIFS(t_fluxo_lumin[fluxo],t_fluxo_lumin[tipo],t_instalado[[#This Row],[T.1]])*t_instalado[[#This Row],[P.1(W)]]*t_instalado[[#This Row],[Q.1]],"") ->  | U360: =IF(t_instalado[[#This Row],[Q.2]]<>"",SUMIFS(t_fluxo_lumin[fluxo],t_fluxo_lumin[tipo],t_instalado[[#This Row],[T.2]])*t_instalado[[#This Row],[Q.2]]*t_instalado[[#This Row],[P.2(W)]],"") ->  | V360: =IF(t_instalado[[#This Row],[Q.3]]<>"",SUMIFS(t_fluxo_lumin[fluxo],t_fluxo_lumin[tipo],t_instalado[[#This Row],[T.3]])*t_instalado[[#This Row],[Q.3]]*t_instalado[[#This Row],[P.3(W)]],"") ->  | W360: =IF(t_instalado[[#This Row],[Trecho]]<>"",SUM(t_instalado[[#This Row],[f.1]:[f.3]]),"") ->  | X360: =IF(t_instalado[[#This Row],[Trecho]]<>"",t_instalado[[#This Row],[Q.1]]+t_instalado[[#This Row],[Q.2]]+t_instalado[[#This Row],[Q.3]],"") ->  | Y360: =IF(t_instalado[[#This Row],[FLUXO]]<>"",ROUND(t_instalado[[#This Row],[FLUXO]]/t_instalado[[#This Row],[Luminárias]],0),"") ->  | Z360: =IF(t_instalado[[#This Row],[Luminárias]]<>"",ROUND(t_instalado[[#This Row],[lm_médio]]/t_instalado[[#This Row],[W_médio]],2),"") -> 
A361: 127 | B361: =_xlfn.XLOOKUP(t_instalado[[#This Row],[cód.]],t_sitio[cód],t_sitio[Trecho],"") ->  | M361: =t_instalado[[#This Row],[Q.1]]+t_instalado[[#This Row],[Q.2]]+t_instalado[[#This Row],[Q.3]] -> 0 | N361: =t_instalado[[#This Row],[Q.1]]+t_instalado[[#This Row],[Q.2]]+t_instalado[[#This Row],[Q.3]] -> 0 | O361: =IF(t_instalado[[#This Row],[Q.1]]<>"",SUMIFS(t_reator[p],t_reator[tipo],t_instalado[[#This Row],[T.1]],t_reator[w],t_instalado[[#This Row],[P.1(W)]]),"") ->  | P361: =IF(t_instalado[[#This Row],[Q.2]]<>"",SUMIFS(t_reator[p],t_reator[tipo],t_instalado[[#This Row],[T.2]],t_reator[w],t_instalado[[#This Row],[P.2(W)]]),"") ->  | Q361: =IF(t_instalado[[#This Row],[Q.3]]<>"",SUMIFS(t_reator[p],t_reator[tipo],t_instalado[[#This Row],[T.3]],t_reator[w],t_instalado[[#This Row],[P.3(W)]]),"") ->  | R361: =IF(t_instalado[[#This Row],[Q.1]]<>"",IFERROR(IFERROR(D361*(E361+O361)+G361*(H361+P361)+J361*(K361+Q361),D361*(E361+O361)+G361*(H361+P361)),D361*(E361+O361)),"") ->  | S361: =IF(t_instalado[[#This Row],[Consumo_W]]<>"",ROUND(t_instalado[[#This Row],[Consumo_W]]/t_instalado[[#This Row],[Luminárias]],0),"") ->  | T361: =IF(t_instalado[[#This Row],[Q.1]]<>"",SUMIFS(t_fluxo_lumin[fluxo],t_fluxo_lumin[tipo],t_instalado[[#This Row],[T.1]])*t_instalado[[#This Row],[P.1(W)]]*t_instalado[[#This Row],[Q.1]],"") ->  | U361: =IF(t_instalado[[#This Row],[Q.2]]<>"",SUMIFS(t_fluxo_lumin[fluxo],t_fluxo_lumin[tipo],t_instalado[[#This Row],[T.2]])*t_instalado[[#This Row],[Q.2]]*t_instalado[[#This Row],[P.2(W)]],"") ->  | V361: =IF(t_instalado[[#This Row],[Q.3]]<>"",SUMIFS(t_fluxo_lumin[fluxo],t_fluxo_lumin[tipo],t_instalado[[#This Row],[T.3]])*t_instalado[[#This Row],[Q.3]]*t_instalado[[#This Row],[P.3(W)]],"") ->  | W361: =IF(t_instalado[[#This Row],[Trecho]]<>"",SUM(t_instalado[[#This Row],[f.1]:[f.3]]),"") ->  | X361: =IF(t_instalado[[#This Row],[Trecho]]<>"",t_instalado[[#This Row],[Q.1]]+t_instalado[[#This Row],[Q.2]]+t_instalado[[#This Row],[Q.3]],"") ->  | Y361: =IF(t_instalado[[#This Row],[FLUXO]]<>"",ROUND(t_instalado[[#This Row],[FLUXO]]/t_instalado[[#This Row],[Luminárias]],0),"") ->  | Z361: =IF(t_instalado[[#This Row],[Luminárias]]<>"",ROUND(t_instalado[[#This Row],[lm_médio]]/t_instalado[[#This Row],[W_médio]],2),"") -> 
A362: 128 | B362: =_xlfn.XLOOKUP(t_instalado[[#This Row],[cód.]],t_sitio[cód],t_sitio[Trecho],"") ->  | M362: =t_instalado[[#This Row],[Q.1]]+t_instalado[[#This Row],[Q.2]]+t_instalado[[#This Row],[Q.3]] -> 0 | N362: =t_instalado[[#This Row],[Q.1]]+t_instalado[[#This Row],[Q.2]]+t_instalado[[#This Row],[Q.3]] -> 0 | O362: =IF(t_instalado[[#This Row],[Q.1]]<>"",SUMIFS(t_reator[p],t_reator[tipo],t_instalado[[#This Row],[T.1]],t_reator[w],t_instalado[[#This Row],[P.1(W)]]),"") ->  | P362: =IF(t_instalado[[#This Row],[Q.2]]<>"",SUMIFS(t_reator[p],t_reator[tipo],t_instalado[[#This Row],[T.2]],t_reator[w],t_instalado[[#This Row],[P.2(W)]]),"") ->  | Q362: =IF(t_instalado[[#This Row],[Q.3]]<>"",SUMIFS(t_reator[p],t_reator[tipo],t_instalado[[#This Row],[T.3]],t_reator[w],t_instalado[[#This Row],[P.3(W)]]),"") ->  | R362: =IF(t_instalado[[#This Row],[Q.1]]<>"",IFERROR(IFERROR(D362*(E362+O362)+G362*(H362+P362)+J362*(K362+Q362),D362*(E362+O362)+G362*(H362+P362)),D362*(E362+O362)),"") ->  | S362: =IF(t_instalado[[#This Row],[Consumo_W]]<>"",ROUND(t_instalado[[#This Row],[Consumo_W]]/t_instalado[[#This Row],[Luminárias]],0),"") ->  | T362: =IF(t_instalado[[#This Row],[Q.1]]<>"",SUMIFS(t_fluxo_lumin[fluxo],t_fluxo_lumin[tipo],t_instalado[[#This Row],[T.1]])*t_instalado[[#This Row],[P.1(W)]]*t_instalado[[#This Row],[Q.1]],"") ->  | U362: =IF(t_instalado[[#This Row],[Q.2]]<>"",SUMIFS(t_fluxo_lumin[fluxo],t_fluxo_lumin[tipo],t_instalado[[#This Row],[T.2]])*t_instalado[[#This Row],[Q.2]]*t_instalado[[#This Row],[P.2(W)]],"") ->  | V362: =IF(t_instalado[[#This Row],[Q.3]]<>"",SUMIFS(t_fluxo_lumin[fluxo],t_fluxo_lumin[tipo],t_instalado[[#This Row],[T.3]])*t_instalado[[#This Row],[Q.3]]*t_instalado[[#This Row],[P.3(W)]],"") ->  | W362: =IF(t_instalado[[#This Row],[Trecho]]<>"",SUM(t_instalado[[#This Row],[f.1]:[f.3]]),"") ->  | X362: =IF(t_instalado[[#This Row],[Trecho]]<>"",t_instalado[[#This Row],[Q.1]]+t_instalado[[#This Row],[Q.2]]+t_instalado[[#This Row],[Q.3]],"") ->  | Y362: =IF(t_instalado[[#This Row],[FLUXO]]<>"",ROUND(t_instalado[[#This Row],[FLUXO]]/t_instalado[[#This Row],[Luminárias]],0),"") ->  | Z362: =IF(t_instalado[[#This Row],[Luminárias]]<>"",ROUND(t_instalado[[#This Row],[lm_médio]]/t_instalado[[#This Row],[W_médio]],2),"") -> 
A363: 129 | B363: =_xlfn.XLOOKUP(t_instalado[[#This Row],[cód.]],t_sitio[cód],t_sitio[Trecho],"") ->  | M363: =t_instalado[[#This Row],[Q.1]]+t_instalado[[#This Row],[Q.2]]+t_instalado[[#This Row],[Q.3]] -> 0 | N363: =t_instalado[[#This Row],[Q.1]]+t_instalado[[#This Row],[Q.2]]+t_instalado[[#This Row],[Q.3]] -> 0 | O363: =IF(t_instalado[[#This Row],[Q.1]]<>"",SUMIFS(t_reator[p],t_reator[tipo],t_instalado[[#This Row],[T.1]],t_reator[w],t_instalado[[#This Row],[P.1(W)]]),"") ->  | P363: =IF(t_instalado[[#This Row],[Q.2]]<>"",SUMIFS(t_reator[p],t_reator[tipo],t_instalado[[#This Row],[T.2]],t_reator[w],t_instalado[[#This Row],[P.2(W)]]),"") ->  | Q363: =IF(t_instalado[[#This Row],[Q.3]]<>"",SUMIFS(t_reator[p],t_reator[tipo],t_instalado[[#This Row],[T.3]],t_reator[w],t_instalado[[#This Row],[P.3(W)]]),"") ->  | R363: =IF(t_instalado[[#This Row],[Q.1]]<>"",IFERROR(IFERROR(D363*(E363+O363)+G363*(H363+P363)+J363*(K363+Q363),D363*(E363+O363)+G363*(H363+P363)),D363*(E363+O363)),"") ->  | S363: =IF(t_instalado[[#This Row],[Consumo_W]]<>"",ROUND(t_instalado[[#This Row],[Consumo_W]]/t_instalado[[#This Row],[Luminárias]],0),"") ->  | T363: =IF(t_instalado[[#This Row],[Q.1]]<>"",SUMIFS(t_fluxo_lumin[fluxo],t_fluxo_lumin[tipo],t_instalado[[#This Row],[T.1]])*t_instalado[[#This Row],[P.1(W)]]*t_instalado[[#This Row],[Q.1]],"") ->  | U363: =IF(t_instalado[[#This Row],[Q.2]]<>"",SUMIFS(t_fluxo_lumin[fluxo],t_fluxo_lumin[tipo],t_instalado[[#This Row],[T.2]])*t_instalado[[#This Row],[Q.2]]*t_instalado[[#This Row],[P.2(W)]],"") ->  | V363: =IF(t_instalado[[#This Row],[Q.3]]<>"",SUMIFS(t_fluxo_lumin[fluxo],t_fluxo_lumin[tipo],t_instalado[[#This Row],[T.3]])*t_instalado[[#This Row],[Q.3]]*t_instalado[[#This Row],[P.3(W)]],"") ->  | W363: =IF(t_instalado[[#This Row],[Trecho]]<>"",SUM(t_instalado[[#This Row],[f.1]:[f.3]]),"") ->  | X363: =IF(t_instalado[[#This Row],[Trecho]]<>"",t_instalado[[#This Row],[Q.1]]+t_instalado[[#This Row],[Q.2]]+t_instalado[[#This Row],[Q.3]],"") ->  | Y363: =IF(t_instalado[[#This Row],[FLUXO]]<>"",ROUND(t_instalado[[#This Row],[FLUXO]]/t_instalado[[#This Row],[Luminárias]],0),"") ->  | Z363: =IF(t_instalado[[#This Row],[Luminárias]]<>"",ROUND(t_instalado[[#This Row],[lm_médio]]/t_instalado[[#This Row],[W_médio]],2),"") -> 
A364: 130 | B364: =_xlfn.XLOOKUP(t_instalado[[#This Row],[cód.]],t_sitio[cód],t_sitio[Trecho],"") ->  | M364: =t_instalado[[#This Row],[Q.1]]+t_instalado[[#This Row],[Q.2]]+t_instalado[[#This Row],[Q.3]] -> 0 | N364: =t_instalado[[#This Row],[Q.1]]+t_instalado[[#This Row],[Q.2]]+t_instalado[[#This Row],[Q.3]] -> 0 | O364: =IF(t_instalado[[#This Row],[Q.1]]<>"",SUMIFS(t_reator[p],t_reator[tipo],t_instalado[[#This Row],[T.1]],t_reator[w],t_instalado[[#This Row],[P.1(W)]]),"") ->  | P364: =IF(t_instalado[[#This Row],[Q.2]]<>"",SUMIFS(t_reator[p],t_reator[tipo],t_instalado[[#This Row],[T.2]],t_reator[w],t_instalado[[#This Row],[P.2(W)]]),"") ->  | Q364: =IF(t_instalado[[#This Row],[Q.3]]<>"",SUMIFS(t_reator[p],t_reator[tipo],t_instalado[[#This Row],[T.3]],t_reator[w],t_instalado[[#This Row],[P.3(W)]]),"") ->  | R364: =IF(t_instalado[[#This Row],[Q.1]]<>"",IFERROR(IFERROR(D364*(E364+O364)+G364*(H364+P364)+J364*(K364+Q364),D364*(E364+O364)+G364*(H364+P364)),D364*(E364+O364)),"") ->  | S364: =IF(t_instalado[[#This Row],[Consumo_W]]<>"",ROUND(t_instalado[[#This Row],[Consumo_W]]/t_instalado[[#This Row],[Luminárias]],0),"") ->  | T364: =IF(t_instalado[[#This Row],[Q.1]]<>"",SUMIFS(t_fluxo_lumin[fluxo],t_fluxo_lumin[tipo],t_instalado[[#This Row],[T.1]])*t_instalado[[#This Row],[P.1(W)]]*t_instalado[[#This Row],[Q.1]],"") ->  | U364: =IF(t_instalado[[#This Row],[Q.2]]<>"",SUMIFS(t_fluxo_lumin[fluxo],t_fluxo_lumin[tipo],t_instalado[[#This Row],[T.2]])*t_instalado[[#This Row],[Q.2]]*t_instalado[[#This Row],[P.2(W)]],"") ->  | V364: =IF(t_instalado[[#This Row],[Q.3]]<>"",SUMIFS(t_fluxo_lumin[fluxo],t_fluxo_lumin[tipo],t_instalado[[#This Row],[T.3]])*t_instalado[[#This Row],[Q.3]]*t_instalado[[#This Row],[P.3(W)]],"") ->  | W364: =IF(t_instalado[[#This Row],[Trecho]]<>"",SUM(t_instalado[[#This Row],[f.1]:[f.3]]),"") ->  | X364: =IF(t_instalado[[#This Row],[Trecho]]<>"",t_instalado[[#This Row],[Q.1]]+t_instalado[[#This Row],[Q.2]]+t_instalado[[#This Row],[Q.3]],"") ->  | Y364: =IF(t_instalado[[#This Row],[FLUXO]]<>"",ROUND(t_instalado[[#This Row],[FLUXO]]/t_instalado[[#This Row],[Luminárias]],0),"") ->  | Z364: =IF(t_instalado[[#This Row],[Luminárias]]<>"",ROUND(t_instalado[[#This Row],[lm_médio]]/t_instalado[[#This Row],[W_médio]],2),"") -> 
A365: 131 | B365: =_xlfn.XLOOKUP(t_instalado[[#This Row],[cód.]],t_sitio[cód],t_sitio[Trecho],"") ->  | M365: =t_instalado[[#This Row],[Q.1]]+t_instalado[[#This Row],[Q.2]]+t_instalado[[#This Row],[Q.3]] -> 0 | N365: =t_instalado[[#This Row],[Q.1]]+t_instalado[[#This Row],[Q.2]]+t_instalado[[#This Row],[Q.3]] -> 0 | O365: =IF(t_instalado[[#This Row],[Q.1]]<>"",SUMIFS(t_reator[p],t_reator[tipo],t_instalado[[#This Row],[T.1]],t_reator[w],t_instalado[[#This Row],[P.1(W)]]),"") ->  | P365: =IF(t_instalado[[#This Row],[Q.2]]<>"",SUMIFS(t_reator[p],t_reator[tipo],t_instalado[[#This Row],[T.2]],t_reator[w],t_instalado[[#This Row],[P.2(W)]]),"") ->  | Q365: =IF(t_instalado[[#This Row],[Q.3]]<>"",SUMIFS(t_reator[p],t_reator[tipo],t_instalado[[#This Row],[T.3]],t_reator[w],t_instalado[[#This Row],[P.3(W)]]),"") ->  | R365: =IF(t_instalado[[#This Row],[Q.1]]<>"",IFERROR(IFERROR(D365*(E365+O365)+G365*(H365+P365)+J365*(K365+Q365),D365*(E365+O365)+G365*(H365+P365)),D365*(E365+O365)),"") ->  | S365: =IF(t_instalado[[#This Row],[Consumo_W]]<>"",ROUND(t_instalado[[#This Row],[Consumo_W]]/t_instalado[[#This Row],[Luminárias]],0),"") ->  | T365: =IF(t_instalado[[#This Row],[Q.1]]<>"",SUMIFS(t_fluxo_lumin[fluxo],t_fluxo_lumin[tipo],t_instalado[[#This Row],[T.1]])*t_instalado[[#This Row],[P.1(W)]]*t_instalado[[#This Row],[Q.1]],"") ->  | U365: =IF(t_instalado[[#This Row],[Q.2]]<>"",SUMIFS(t_fluxo_lumin[fluxo],t_fluxo_lumin[tipo],t_instalado[[#This Row],[T.2]])*t_instalado[[#This Row],[Q.2]]*t_instalado[[#This Row],[P.2(W)]],"") ->  | V365: =IF(t_instalado[[#This Row],[Q.3]]<>"",SUMIFS(t_fluxo_lumin[fluxo],t_fluxo_lumin[tipo],t_instalado[[#This Row],[T.3]])*t_instalado[[#This Row],[Q.3]]*t_instalado[[#This Row],[P.3(W)]],"") ->  | W365: =IF(t_instalado[[#This Row],[Trecho]]<>"",SUM(t_instalado[[#This Row],[f.1]:[f.3]]),"") ->  | X365: =IF(t_instalado[[#This Row],[Trecho]]<>"",t_instalado[[#This Row],[Q.1]]+t_instalado[[#This Row],[Q.2]]+t_instalado[[#This Row],[Q.3]],"") ->  | Y365: =IF(t_instalado[[#This Row],[FLUXO]]<>"",ROUND(t_instalado[[#This Row],[FLUXO]]/t_instalado[[#This Row],[Luminárias]],0),"") ->  | Z365: =IF(t_instalado[[#This Row],[Luminárias]]<>"",ROUND(t_instalado[[#This Row],[lm_médio]]/t_instalado[[#This Row],[W_médio]],2),"") -> 
A366: 132 | B366: =_xlfn.XLOOKUP(t_instalado[[#This Row],[cód.]],t_sitio[cód],t_sitio[Trecho],"") ->  | M366: =t_instalado[[#This Row],[Q.1]]+t_instalado[[#This Row],[Q.2]]+t_instalado[[#This Row],[Q.3]] -> 0 | N366: =t_instalado[[#This Row],[Q.1]]+t_instalado[[#This Row],[Q.2]]+t_instalado[[#This Row],[Q.3]] -> 0 | O366: =IF(t_instalado[[#This Row],[Q.1]]<>"",SUMIFS(t_reator[p],t_reator[tipo],t_instalado[[#This Row],[T.1]],t_reator[w],t_instalado[[#This Row],[P.1(W)]]),"") ->  | P366: =IF(t_instalado[[#This Row],[Q.2]]<>"",SUMIFS(t_reator[p],t_reator[tipo],t_instalado[[#This Row],[T.2]],t_reator[w],t_instalado[[#This Row],[P.2(W)]]),"") ->  | Q366: =IF(t_instalado[[#This Row],[Q.3]]<>"",SUMIFS(t_reator[p],t_reator[tipo],t_instalado[[#This Row],[T.3]],t_reator[w],t_instalado[[#This Row],[P.3(W)]]),"") ->  | R366: =IF(t_instalado[[#This Row],[Q.1]]<>"",IFERROR(IFERROR(D366*(E366+O366)+G366*(H366+P366)+J366*(K366+Q366),D366*(E366+O366)+G366*(H366+P366)),D366*(E366+O366)),"") ->  | S366: =IF(t_instalado[[#This Row],[Consumo_W]]<>"",ROUND(t_instalado[[#This Row],[Consumo_W]]/t_instalado[[#This Row],[Luminárias]],0),"") ->  | T366: =IF(t_instalado[[#This Row],[Q.1]]<>"",SUMIFS(t_fluxo_lumin[fluxo],t_fluxo_lumin[tipo],t_instalado[[#This Row],[T.1]])*t_instalado[[#This Row],[P.1(W)]]*t_instalado[[#This Row],[Q.1]],"") ->  | U366: =IF(t_instalado[[#This Row],[Q.2]]<>"",SUMIFS(t_fluxo_lumin[fluxo],t_fluxo_lumin[tipo],t_instalado[[#This Row],[T.2]])*t_instalado[[#This Row],[Q.2]]*t_instalado[[#This Row],[P.2(W)]],"") ->  | V366: =IF(t_instalado[[#This Row],[Q.3]]<>"",SUMIFS(t_fluxo_lumin[fluxo],t_fluxo_lumin[tipo],t_instalado[[#This Row],[T.3]])*t_instalado[[#This Row],[Q.3]]*t_instalado[[#This Row],[P.3(W)]],"") ->  | W366: =IF(t_instalado[[#This Row],[Trecho]]<>"",SUM(t_instalado[[#This Row],[f.1]:[f.3]]),"") ->  | X366: =IF(t_instalado[[#This Row],[Trecho]]<>"",t_instalado[[#This Row],[Q.1]]+t_instalado[[#This Row],[Q.2]]+t_instalado[[#This Row],[Q.3]],"") ->  | Y366: =IF(t_instalado[[#This Row],[FLUXO]]<>"",ROUND(t_instalado[[#This Row],[FLUXO]]/t_instalado[[#This Row],[Luminárias]],0),"") ->  | Z366: =IF(t_instalado[[#This Row],[Luminárias]]<>"",ROUND(t_instalado[[#This Row],[lm_médio]]/t_instalado[[#This Row],[W_médio]],2),"") -> 
A367: 133 | B367: =_xlfn.XLOOKUP(t_instalado[[#This Row],[cód.]],t_sitio[cód],t_sitio[Trecho],"") ->  | M367: =t_instalado[[#This Row],[Q.1]]+t_instalado[[#This Row],[Q.2]]+t_instalado[[#This Row],[Q.3]] -> 0 | N367: =t_instalado[[#This Row],[Q.1]]+t_instalado[[#This Row],[Q.2]]+t_instalado[[#This Row],[Q.3]] -> 0 | O367: =IF(t_instalado[[#This Row],[Q.1]]<>"",SUMIFS(t_reator[p],t_reator[tipo],t_instalado[[#This Row],[T.1]],t_reator[w],t_instalado[[#This Row],[P.1(W)]]),"") ->  | P367: =IF(t_instalado[[#This Row],[Q.2]]<>"",SUMIFS(t_reator[p],t_reator[tipo],t_instalado[[#This Row],[T.2]],t_reator[w],t_instalado[[#This Row],[P.2(W)]]),"") ->  | Q367: =IF(t_instalado[[#This Row],[Q.3]]<>"",SUMIFS(t_reator[p],t_reator[tipo],t_instalado[[#This Row],[T.3]],t_reator[w],t_instalado[[#This Row],[P.3(W)]]),"") ->  | R367: =IF(t_instalado[[#This Row],[Q.1]]<>"",IFERROR(IFERROR(D367*(E367+O367)+G367*(H367+P367)+J367*(K367+Q367),D367*(E367+O367)+G367*(H367+P367)),D367*(E367+O367)),"") ->  | S367: =IF(t_instalado[[#This Row],[Consumo_W]]<>"",ROUND(t_instalado[[#This Row],[Consumo_W]]/t_instalado[[#This Row],[Luminárias]],0),"") ->  | T367: =IF(t_instalado[[#This Row],[Q.1]]<>"",SUMIFS(t_fluxo_lumin[fluxo],t_fluxo_lumin[tipo],t_instalado[[#This Row],[T.1]])*t_instalado[[#This Row],[P.1(W)]]*t_instalado[[#This Row],[Q.1]],"") ->  | U367: =IF(t_instalado[[#This Row],[Q.2]]<>"",SUMIFS(t_fluxo_lumin[fluxo],t_fluxo_lumin[tipo],t_instalado[[#This Row],[T.2]])*t_instalado[[#This Row],[Q.2]]*t_instalado[[#This Row],[P.2(W)]],"") ->  | V367: =IF(t_instalado[[#This Row],[Q.3]]<>"",SUMIFS(t_fluxo_lumin[fluxo],t_fluxo_lumin[tipo],t_instalado[[#This Row],[T.3]])*t_instalado[[#This Row],[Q.3]]*t_instalado[[#This Row],[P.3(W)]],"") ->  | W367: =IF(t_instalado[[#This Row],[Trecho]]<>"",SUM(t_instalado[[#This Row],[f.1]:[f.3]]),"") ->  | X367: =IF(t_instalado[[#This Row],[Trecho]]<>"",t_instalado[[#This Row],[Q.1]]+t_instalado[[#This Row],[Q.2]]+t_instalado[[#This Row],[Q.3]],"") ->  | Y367: =IF(t_instalado[[#This Row],[FLUXO]]<>"",ROUND(t_instalado[[#This Row],[FLUXO]]/t_instalado[[#This Row],[Luminárias]],0),"") ->  | Z367: =IF(t_instalado[[#This Row],[Luminárias]]<>"",ROUND(t_instalado[[#This Row],[lm_médio]]/t_instalado[[#This Row],[W_médio]],2),"") -> 
A368: 134 | B368: =_xlfn.XLOOKUP(t_instalado[[#This Row],[cód.]],t_sitio[cód],t_sitio[Trecho],"") ->  | M368: =t_instalado[[#This Row],[Q.1]]+t_instalado[[#This Row],[Q.2]]+t_instalado[[#This Row],[Q.3]] -> 0 | N368: =t_instalado[[#This Row],[Q.1]]+t_instalado[[#This Row],[Q.2]]+t_instalado[[#This Row],[Q.3]] -> 0 | O368: =IF(t_instalado[[#This Row],[Q.1]]<>"",SUMIFS(t_reator[p],t_reator[tipo],t_instalado[[#This Row],[T.1]],t_reator[w],t_instalado[[#This Row],[P.1(W)]]),"") ->  | P368: =IF(t_instalado[[#This Row],[Q.2]]<>"",SUMIFS(t_reator[p],t_reator[tipo],t_instalado[[#This Row],[T.2]],t_reator[w],t_instalado[[#This Row],[P.2(W)]]),"") ->  | Q368: =IF(t_instalado[[#This Row],[Q.3]]<>"",SUMIFS(t_reator[p],t_reator[tipo],t_instalado[[#This Row],[T.3]],t_reator[w],t_instalado[[#This Row],[P.3(W)]]),"") ->  | R368: =IF(t_instalado[[#This Row],[Q.1]]<>"",IFERROR(IFERROR(D368*(E368+O368)+G368*(H368+P368)+J368*(K368+Q368),D368*(E368+O368)+G368*(H368+P368)),D368*(E368+O368)),"") ->  | S368: =IF(t_instalado[[#This Row],[Consumo_W]]<>"",ROUND(t_instalado[[#This Row],[Consumo_W]]/t_instalado[[#This Row],[Luminárias]],0),"") ->  | T368: =IF(t_instalado[[#This Row],[Q.1]]<>"",SUMIFS(t_fluxo_lumin[fluxo],t_fluxo_lumin[tipo],t_instalado[[#This Row],[T.1]])*t_instalado[[#This Row],[P.1(W)]]*t_instalado[[#This Row],[Q.1]],"") ->  | U368: =IF(t_instalado[[#This Row],[Q.2]]<>"",SUMIFS(t_fluxo_lumin[fluxo],t_fluxo_lumin[tipo],t_instalado[[#This Row],[T.2]])*t_instalado[[#This Row],[Q.2]]*t_instalado[[#This Row],[P.2(W)]],"") ->  | V368: =IF(t_instalado[[#This Row],[Q.3]]<>"",SUMIFS(t_fluxo_lumin[fluxo],t_fluxo_lumin[tipo],t_instalado[[#This Row],[T.3]])*t_instalado[[#This Row],[Q.3]]*t_instalado[[#This Row],[P.3(W)]],"") ->  | W368: =IF(t_instalado[[#This Row],[Trecho]]<>"",SUM(t_instalado[[#This Row],[f.1]:[f.3]]),"") ->  | X368: =IF(t_instalado[[#This Row],[Trecho]]<>"",t_instalado[[#This Row],[Q.1]]+t_instalado[[#This Row],[Q.2]]+t_instalado[[#This Row],[Q.3]],"") ->  | Y368: =IF(t_instalado[[#This Row],[FLUXO]]<>"",ROUND(t_instalado[[#This Row],[FLUXO]]/t_instalado[[#This Row],[Luminárias]],0),"") ->  | Z368: =IF(t_instalado[[#This Row],[Luminárias]]<>"",ROUND(t_instalado[[#This Row],[lm_médio]]/t_instalado[[#This Row],[W_médio]],2),"") -> 
A369: 135 | B369: =_xlfn.XLOOKUP(t_instalado[[#This Row],[cód.]],t_sitio[cód],t_sitio[Trecho],"") ->  | M369: =t_instalado[[#This Row],[Q.1]]+t_instalado[[#This Row],[Q.2]]+t_instalado[[#This Row],[Q.3]] -> 0 | N369: =t_instalado[[#This Row],[Q.1]]+t_instalado[[#This Row],[Q.2]]+t_instalado[[#This Row],[Q.3]] -> 0 | O369: =IF(t_instalado[[#This Row],[Q.1]]<>"",SUMIFS(t_reator[p],t_reator[tipo],t_instalado[[#This Row],[T.1]],t_reator[w],t_instalado[[#This Row],[P.1(W)]]),"") ->  | P369: =IF(t_instalado[[#This Row],[Q.2]]<>"",SUMIFS(t_reator[p],t_reator[tipo],t_instalado[[#This Row],[T.2]],t_reator[w],t_instalado[[#This Row],[P.2(W)]]),"") ->  | Q369: =IF(t_instalado[[#This Row],[Q.3]]<>"",SUMIFS(t_reator[p],t_reator[tipo],t_instalado[[#This Row],[T.3]],t_reator[w],t_instalado[[#This Row],[P.3(W)]]),"") ->  | R369: =IF(t_instalado[[#This Row],[Q.1]]<>"",IFERROR(IFERROR(D369*(E369+O369)+G369*(H369+P369)+J369*(K369+Q369),D369*(E369+O369)+G369*(H369+P369)),D369*(E369+O369)),"") ->  | S369: =IF(t_instalado[[#This Row],[Consumo_W]]<>"",ROUND(t_instalado[[#This Row],[Consumo_W]]/t_instalado[[#This Row],[Luminárias]],0),"") ->  | T369: =IF(t_instalado[[#This Row],[Q.1]]<>"",SUMIFS(t_fluxo_lumin[fluxo],t_fluxo_lumin[tipo],t_instalado[[#This Row],[T.1]])*t_instalado[[#This Row],[P.1(W)]]*t_instalado[[#This Row],[Q.1]],"") ->  | U369: =IF(t_instalado[[#This Row],[Q.2]]<>"",SUMIFS(t_fluxo_lumin[fluxo],t_fluxo_lumin[tipo],t_instalado[[#This Row],[T.2]])*t_instalado[[#This Row],[Q.2]]*t_instalado[[#This Row],[P.2(W)]],"") ->  | V369: =IF(t_instalado[[#This Row],[Q.3]]<>"",SUMIFS(t_fluxo_lumin[fluxo],t_fluxo_lumin[tipo],t_instalado[[#This Row],[T.3]])*t_instalado[[#This Row],[Q.3]]*t_instalado[[#This Row],[P.3(W)]],"") ->  | W369: =IF(t_instalado[[#This Row],[Trecho]]<>"",SUM(t_instalado[[#This Row],[f.1]:[f.3]]),"") ->  | X369: =IF(t_instalado[[#This Row],[Trecho]]<>"",t_instalado[[#This Row],[Q.1]]+t_instalado[[#This Row],[Q.2]]+t_instalado[[#This Row],[Q.3]],"") ->  | Y369: =IF(t_instalado[[#This Row],[FLUXO]]<>"",ROUND(t_instalado[[#This Row],[FLUXO]]/t_instalado[[#This Row],[Luminárias]],0),"") ->  | Z369: =IF(t_instalado[[#This Row],[Luminárias]]<>"",ROUND(t_instalado[[#This Row],[lm_médio]]/t_instalado[[#This Row],[W_médio]],2),"") -> 
